Workbook

Sheet Control Panel
A1: GO TO
A2: Utah | C2: FILING INFORMATION | J2: Model Checks
A3: 1.1 | J3: (Must Be 0)
A4: 1.2 | E4: UTAH | J4: ='Model Checks'!D7 -> 1.474989742
A5: 1.3 pg 1 | D5: Current Case No. | E5: 20-057-07 | J5: (If this is not 0, or very close, go to
A6: 1.3 pg 2 | D6: Filing Date | E6: 2020-05-01 | J6: the "Model Checks"
D7: Test-Year Ending | E7: 2021-05-31 | J7: Tab and find the
A8: 1.4 pg 1 | D8: Proposed Effective Date | E8: 2020-06-01 | J8: problem.)
A9: 1.4 pg 2 | D9: Prior Case No. | E9: 19-057-18
A10: 1.4 pg 3 | J10: Go To
A11: 1.5 | C11: Total Increase (Decrease) | E11: ='Utah Summary-by class'!Q27 -> -10890618.72 | G11: =E11-F11 -> -10890618.72 | J11: Model Checks'
A12: 1.6 pg 1
A13: 1.6 pg 2
A14: 1.6 pg 3 | C14: Typical Customer's Bill | J14: Old Ut Data color
A15: 1.7 pg 1
A16: 1.7 pg 2 | D16: Previous | E16: ='Ut 1.6'!F30 -> 647.36 | J16: New Data color
A17: 1.8 | D17: Proposed | E17: ='Ut 1.6'!H30 -> 639.09
A18: 1.9 | D18: Difference | E18: ='Ut 1.6'!J30 -> -8.27 | G18: =E18-F18 -> -8.27
A19: Monthly Inputs | D19: % Difference | E19: ='Ut 1.6'!J32 -> -1.28 | G19: =E19-F19 -> -1.28
A20: Other Inputs
A21: Expenses
A22: Rate Base
C29: DEU Exhibit Headings
C31: UTAH
E32: Dominion Energy Utah
E33: ="Docket No. "&E5 -> Docket No. 20-057-07
C35: Test-Year (enter as text)
D36: from | E36: 2020-06-01
D37: to | E37: 2021-05-31

Sheet Monthly Inputs
A1: MONTHLY INPUTS
G2: TEST-YEAR COLUMNS | S2: 12-Month
E3: Apr20 | F3: May20 | G3: Jun20 | H3: Jul20 | I3: Aug20 | J3: Sep20 | K3: Oct20 | L3: Nov20 | M3: Dec20 | N3: Jan21 | O3: Feb21 | P3: Mar21 | Q3: Apr21 | R3: May21 | S3: =R3 -> May21
E4: 4 | F4: 5 | G4: 6 | H4: 7 | I4: 8 | J4: 9 | K4: 10 | L4: 11 | M4: 12 | N4: 1 | O4: 2 | P4: 3 | Q4: 4 | R4: 5
A5: QGC Company Produced Gas In MDth | I5: Updated: | J5: 2020-04-08
A6: WEXPRO I
B7: Company Production In Dth | E7: 4070250 | F7: 4130935 | G7: 3931044 | H7: 4000312 | I7: 4001024 | J7: 3914310 | K7: 4199456 | L7: 3976692 | M7: 4031648 | N7: 3962694 | O7: 3523419 | P7: 3842235 | Q7: 3665199 | R7: 3737710 | S7: =SUM(G7:R7) -> 46785743
B8: Birch Cr Gathering | E8: 0 | F8: 0 | G8: 0 | H8: 0 | I8: 0 | J8: 0 | K8: 0 | L8: 0 | M8: 0 | N8: 0 | O8: 0 | P8: 0 | Q8: 0 | R8: =R7/$S$7*$S$8 -> 0 | S8: ='Other Inputs'!$D$173 -> 0
B9: Gathering | E9: 2851801.23 | F9: 2894319.886 | G9: =G7/$S$7*$S$9 -> 708480.0595 | H9: 720964.0197 | I9: 721092.3412 | J9: 705464.1417 | K9: 756855.1348 | L9: 716707.0592 | M9: 726611.6113 | N9: 714184.2424 | O9: 635015.0501 | P9: 692474.2845 | Q9: 660567.6267 | R9: 673636.0629 | S9: =+'Ex 1.1 Data'!E1 -> 8432051.634
A12: WEXPRO II
B13: Company Production In Dth | E13: 975834 | F13: 989735 | G13: 940995 | H13: 956076 | I13: 998334 | J13: 896292 | K13: 989052 | L13: 935052 | M13: 1059929 | N13: 1034418 | O13: 825200 | P13: 899083 | Q13: 856974 | R13: 872809 | S13: =SUM(G13:R13) -> 11264214
B14: Samson Gathering | E14: 818038.7687 | F14: 829691.9361 | G14: =G13/$S$13*$S$14 -> 511184.0297 | H14: 519376.5985 | I14: 542332.7404 | J14: 486899.6714 | K14: 537290.4074 | L14: 507955.5676 | M14: 575793.4711 | N14: 561934.9323 | O14: 448279.8116 | P14: 488415.848 | Q14: 465540.6486 | R14: 474142.8188 | S14: =+'Ex 1.1 Data'!L1 -> 6119146.545
D21: 1000
B23: Injections in Dth
C24: Chalk Creek | E24: 0 | F24: 0 | G24: 0 | H24: 0 | I24: 0 | J24: 93650 | K24: 132000 | L24: 76600 | M24: 0 | N24: 0 | O24: 0 | P24: 0 | Q24: 0 | R24: 0 | S24: =SUM(G24:R24) -> 302250
C25: Clay Basin | E25: 0 | F25: 1412352 | G25: 2700000 | H25: 1910380 | I25: 1945950 | J25: 2400000 | K25: 1881992 | L25: 0 | M25: 0 | N25: 0 | O25: 0 | P25: 0 | Q25: 0 | R25: 2480000 | S25: 13318322
C26: Coalville | E26: 0 | F26: 0 | G26: 0 | H26: 0 | I26: 0 | J26: 50190 | K26: 310000 | L26: 0 | M26: 0 | N26: 0 | O26: 0 | P26: 0 | Q26: 0 | R26: 0 | S26: 360190
C27: Leroy | E27: 0 | F27: 0 | G27: 0 | H27: 0 | I27: 0 | J27: 0 | K27: 443483 | L27: 0 | M27: 0 | N27: 0 | O27: 0 | P27: 0 | Q27: 0 | R27: 0 | S27: 443483
C28: Spire | E28: 335461 | F28: 353119 | G28: 341730 | H28: 353120 | I28: 353120 | J28: 341730 | K28: 353119 | L28: 0 | M28: 0 | N28: 0 | O28: 0 | P28: 0 | Q28: 0 | R28: 0 | S28: 1742819
C29: Total Injections | E29: 335461 | F29: 1765471 | G29: =SUM(G24:G28) -> 3041730 | H29: 2263500 | I29: 2299070 | J29: 2885570 | K29: 3120594 | L29: 76600 | M29: =SUM(M24:M28) -> 0 | N29: =SUM(N24:N28) -> 0 | O29: 0 | P29: 0 | Q29: 0 | R29: 2480000 | S29: 16167064
B31: Withdrawls In Dth
C32: Chalk Creek | E32: 0 | F32: 0 | G32: 0 | H32: 0 | I32: 0 | J32: 0 | K32: 0 | L32: 0 | M32: 0 | N32: 45004 | O32: 0 | P32: 243896 | Q32: 0 | R32: 0 | S32: =SUM(G32:R32) -> 288900
C33: Clay Basin | E33: 0 | F33: 0 | G33: 0 | H33: 0 | I33: 0 | J33: 0 | K33: 0 | L33: 0 | M33: 4158000 | N33: 3458045 | O33: 3080045 | P33: 1554581 | Q33: 0 | R33: 0 | S33: 12250671
C34: Coalville | E34: 0 | F34: 0 | G34: 0 | H34: 0 | I34: 0 | J34: 0 | K34: 0 | L34: 0 | M34: 0 | N34: 60079 | O34: 0 | P34: 300107 | Q34: 0 | R34: 0 | S34: 360186
C35: Leroy | E35: 0 | F35: 0 | G35: 0 | H35: 0 | I35: 0 | J35: 0 | K35: 0 | L35: 0 | M35: 0 | N35: 78940 | O35: 0 | P35: 364543 | Q35: 0 | R35: 0 | S35: 443483
C36: Spire | E36: 0 | F36: 0 | G36: 0 | H36: 0 | I36: 0 | J36: 0 | K36: 0 | L36: 491400 | M36: 514600 | N36: 514600 | O36: 464800 | P36: 514600 | Q36: 0 | R36: 0 | S36: 2500000
C37: Total Withdrawls | E37: 0 | F37: 0 | G37: =SUM(G32:G36) -> 0 | H37: 0 | I37: 0 | J37: 0 | K37: 0 | L37: 491400 | M37: =SUM(M32:M36) -> 4672600 | N37: =SUM(N32:N36) -> 4156668 | O37: 3544845 | P37: 2977727 | Q37: 0 | R37: 0 | S37: 15843240
B39: Lost & Unaccounted for on QPC
A42: Injection and Withdrawl Used, Lost and Unaccounted For
D43: Gas Use
D44: %
B45: Injections in Dth
C46: Chalk Creek | D46: ='Other Inputs'!E148 -> 0.0099 | E46: =E24*-$D46 -> 0 | F46: 0 | G46: 0 | H46: =H24*-$D46 -> 0 | I46: 0 | J46: -927.135 | K46: -1306.8 | L46: -758.34 | M46: =M24*-$D46 -> 0 | N46: 0 | O46: 0 | P46: 0 | Q46: 0 | R46: 0 | S46: =SUM(G46:R46) -> -2992.275
C47: Clay Basin | D47: ='Other Inputs'!E157 -> 0.025 | E47: 0 | F47: -35308.8 | G47: -67500 | H47: =H25*-$D47 -> -47759.5 | I47: -48648.75 | J47: -60000 | K47: -47049.8 | L47: 0 | M47: 0 | N47: 0 | O47: 0 | P47: 0 | Q47: 0 | R47: -62000 | S47: =SUM(G47:R47) -> -332958.05
C48: Coalville | D48: ='Other Inputs'!E160 -> 0.0108 | E48: =E26*-$D48 -> 0 | F48: 0 | G48: =G26*-$D48 -> 0 | H48: 0 | I48: 0 | J48: -542.052 | K48: -3348 | L48: 0 | M48: 0 | N48: 0 | O48: 0 | P48: 0 | Q48: 0 | R48: 0 | S48: =SUM(G48:R48) -> -3890.052
C49: Leroy | D49: ='Other Inputs'!E154 -> 0.0295 | E49: 0 | F49: 0 | G49: 0 | H49: 0 | I49: 0 | J49: 0 | K49: -13082.7485 | L49: 0 | M49: 0 | N49: 0 | O49: 0 | P49: 0 | Q49: 0 | R49: 0 | S49: =SUM(G49:R49) -> -13082.7485
C50: Ryckman | D50: ='Other Inputs'!E151 -> 0.025 | E50: -8386.525 | F50: -8827.975 | G50: -8543.25 | H50: -8828 | I50: -8828 | J50: -8543.25 | K50: -8827.975 | L50: 0 | M50: 0 | N50: 0 | O50: 0 | P50: 0 | Q50: 0 | R50: 0 | S50: =SUM(G50:R50) -> -43570.475
C51: Total Injections | E51: =SUM(E46:E50) -> -8386.525 | F51: -44136.775 | G51: -76043.25 | H51: -56587.5 | I51: -57476.75 | J51: -70012.437 | K51: -73615.3235 | L51: -758.34 | M51: 0 | N51: 0 | O51: 0 | P51: 0 | Q51: 0 | R51: -62000 | S51: =SUM(S46:S50) -> -396493.6005
B53: Withdrawls In Dth
C54: Chalk Creek | D54: ='Other Inputs'!E149 -> 0.0184 | E54: =E32*-$D54 -> 0 | F54: 0 | G54: =G32*-$D54 -> 0 | H54: 0 | I54: 0 | J54: 0 | K54: 0 | L54: 0 | M54: =M32*-$D54 -> 0 | N54: -828.0736 | O54: 0 | P54: -4487.6864 | Q54: 0 | R54: 0 | S54: =SUM(G54:R54) -> -5315.76
C55: Clay Basin | D55: ='Other Inputs'!E158 -> 0.0155 | E55: 0 | F55: 0 | G55: 0 | H55: 0 | I55: 0 | J55: 0 | K55: 0 | L55: 0 | M55: -64449 | N55: -53599.6975 | O55: -47740.6975 | P55: -24096.0055 | Q55: 0 | R55: 0 | S55: =SUM(G55:R55) -> -189885.4005
C56: Coalville | D56: ='Other Inputs'!E161 -> 0.0239 | E56: 0 | F56: 0 | G56: 0 | H56: 0 | I56: 0 | J56: 0 | K56: 0 | L56: 0 | M56: 0 | N56: -1435.8881 | O56: 0 | P56: -7172.5573 | Q56: 0 | R56: 0 | S56: =SUM(G56:R56) -> -8608.4454
C57: Leroy | D57: ='Other Inputs'!E155 -> 0.0243 | E57: 0 | F57: 0 | G57: 0 | H57: 0 | I57: 0 | J57: 0 | K57: 0 | L57: 0 | M57: 0 | N57: -1918.242 | O57: 0 | P57: -8858.3949 | Q57: 0 | R57: 0 | S57: =SUM(G57:R57) -> -10776.6369
C58: Ryckman | D58: ='Other Inputs'!E152 -> 0 | E58: 0 | F58: 0 | G58: 0 | H58: 0 | I58: 0 | J58: 0 | K58: 0 | L58: 0 | M58: 0 | N58: 0 | O58: 0 | P58: 0 | Q58: 0 | R58: 0 | S58: =SUM(G58:R58) -> 0
C59: Total Withdrawls | E59: =SUM(E54:E58) -> 0 | F59: =SUM(F54:F58) -> 0 | G59: =SUM(G54:G58) -> 0 | H59: 0 | I59: 0 | J59: 0 | K59: 0 | L59: 0 | M59: -64449 | N59: -57781.9012 | O59: -47740.6975 | P59: -44614.6441 | Q59: 0 | R59: 0 | S59: =SUM(S54:S58) -> -214586.2428
B61: QPC Transportation Loss
C62: Chalk Creek | D62: ='Other Inputs'!$E$271 -> 0.0157 | E62: =E32*-$D62 -> 0 | F62: =F32*-$D62 -> 0 | G62: =G32*-$D62 -> 0 | H62: =H32*-$D62 -> 0 | I62: 0 | J62: 0 | K62: 0 | L62: 0 | M62: =M32*-$D62 -> 0 | N62: -706.5628 | O62: 0 | P62: -3829.1672 | Q62: 0 | R62: 0 | S62: =SUM(G62:R62) -> -4535.73
C63: Clay Basin | D63: ='Other Inputs'!$E$271 -> 0.0157 | E63: =E33*-$D63 -> 0 | F63: 0 | G63: =G33*-$D63 -> 0 | H63: 0 | I63: 0 | J63: 0 | K63: 0 | L63: 0 | M63: -65280.6 | N63: -54291.3065 | O63: -48356.7065 | P63: -24406.9217 | Q63: 0 | R63: 0 | S63: =SUM(G63:R63) -> -192335.5347
C64: Coalville | D64: ='Other Inputs'!$E$271 -> 0.0157 | E64: 0 | F64: 0 | G64: 0 | H64: 0 | I64: 0 | J64: 0 | K64: 0 | L64: 0 | M64: 0 | N64: -943.2403 | O64: 0 | P64: -4711.6799 | Q64: 0 | R64: 0 | S64: =SUM(G64:R64) -> -5654.9202
C65: Leroy | D65: ='Other Inputs'!$E$271 -> 0.0157 | E65: 0 | F65: 0 | G65: 0 | H65: 0 | I65: 0 | J65: 0 | K65: 0 | L65: 0 | M65: 0 | N65: -1239.358 | O65: 0 | P65: -5723.3251 | Q65: 0 | R65: 0 | S65: =SUM(G65:R65) -> -6962.6831
C66: Ryckman | D66: ='Other Inputs'!$E$271 -> 0.0157 | E66: 0 | F66: 0 | G66: 0 | H66: 0 | I66: 0 | J66: 0 | K66: 0 | L66: -7714.98 | M66: -8079.22 | N66: -8079.22 | O66: -7297.36 | P66: -8079.22 | Q66: 0 | R66: 0 | S66: =SUM(G66:R66) -> -39250
C67: Total Withdrawls | E67: =SUM(E62:E66) -> 0 | F67: =SUM(F62:F66) -> 0 | G67: =SUM(G62:G66) -> 0 | H67: 0 | I67: 0 | J67: 0 | K67: 0 | L67: -7714.98 | M67: -73359.82 | N67: -65259.6876 | O67: -55654.0665 | P67: -46750.3139 | Q67: 0 | R67: 0 | S67: -248738.868
B70: Total Injections & Withdrawls | E70: =E51+E59 -> -8386.525 | F70: =F51+F59 -> -44136.775 | G70: =G51+G59 -> -76043.25 | H70: =H51+H59 -> -56587.5 | I70: -57476.75 | J70: -70012.437 | K70: -73615.3235 | L70: -758.34 | M70: -64449 | N70: -57781.9012 | O70: -47740.6975 | P70: -44614.6441 | Q70: 0 | R70: -62000 | S70: =S51+S59 -> -611079.8433
R72: Fuel Factor | S72: =-S70/(S37+S29) -> 0.01909009809
S74: 12-Month
E75: =E3 -> Apr20 | F75: =F3 -> May20 | G75: =G3 -> Jun20 | H75: =H3 -> Jul20 | I75: Aug20 | J75: Sep20 | K75: Oct20 | L75: Nov20 | M75: Dec20 | N75: Jan21 | O75: Feb21 | P75: Mar21 | Q75: Apr21 | R75: May21 | S75: Total
I77: Updated: | J77: 2020-04-08 | K77: EXH 1.2
A78: Natural Gas Spot Price Forecast - Average of GI, Cera & Pira | G78: (Forecast --->)
B79: Kern River Opal, Wyoming | E79: 1.27 | F79: 1.08 | G79: 1.28 | H79: 1.37 | I79: 1.52 | J79: 1.45 | K79: 1.47 | L79: 1.74 | M79: 2.18 | N79: 2.42 | O79: 2.32 | P79: 2.06 | Q79: 1.82 | R79: 1.72
B82: Spot Purchases from IRP | G82: 1639.95 | H82: 0 | I82: 0 | J82: 1186.381 | K82: 3814.641 | L82: 5145.172 | M82: 5115.133 | N82: 6317.941 | O82: 5965.156 | P82: 5298.789 | Q82: 4125.138 | R82: 3850.42 | S82: =SUM(G82:R82) -> 42458.721
C83: In DTH | G83: =G82*1000 -> 1639950 | H83: =H82*1000 -> 0 | I83: 0 | J83: 1186381 | K83: 3814641 | L83: =L82*1000 -> 5145172 | M83: =M82*1000 -> 5115133 | N83: 6317941 | O83: =O82*1000 -> 5965156 | P83: 5298789 | Q83: 4125138 | R83: 3850420 | S83: =SUM(G83:R83) -> 42458721
C84: In $ | G84: =G83*G79 -> 2099136 | H84: =H83*H79 -> 0 | I84: =I83*I79 -> 0 | J84: =J83*J79 -> 1720252.45 | K84: =K83*K79 -> 5607522.27 | L84: 8952599.28 | M84: 11150989.94 | N84: 15289417.22 | O84: 13839161.92 | P84: 10915505.34 | Q84: 7507751.16 | R84: 6622722.4 | S84: =SUM(G84:R84) -> 83705057.98
A87: CONTRACT PURCHASES | I87: Updated: | J87: 2020-04-15
B88: RESET FORMULAS TO WORKSHEET
B89: Peaking Purchases (DTH) | G89: 0 | H89: 0 | I89: 0 | J89: 0 | K89: 0 | L89: 1000000 | M89: 4000000 | N89: 5000000 | O89: 3000000 | P89: 0 | Q89: 0 | R89: 0 | S89: =SUM(G89:R89) -> 13000000
B90: Peaking Purchases ($) | G90: 0 | H90: 0 | I90: 0 | J90: 0 | K90: 0 | L90: 1800187.774 | M90: 9008109.089 | N90: 12492425.9 | O90: 7187383.156 | P90: 0 | Q90: 0 | R90: 0 | S90: =SUM(G90:R90) -> 30488105.92
B92: Term Purchases (DTH) | G92: 0 | H92: 0 | I92: 0 | J92: 0 | K92: 930000 | L92: 900000 | M92: 930000 | N92: 930000 | O92: 840000 | P92: 930000 | Q92: 900000 | R92: 0 | S92: =SUM(G92:R92) -> 6360000
B93: Term Purchases ($) | G93: 0 | H93: 0 | I93: 0 | J93: 0 | K93: 1557344.148 | L93: 1749869.794 | M93: 2216998.941 | N93: 2439980.842 | O93: 2119935.744 | P93: 2105507.99 | Q93: 1821799.44 | R93: 0 | S93: =SUM(G93:R93) -> 14011436.9
B94: Stabilization Costs (Winter Months - Oct to Mar) | G94: 0 | H94: 0 | I94: 0 | J94: 0 | K94: 0 | L94: 0 | M94: 0 | N94: 0 | O94: 0 | P94: 0 | Q94: 0 | R94: 0 | S94: =SUM(G94:R94) -> 0
B97: Total Purchases (DTH) | E97: 0 | F97: 0 | G97: =G89+G92 -> 0 | H97: =H89+H92 -> 0 | I97: 0 | J97: 0 | K97: 930000 | L97: =L89+L92 -> 1900000 | M97: 4930000 | N97: 5930000 | O97: 3840000 | P97: 930000 | Q97: 900000 | R97: 0 | S97: =SUM(G97:R97) -> 19360000
B98: Total Purchases ($) | E98: 0 | F98: 0 | G98: =G90+G93 -> 0 | H98: 0 | I98: 0 | J98: 0 | K98: 1557344.148 | L98: =L90+L93 -> 3550057.569 | M98: 11225108.03 | N98: 14932406.74 | O98: 9307318.9 | P98: 2105507.99 | Q98: 1821799.44 | R98: 0 | S98: =SUM(G98:R98) -> 44499542.82
A101: Typical Customer Monthly Usage in Dth
B102: Utah | G102: =VLOOKUP(MONTH(L3),$F$116:$G$127,2,FALSE) -> 6.3 | H102: 11.5 | I102: 14.9 | J102: 12.5 | K102: 10.1 | L102: 8.3 | M102: =VLOOKUP(MONTH(R3),$F$116:$G$127,2,FALSE) -> 4.4 | N102: =VLOOKUP(MONTH(G3),$F$116:$G$127,2,FALSE) -> 3.1 | O102: =VLOOKUP(MONTH(H3),$F$116:$G$127,2,FALSE) -> 2 | P102: =VLOOKUP(MONTH(I3),$F$116:$G$127,2,FALSE) -> 1.8 | Q102: =VLOOKUP(MONTH(J3),$F$116:$G$127,2,FALSE) -> 2 | R102: =VLOOKUP(MONTH(K3),$F$116:$G$127,2,FALSE) -> 3.1 | S102: =SUM(G102:R102) -> 80
B103: Wyoming | G103: =VLOOKUP(MONTH(L3),$F$116:$H$127,3,FALSE) -> 8 | H103: 12.3 | I103: 14.7 | J103: 14.1 | K103: 11.8 | L103: 9.4 | M103: =VLOOKUP(MONTH(R3),$F$116:$H$127,3,FALSE) -> 5.8 | N103: =VLOOKUP(MONTH(G3),$F$116:$H$127,3,FALSE) -> 3.7 | O103: =VLOOKUP(MONTH(H3),$F$116:$H$127,3,FALSE) -> 2.3 | P103: =VLOOKUP(MONTH(I3),$F$116:$H$127,3,FALSE) -> 1.7 | Q103: =VLOOKUP(MONTH(J3),$F$116:$H$127,3,FALSE) -> 2.1 | R103: =VLOOKUP(MONTH(K3),$F$116:$H$127,3,FALSE) -> 4.1 | S103: =SUM(G103:R103) -> 90
A105: INPUTS FROM WEXPRO | G105: =K3 -> Oct20 | H105: =L3 -> Nov20 | I105: Dec20 | J105: Jan21 | K105: Feb21 | L105: Mar21 | M105: Apr21 | N105: =R3 -> May21 | O105: =G3 -> Jun20 | P105: =H3 -> Jul20 | Q105: =I3 -> Aug20 | R105: =J3 -> Sep20 | S105: 12-Month
S106: Total
A107: Wexpro I Operator Fee (Wexpro forecast) | E107: Updated: | F107: 2020-04-16 | G107: 15443940.6 | H107: 15302395.69 | I107: 14986238.82 | J107: 14838902.45 | K107: 14851176.01 | L107: 14917628.37 | M107: 14806144.61 | N107: 15240907.34 | O107: 14893785.6 | P107: 14687515.85 | Q107: 14788603.97 | R107: 14225343.93 | S107: =SUM(G107:R107) -> 178982583.2
A109: Wexpro II Operator Fee (Wexpro forecast) | E109: Updated: | F109: 2020-04-16 | G109: 2505939.842 | H109: 2495021.318 | I109: 2428244.259 | J109: 2399235.143 | K109: 2903924.357 | L109: 2867521.08 | M109: 2877360.413 | N109: 2849335.608 | O109: 2788978.523 | P109: 2701528.924 | Q109: 2621031.481 | R109: 2572724.746 | S109: =SUM(G109:R109) -> 32010845.7
F115: Typical UPC | G115: UT | H115: WY
F116: 1 | G116: 14.9 | H116: 14.7
F117: 2 | G117: 12.5 | H117: 14.1
F118: 3 | G118: 10.1 | H118: 11.8
F119: 4 | G119: 8.3 | H119: 9.4
F120: 5 | G120: 4.4 | H120: 5.8
F121: 6 | G121: 3.1 | H121: 3.7
F122: 7 | G122: 2 | H122: 2.3
F123: 8 | G123: 1.8 | H123: 1.7
F124: 9 | G124: 2 | H124: 2.1
F125: 10 | G125: 3.1 | H125: 4.1
F126: 11 | G126: 6.3 | H126: 8
F127: 12 | G127: 11.5 | H127: 12.3
F128: Total | G128: =SUM(G116:G127) -> 80 | H128: =SUM(H116:H127) -> 90

Sheet Other Inputs
H1: Used In
A2: INPUT SECTION | H2: Ut | I2: Wy | J2: Source
A3: INPUTS FROM QUESTAR PIPELINE TARIFF AND CONTRACTS
B5: Storage Commodity Rates | E5: Rate | F5: Effective
B6: Peaking Injections | E6: 0.03872 | F6: 2020-01-01 | H6: 1.3.2 | I6: 1.3p2 | J6: QPC Tariff Statement of Rates
B7: Peaking Withdrawals | E7: 0.03872 | F7: =$F$6 -> 2020-01-01 | H7: 1.3.2 | I7: 1.3p2 | J7: =J6 -> QPC Tariff Statement of Rates
B8: Spire Injections | E8: 0.015 | F8: =$F$6 -> 2020-01-01
B9: Spire Withdrawals | E9: 0.01 | F9: =$F$6 -> 2020-01-01
B10: Clay Basin Injections | E10: 0.01049 | F10: =$F$6 -> 2020-01-01 | H10: 1.3.2 | I10: 1.3p2 | J10: QPC Tariff Statement of Rates
B11: Clay Basin Withdrawals | E11: 0.01781 | F11: =$F$6 -> 2020-01-01 | H11: 1.3.2 | I11: 1.3p2 | J11: =J10 -> QPC Tariff Statement of Rates
B13: Storage Field Reservation Charges
B14: Peaking Storage Fields Demand (Leroy, Chalk Creek, Coalville) | E14: 2.87375 | F14: =$F$6 -> 2020-01-01 | H14: 1.3.2 | I14: 1.3p2 | J14: =$J$6 -> QPC Tariff Statement of Rates
B15: Spire | E15: 0.09 | F15: =$F$6 -> 2020-01-01
B16: Clay Basin Demand | E16: 2.85338 | F16: =$F$6 -> 2020-01-01 | H16: 1.3.2 | I16: 1.3p2 | J16: =$J$6 -> QPC Tariff Statement of Rates
B17: Clay Basin Capacity | E17: 0.02378 | F17: =$F$6 -> 2020-01-01 | H17: 1.3.2 | I17: 1.3p2 | J17: =$J$6 -> QPC Tariff Statement of Rates
B19: Peak Hour Service
B20: Kern River | D20: 28752 | E20: 3 | F20: =+F21*E21/E20 -> 11.65333333
B21: mid Nov - mid Feb | E21: =16+31+31+14 -> 92 | F21: 0.38
B23: Dominion Energy Questar Pipeline | D23: =(142000+49000)/24*8 -> 63666.66667 | E23: 3 | F23: =(1044762+360516)/(D23*E23) -> 7.35747644
B24: mid Nov - mid Feb | E24: =16+31+31+14 -> 92 | F24: =+F23/E24*E23 -> 0.23991771
B27: FIRM TRANSPORTATION | D27: Contract Dth | E27: Months | F27: Maximum Rate | G27: Effective
B28: T-1 Transportation - Yearly (MT241) | D28: =798902 -> 798902 | E28: 12 | F28: 5.28804 | G28: 2020-01-01 | H28: 1.3p1 | J28: =$J$6 -> QPC Tariff Statement of Rates
B29: T-1 Transportation - Yearly (Mainline 104) | D29: 30000 | E29: 12 | F29: 5.28804 | G29: =$G$28 -> 2020-01-01 | H29: Jan | J29: =$J$6 -> QPC Tariff Statement of Rates
B30: T-1 Transportation - Yearly (Tieline 112) | D30: 12000 | E30: 12 | F30: 5.28804 | G30: =$G$28 -> 2020-01-01 | H30: 1.3p1 | J30: =$J$6 -> QPC Tariff Statement of Rates
B31: T-1 Transportation - Nov-Mar | D31: 75000 | E31: 5 | F31: 6.80887 | G31: =$G$28 -> 2020-01-01
B32: T-1 Transportation - Yearly (Hyrum) | D32: 100000 | E32: 12 | F32: 5.28804 | G32: =$G$28 -> 2020-01-01
B33: Total Yearly T-1 Transportation | D33: =SUM(D28:D32) -> 1015902 | E33: 12
B35: No-Notice Transportation (BASE TARIFF RATE) | D35: 203542 | E35: 12 | F35: 0.86753 | G35: =$G$28 -> 2020-01-01 | H35: 1.3p1 | J35: =$J$6 -> QPC Tariff Statement of Rates
B37: TRANSPORTATION COMMODITY
B38: PIPELINE USAGE CHARGE TO VOLUMETRIC RELEASES
B39: QPC Commodity
B40: QPC Firm Transportation Usage Charge (Max & Min) (BASE TARIFF RATE) | F40: 0.00267 | G40: 2020-01-01 | H40: 1.3p1 | J40: =$J$6 -> QPC Tariff Statement of Rates
B41: QPC (ANNUAL CHARGE ADJUSTMENT) | F41: 0.0013 | G41: 2019-10-01 | H41: 1.3p1 | J41: FERC Website
E43: Current | F43: Proposed
B44: INTER TRANS (T-2 PIPELINE BASE TARIFF) MAX | D44: Base Tariff | E44: 0.17652 | F44: 0.17652 | G44: 2020-01-01 | J44: =$J$6 -> QPC Tariff Statement of Rates
D45: Annual Charge | E45: 0.0013 | F45: 0.0013 | G45: 2019-10-01 | J45: ferc.gov
D46: Total | E46: =SUM(E44:E45) -> 0.17782 | F46: =SUM(F44:F45) -> 0.17782
B49: Utah | E49: =ROUND((E46)/(1-$E268),5) -> 0.17862 | F49: =ROUND((F46)/(1-E268),5) -> 0.17862 | H49: 1.6.3
B50: Wyoming | F50: =ROUND((F46)/(1-E269),5) -> 0.18053
A52: INPUTS FROM KERN RIVER PIPELINE TARIFF AND CONTRACTS | E52: 15.78929167
B53: Kern River 2003 Expansion | D53: Contract Dth | E53: Months | F53: Maximum Rate | G53: Effective
F54: 0.1796 | G54: 2019-04-01
B55: Jan - Dec #20029 | D55: 33000 | E55: 12 | F55: =(F54*(365-153))/E55 -> 3.172933333 | H55: 1.3.1
B56: November - March #20029 | D56: 50000 | E56: 5 | F56: =F55 -> 3.172933333 | H56: Jan
B57: Jan - Dec #1829 | D57: 1885 | E57: 4 | F57: =F58*E58/E57 -> 15.83255
B58: Days in Tariff Rate | E58: =30+31+31+30 -> 122 | F58: 0.5191 | G58: =G54 -> 2019-04-01
D59: 1885 | E59: 8 | F59: =F60*E60/E59 -> 5.4644625
E60: =31+30+31+31+28+31+30+31 -> 243 | F60: =0.2021-0.0222 -> 0.1799 | G60: second period rates begin 11/1/20
B61: Citadel Energy Marketing
B62: Dec - Feb #20017 | D62: 56925 | E62: 3 | F62: =+E63*F63/E62 -> 8.7 | H62: 1.3.1
B63: Days in Tariff Rate | E63: =31+31+28 -> 90 | F63: 0.29
B64: Nov & Mar #20017 | D64: 6000 | E64: 2 | F64: =+F65*E65/E64 -> 8.845 | H64: Jan
B65: Days in Tariff Rate | E65: =30+31 -> 61 | F65: 0.29
B66: Nov - Mar #20024 | D66: 27000 | E66: 5 | F66: =+F67*E67/E66 -> 8.758 | H66: Jan
B67: Days in Tariff Rate | E67: =30+31+31+28+31 -> 151 | F67: 0.29
B69: Kern River 2003 Expansion | E69: Days in TEST PERIOD
B70: Jan - Dec | C70: 0.6689308985 | D70: =D55+D57 -> 34885 | E70: 365 | F70: 0.0044 | G70: =G58 -> 2019-04-01 | H70: 1.3p1
B71: November - March | C71: =C70 -> 0.6689308985 | D71: =D56 -> 50000 | E71: =30+31+31+28+31 -> 151 | F71: 0.0044 | G71: =G58 -> 2019-04-01 | H71: 1.3p1
B73: Kern River Original System Period Two Rates #20017
B74: Dec - Feb #20017 | C74: =+C70 -> 0.6689308985 | D74: 56925 | E74: =31+31+28 -> 90 | F74: 0.0044 | G74: =+G71 -> 2019-04-01 | H74: 1.3.1
B75: Nov & Mar #20017 | C75: =+C70 -> 0.6689308985 | D75: 6000 | E75: 61 | F75: 0.0044 | G75: =+G71 -> 2019-04-01 | H75: 1.3.2
B76: Kern River 2002 Expansion Period Two Rates #20024
B77: Nov - Mar #20024 | C77: =+C70 -> 0.6689308985 | D77: 27000 | E77: =30+31+31+28+31 -> 151 | F77: 0.0044 | G77: =+G71 -> 2019-04-01 | H77: Jan
A80: INPUTS FROM QUESTAR GAS TARIFF
A83: Current SNG Rates
B84: UTAH | E84: Current SNG Base | F84: Current SNG Amort. | G84: Current SNG Total | J84: Effective
B85: GS | D85: Winter | E85: 0.90136 | F85: 0.0259 | G85: =E85+F85 -> 0.92726 | J85: 2020-03-01
D86: Summer | E86: 0.4232 | F86: 0.01216 | G86: =E86+F86 -> 0.43536 | J86: =J85 -> 2020-03-01
B88: FS | D88: Winter | E88: 0.87789 | F88: 0.02523 | G88: =E88+F88 -> 0.90312 | J88: 2020-03-01
D89: Summer | E89: 0.4232 | F89: 0.01216 | G89: =E89+F89 -> 0.43536 | J89: =J88 -> 2020-03-01
B91: NGV | E91: 0.65043 | F91: 0.0187 | G91: =E91+F91 -> 0.66913 | J91: 2020-03-01
B93: (This includes bad debt adjustment) IS | E93: 0.17907 | F93: 0 | G93: =E93+F93 -> 0.17907 | J93: 2020-03-01
A95: Current Rates
B96: Utah GS | J96: Effective
B97: Block 1 | D97: Summer | G97: 6.26226 | J97: 2020-03-01
B98: Block 2 | D98: Summer | G98: 5.05967 | J98: =+J97 -> 2020-03-01
B99: Block 1 | D99: Winter | G99: 7.445 | J99: =+J97 -> 2020-03-01
B100: Block 2 | D100: Winter | G100: 6.24241 | J100: =+J97 -> 2020-03-01
B101: #1 BSF | G101: 6.75 | J101: =+J97 -> 2020-03-01
B103: Wyoming GS
B104: Block 1 | G104: 6.44271 | J104: 2019-12-01
B105: Block 2 | G105: 6.17491 | J105: =+J104 -> 2019-12-01
B106: BSF | G106: 12 | J106: =+J104 -> 2019-12-01
A108: INPUTS FROM PREVIOUS PASSTHROUGH CASE
B109: PRIOR PERIOD COMPANY PRODUCTION AVERAGE GAS COST
E110: PROPOSED | F110: PRIOR CASE | G110: Most Recent
B111: VOLUMES DTH | E111: =+'Monthly Inputs'!S7+'Monthly Inputs'!S13 -> 58049957 | F111: 62236745 | G111: EXH 1.1
B112: AMOUNT | E112: =+D196+D218 -> 227712471.3 | F112: 223281987.8 | G112: EXH 1.1
B113: AVG COST | E113: =+E112/E111 -> 3.922698363 | F113: =ROUND(+F112/F111,5) -> 3.58762
B115: Utah Cost of Gas by Component
B116: Unit Cost Of Gas (Line 7) | F116: 3.14885
B117: 191 Account Amortization (Line 8) | F117: 0.43865
B118: Total Unit Cost In Rates (Line 9) | F118: =SUM(F116:F117) -> 3.5875
B120: I-2 Commodity Cost (excluding bad debt) | E120: 0
B122: Wyoming Cost of Gas by Component
B123: Unit Cost Of Gas (Line 9) | F123: 3.8162
B124: 191 Account Amortization (Line 10) | F124: 0.38111
B125: Total Unit Cost In Rates (Line 11) | F125: =F123+F124 -> 4.19731
A130: INPUTS FROM 191 ACCOUNT MONTH END BALANCE ACTUAL OR FORECAST | E130: Utah | F130: Wyoming
E131: 2020 | F131: 2020-03-31
H132: 1.6.2
D133: current yr /mo(text)
B134: March 2020 191 account (Actual/Forecast) | D134: 2020 | E134: 6673595.36 | F134: -525613.75 | H134: 1.6.1
B135: Supplier Non-Gas Cost Under (Over) Collected through March 2020 (act/fcst) | D135: March | E135: -13037885 | H135: 1.6.2
B136: Commodity Cost Under (Over) Collected during YEAR (Act/Fcst) | E136: =E134-E135 -> 19711480.36
B138: SPRING SNG Amortization Balance March 2020 | D138: -13037885 | E138: -14000000 | F138: =+D138-E138 -> 962115
B139: Previous SPRING Amortization est March 2019 | D139: -17559983 | E139: -20000000 | F139: 2440017
A140: INPUTS FROM IRP
B141: #1 Peak Day Demand Forecast | E141: 2019 | F141: Source
B142: Utah | E142: =E144-E143 -> 1189810 | F142: 2019 IRP
B143: Wyoming | E143: 37416
B144: System Total Peak Day Demand Forecast | E144: 1227226 | F144: 2020-2021 Heating Season | H144: 1.5 | I144: 1.5
A147: STORAGE FIELD INPUTS | E147: Storage
B148: Chalk Creek Injections Factor | E148: 0.0099
B149: Chalk Creek Withdrawls Factor | E149: 0.0184
B151: Spire Injections Factor | E151: 0.025
B152: Spire Withdrawls Factor | E152: 0
B154: Leroy Injections Factor | E154: 0.0295
B155: Leroy Withdrawls Factor | E155: 0.0243
B157: Clay Basin Injections Factor | E157: 0.025
B158: Clay Basin Withdrawls Factor | E158: 0.0155
B160: Coalville Injections Factor | E160: 0.0108
B161: Coalville Withdrawls Factor | E161: 0.0239
B163: QPC Storage Field Reservation Charges | E163: Monthly Dth
B164: Peaking Storage Fields Maximum Daily Withdrawal Qty (Leroy, Chalk Creek, Coalville) | E164: 184625
B165: Ryckman Maximum Storage Qty | E165: =2500000 -> 2500000 | F165: contract ends March 2021
B166: Clay Basin Minimum Required Deliverability | E166: 111827
B167: Clay Basin Capacity | E167: 13419000
A169: OTHER INPUTS FROM GLEN, TOM, TINA & Al | D169: Revenue
B170: OTHER GATHERING
B174: Total Forecasted Birch Creek | D174: 273134.3373 | E174: 2020-03-31
B176: Other gathering | D176: 1653212.603 | E176: 2020-03-31 | H176: JanB
B177: Total Gathering | D177: =SUM(D174:D176) -> 1926346.941 | H177: 1.3.1 | I177: 1.3P1
B179: Other Transportation | D179: 3873365.433 | E179: 2020-03-31 | H179: 1.3.1
B181: Forecast Future Contracts Premium over spot price | E181: 0.02
D183: Commodity | E183: Demand
D184: Charge | E184: Charge | F184: Effective
B185: Gathering Rates -System wide Gathering agreement #163 (SWGA) | D185: 3342366.949 | E185: 5013550.423 | F185: 2020-01-01 | I185: 1.3p1
B188: Gathering Rate Wexpro II | D188: 2541309.056 | I188: 1.3p1
A191: OTHER INPUTS FROM JIM LIVSEY | D191: Volume (Dth) | E191: Revenue
A192: WEXPRO I
B193: Questar Gas Production 1/ | D193: Current
B194: Test-Year Royalties | D194: ='Royalty Detail'!I1432 -> 13429439.03 | H194: 1.4.1 | I194: 1.4P1
B195: Operator Service Fee | D195: ='Monthly Inputs'!S107 -> 178982583.2 | H195: 1.4.1 | I195: 1.4P1
B196: Total Questar Gas Production Costs | D196: =SUM(D194:D195) -> 192412022.3
B198: Total Questar Gas Production Dth | D198: ='Royalty Detail'!F1437 -> 46785743
F199: Hot | G199: Hot
B200: Other Revenue Credits | D200: 1 | E200: 2 | F200: 2 | G200: 2 | I200: 1
D201: Historical | E201: Forecast | F201: =HLOOKUP(F$200,$D$200:$E$209,$I201) -> Forecast | G201: =HLOOKUP(G$200,$D$200:$E$209,$I201) -> Forecast | I201: 2
D202: 12 Mo Ending | E202: 12 Mo Ending | F202: Utah | G202: Wyoming | I202: 3
B203: 483 Sales for Resale | E203: 2228745.6 | F203: =HLOOKUP(F$200,$D$200:$E$209,$I203) -> 2228745.6 | G203: =HLOOKUP(G$200,$D$200:$E$209,$I203) -> 2228745.6 | I203: 4
B204: 490 Incidental Plant Prod Sales | E204: 3053673 | F204: =HLOOKUP(F$200,$D$200:$E$209,$I204) -> 3053673 | G204: 3053673 | I204: 5
B205: 492 Incidental Gasoline_Oil Sales | E205: 280043.0048 | F205: 280043.0048 | G205: 280043.0048 | I205: 6
B206: 4951 Overriding Royalty Revenue from Celsius | E206: 7335186.455 | F206: 7335186.455 | G206: 7335186.455 | I206: 7
B207: 4952 Oil Revenue Received from Wexpro | E207: 0 | F207: 0 | G207: 0 | I207: 8
B208: 3rd Party & Liquids Credits from MLPX Acquisiiton | E208: 1307712 | F208: =HLOOKUP(F$200,$D$200:$E$209,$I208) -> 1307712 | G208: 1307712 | I208: 9
B209: 758001 Gas Well Royalities - Other | E209: -46179.09149 | F209: -46179.09149 | G209: -46179.09149 | I209: 10
B212: Total Other Revenue Credits | D212: =SUM(D203:D209) -> 0 | E212: =SUM(E203:E209) -> 14159180.97 | F212: =SUM(F203:F209) -> 14159180.97 | G212: =SUM(G203:G209) -> 14159180.97
A214: WEXPRO II
B215: Questar Gas Production 1/ | D215: Current
B216: Test-Year Royalties | D216: ='Royalty Detail'!I1688 -> 3289603.353 | H216: 1.4.1 | I216: 1.4P1
B217: Operator Service Fee | D217: ='Monthly Inputs'!S109 -> 32010845.7 | H217: 1.4.1 | I217: 1.4P1
B218: Total Questar Gas Production Costs | D218: =SUM(D216:D217) -> 35300449.05
B220: Total Questar Gas Production Dth | D220: ='Royalty Detail'!F1693 -> 11264214
F221: Hot | G221: Hot
B222: Other Revenue Credits | D222: 1 | E222: 2 | F222: 2 | G222: 2 | I222: 1
D223: Historical | E223: Forecast | F223: =HLOOKUP(F$200,$D$200:$E$209,$I223) -> Forecast | G223: =HLOOKUP(G$200,$D$200:$E$209,$I223) -> Forecast | I223: 2
D224: 12 Mo Ending | E224: 12 Mo Ending | F224: Utah | G224: Wyoming | I224: 3
B225: 483 Sales for Resale | E225: 0 | F225: =HLOOKUP(F$222,$D$222:$E$230,$I225) -> 0 | G225: 0 | I225: 4
B226: 490 Incidental Plant Prod Sales | E226: 216000 | F226: 216000 | G226: 216000 | I226: 5
B227: 492 Incidental Gasoline_Oil Sales | E227: 990256.2894 | F227: 990256.2894 | G227: 990256.2894 | I227: 6
B228: 4951 Overriding Royalty Revenue from Celsius | E228: 0 | F228: 0 | G228: 0 | I228: 7
B229: 4952 Oil Revenue Received from Wexpro | E229: 139579.6941 | F229: 139579.6941 | G229: 139579.6941 | I229: 8
B230: 758001 Gas Well Royalities - Other | E230: -161312.7495 | F230: -161312.7495 | G230: -161312.7495 | I230: 9
B233: Total Other Revenue Credits | D233: =SUM(D225:D230) -> 0 | E233: =SUM(E225:E231) -> 1184523.234 | F233: =SUM(F225:F230) -> 1184523.234 | G233: =SUM(G225:G230) -> 1184523.234
E235: Proceeds | F235: Dths | G235: Price
B236: Sales of Wexpro Gas | E236: 0 | F236: 0 | G236: 0
A238: SUMMARY INPUTS FROM REVRUN, RATE BASE, EXPENSES, ETC.
B240: Supplier Non-Gas Costs Recovered at Current Rates 3/ | E240: ='RevRun Fcst'!T$199 -> 87821722.07 | H240: 1.6.2
B241: MT Supplier Non-Gas | E241: ='RevRun Fcst'!T142 -> 0
B242: Net Supplier Non-Gas | E242: =E240-E241 -> 87821722.07
B243: UT Current Int Sales SNG Rate - not including Bad Debt adj. | E243: ='RevRun Fcst'!T102+'RevRun Fcst'!T93 -> 130911 | F243: 0.17862
E245: ='Rate Base'!$U$8 -> 2020-03-31
B246: Account 164-1 - Gas Stored Underground | D246: Dth | E246: Ending Balance | F246: $ per Dth
D247: ='Rate Base'!T285 -> -1732499 | E247: ='Rate Base'!T206 -> 5954574.05 | F247: =+E247/D247 -> -3.436985562 | H247: 1.4.2
A250: UT CET and DSM AMORTIZATION FILING INPUTS
E251: Base DNG | F251: Current DNG
B252: GS Rates (Base rates are before CET, DSM, & EA Amortizations) | D252: Summer Blk 1 | E252: 1.99981 | F252: 2.2394
D253: Summer Blk 2 | E253: 0.79741 | F253: 1.03681
D254: Winter Blk 1 | E254: 2.70165 | F254: 2.93024
D255: Winter Blk 2 | E255: 1.49925 | F255: 1.72765
A259: MISCELLANEOUS INPUTS
B260: Test-Year | D260: ='Control Panel'!E36 -> 2020-06-01 | E260: ='Control Panel'!E37 -> 2021-05-31
B262: Wexpro Red. @ 6.3% | E262: -0.063 | I262: 1.3p3
B264: Pre-Tax Rate of Return % | D264: WYO | E264: 0.0916 | F264: 2015-03-01 | I264: 1.3p2
B265: Pre-Tax Rate of Return % | D265: UTAH | E265: 0.089 | F265: 2018-03-01
B268: QGC Lost & Unaccounted For % (Utah | E268: 0.0045 | F268: 2016-06-01 | H268: Q | I268: Q
B269: QGC Lost & Unaccounted For % (Wyoming) | E269: 0.015
B270: Gathering Lost & Unaccounted For | E270: 0.021421 | F270: 2016-06-01 | H270: Q | I270: Q
B271: QPC Lost & Unaccounted For % | E271: 0.0157 | F271: 2010-04-23 | H271: Q | I271: Q
... 24 more rows

Sheet CET & DSM WY (hidden)
A1: Rate Caclulation for the CET and DSM Amortizations WY
L3: Solver Cells
A4: CET Amortization % Calculation | L4: % Change | M4: Difference
B5: Balance | C5: Date | D5: GS Dth | F5: Amortization per Dth | L5: =J20/D20 ->  | M5: =G20-B11 ->  | O5: -> Difference should be at 0 (Use Goal Seek to Get Difference to Equal 0.
A6: DSM Balance | B6: ='Other Inputs'!#REF! ->  | C6: ='Other Inputs'!#REF! ->  | D6: =B20 ->  | F6: =B6/D6 -> 
O8: Typical Bill Rates
A9: CET Amortization Calculation
B10: Balance | C10: Date | D10: DNG Rev | F10: New DNG | I10: % Change | O10: Current | P10: Proposed
A11: CET Balance | B11: ='Other Inputs'!#REF! ->  | C11: ='Other Inputs'!#REF! ->  | D11: =D20 ->  | F11: =D11+B11 ->  | I11: =L5 ->  | O11: Effective | R11: SNG & | S11: CET, DSM
O12: ='Other Inputs'!$J$104 -> 2019-12-01 | P12: CET Only | Q12: DSM Only | R12: Commodity | S12: Commodity
O13: BSF | P13: BSF | Q13: BSF | R13: BSF | S13: BSF
B14: Revenue Calculation | F14: CET Amortization | I14: Total DNG | L14: REVRUN Calculation | O14: ='Other Inputs'!$G$106 -> 12 | P14: ='Other Inputs'!$G$106 -> 12 | Q14: ='Other Inputs'!$G$106 -> 12 | R14: ='Other Inputs'!$G$106 -> 12 | S14: =#REF! -> 
A15: WY GS | B15: Dth | C15: Base DNG | D15: DNG Revenue | F15: CET Rate | G15: Revenue | I15: DNG Rate | J15: Revenue | L15: CET Rate | M15: CET Amort
A16: Block 1 | B16: ='Other Inputs'!#REF! ->  | C16: ='Other Inputs'!#REF! ->  | D16: =B16*C16 ->  | F16: =ROUND((G16/B16),5) ->  | G16: =D16*$L$5 ->  | I16: =C16+F16 ->  | J16: =I16*B16 ->  | L16: =ROUND(F16,5) ->  | M16: =B16*L16 ->  | O16: ='Other Inputs'!$G$97 -> 6.26226 | P16: =J24 ->  | Q16: =J31 ->  | R16: =J36 ->  | S16: =J41 -> 
A17: Block 2 | B17: ='Other Inputs'!#REF! ->  | C17: ='Other Inputs'!#REF! ->  | D17: =B17*C17 ->  | F17: =ROUND((G17/B17),5) ->  | G17: =D17*$L$5 ->  | I17: =C17+F17 ->  | J17: =I17*B17 ->  | L17: =ROUND(F17,5) ->  | M17: =B17*L17 -> 
O18: ='Other Inputs'!$G$104 -> 6.44271 | P18: =J24 ->  | Q18: =J31 ->  | R18: =J36 ->  | S18: =J41 -> 
A20: GS-1 Block Rev | B20: =SUM(B16:B19) ->  | D20: =SUM(D16:D19) ->  | G20: =SUM(G16:G19) ->  | J20: =B11 ->  | M20: =SUM(M16:M19) -> 
A22: Total Rate Calculation With CET Amortization Only | J22: ='Control Panel'!#REF! ->  | L22: ='Other Inputs'!$J$104 -> 2019-12-01
A23: WY GS | B23: Total DNG | C23: CET | D23: DSM | F23: Total DNG | G23: Core Commodity Cost | J23: Total Rate | L23: Total Rate
A24: Block 1 | B24: =$C$16 ->  | C24: =$F$16 ->  | D24: 0.06792 | F24: =SUM(B24:D24) ->  | G24: 4.96884 | J24: =SUM(F24:G24) ->  | L24: ='Other Inputs'!G104 -> 6.44271 | M24: =J24-L24 -> 
A25: Block 2 | B25: =$C$17 ->  | C25: =$F$17 ->  | D25: =$D$24 -> 0.06792 | F25: =SUM(B25:D25) ->  | G25: =G24 -> 4.96884 | J25: =SUM(F25:G25) ->  | L25: ='Other Inputs'!$G$105 -> 6.17491 | M25: =J25-L25 -> 
A29: Total Rate Calculation With DSM Amortization Only | J29: =J22 ->  | L29: ='Other Inputs'!$J$104 -> 2019-12-01
A30: WY GS | B30: Base DNG | C30: CET | D30: DSM | F30: Total DNG | G30: Core Commodity Cost | J30: Total Rate | L30: Total Rate
A31: Block 1 | B31: =$C$16 ->  | C31: 0.04505 | D31: =$F$6 ->  | F31: =ROUND(SUM(B31:D31),5) ->  | G31: =G24 -> 4.96884 | J31: =SUM(F31:I31) ->  | L31: ='Other Inputs'!$G$97 -> 6.26226 | M31: =J31-L31 -> 
A32: Block 2 | B32: =$C$17 ->  | C32: 0.02848 | D32: =$F$6 ->  | F32: =ROUND(SUM(B32:D32),5) ->  | G32: =G25 -> 4.96884 | J32: =SUM(F32:I32) ->  | L32: ='Other Inputs'!$G$105 -> 6.17491 | M32: =J32-L32 -> 
A34: Total Rate Calculation With Core Commodity Cost Changes Only | J34: =J22 ->  | L34: ='Other Inputs'!$J$104 -> 2019-12-01
A35: WY GS | B35: Base DNG | C35: CET | D35: DSM | F35: Total DNG | G35: Core Commodity Cost | J35: Total Rate | L35: Total Rate
A36: Block 1 | B36: =$C$16 ->  | C36: =C31 -> 0.04505 | D36: =D24 -> 0.06792 | F36: =SUM(B36:D36) ->  | G36: =#REF! ->  | J36: =SUM(F36:I36) ->  | L36: ='Other Inputs'!$G$97 -> 6.26226 | M36: =J36-L36 -> 
A37: Block 2 | B37: =$C$17 ->  | C37: =C32 -> 0.02848 | D37: =D25 -> 0.06792 | F37: =SUM(B37:D37) ->  | G37: =#REF! ->  | J37: =SUM(F37:I37) ->  | L37: ='Other Inputs'!$G$105 -> 6.17491 | M37: =J37-L37 -> 
A39: Total Rate Calculation | J39: =J29 ->  | L39: ='Other Inputs'!$J$104 -> 2019-12-01
A40: WY GS | B40: Base DNG | C40: CET | D40: DSM | F40: Total DNG | G40: Core Commodity Cost | J40: Total Rate | L40: Total Rate
A41: Block 1 | B41: =$C$16 ->  | C41: =$F$16 ->  | D41: =$F$6 ->  | F41: =SUM(B41:D41) ->  | G41: =#REF! ->  | J41: =SUM(F41:I41) ->  | L41: ='Other Inputs'!$G$97 -> 6.26226 | M41: =J41-L41 -> 
A42: Block 2 | B42: =$C$17 ->  | C42: =$F$17 ->  | D42: =$F$6 ->  | F42: =SUM(B42:D42) ->  | G42: =#REF! ->  | J42: =SUM(F42:I42) ->  | L42: ='Other Inputs'!$G$105 -> 6.17491 | M42: =J42-L42 -> 
A44: Typical Customer Difference - CET Amortization Only
B45: Typical
A46: GS | B46: Dth | C46: =O12 -> 2019-12-01 | D46: =J39 ->  | F46: Change | G46: % Change
A47: January | B47: 14.7 | C47: =ROUND($O$14+(B47*$O$18),2) -> 106.71 | D47: =ROUND($P$14+(B47*$P$18),2) ->  | F47: =D47-C47 -> 
A48: February | B48: 14.1 | C48: =ROUND($O$14+(B48*$O$18),2) -> 102.84 | D48: =ROUND($P$14+(B48*$P$18),2) ->  | F48: =D48-C48 -> 
A49: March | B49: 11.8 | C49: =ROUND($O$14+(B49*$O$18),2) -> 88.02 | D49: =ROUND($P$14+(B49*$P$18),2) -> 
A50: April | B50: 9.4 | C50: =ROUND($O$14+(B50*$O$16),2) -> 70.87 | D50: =ROUND($P$14+(B50*$P$16),2) -> 
A51: May | B51: 5.8 | C51: 48.32 | D51: =ROUND($P$14+(B51*$P$16),2) -> 
A52: June | B52: 3.7 | C52: 35.17
A53: July | B53: 2.3 | C53: 26.4
A54: August | B54: 1.7 | C54: 22.65
A55: September | B55: 2.1 | C55: 25.15
A56: October | B56: 4.1 | C56: 37.68
A57: November | B57: 8 | C57: =ROUND($O$14+(B57*$O$18),2) -> 63.54 | D57: =ROUND($P$14+(B57*$P$18),2) -> 
A58: December | B58: 12.3 | C58: =ROUND($O$14+(B58*$O$18),2) -> 91.25 | D58: =ROUND($P$14+(B58*$P$18),2) -> 
B59: =SUM(B47:B58) -> 90 | C59: =SUM(C47:C58) -> 718.6 | D59: =SUM(D47:D58) ->  | F59: =SUM(F47:F58) ->  | G59: =F59/C59 -> 
A62: Typical Customer Difference - DSM Amortization Only
B63: Typical
A64: GS | B64: Dth | C64: =C46 -> 2019-12-01 | D64: =D46 ->  | F64: Change | G64: % Change
A65: January | B65: 14.7 | C65: =ROUND($O$14+(B65*$O$18),2) -> 106.71 | D65: =ROUND($Q$14+(B65*$Q$18),2) ->  | F65: =D65-C65 -> 
A66: February | B66: 14.1 | C66: =ROUND($O$14+(B66*$O$18),2) -> 102.84 | D66: =ROUND($Q$14+(B66*$Q$18),2) ->  | F66: =D66-C66 -> 
A67: March | B67: 11.8 | C67: =ROUND($O$14+(B67*$O$18),2) -> 88.02 | D67: =ROUND($Q$14+(B67*$Q$18),2) -> 
A68: April | B68: 9.4 | C68: =ROUND($O$14+(B68*$O$16),2) -> 70.87 | D68: =ROUND($Q$14+(B68*$Q$16),2) -> 
A69: May | B69: 5.8 | C69: 48.32
A70: June | B70: 3.7 | C70: 35.17
A71: July | B71: 2.3 | C71: 26.4
A72: August | B72: 1.7 | C72: 22.65
A73: September | B73: 2.1 | C73: 25.15
A74: October | B74: 4.1 | C74: 37.68
A75: November | B75: 8 | C75: =ROUND($O$14+(B75*$O$18),2) -> 63.54 | D75: =ROUND($Q$14+(B75*$Q$18),2) -> 
A76: December | B76: 12.3 | C76: =ROUND($O$14+(B76*$O$18),2) -> 91.25 | D76: =ROUND($Q$14+(B76*$Q$18),2) -> 
B77: =SUM(B65:B76) -> 90 | C77: =SUM(C65:C76) -> 718.6 | D77: =SUM(D65:D76) ->  | F77: =SUM(F65:F76) ->  | G77: =F77/C77 -> 
A80: Typical Customer Difference - SNG and Commodity Changes Only
B81: Typical
A82: GS | B82: Dth | C82: =C64 -> 2019-12-01 | D82: =D64 ->  | F82: Change | G82: % Change
A83: January | B83: 14.7 | C83: =ROUND($O$14+(B83*$O$18),2) -> 106.71 | D83: =ROUND($R$14+(B83*$R$18),2) ->  | F83: =D83-C83 -> 
A84: February | B84: 14.1 | C84: =ROUND($O$14+(B84*$O$18),2) -> 102.84 | D84: =ROUND($R$14+(B84*$R$18),2) ->  | F84: =D84-C84 -> 
A85: March | B85: 11.8 | C85: =ROUND($O$14+(B85*$O$18),2) -> 88.02 | D85: =ROUND($R$14+(B85*$R$18),2) -> 
A86: April | B86: 9.4 | C86: =ROUND($O$14+(B86*$O$16),2) -> 70.87 | D86: =ROUND($R$14+(B86*$R$16),2) -> 
A87: May | B87: 5.8 | C87: 48.32
A88: June | B88: 3.7 | C88: 35.17
A89: July | B89: 2.3 | C89: 26.4
A90: August | B90: 1.7 | C90: 22.65
A91: September | B91: 2.1 | C91: 25.15
A92: October | B92: 4.1 | C92: 37.68
A93: November | B93: 8 | C93: =ROUND($O$14+(B93*$O$18),2) -> 63.54 | D93: =ROUND($R$14+(B93*$R$18),2) -> 
A94: December | B94: 12.3 | C94: =ROUND($O$14+(B94*$O$18),2) -> 91.25 | D94: =ROUND($R$14+(B94*$R$18),2) -> 
B95: =SUM(B83:B94) -> 90 | C95: =SUM(C83:C94) -> 718.6 | D95: =SUM(D83:D94) ->  | F95: =SUM(F83:F94) ->  | G95: =F95/C95 -> 
A98: Typical Customer Difference - CET & DSM Amort, SNG and Commodity Changes
B99: Typical
A100: GS | B100: Dth | C100: =C46 -> 2019-12-01 | D100: =D46 ->  | F100: Change | G100: % Change
A101: January | B101: 14.7 | C101: =ROUND($O$14+(B101*$O$18),2) -> 106.71 | D101: =ROUND($S$14+(B101*$S$18),2) ->  | F101: =D101-C101 -> 
A102: February | B102: 14.1 | C102: =ROUND($O$14+(B102*$O$18),2) -> 102.84 | D102: =ROUND($S$14+(B102*$S$18),2) ->  | F102: =D102-C102 -> 
A103: March | B103: 11.8 | C103: =ROUND($O$14+(B103*$O$18),2) -> 88.02 | D103: =ROUND($S$14+(B103*$S$18),2) -> 
A104: April | B104: 9.4 | C104: =ROUND($O$14+(B104*$O$16),2) -> 70.87 | D104: =ROUND($S$14+(B104*$S$16),2) -> 
A105: May | B105: 5.8 | C105: 48.32
A106: June | B106: 3.7 | C106: 35.17
A107: July | B107: 2.3 | C107: 26.4
A108: August | B108: 1.7 | C108: 22.65
A109: September | B109: 2.1 | C109: 25.15
A110: October | B110: 4.1 | C110: 37.68
A111: November | B111: 8 | C111: =ROUND($O$14+(B111*$O$18),2) -> 63.54 | D111: =ROUND($S$14+(B111*$S$18),2) -> 
A112: December | B112: 12.3 | C112: =ROUND($O$14+(B112*$O$18),2) -> 91.25 | D112: =ROUND($S$14+(B112*$S$18),2) -> 
B113: =SUM(B101:B112) -> 90 | C113: =SUM(C101:C112) -> 718.6 | D113: =SUM(D101:D112) ->  | F113: =SUM(F101:F112) ->  | G113: =F113/C113 -> 

Sheet WY Tariff Sheets (hidden)
T2: Rates Per Dth Used Each Month
B3: 2.02 General Service Rate Schedule (GS) | K3: 2.02 General Service Rate Schedule (GS) | Q3: 2.03 Firm Sales Service Rate Schedule (FS) | T3: Dth = decatherm = 10 therms = 1,000,000 BTU | Z3: 4.02 INTERRUPTIBLE SALES RATE SERVICE SCHEDULE (IS) | BF3: 2.04 NATURAL GAS VEHICLE RATE (NGV)
L4: Rates Per Dth Used Each Month | R4: Summer Rates: Apr. 1 - Oct. 31
C5: Rates Per Dth Used Each Month | L5: Dth = decatherm = 10 therms = 1,000,000 BTU | R5: First | T5: Next | V5: All Over | Z5: IS VOLUMETRIC RATES | AA5: Rates Per Dth Used Each Month | BF5: NGV Volumetric Rate
C6: Dth = decatherm = 10 therms = 1,000,000 BTU | L6: First 45 Dth | M6: All Over 45 Dth | R6: 80 | T6: 730 | V6: 810 | AA6: Dth = decatherm = 10 therms = 1,000,000 BTU | BJ6: Rates Per Dth Used Each Month
C7: First 45 Dth | D7: All Over 45 Dth | K7: Non-Gas Cost | L7: ='CET & DSM WY'!B31 ->  | M7: ='CET & DSM WY'!B32 ->  | Q7: Non Gas Cost | R7: =#REF! ->  | T7: =#REF! ->  | V7: =#REF! ->  | AA7: First | AB7: Next | AC7: All Over | BJ7: Dth = decatherm = 10 therms = 1,000,000 BTU
B8: Non-Gas Cost | C8: ='CET & DSM WY'!B24 ->  | D8: ='CET & DSM WY'!B25 ->  | K8: Conservation Enabling Adjustment | L8: =ROUND('CET & DSM WY'!C31,5) -> 0.04505 | M8: ='CET & DSM WY'!C32 -> 0.02848 | Q8: Core Service Commodity Cost | R8: =#REF! ->  | T8: =#REF! ->  | V8: =#REF! ->  | AA8: 48600 | AB8: 72900 | AC8: 121500
B9: Conservation Enabling Adjustment | C9: ='CET & DSM WY'!C24 ->  | D9: ='CET & DSM WY'!C25 ->  | K9: Energy Efficiency Services | L9: ='CET & DSM WY'!D31 ->  | M9: ='CET & DSM WY'!D32 ->  | Z9: Distribution Non-Gas Rate | AA9: =#REF! ->  | AB9: =#REF! ->  | AC9: =#REF! ->  | BF9: Non-Gas Cost | BG9: =#REF! -> 
B10: Energy Efficiency Services | C10: ='CET & DSM WY'!D24 -> 0.06792 | D10: ='CET & DSM WY'!D25 -> 0.06792 | K10: Core Service Commodity Cost | L10: ='CET & DSM WY'!G31 -> 4.96884 | M10: =ROUND('CET & DSM WY'!G32,5) -> 4.96884 | Q10: Total Rate | R10: =SUM(R7:R8) ->  | T10: =SUM(T7:T8) ->  | V10: =SUM(V7:V8) ->  | Z10: Upstream Pipeline Cost | AA10: =#REF! ->  | AB10: =#REF! ->  | AC10: =#REF! ->  | BF10: Core Commodity Cost | BG10: =#REF! -> 
B11: Core Service Commodity Cost | C11: ='CET & DSM WY'!G24 -> 4.96884 | D11: ='CET & DSM WY'!G25 -> 4.96884 | Z11: Commodity Rate | BF11: Total Rate | BG11: =SUM(BG9:BJ10) -> 
K12: Total Rate | L12: =SUM(L7:L10) ->  | M12: =SUM(M7:M10) ->  | Q12: Minimum Monthly Distribution Non-Gas Charge | W12: =#REF! -> 
B13: Total Rate | C13: =SUM(C8:C11) ->  | D13: =SUM(D8:D11) -> 
M15: BSF Category 1 | N15: =E16 -> 12
D16: BSF Category 1 | E16: ='CET & DSM WY'!O14 -> 12 | M16: BSF Category 2 | N16: =E17 -> 44 | U16: BSF Category 1 | W16: ='Other Inputs'!G106 -> 12
D17: BSF Category 2 | E17: 44 | M17: BSF Category 3 | N17: =E18 -> 86 | U17: BSF Category 2 | W17: =#REF! -> 
D18: BSF Category 3 | E18: 86 | M18: BSF Category 4 | N18: =E19 -> 555 | U18: BSF Category 3 | W18: =#REF! ->  | Z18: Total Rate | AA18: $ | AB18: $ | AC18: $
D19: BSF Category 4 | E19: 555 | U19: BSF Category 4 | W19: =#REF! -> 
Z20: Minimum Monthly Distribution Non-Gas Charge
BF23: =B38 -> Issued by R. W. Jibson, President | BI23: Advice No | BJ23: Section Revision No.
AB24: BSF Category 1 | AC24: ='Other Inputs'!G106 -> 12
AB25: BSF Category 2 | AC25: =#REF! -> 
AB26: BSF Category 3 | AC26: =#REF! -> 
AB27: BSF Category 4 | AC27: =#REF! -> 
K37: Issued by R. W. Jibson, President | M37: Section Revision No. | N37: Effective Date
B38: Issued by R. W. Jibson, President | D38: Section Revision No. | E38: Effective Date | Q38: =B38 -> Issued by R. W. Jibson, President | T38: Advice No | U38: Section Revision No. | W38: Effective Date
B42: New CET ONLY | K42: New DSM ONLY | Q42: New Pass Through Values
Z47: =B38 -> Issued by R. W. Jibson, President | AC47: Advice No
Z50: New Pass Through Values

Sheet Calculations
A1: GAS BALANCE FOR 12 MONTHS ENDING: _________________
D3: SALES VOLUMES IN DEKATHERMS (12 Months of Forecast)
D4: Forecast | E4: Forecast | F4: Forecast | G4: Forecast | H4: Forecast | I4: Forecast | J4: Forecast | K4: Forecast | L4: Forecast | M4: Forecast | N4: Forecast | O4: Forecast | P4: 12-Month
A5: RATE CLASS | D5: =+'Monthly Inputs'!G3 -> Jun20 | E5: =+'Monthly Inputs'!H3 -> Jul20 | F5: =+'Monthly Inputs'!I3 -> Aug20 | G5: =+'Monthly Inputs'!J3 -> Sep20 | H5: =+'Monthly Inputs'!K3 -> Oct20 | I5: =+'Monthly Inputs'!L3 -> Nov20 | J5: =+'Monthly Inputs'!M3 -> Dec20 | K5: =+'Monthly Inputs'!N3 -> Jan21 | L5: =+'Monthly Inputs'!O3 -> Feb21 | M5: =+'Monthly Inputs'!P3 -> Mar21 | N5: =+'Monthly Inputs'!Q3 -> Apr21 | O5: =+'Monthly Inputs'!R3 -> May21 | P5: Total | Q5: 1
A6: UTAH | D6: =MONTH(D5) -> 6 | E6: =MONTH(E5) -> 7 | F6: 8 | G6: 9 | H6: 10 | I6: 11 | J6: 12 | K6: 1 | L6: 2 | M6: 3 | N6: 4 | O6: 5 | Q6: 2
B7: GSR | D7: ='RevRun Fcst'!H21 -> 2930857 | E7: ='RevRun Fcst'!I21 -> 2323696 | F7: ='RevRun Fcst'!J21 -> 2256237 | G7: ='RevRun Fcst'!K21 -> 2543767 | H7: ='RevRun Fcst'!L21 -> 5982484 | I7: ='RevRun Fcst'!M21 -> 11361114 | J7: ='RevRun Fcst'!N21 -> 18365218 | K7: ='RevRun Fcst'!O21 -> 19831663 | L7: ='RevRun Fcst'!P21 -> 16324850 | M7: ='RevRun Fcst'!Q21 -> 12769014 | N7: ='RevRun Fcst'!R21 -> 8632031 | O7: ='RevRun Fcst'!S21 -> 5201927 | P7: =SUM(D7:O7) -> 108522858 | Q7: 3
B8: GSC | D8: ='RevRun Fcst'!H30 -> 0 | E8: ='RevRun Fcst'!I30 -> 0 | F8: ='RevRun Fcst'!J30 -> 0 | G8: ='RevRun Fcst'!K30 -> 0 | H8: ='RevRun Fcst'!L30 -> 0 | I8: ='RevRun Fcst'!M30 -> 0 | J8: ='RevRun Fcst'!N30 -> 0 | K8: ='RevRun Fcst'!O30 -> 0 | L8: ='RevRun Fcst'!P30 -> 0 | M8: ='RevRun Fcst'!Q30 -> 0 | N8: ='RevRun Fcst'!R30 -> 0 | O8: ='RevRun Fcst'!S30 -> 0 | P8: 0 | Q8: 4
B9: GSS | D9: ='RevRun Fcst'!H39 -> 0 | E9: ='RevRun Fcst'!I39 -> 0 | F9: ='RevRun Fcst'!J39 -> 0 | G9: ='RevRun Fcst'!K39 -> 0 | H9: ='RevRun Fcst'!L39 -> 0 | I9: ='RevRun Fcst'!M39 -> 0 | J9: ='RevRun Fcst'!N39 -> 0 | K9: ='RevRun Fcst'!O39 -> 0 | L9: ='RevRun Fcst'!P39 -> 0 | M9: ='RevRun Fcst'!Q39 -> 0 | N9: ='RevRun Fcst'!R39 -> 0 | O9: ='RevRun Fcst'!S39 -> 0 | P9: 0 | Q9: 5
B10: F-1 | D10: ='RevRun Fcst'!H48 -> 226914 | E10: ='RevRun Fcst'!I48 -> 151829 | F10: ='RevRun Fcst'!J48 -> 137293 | G10: ='RevRun Fcst'!K48 -> 149426 | H10: ='RevRun Fcst'!L48 -> 174632 | I10: ='RevRun Fcst'!M48 -> 191109 | J10: ='RevRun Fcst'!N48 -> 237467 | K10: ='RevRun Fcst'!O48 -> 306914 | L10: ='RevRun Fcst'!P48 -> 281071 | M10: ='RevRun Fcst'!Q48 -> 238943 | N10: ='RevRun Fcst'!R48 -> 240927 | O10: ='RevRun Fcst'!S48 -> 201202 | P10: 2537727 | Q10: 6
B11: F-4 | D11: ='RevRun Fcst'!H75 -> 0 | E11: ='RevRun Fcst'!I75 -> 0 | F11: ='RevRun Fcst'!J75 -> 0 | G11: ='RevRun Fcst'!K75 -> 0 | H11: ='RevRun Fcst'!L75 -> 0 | I11: ='RevRun Fcst'!M75 -> 0 | J11: ='RevRun Fcst'!N75 -> 0 | K11: ='RevRun Fcst'!O75 -> 0 | L11: ='RevRun Fcst'!P75 -> 0 | M11: ='RevRun Fcst'!Q75 -> 0 | N11: ='RevRun Fcst'!R75 -> 0 | O11: ='RevRun Fcst'!S75 -> 0 | P11: 0 | Q11: 7
B12: NGV | D12: ='RevRun Fcst'!H66 -> 23019 | E12: ='RevRun Fcst'!I66 -> 21668 | F12: ='RevRun Fcst'!J66 -> 24538 | G12: ='RevRun Fcst'!K66 -> 21971 | H12: ='RevRun Fcst'!L66 -> 22821 | I12: ='RevRun Fcst'!M66 -> 22084 | J12: ='RevRun Fcst'!N66 -> 20054 | K12: ='RevRun Fcst'!O66 -> 18353 | L12: ='RevRun Fcst'!P66 -> 20815 | M12: ='RevRun Fcst'!Q66 -> 19633 | N12: ='RevRun Fcst'!R66 -> 19242 | O12: ='RevRun Fcst'!S66 -> 21088 | P12: 255286 | Q12: 8
A13: Total Firm Sales | D13: =SUM(D7:D12) -> 3180790 | E13: 2497193 | F13: =SUM(F7:F12) -> 2418068 | G13: 2715164 | H13: 6179937 | I13: 11574307 | J13: 18622739 | K13: 20156930 | L13: 16626736 | M13: 13027590 | N13: 8892200 | O13: 5424217 | P13: =SUM(P7:P12) -> 111315871 | Q13: 9
Q14: 10
B15: I-4 | D15: ='RevRun Fcst'!H102 -> 8433 | E15: ='RevRun Fcst'!I102 -> 6398 | F15: ='RevRun Fcst'!J102 -> 7067 | G15: ='RevRun Fcst'!K102 -> 8000 | H15: ='RevRun Fcst'!L102 -> 8472 | I15: ='RevRun Fcst'!M102 -> 11833 | J15: ='RevRun Fcst'!N102 -> 18631 | K15: ='RevRun Fcst'!O102 -> 17090 | L15: ='RevRun Fcst'!P102 -> 12135 | M15: ='RevRun Fcst'!Q102 -> 13579 | N15: ='RevRun Fcst'!R102 -> 10979 | O15: ='RevRun Fcst'!S102 -> 8294 | P15: =SUM(D15:O15) -> 130911 | Q15: 11
B16: IS-4 | D16: ='RevRun Fcst'!H93 -> 0 | E16: ='RevRun Fcst'!I93 -> 0 | F16: ='RevRun Fcst'!J93 -> 0 | G16: ='RevRun Fcst'!K93 -> 0 | H16: ='RevRun Fcst'!L93 -> 0 | I16: ='RevRun Fcst'!M93 -> 0 | J16: ='RevRun Fcst'!N93 -> 0 | K16: ='RevRun Fcst'!O93 -> 0 | L16: ='RevRun Fcst'!P93 -> 0 | M16: ='RevRun Fcst'!Q93 -> 0 | N16: ='RevRun Fcst'!R93 -> 0 | O16: ='RevRun Fcst'!S93 -> 0 | P16: =SUM(D16:O16) -> 0 | Q16: 12
A17: Total Interruptible Sales | D17: =SUM(D15:D16) -> 8433 | E17: 6398 | F17: 7067 | G17: 8000 | H17: 8472 | I17: 11833 | J17: 18631 | K17: 17090 | L17: 12135 | M17: 13579 | N17: 10979 | O17: 8294 | P17: 130911 | Q17: 13
Q18: 14
Q19: 15
A20: Total Utah Sales | D20: =+D13+D17 -> 3189223 | E20: =+E13+E17 -> 2503591 | F20: =+F13+F17 -> 2425135 | G20: =+G13+G17 -> 2723164 | H20: 6188409 | I20: 11586140 | J20: 18641370 | K20: 20174020 | L20: 16638871 | M20: 13041169 | N20: 8903179 | O20: 5432511 | P20: =+P13+P17 -> 111446782 | Q20: 16
Q21: 17
A22: Total Utah Transportation | D22: ='RevRun Fcst'!H204 -> 6751365 | E22: ='RevRun Fcst'!I204 -> 8113255 | F22: ='RevRun Fcst'!J204 -> 8212123 | G22: ='RevRun Fcst'!K204 -> 6723872 | H22: ='RevRun Fcst'!L204 -> 7035072 | I22: ='RevRun Fcst'!M204 -> 7797411 | J22: ='RevRun Fcst'!N204 -> 9166293 | K22: ='RevRun Fcst'!O204 -> 9447961 | L22: ='RevRun Fcst'!P204 -> 7919385 | M22: ='RevRun Fcst'!Q204 -> 7343350 | N22: ='RevRun Fcst'!R204 -> 7022639 | O22: ='RevRun Fcst'!S204 -> 6607448 | P22: =SUM(D22:O22) -> 92140174 | Q22: 18
Q23: 19
Q24: 20
A25: Total Utah Sales & Trans | D25: =+D20+D22 -> 9940588 | E25: 10616846 | F25: 10637258 | G25: 9447036 | H25: 13223481 | I25: 19383551 | J25: 27807663 | K25: 29621981 | L25: 24558256 | M25: 20384519 | N25: 15925818 | O25: 12039959 | P25: =+P20+P22 -> 203586956 | Q25: 21
Q26: 22
A27: WYOMING | Q27: 23
A28: GS-1 | D28: ='RevRun Fcst'!H244 -> 107772 | E28: ='RevRun Fcst'!I244 -> 61438 | F28: ='RevRun Fcst'!J244 -> 57538 | G28: ='RevRun Fcst'!K244 -> 91086 | H28: ='RevRun Fcst'!L244 -> 227182 | I28: ='RevRun Fcst'!M244 -> 397718 | J28: ='RevRun Fcst'!N244 -> 560442 | K28: ='RevRun Fcst'!O244 -> 594459 | L28: ='RevRun Fcst'!P244 -> 528441 | M28: ='RevRun Fcst'!Q244 -> 447681 | N28: ='RevRun Fcst'!R244 -> 326010 | O28: ='RevRun Fcst'!S244 -> 210154 | P28: =SUM(D28:O28) -> 3609921 | Q28: 24
A29: GS-W | D29: ='RevRun Fcst'!H271 -> 0 | E29: ='RevRun Fcst'!I271 -> 0 | F29: ='RevRun Fcst'!J271 -> 0 | G29: ='RevRun Fcst'!K271 -> 0 | H29: ='RevRun Fcst'!L271 -> 0 | I29: ='RevRun Fcst'!M271 -> 0 | J29: ='RevRun Fcst'!N271 -> 0 | K29: ='RevRun Fcst'!O271 -> 0 | L29: ='RevRun Fcst'!P271 -> 0 | M29: ='RevRun Fcst'!Q271 -> 0 | N29: ='RevRun Fcst'!R271 -> 0 | O29: ='RevRun Fcst'!S271 -> 0 | P29: =SUM(D29:O29) -> 0 | Q29: 25
A30: F-1 | D30: ='RevRun Fcst'!H253 -> 9557 | E30: ='RevRun Fcst'!I253 -> 8689 | F30: ='RevRun Fcst'!J253 -> 9589 | G30: ='RevRun Fcst'!K253 -> 11697 | H30: ='RevRun Fcst'!L253 -> 18097 | I30: ='RevRun Fcst'!M253 -> 16648 | J30: ='RevRun Fcst'!N253 -> 21171 | K30: ='RevRun Fcst'!O253 -> 21297 | L30: ='RevRun Fcst'!P253 -> 18948 | M30: ='RevRun Fcst'!Q253 -> 16684 | N30: ='RevRun Fcst'!R253 -> 14905 | O30: ='RevRun Fcst'!S253 -> 14685 | P30: =SUM(D30:O30) -> 181967 | Q30: 26
A31: NGV | D31: ='RevRun Fcst'!H262 -> 401 | E31: ='RevRun Fcst'!I262 -> 338 | F31: ='RevRun Fcst'!J262 -> 399 | G31: ='RevRun Fcst'!K262 -> 375 | H31: ='RevRun Fcst'!L262 -> 316 | I31: ='RevRun Fcst'!M262 -> 480 | J31: ='RevRun Fcst'!N262 -> 200 | K31: ='RevRun Fcst'!O262 -> 184 | L31: ='RevRun Fcst'!P262 -> 218 | M31: ='RevRun Fcst'!Q262 -> 267 | N31: ='RevRun Fcst'!R262 -> 300 | O31: ='RevRun Fcst'!S262 -> 266 | P31: =SUM(D31:O31) -> 3744 | Q31: 27
A32: Total Firm Sales | D32: =SUM(D28:D31) -> 117730 | E32: 70465 | F32: 67526 | G32: 103158 | H32: 245595 | I32: 414846 | J32: 581813 | K32: 615940 | L32: 547607 | M32: 464632 | N32: 341215 | O32: 225105 | P32: 3795632 | Q32: 28
Q33: 29
A34: I-2 | D34: ='RevRun Fcst'!H280 -> 7844 | E34: ='RevRun Fcst'!I280 -> 5893 | F34: ='RevRun Fcst'!J280 -> 3957 | G34: ='RevRun Fcst'!K280 -> 5079 | H34: ='RevRun Fcst'!L280 -> 8719 | I34: ='RevRun Fcst'!M280 -> 15002 | J34: ='RevRun Fcst'!N280 -> 14644 | K34: ='RevRun Fcst'!O280 -> 16875 | L34: ='RevRun Fcst'!P280 -> 15622 | M34: ='RevRun Fcst'!Q280 -> 15752 | N34: ='RevRun Fcst'!R280 -> 14302 | O34: ='RevRun Fcst'!S280 -> 10909 | P34: =SUM(D34:O34) -> 134598 | Q34: 30
A35: I-4 | D35: ='RevRun Fcst'!H289 -> 0 | E35: ='RevRun Fcst'!I289 -> 0 | F35: ='RevRun Fcst'!J289 -> 0 | G35: ='RevRun Fcst'!K289 -> 0 | H35: ='RevRun Fcst'!L289 -> 0 | I35: ='RevRun Fcst'!M289 -> 0 | J35: ='RevRun Fcst'!N289 -> 0 | K35: ='RevRun Fcst'!O289 -> 0 | L35: ='RevRun Fcst'!P289 -> 0 | M35: ='RevRun Fcst'!Q289 -> 0 | N35: ='RevRun Fcst'!R289 -> 0 | O35: ='RevRun Fcst'!S289 -> 0 | P35: =SUM(D35:O35) -> 0 | Q35: 31
A36: Total Interruptible Sales | D36: =SUM(D34:D35) -> 7844 | E36: 5893 | F36: 3957 | G36: 5079 | H36: 8719 | I36: 15002 | J36: 14644 | K36: 16875 | L36: 15622 | M36: 15752 | N36: 14302 | O36: 10909 | P36: 134598 | Q36: 32
Q37: 33
Q38: 34
A39: Total Wyoming Sales | D39: =+D32+D36 -> 125574 | E39: =+E32+E36 -> 76358 | F39: 71483 | G39: 108237 | H39: 254314 | I39: 429848 | J39: 596457 | K39: 632815 | L39: 563229 | M39: 480384 | N39: 355517 | O39: 236014 | P39: 3930230 | Q39: 35
Q40: 36
A41: Total Wyoming Transportation | D41: ='RevRun Fcst'!H328 -> 19460 | E41: ='RevRun Fcst'!I328 -> 18365 | F41: ='RevRun Fcst'!J328 -> 16464 | G41: ='RevRun Fcst'!K328 -> 41451 | H41: ='RevRun Fcst'!L328 -> 49421 | I41: ='RevRun Fcst'!M328 -> 41415 | J41: ='RevRun Fcst'!N328 -> 59747 | K41: ='RevRun Fcst'!O328 -> 35956 | L41: ='RevRun Fcst'!P328 -> 43122 | M41: ='RevRun Fcst'!Q328 -> 46289 | N41: ='RevRun Fcst'!R328 -> 30204 | O41: ='RevRun Fcst'!S328 -> 19005 | P41: =SUM(D41:O41) -> 420899 | Q41: 37
Q42: 38
Q43: 39
A44: Total Wyoming Sales & Trans | D44: =+D39+D41 -> 145034 | E44: 94723 | F44: 87947 | G44: 149688 | H44: 303735 | I44: 471263 | J44: 656204 | K44: 668771 | L44: 606351 | M44: 526673 | N44: 385721 | O44: 255019 | P44: 4351129 | Q44: 40
Q45: 41
Q46: 42
A47: Total System Sales and Trans | D47: =+D25+D44 -> 10085622 | E47: 10711569 | F47: 10725205 | G47: 9596724 | H47: 13527216 | I47: 19854814 | J47: 28463867 | K47: 30290752 | L47: 25164607 | M47: 20911192 | N47: 16311539 | O47: =+O25+O44 -> 12294978 | P47: 207938085 | Q47: 43
Q48: 44
A49: Usage by Season | Q49: 45
C50: Month | D50: =MONTH(D5) -> 6 | E50: 7 | F50: 8 | G50: 9 | H50: 10 | I50: 11 | J50: 12 | K50: 1 | L50: 2 | M50: 3 | N50: 4 | O50: 5 | Q50: 46
A51: GS | C51: Season (0=Winter, 1=Summer) | D51: =IF(D$50<4,0,IF(D$50>10,0,1)) -> 1 | E51: =IF(E$50<4,0,IF(E$50>10,0,1)) -> 1 | F51: 1 | G51: 1 | H51: 1 | I51: 0 | J51: 0 | K51: 0 | L51: 0 | M51: 0 | N51: 1 | O51: 1 | P51: Total | Q51: 47
B52: Winter | D52: =IF(D51=0,D7+D8,0) -> 0 | E52: =IF(E51=0,E7+E8,0) -> 0 | F52: 0 | G52: 0 | H52: 0 | I52: 11361114 | J52: 18365218 | K52: 19831663 | L52: 16324850 | M52: 12769014 | N52: 0 | O52: 0 | P52: =SUM(D52:O52) -> 78651859 | Q52: 48
B53: Summer | D53: =IF(D51=1,D7+D8,0) -> 2930857 | E53: 2323696 | F53: 2256237 | G53: 2543767 | H53: 5982484 | I53: 0 | J53: 0 | K53: 0 | L53: 0 | M53: 0 | N53: 8632031 | O53: 5201927 | P53: =SUM(D53:O53) -> 29870999 | Q53: 49
A54: GSS | Q54: 50
B55: Winter | D55: =IF(D51=0,D9,0) -> 0 | E55: 0 | F55: 0 | G55: 0 | H55: 0 | I55: 0 | J55: 0 | K55: 0 | L55: 0 | M55: 0 | N55: 0 | O55: 0 | P55: =SUM(D55:O55) -> 0 | Q55: 51
B56: Summer | D56: =IF(D51=1,D9,0) -> 0 | E56: 0 | F56: 0 | G56: 0 | H56: 0 | I56: 0 | J56: 0 | K56: 0 | L56: 0 | M56: 0 | N56: 0 | O56: 0 | P56: =SUM(D56:O56) -> 0 | Q56: 52
A57: F-S | Q57: 53
B58: Winter | D58: =IF(D51=0,D10,0) -> 0 | E58: 0 | F58: 0 | G58: 0 | H58: 0 | I58: 191109 | J58: 237467 | K58: 306914 | L58: 281071 | M58: 238943 | N58: 0 | O58: 0 | P58: =SUM(D58:O58) -> 1255504 | Q58: 54
B59: Summer | D59: =IF(D51=1,D10,0) -> 226914 | E59: 151829 | F59: 137293 | G59: 149426 | H59: 174632 | I59: 0 | J59: 0 | K59: 0 | L59: 0 | M59: 0 | N59: 240927 | O59: 201202 | P59: =SUM(D59:O59) -> 1282223 | Q59: 55
Q60: 56
Q61: 57
B62: Rates: R050201.R1 | C62: WYOMING NON-CORE DNG REVENUES FROM DEMAND FORECAST AND CURRENTLY EFFECTIVE I-SALES GAS COST RATES | Q62: 58
D63: Forecast | E63: Forecast | F63: Forecast | G63: Forecast | H63: Forecast | I63: Forecast | J63: Forecast | K63: Forecast | L63: Forecast | M63: Forecast | N63: Forecast | O63: Forecast | P63: 12-Month | Q63: 59
D64: =D5 -> Jun20 | E64: =E5 -> Jul20 | F64: =F5 -> Aug20 | G64: Sep20 | H64: Oct20 | I64: Nov20 | J64: Dec20 | K64: Jan21 | L64: Feb21 | M64: Mar21 | N64: Apr21 | O64: May21 | P64: Total | Q64: 60
A65: I-2 & 1-4 (Non-Gas Revenue) (Yearly) | D65: ='RevRun Fcst'!H273+'RevRun Fcst'!H282 -> 3523.19 | E65: ='RevRun Fcst'!I273+'RevRun Fcst'!I282 -> 3051.8 | F65: ='RevRun Fcst'!J273+'RevRun Fcst'!J282 -> 2584.06 | G65: ='RevRun Fcst'!K273+'RevRun Fcst'!K282 -> 2855.12 | H65: ='RevRun Fcst'!L273+'RevRun Fcst'!L282 -> 3734.59 | I65: ='RevRun Fcst'!M273+'RevRun Fcst'!M282 -> 5252.63 | J65: ='RevRun Fcst'!N273+'RevRun Fcst'!N282 -> 5166.14 | K65: ='RevRun Fcst'!O273+'RevRun Fcst'!O282 -> 5705.17 | L65: ='RevRun Fcst'!P273+'RevRun Fcst'!P282 -> 5402.42 | M65: ='RevRun Fcst'!Q273+'RevRun Fcst'!Q282 -> 5433.84 | N65: ='RevRun Fcst'!R273+'RevRun Fcst'!R282 -> 5083.52 | O65: ='RevRun Fcst'!S273+'RevRun Fcst'!S282 -> 4263.72 | P65: =SUM(D65:O65) -> 52056.2 | Q65: 61
A66: IC (Total Revenue) (Yearly) | D66: =ROUND(D41*$P66/$P41,0) -> 4670 | E66: 4407 | F66: 3951 | G66: 9948 | H66: 11861 | I66: 9939 | J66: 14339 | K66: 8629 | L66: 10349 | M66: 11109 | N66: 7249 | O66: =P66-SUM(D66:N66) -> 4560.62 | P66: ='RevRun Fcst'!T300+'RevRun Fcst'!T314 -> 101011.62 | Q66: 62
Q67: 63
A68: I-2 Gas Cost (Rate Effective ) | D68: 0 | E68: =+D68 -> 0 | F68: 0 | G68: 0 | H68: 0 | I68: 0 | J68: 0 | K68: 0 | L68: 0 | M68: 0 | N68: 0 | O68: 0 | Q68: 64
A69: I-4 Gas Cost (Rate Effective ) | D69: 0 | E69: 0 | F69: 0 | G69: 0 | H69: 0 | I69: 0 | J69: 0 | K69: 0 | L69: 0 | M69: 0 | N69: 0 | O69: 0 | Q69: 65
Q70: 66
Q71: 67
D72: ALLOCATION BASES | Q72: 68
D73: DEMAND | G73: OTHER COST | Q73: 69
A74: Utah Peak Day Demand | D74: =+D76-D75 -> 1189810 | E74: =D74/D76 -> 0.9695117281 | G74: Utah Sales | H74: =+P20 -> 111446782 | I74: =H74/H76 -> 0.965935762 | Q74: 70
A75: Wyoming Peak Day Demand | D75: ='Other Inputs'!E143 -> 37416 | E75: =1-E74 -> 0.03048827192 | G75: Wyoming Sales | H75: =+P39 -> 3930230 | I75: =1-I74 -> 0.03406423803 | Q75: 71
A76: Peak Day Demand | D76: ='Other Inputs'!E144 -> 1227226 | E76: =ROUND(D76/D$76,4) -> 1 | G76: Total Sales | H76: =+H74+H75 -> 115377012 | I76: =ROUND(H76/H$76,4) -> 1 | Q76: 72
Q77: 73
Q78: 74
D79: Financial Report Information (Latest 12 Months of Actual Expenses and 13 Months of Rate Base) | Q79: 75
D80: Actual | E80: Actual | F80: Actual | G80: Actual | H80: Actual | I80: Actual | J80: Actual | K80: Actual | L80: Actual | M80: Actual | N80: Actual | O80: Actual | Q80: 76
A81: Accounts | D81: =+Expenses!G9 -> 2019-04-01 | E81: =+Expenses!H9 -> 2019-05-01 | F81: =+Expenses!I9 -> 2019-06-01 | G81: =+Expenses!J9 -> 2019-07-01 | H81: =+Expenses!K9 -> 2019-08-31 | I81: =+Expenses!L9 -> 2019-09-30 | J81: =+Expenses!M9 -> 2019-10-31 | K81: =+Expenses!N9 -> 2019-11-30 | L81: =+Expenses!O9 -> 2019-12-31 | M81: =+Expenses!P9 -> 2020-01-31 | N81: =+Expenses!Q9 -> 2020-02-29 | O81: =+Expenses!R9 -> 2020-03-31 | P81: =Expenses!S9 -> 2020-03-31 | Q81: 77
A82: EXPENSES | Q82: 78
B83: Gas Use In Dth (Acct 810 & 812) | D83: 0 | E83: 0 | F83: 0 | G83: 0 | H83: 0 | I83: 0 | J83: 0 | K83: 0 | L83: 0 | M83: 0 | N83: 0 | O83: 0 | P83: 0 | Q83: 79
Q84: 80
B85: Other Revenue (Yearly) | Q85: 81
B86: Sales for Resale (account 483) | D86: =Expenses!G445 -> 88880.37 | E86: =Expenses!H445 -> 54461.64 | F86: =Expenses!I445 -> 62725.45 | G86: =Expenses!J445 -> 61117.68 | H86: =Expenses!K445 -> 55101.93 | I86: =Expenses!L445 -> 73309.38 | J86: =Expenses!M445 -> 82673.16 | K86: =Expenses!N445 -> 68644.04 | L86: =Expenses!O445 -> 70355.24 | M86: =Expenses!P445 -> 86088.37 | N86: =Expenses!Q445 -> 75772.24 | O86: =Expenses!R445 -> 59954.75 | P86: =Expenses!S445 -> 839084.25 | Q86: 82
B87: Incidental Plant Prod Sales (Acct 490) | D87: =Expenses!G446 -> 618797.46 | E87: =Expenses!H446 -> 419615.32 | F87: =Expenses!I446 -> 5.59 | G87: =Expenses!J446 -> 794619.12 | H87: =Expenses!K446 -> -4.42 | I87: =Expenses!L446 -> 253697.29 | J87: =Expenses!M446 -> 275588.14 | K87: =Expenses!N446 -> 662111.99 | L87: =Expenses!O446 -> 399229.79 | M87: =Expenses!P446 -> -730 | N87: =Expenses!Q446 -> 383406.41 | O87: =Expenses!R446 -> 677456.4 | P87: =Expenses!S446 -> 4483793.09 | Q87: 83
B88: Gas Processed by Others (account 491) | D88: =Expenses!G461 -> 0 | E88: =Expenses!H461 -> 0 | F88: =Expenses!I461 -> 0 | G88: =Expenses!J461 -> 0 | H88: =Expenses!K461 -> 0 | I88: =Expenses!L461 -> 0 | J88: =Expenses!M461 -> 0 | K88: =Expenses!N461 -> 0 | L88: =Expenses!O461 -> 0 | M88: =Expenses!P461 -> 0 | N88: =Expenses!Q461 -> 0 | O88: =Expenses!R461 -> 0 | P88: =Expenses!S461 -> 0 | Q88: 84
B89: Gasoline - Oil Sales (account 492) | D89: =Expenses!G447 -> 141834.57 | E89: =Expenses!H447 -> 200410.18 | F89: =Expenses!I447 -> 237731.75 | G89: =Expenses!J447 -> 247756.64 | H89: =Expenses!K447 -> 206402.06 | I89: =Expenses!L447 -> 128879.13 | J89: =Expenses!M447 -> 173592.87 | K89: =Expenses!N447 -> 143609.06 | L89: =Expenses!O447 -> 140902.18 | M89: =Expenses!P447 -> 213523.79 | N89: =Expenses!Q447 -> 154680.31 | O89: =Expenses!R447 -> 216608.86 | P89: =Expenses!S447 -> 2205931.4 | Q89: 85
B90: Gasoline - Oil Cost (account 758.001) | D90: =-Expenses!G450 -> 0 | E90: =-Expenses!H450 -> 0 | F90: =-Expenses!I450 -> 0 | G90: =-Expenses!J450 -> 0 | H90: =-Expenses!K450 -> 0 | I90: =-Expenses!L450 -> 0 | J90: =-Expenses!M450 -> 0 | K90: =-Expenses!N450 -> 0 | L90: =-Expenses!O450 -> 0 | M90: =-Expenses!P450 -> 0 | N90: =-Expenses!Q450 -> 0 | O90: =-Expenses!R450 -> 0 | P90: =-Expenses!S450 -> 0 | Q90: 86
Q91: 87
Q92: 88
B93: Overriding Royalty (account 495-1) | D93: =Expenses!G448 -> 904140.09 | E93: =Expenses!H448 -> 933608.08 | F93: =Expenses!I448 -> 855368.96 | G93: =Expenses!J448 -> 38832.29 | H93: =Expenses!K448 -> 1308800.64 | I93: =Expenses!L448 -> 464717.1 | J93: =Expenses!M448 -> 632240.04 | K93: =Expenses!N448 -> 613677.29 | L93: =Expenses!O448 -> 754819.39 | M93: =Expenses!P448 -> 603101.31 | N93: =Expenses!Q448 -> 790900.23 | O93: =Expenses!R448 -> 178223.21 | P93: =Expenses!S448 -> 8078428.63 | Q93: 89
B94: Wexpro Revenue Sharing (account 495-2) | D94: =Expenses!G449 -> 10652 | E94: =Expenses!H449 -> 28837 | F94: =Expenses!I449 -> 12102 | G94: =Expenses!J449 -> 37299 | H94: =Expenses!K449 -> 45331 | I94: =Expenses!L449 -> 12590 | J94: =Expenses!M449 -> 16754.78 | K94: =Expenses!N449 -> 14506 | L94: =Expenses!O449 -> 3768 | M94: =Expenses!P449 -> 23859 | N94: =Expenses!Q449 -> 6741 | O94: =Expenses!R449 -> 10178 | P94: =Expenses!S449 -> 222617.78 | Q94: 90
P95: Page 2 of 6 | Q95: 91
C96: Actual | D96: Actual | E96: Actual | F96: Actual | G96: Actual | H96: Actual | I96: Actual | J96: Actual | K96: Actual | L96: Actual | M96: Actual | N96: Actual | O96: Actual | P96: 13-Month | Q96: 92
A97: Accounts | C97: ='Rate Base'!H8 -> 2019-03-01 | D97: ='Rate Base'!I8 -> 2019-04-01 | E97: ='Rate Base'!J8 -> 2019-05-01 | F97: ='Rate Base'!K8 -> 2019-06-01 | G97: ='Rate Base'!L8 -> 2019-07-01 | H97: ='Rate Base'!M8 -> 2019-08-01 | I97: ='Rate Base'!N8 -> 2019-09-01 | J97: ='Rate Base'!O8 -> 2019-10-01 | K97: ='Rate Base'!P8 -> 2019-11-01 | L97: ='Rate Base'!Q8 -> 2019-12-01 | M97: ='Rate Base'!R8 -> 2020-01-01 | N97: ='Rate Base'!S8 -> 2020-02-01 | O97: ='Rate Base'!T8 -> 2020-03-01 | P97: Average | Q97: 93
A98: RATE BASE - PRODUCTION | Q98: 94
B99: Acct 164 (Working Gas) - Production | C99: ='Rate Base'!H206 -> 8155444.24 | D99: ='Rate Base'!I206 -> 6352626.43 | E99: ='Rate Base'!J206 -> 8741282.39 | F99: ='Rate Base'!K206 -> 19062047.87 | G99: ='Rate Base'!L206 -> 33521823.38 | H99: ='Rate Base'!M206 -> 44111455.51 | I99: ='Rate Base'!N206 -> 53650234.79 | J99: ='Rate Base'!O206 -> 55516771.69 | K99: ='Rate Base'!P206 -> 55528751.16 | L99: ='Rate Base'!Q206 -> 45965722.86 | M99: ='Rate Base'!R206 -> 30071846.23 | N99: ='Rate Base'!S206 -> 17550004.17 | O99: ='Rate Base'!T206 -> 5954574.05 | P99: =(((+C99+O99)/2)+SUM(D99:N99))/12 -> 31427297.97 | Q99: 95
B100: Acct 101 - Production | C100: ='Rate Base'!H148 -> 79968136 | D100: ='Rate Base'!I148 -> 79968136 | E100: ='Rate Base'!J148 -> 79968136 | F100: ='Rate Base'!K148 -> 79968136 | G100: ='Rate Base'!L148 -> 79968136 | H100: ='Rate Base'!M148 -> 79968136 | I100: ='Rate Base'!N148 -> 79968136 | J100: ='Rate Base'!O148 -> 79968136 | K100: ='Rate Base'!P148 -> 79968136 | L100: ='Rate Base'!Q148 -> 79968136 | M100: ='Rate Base'!R148 -> 79968136 | N100: ='Rate Base'!S148 -> 79968136 | O100: ='Rate Base'!T148 -> 79968136 | P100: 79968136 | Q100: 96
B101: Acct 108 - Production | C101: ='Rate Base'!H166 -> -70159693 | D101: ='Rate Base'!I166 -> -70201160 | E101: ='Rate Base'!J166 -> -70242627 | F101: ='Rate Base'!K166 -> -70242627 | G101: ='Rate Base'!L166 -> -70325561 | H101: ='Rate Base'!M166 -> -70367028 | I101: ='Rate Base'!N166 -> -70449961 | J101: ='Rate Base'!O166 -> -70449961 | K101: ='Rate Base'!P166 -> -70491428 | L101: ='Rate Base'!Q166 -> -70491428 | M101: ='Rate Base'!R166 -> -70574362 | N101: ='Rate Base'!S166 -> -70615829 | O101: ='Rate Base'!T166 -> -70657296 | P101: -70405038.88 | Q101: 97
B102: Acct 111 - Production | C102: ='Rate Base'!H173 -> -6150276.66 | D102: ='Rate Base'!I173 -> -6150276.66 | E102: ='Rate Base'!J173 -> -6150276.66 | F102: ='Rate Base'!K173 -> -6150276.66 | G102: ='Rate Base'!L173 -> -6150276.66 | H102: ='Rate Base'!M173 -> -6150276.66 | I102: ='Rate Base'!N173 -> -6150276.66 | J102: ='Rate Base'!O173 -> -6150276.66 | K102: ='Rate Base'!P173 -> -6150276.66 | L102: ='Rate Base'!Q173 -> -6150276.66 | M102: ='Rate Base'!R173 -> -6150276.66 | N102: ='Rate Base'!S173 -> -6150276.66 | O102: ='Rate Base'!T173 -> -6150277 | P102: -6150276.674 | Q102: 98
B103: Acct 2550 - Production | C103: ='Rate Base'!H241 -> 0 | D103: ='Rate Base'!I241 -> 0 | E103: ='Rate Base'!J241 -> 0 | F103: ='Rate Base'!K241 -> 0 | G103: ='Rate Base'!L241 -> 0 | H103: ='Rate Base'!M241 -> 0 | I103: ='Rate Base'!N241 -> 0 | J103: ='Rate Base'!O241 -> 0 | K103: ='Rate Base'!P241 -> 0 | L103: ='Rate Base'!Q241 -> 0 | M103: ='Rate Base'!R241 -> 0 | N103: ='Rate Base'!S241 -> 0 | O103: ='Rate Base'!T241 -> 0 | P103: 0 | Q103: 99
B104: Acct 2820 - Production | C104: ='Rate Base'!H248 -> -8610267 | D104: ='Rate Base'!I248 -> -8240231 | E104: ='Rate Base'!J248 -> -8638495 | F104: ='Rate Base'!K248 -> -8638495 | G104: ='Rate Base'!L248 -> -9435062 | H104: ='Rate Base'!M248 -> -9833317 | I104: ='Rate Base'!N248 -> -17269302 | J104: ='Rate Base'!O248 -> -17226459 | K104: ='Rate Base'!P248 -> -17079672 | L104: ='Rate Base'!Q248 -> -17428392 | M104: ='Rate Base'!R248 -> -15543577 | N104: ='Rate Base'!S248 -> -19537705 | O104: ='Rate Base'!T248 -> -21522270 | P104: -13661414.62 | Q104: 100
B105: Acct 2821 - Production | C105: ='Rate Base'!H255 -> -700755.31 | D105: ='Rate Base'!I255 -> -700755.31 | E105: ='Rate Base'!J255 -> -700755.31 | F105: ='Rate Base'!K255 -> -700755.31 | G105: ='Rate Base'!L255 -> -700755.31 | H105: ='Rate Base'!M255 -> -700755.31 | I105: ='Rate Base'!N255 -> -700755.31 | J105: ='Rate Base'!O255 -> -700755.31 | K105: ='Rate Base'!P255 -> -700755.31 | L105: ='Rate Base'!Q255 -> -700755.31 | M105: ='Rate Base'!R255 -> -700755.31 | N105: ='Rate Base'!S255 -> -700755.31 | O105: ='Rate Base'!T255 -> -700755.31 | P105: -700755.31 | Q105: 101
Q106: 102
D107: Production | H107: Acct 101 | I107: Acct 108 | J107: Acct 111 | K107: Acct 2550 | L107: Acct 2820 | M107: Acct 2821 | N107: Total | Q107: 103
B108: Depreciation - Acct 403 | D108: =Expenses!S385 -> 497603 | F108: Thirteen month average | H108: =P100 -> 79968136 | I108: =P101 -> -70405038.88 | J108: =P102 -> -6150276.674 | K108: =P103 -> 0 | L108: =P104 -> -13661414.62 | M108: =P105 -> -700755.31 | N108: =SUM(H108:M108) -> -10949349.48 | Q108: 104
B109: Amortization & Depletion - Acct 404 | D109: =Expenses!S392 -> 0 | F109: =CONCATENATE("Wexpro Red. @ ",-'Other Inputs'!E262*100," %") -> Wexpro Red. @ 6.3 % | H109: =H108*'Other Inputs'!$E$262 -> -5037992.568 | I109: =I108*'Other Inputs'!$E$262 -> 4435517.449 | J109: =J108*'Other Inputs'!$E$262 -> 387467.4305 | N109: =SUM(H109:M109) -> -215007.6884 | Q109: 105
B110: Utah Pre-Tax Return on Production Assets | D110: =+N111 -> -993627.7884 | M110: =SUM(N108:N109) -> -11164357.17 | Q110: 106
B111: Utah Production Cost | D111: =SUM(D108:D110) -> -496024.7884 | M111: ="Utah Pre-Tax Rate of Return on Production Assets ("&'Other Inputs'!E265&")" -> Utah Pre-Tax Rate of Return on Production Assets (0.089) | N111: =M110*'Other Inputs'!E265 -> -993627.7884 | Q111: 107
M112: ="Wyoming Pre-Tax Rate of Return on Production Assets ("&'Other Inputs'!E264&")" -> Wyoming Pre-Tax Rate of Return on Production Assets (0.0916) | N112: =M110*'Other Inputs'!E264 -> -1022655.117 | Q112: 108
Q113: 109
A114: TACTICAL PLAN INFORMATION (IRP) | P114: 12-Month | Q114: 110
D115: =D5 -> Jun20 | E115: =E5 -> Jul20 | F115: Aug20 | G115: Sep20 | H115: Oct20 | I115: Nov20 | J115: Dec20 | K115: Jan21 | L115: Feb21 | M115: Mar21 | N115: Apr21 | O115: May21 | P115: Total | Q115: 111
A116: COMPANY PRODUCTION | Q116: 112
B117: Prior Company | Q117: 113
B118: D24 Wells | Q118: 114
B119: Brady & Powel | Q119: 115
B120: Total Company Production Wexpro I & II | D120: ='Monthly Inputs'!G7+'Monthly Inputs'!G13 -> 4872039 | E120: ='Monthly Inputs'!H7+'Monthly Inputs'!H13 -> 4956388 | F120: ='Monthly Inputs'!I7+'Monthly Inputs'!I13 -> 4999358 | G120: ='Monthly Inputs'!J7+'Monthly Inputs'!J13 -> 4810602 | H120: ='Monthly Inputs'!K7+'Monthly Inputs'!K13 -> 5188508 | I120: ='Monthly Inputs'!L7+'Monthly Inputs'!L13 -> 4911744 | J120: ='Monthly Inputs'!M7+'Monthly Inputs'!M13 -> 5091577 | K120: ='Monthly Inputs'!N7+'Monthly Inputs'!N13 -> 4997112 | L120: ='Monthly Inputs'!O7+'Monthly Inputs'!O13 -> 4348619 | M120: ='Monthly Inputs'!P7+'Monthly Inputs'!P13 -> 4741318 | N120: ='Monthly Inputs'!Q7+'Monthly Inputs'!Q13 -> 4522173 | O120: ='Monthly Inputs'!R7+'Monthly Inputs'!R13 -> 4610519 | P120: =SUM(D120:O120) -> 58049957 | Q120: 116
Q121: 117
A122: STORAGE INJECTIONS | Q122: 118
B123: Chalk Creek | D123: ='Monthly Inputs'!G24 -> 0 | E123: ='Monthly Inputs'!H24 -> 0 | F123: ='Monthly Inputs'!I24 -> 0 | G123: ='Monthly Inputs'!J24 -> 93650 | H123: ='Monthly Inputs'!K24 -> 132000 | I123: ='Monthly Inputs'!L24 -> 76600 | J123: ='Monthly Inputs'!M24 -> 0 | K123: ='Monthly Inputs'!N24 -> 0 | L123: ='Monthly Inputs'!O24 -> 0 | M123: ='Monthly Inputs'!P24 -> 0 | N123: ='Monthly Inputs'!Q24 -> 0 | O123: ='Monthly Inputs'!R24 -> 0 | P123: =SUM(D123:O123) -> 302250 | Q123: 119
B124: Coalville | D124: ='Monthly Inputs'!G26 -> 0 | E124: ='Monthly Inputs'!H26 -> 0 | F124: ='Monthly Inputs'!I26 -> 0 | G124: ='Monthly Inputs'!J26 -> 50190 | H124: ='Monthly Inputs'!K26 -> 310000 | I124: ='Monthly Inputs'!L26 -> 0 | J124: ='Monthly Inputs'!M26 -> 0 | K124: ='Monthly Inputs'!N26 -> 0 | L124: ='Monthly Inputs'!O26 -> 0 | M124: ='Monthly Inputs'!P26 -> 0 | N124: ='Monthly Inputs'!Q26 -> 0 | O124: ='Monthly Inputs'!R26 -> 0 | P124: =SUM(D124:O124) -> 360190 | Q124: 120
B125: Leroy | D125: ='Monthly Inputs'!G27 -> 0 | E125: ='Monthly Inputs'!H27 -> 0 | F125: ='Monthly Inputs'!I27 -> 0 | G125: ='Monthly Inputs'!J27 -> 0 | H125: ='Monthly Inputs'!K27 -> 443483 | I125: ='Monthly Inputs'!L27 -> 0 | J125: ='Monthly Inputs'!M27 -> 0 | K125: ='Monthly Inputs'!N27 -> 0 | L125: ='Monthly Inputs'!O27 -> 0 | M125: ='Monthly Inputs'!P27 -> 0 | N125: ='Monthly Inputs'!Q27 -> 0 | O125: ='Monthly Inputs'!R27 -> 0 | P125: =SUM(D125:O125) -> 443483 | Q125: 121
B126: Ryckman | D126: ='Monthly Inputs'!G28 -> 341730 | E126: ='Monthly Inputs'!H28 -> 353120 | F126: ='Monthly Inputs'!I28 -> 353120 | G126: ='Monthly Inputs'!J28 -> 341730 | H126: ='Monthly Inputs'!K28 -> 353119 | I126: ='Monthly Inputs'!L28 -> 0 | J126: ='Monthly Inputs'!M28 -> 0 | K126: ='Monthly Inputs'!N28 -> 0 | L126: ='Monthly Inputs'!O28 -> 0 | M126: ='Monthly Inputs'!P28 -> 0 | N126: ='Monthly Inputs'!Q28 -> 0 | O126: ='Monthly Inputs'!R28 -> 0 | P126: =SUM(D126:O126) -> 1742819 | Q126: 122
B127: Total Peaking Storage | D127: =SUM(D123:D126) -> 341730 | E127: =SUM(E123:E126) -> 353120 | F127: 353120 | G127: 485570 | H127: 1238602 | I127: 76600 | J127: 0 | K127: 0 | L127: 0 | M127: 0 | N127: 0 | O127: 0 | P127: 2848742 | Q127: 123
B128: Clay Basin | D128: ='Monthly Inputs'!G25 -> 2700000 | E128: ='Monthly Inputs'!H25 -> 1910380 | F128: ='Monthly Inputs'!I25 -> 1945950 | G128: ='Monthly Inputs'!J25 -> 2400000 | H128: ='Monthly Inputs'!K25 -> 1881992 | I128: ='Monthly Inputs'!L25 -> 0 | J128: ='Monthly Inputs'!M25 -> 0 | K128: ='Monthly Inputs'!N25 -> 0 | L128: ='Monthly Inputs'!O25 -> 0 | M128: ='Monthly Inputs'!P25 -> 0 | N128: ='Monthly Inputs'!Q25 -> 0 | O128: ='Monthly Inputs'!R25 -> 2480000 | P128: =SUM(D128:O128) -> 13318322 | Q128: 124
B129: Total Storage Injections | D129: =SUM(D127:D128) -> 3041730 | E129: =SUM(E127:E128) -> 2263500 | F129: 2299070 | G129: 2885570 | H129: 3120594 | I129: 76600 | J129: 0 | K129: 0 | L129: 0 | M129: 0 | N129: 0 | O129: 2480000 | P129: =SUM(P127:P128) -> 16167064 | Q129: 125
A130: STORAGE WITHDRAWLS | Q130: 126
B131: Chalk Creek | D131: ='Monthly Inputs'!G32 -> 0 | E131: ='Monthly Inputs'!H32 -> 0 | F131: ='Monthly Inputs'!I32 -> 0 | G131: ='Monthly Inputs'!J32 -> 0 | H131: ='Monthly Inputs'!K32 -> 0 | I131: ='Monthly Inputs'!L32 -> 0 | J131: ='Monthly Inputs'!M32 -> 0 | K131: ='Monthly Inputs'!N32 -> 45004 | L131: ='Monthly Inputs'!O32 -> 0 | M131: ='Monthly Inputs'!P32 -> 243896 | N131: ='Monthly Inputs'!Q32 -> 0 | O131: ='Monthly Inputs'!R32 -> 0 | P131: =SUM(D131:O131) -> 288900 | Q131: 127
B132: Coalville | D132: ='Monthly Inputs'!G34 -> 0 | E132: ='Monthly Inputs'!H34 -> 0 | F132: ='Monthly Inputs'!I34 -> 0 | G132: ='Monthly Inputs'!J34 -> 0 | H132: ='Monthly Inputs'!K34 -> 0 | I132: ='Monthly Inputs'!L34 -> 0 | J132: ='Monthly Inputs'!M34 -> 0 | K132: ='Monthly Inputs'!N34 -> 60079 | L132: ='Monthly Inputs'!O34 -> 0 | M132: ='Monthly Inputs'!P34 -> 300107 | N132: ='Monthly Inputs'!Q34 -> 0 | O132: ='Monthly Inputs'!R34 -> 0 | P132: =SUM(D132:O132) -> 360186 | Q132: 128
B133: Leroy | D133: ='Monthly Inputs'!G35 -> 0 | E133: ='Monthly Inputs'!H35 -> 0 | F133: ='Monthly Inputs'!I35 -> 0 | G133: ='Monthly Inputs'!J35 -> 0 | H133: ='Monthly Inputs'!K35 -> 0 | I133: ='Monthly Inputs'!L35 -> 0 | J133: ='Monthly Inputs'!M35 -> 0 | K133: ='Monthly Inputs'!N35 -> 78940 | L133: ='Monthly Inputs'!O35 -> 0 | M133: ='Monthly Inputs'!P35 -> 364543 | N133: ='Monthly Inputs'!Q35 -> 0 | O133: ='Monthly Inputs'!R35 -> 0 | P133: =SUM(D133:O133) -> 443483 | Q133: 129
B134: Ryckman | D134: ='Monthly Inputs'!G36 -> 0 | E134: ='Monthly Inputs'!H36 -> 0 | F134: ='Monthly Inputs'!I36 -> 0 | G134: ='Monthly Inputs'!J36 -> 0 | H134: ='Monthly Inputs'!K36 -> 0 | I134: ='Monthly Inputs'!L36 -> 491400 | J134: ='Monthly Inputs'!M36 -> 514600 | K134: ='Monthly Inputs'!N36 -> 514600 | L134: ='Monthly Inputs'!O36 -> 464800 | M134: ='Monthly Inputs'!P36 -> 514600 | N134: ='Monthly Inputs'!Q36 -> 0 | O134: ='Monthly Inputs'!R36 -> 0 | P134: =SUM(D134:O134) -> 2500000 | Q134: 130
B135: Total Peaking Storage | D135: =SUM(D131:D134) -> 0 | E135: =SUM(E131:E134) -> 0 | F135: 0 | G135: 0 | H135: 0 | I135: 491400 | J135: 514600 | K135: 698623 | L135: 464800 | M135: 1423146 | N135: 0 | O135: 0 | P135: 3592569 | Q135: 131
B136: Clay Basin | D136: ='Monthly Inputs'!G33 -> 0 | E136: ='Monthly Inputs'!H33 -> 0 | F136: ='Monthly Inputs'!I33 -> 0 | G136: ='Monthly Inputs'!J33 -> 0 | H136: ='Monthly Inputs'!K33 -> 0 | I136: ='Monthly Inputs'!L33 -> 0 | J136: ='Monthly Inputs'!M33 -> 4158000 | K136: ='Monthly Inputs'!N33 -> 3458045 | L136: ='Monthly Inputs'!O33 -> 3080045 | M136: ='Monthly Inputs'!P33 -> 1554581 | N136: ='Monthly Inputs'!Q33 -> 0 | O136: ='Monthly Inputs'!R33 -> 0 | P136: =SUM(D136:O136) -> 12250671 | Q136: 132
B137: Total Storage Withdrawls | D137: =SUM(D135:D136) -> 0 | E137: 0 | F137: 0 | G137: 0 | H137: 0 | I137: 491400 | J137: 4672600 | K137: 4156668 | L137: 3544845 | M137: 2977727 | N137: 0 | O137: 0 | P137: 15843240 | Q137: 133
Q138: 134
Q139: 135
A140: Gas Supply and Demand | D140: =D4 -> Forecast | E140: Forecast | F140: Forecast | G140: Forecast | H140: Forecast | I140: Forecast | J140: Forecast | K140: Forecast | L140: Forecast | M140: Forecast | N140: Forecast | O140: Forecast | P140: 12-Month | Q140: 136
A141: Demand | D141: =D5 -> Jun20 | E141: Jul20 | F141: Aug20 | G141: Sep20 | H141: Oct20 | I141: Nov20 | J141: Dec20 | K141: Jan21 | L141: Feb21 | M141: Mar21 | N141: Apr21 | O141: May21 | P141: Total | Q141: 137
Q142: 138
A143: Utah Sales | D143: =+D20 -> 3189223 | E143: =+E20 -> 2503591 | F143: 2425135 | G143: 2723164 | H143: 6188409 | I143: 11586140 | J143: 18641370 | K143: 20174020 | L143: 16638871 | M143: 13041169 | N143: 8903179 | O143: 5432511 | P143: =SUM(D143:O143) -> 111446782 | Q143: 139
A144: Wyoming Sales | D144: =+D39 -> 125574 | E144: 76358 | F144: 71483 | G144: 108237 | H144: 254314 | I144: 429848 | J144: 596457 | K144: 632815 | L144: 563229 | M144: 480384 | N144: 355517 | O144: 236014 | P144: =SUM(D144:O144) -> 3930230 | Q144: 140
A145: Total Sales | D145: =+D143+D144 -> 3314797 | E145: 2579949 | F145: 2496618 | G145: 2831401 | H145: 6442723 | I145: 12015988 | J145: 19237827 | K145: 20806835 | L145: 17202100 | M145: 13521553 | N145: 9258696 | O145: 5668525 | P145: 115377012 | Q145: 141
Q146: 142
A147: Distribution Use (Offices) | D147: =ROUND(O83,0) -> 0 | E147: =ROUND(D83,0) -> 0 | F147: =ROUND(E83,0) -> 0 | G147: 0 | H147: 0 | I147: 0 | J147: 0 | K147: 0 | L147: 0 | M147: 0 | N147: 0 | O147: 0 | P147: =SUM(D147:O147) -> 0 | Q147: 143
A148: Distribution Lost and Unaccounted for | D148: =+D150-D145-D147 -> 14984 | E148: =+E150-E145-E147 -> 11662 | F148: 11286 | G148: 12799 | H148: 29123 | I148: 54316 | J148: 86962 | K148: 94054 | L148: 77759 | M148: 61122 | N148: 41852 | O148: =+O150-O145-O147 -> 25624 | P148: =SUM(D148:O148) -> 521543 | Q148: 144
Q149: 145
A150: Total City Gate | D150: =ROUND((D145+D147)/(1-'Other Inputs'!$E$268),0) -> 3329781 | E150: =ROUND((E145+E147)/(1-'Other Inputs'!$E$268),0) -> 2591611 | F150: =ROUND((F145+F147)/(1-'Other Inputs'!$E$268),0) -> 2507904 | G150: =ROUND((G145+G147)/(1-'Other Inputs'!$E$268),0) -> 2844200 | H150: =ROUND((H145+H147)/(1-'Other Inputs'!$E$268),0) -> 6471846 | I150: =ROUND((I145+I147)/(1-'Other Inputs'!$E$268),0) -> 12070304 | J150: =ROUND((J145+J147)/(1-'Other Inputs'!$E$268),0) -> 19324789 | K150: =ROUND((K145+K147)/(1-'Other Inputs'!$E$268),0) -> 20900889 | L150: =ROUND((L145+L147)/(1-'Other Inputs'!$E$268),0) -> 17279859 | M150: =ROUND((M145+M147)/(1-'Other Inputs'!$E$268),0) -> 13582675 | N150: =ROUND((N145+N147)/(1-'Other Inputs'!$E$268),0) -> 9300548 | O150: =ROUND((O145+O147)/(1-'Other Inputs'!$E$268),0) -> 5694149 | P150: =SUM(D150:O150) -> 115898555 | Q150: 146
Q151: 147
A152: Peaking Injection | D152: =+D127 -> 341730 | E152: 353120 | F152: 353120 | G152: 485570 | H152: 1238602 | I152: 76600 | J152: 0 | K152: 0 | L152: 0 | M152: 0 | N152: 0 | O152: 0 | P152: =SUM(D152:O152) -> 2848742 | Q152: 148
A153: Clay Basin Injection | D153: =+D128 -> 2700000 | E153: 1910380 | F153: 1945950 | G153: 2400000 | H153: 1881992 | I153: 0 | J153: 0 | K153: 0 | L153: 0 | M153: 0 | N153: 0 | O153: 2480000 | P153: =SUM(D153:O153) -> 13318322 | Q153: 149
A154: Storage Lost & Unaccounted For | D154: =-'Monthly Inputs'!G51 -> 76043.25 | E154: =-'Monthly Inputs'!H51 -> 56587.5 | F154: =-'Monthly Inputs'!I51 -> 57476.75 | G154: =-'Monthly Inputs'!J51 -> 70012.437 | H154: =-'Monthly Inputs'!K51 -> 73615.3235 | I154: =-'Monthly Inputs'!L51 -> 758.34 | J154: =-'Monthly Inputs'!M51 -> 0 | K154: =-'Monthly Inputs'!N51 -> 0 | L154: =-'Monthly Inputs'!O51 -> 0 | M154: =-'Monthly Inputs'!P51 -> 0 | N154: =-'Monthly Inputs'!Q51 -> 0 | O154: =-'Monthly Inputs'!R51 -> 62000 | P154: =SUM(D154:O154) -> 396493.6005 | Q154: 150
A155: Total Demand | D155: =SUM(D150:D154) -> 6447554.25 | E155: =SUM(E150:E154) -> 4911698.5 | F155: 4864450.75 | G155: 5799782.437 | H155: =SUM(H150:H154) -> 9666055.323 | I155: 12147662.34 | J155: 19324789 | K155: 20900889 | L155: 17279859 | M155: 13582675 | N155: 9300548 | O155: =SUM(O150:O154) -> 8236149 | P155: =SUM(D155:O155) -> 132462112.6 | Q155: 151
Q156: 152
D157: Forecast | E157: Forecast | F157: Forecast | G157: Forecast | H157: Forecast | I157: Forecast | J157: Forecast | K157: Forecast | L157: Forecast | M157: Forecast | N157: Forecast | O157: Forecast | P157: 12-Month | Q157: 153
A158: Supply | D158: =D5 -> Jun20 | E158: Jul20 | F158: Aug20 | G158: Sep20 | H158: Oct20 | I158: Nov20 | J158: Dec20 | K158: Jan21 | L158: Feb21 | M158: Mar21 | N158: Apr21 | O158: May21 | P158: Total | Q158: 154
A159: Company Production | D159: =+D120 -> 4872039 | E159: =+E120 -> 4956388 | F159: 4999358 | G159: 4810602 | H159: 5188508 | I159: 4911744 | J159: 5091577 | K159: 4997112 | L159: 4348619 | M159: 4741318 | N159: 4522173 | O159: 4610519 | P159: =SUM(D159:O159) -> 58049957 | Q159: 155
A160: Co Prod Lost & Unaccounted For | D160: =ROUND(D159*(-'Other Inputs'!$E$270-'Other Inputs'!$E$271),0) -> -180855 | E160: =ROUND(E159*(-'Other Inputs'!$E$270-'Other Inputs'!$E$271),0) -> -183986 | F160: =ROUND(F159*(-'Other Inputs'!$E$270-'Other Inputs'!$E$271),0) -> -185581 | G160: =ROUND(G159*(-'Other Inputs'!$E$270-'Other Inputs'!$E$271),0) -> -178574 | H160: =ROUND(H159*(-'Other Inputs'!$E$270-'Other Inputs'!$E$271),0) -> -192603 | I160: =ROUND(I159*(-'Other Inputs'!$E$270-'Other Inputs'!$E$271),0) -> -182329 | J160: =ROUND(J159*(-'Other Inputs'!$E$270-'Other Inputs'!$E$271),0) -> -189004 | K160: =ROUND(K159*(-'Other Inputs'!$E$270-'Other Inputs'!$E$271),0) -> -185498 | L160: =ROUND(L159*(-'Other Inputs'!$E$270-'Other Inputs'!$E$271),0) -> -161425 | M160: =ROUND(M159*(-'Other Inputs'!$E$270-'Other Inputs'!$E$271),0) -> -176002 | N160: =ROUND(N159*(-'Other Inputs'!$E$270-'Other Inputs'!$E$271),0) -> -167868 | O160: =ROUND(O159*(-'Other Inputs'!$E$270-'Other Inputs'!$E$271),0) -> -171147 | P160: =SUM(D160:O160) -> -2154872 | Q160: 156
A161: Company Production @ City Gate | D161: =SUM(D159:D160) -> 4691184 | E161: =SUM(E159:E160) -> 4772402 | F161: 4813777 | G161: 4632028 | H161: 4995905 | I161: 4729415 | J161: 4902573 | K161: 4811614 | L161: 4187194 | M161: 4565316 | N161: 4354305 | O161: 4439372 | P161: =SUM(D161:O161) -> 55895085 | Q161: 157
Q162: 158
A163: Peaking Withdrawal | D163: =+D135 -> 0 | E163: 0 | F163: 0 | G163: 0 | H163: 0 | I163: 491400 | J163: 514600 | K163: 698623 | L163: 464800 | M163: 1423146 | N163: 0 | O163: 0 | P163: =SUM(D163:O163) -> 3592569 | Q163: 159
A164: Clay Basin Withdrawal | D164: =+D136 -> 0 | E164: 0 | F164: 0 | G164: 0 | H164: 0 | I164: 0 | J164: 4158000 | K164: 3458045 | L164: 3080045 | M164: 1554581 | N164: 0 | O164: 0 | P164: =SUM(D164:O164) -> 12250671 | Q164: 160
A165: QPC Transportation Loss on Storage | D165: ='Monthly Inputs'!G67+'Monthly Inputs'!G59 -> 0 | E165: ='Monthly Inputs'!H67+'Monthly Inputs'!H59 -> 0 | F165: ='Monthly Inputs'!I67+'Monthly Inputs'!I59 -> 0 | G165: ='Monthly Inputs'!J67+'Monthly Inputs'!J59 -> 0 | H165: ='Monthly Inputs'!K67+'Monthly Inputs'!K59 -> 0 | I165: ='Monthly Inputs'!L67+'Monthly Inputs'!L59 -> -7714.98 | J165: ='Monthly Inputs'!M67+'Monthly Inputs'!M59 -> -137808.82 | K165: ='Monthly Inputs'!N67+'Monthly Inputs'!N59 -> -123041.5888 | L165: ='Monthly Inputs'!O67+'Monthly Inputs'!O59 -> -103394.764 | M165: ='Monthly Inputs'!P67+'Monthly Inputs'!P59 -> -91364.958 | N165: ='Monthly Inputs'!Q67+'Monthly Inputs'!Q59 -> 0 | O165: ='Monthly Inputs'!R67+'Monthly Inputs'!R59 -> 0 | P165: =SUM(D165:O165) -> -463325.1108 | Q165: 161
A166: Storage Lost & Unaccounted For | D166: ='Monthly Inputs'!G51 -> -76043.25 | E166: ='Monthly Inputs'!H51 -> -56587.5 | F166: ='Monthly Inputs'!I51 -> -57476.75 | G166: ='Monthly Inputs'!J51 -> -70012.437 | H166: ='Monthly Inputs'!K51 -> -73615.3235 | I166: ='Monthly Inputs'!L51 -> -758.34 | J166: ='Monthly Inputs'!M51 -> 0 | K166: ='Monthly Inputs'!N51 -> 0 | L166: ='Monthly Inputs'!O51 -> 0 | M166: ='Monthly Inputs'!P51 -> 0 | N166: ='Monthly Inputs'!Q51 -> 0 | O166: ='Monthly Inputs'!R51 -> -62000 | P166: =SUM(D166:O166) -> -396493.6005 | Q166: 162
A167: Storage Supply @ City Gate | D167: =SUM(D163:D166) -> -76043.25 | E167: =SUM(E163:E166) -> -56587.5 | F167: -57476.75 | G167: -70012.437 | H167: -73615.3235 | I167: 482926.68 | J167: 4534791.18 | K167: 4033626.411 | L167: 3441450.236 | M167: 2886362.042 | N167: 0 | O167: -62000 | P167: 14983421.29 | Q167: 163
Q168: 164
A169: Gas Purchased @ City Gate | D169: =D155-D161-D167-D154 -> 1756370.25 | E169: =E155-E161-E167-E154 -> 139296.5 | F169: 50673.75 | G169: 1167754.437 | H169: 4670150.323 | I169: 6934562.32 | J169: 9887424.82 | K169: 12055648.59 | L169: 9651214.764 | M169: 6130996.958 | N169: 4946243 | O169: 3796777 | P169: =SUM(D169:O169) -> 61187112.71 | Q169: 165
A170: Gas Reimbursement | D170: =+D171-D169 -> 28014.75 | E170: =+E171-E169 -> 2221.5 | F170: 808.25 | G170: 18626.563 | H170: 74490.6765 | I170: 110609.68 | J170: 157708.18 | K170: 192292.4112 | L170: 153941.236 | M170: 97792.042 | N170: 78895 | O170: 60560 | P170: =SUM(D170:O170) -> 975960.2887 | Q170: 166
A171: Gas Purchased - Dth ( /.98) | D171: =ROUND(D169/(1-'Other Inputs'!$E$271),0) -> 1784385 | E171: =ROUND(E169/(1-'Other Inputs'!$E$271),0) -> 141518 | F171: =ROUND(F169/(1-'Other Inputs'!$E$271),0) -> 51482 | G171: =ROUND(G169/(1-'Other Inputs'!$E$271),0) -> 1186381 | H171: =ROUND(H169/(1-'Other Inputs'!$E$271),0) -> 4744641 | I171: =ROUND(I169/(1-'Other Inputs'!$E$271),0) -> 7045172 | J171: =ROUND(J169/(1-'Other Inputs'!$E$271),0) -> 10045133 | K171: =ROUND(K169/(1-'Other Inputs'!$E$271),0) -> 12247941 | L171: =ROUND(L169/(1-'Other Inputs'!$E$271),0) -> 9805156 | M171: =ROUND(M169/(1-'Other Inputs'!$E$271),0) -> 6228789 | N171: =ROUND(N169/(1-'Other Inputs'!$E$271),0) -> 5025138 | O171: =ROUND(O169/(1-'Other Inputs'!$E$271),0) -> 3857337 | P171: =SUM(D171:O171) -> 62163073 | Q171: 167
Q172: 168
A173: Transported Volumes - total | D173: =+D161+D169+D137+D165 -> 6447554.25 | E173: =+E161+E169+E137+E165 -> 4911698.5 | F173: =+F161+F169+F137+F165 -> 4864450.75 | G173: 5799782.437 | H173: =+H161+H169+H137+H165 -> 9666055.323 | I173: 12147662.34 | J173: 19324789 | K173: 20900889 | L173: 17279859 | M173: 13582675 | N173: 9300548 | O173: 8236149 | P173: =+P161+P169+P137+P165 -> 132462112.6 | Q173: 169
A174: Kern transported volumes | D174: =HLOOKUP(MONTH(D5),kernrivertrans,6,FALSE) -> 700069.6319 | E174: =HLOOKUP(MONTH(E5),kernrivertrans,6,FALSE) -> 723405.2863 | F174: 723405.2863 | G174: 700069.6319 | H174: =HLOOKUP(MONTH(H5),kernrivertrans,6,FALSE) -> 723405.2863 | I174: 2365707.569 | J174: =HLOOKUP(MONTH(J5),kernrivertrans,6,FALSE) -> 3500588.975 | K174: 3500588.975 | L174: 3161822.3 | M174: 2444564.488 | N174: 700069.6319 | O174: 723405.2863 | Q174: 170
A175: Storage Fuel % | C175: =(P154-P166)/(P163+P164+P152+P153) -> 0.02477287317 | Q175: 171
Q176: 172
A177: Company Production as % of Total Supply / Demand | D177: =D159/(D171+D159) -> 0.7319303878 | E177: 0.9722399746 | F177: =F159/(F171+F159) -> 0.98980724 | G177: 0.802170358 | H177: =H159/(H171+H159) -> 0.5223427133 | I177: 0.4107868618 | J177: 0.3363727653 | K177: 0.2897707534 | L177: 0.3072409304 | M177: 0.4322034416 | N177: 0.4736593372 | O177: =O159/(O171+O159) -> 0.5444730047 | P177: =P159/(P171+P159) -> 0.482892387 | Q177: 173
Q178: 174
A179: Peak Hour Service | D179: =IF(OR(D6=11,D6=12,D6=1,D6=2),'Other Inputs'!D$20*16*'Other Inputs'!$F$21,0)+IF(OR(D6=11,D6=12,D6=1,D6=2),'Other Inputs'!$D$23*16*'Other Inputs'!$F$24,0) -> 0 | E179: =IF(OR(E6=11,E6=12,E6=1,E6=2),'Other Inputs'!E$20*16*'Other Inputs'!$F$21,0)+IF(OR(E6=11,E6=12,E6=1,E6=2),'Other Inputs'!$D$23*16*'Other Inputs'!$F$24,0) -> 0 | F179: =IF(OR(F6=11,F6=12,F6=1,F6=2),'Other Inputs'!F$20*31*'Other Inputs'!$F$21,0)+IF(OR(F6=11,F6=12,F6=1,F6=2),'Other Inputs'!$D$23*31*'Other Inputs'!$F$24,0) -> 0 | G179: =IF(OR(G6=11,G6=12,G6=1,G6=2),'Other Inputs'!G$20*31*'Other Inputs'!$F$21,0)+IF(OR(G6=11,G6=12,G6=1,G6=2),'Other Inputs'!$D$23*31*'Other Inputs'!$F$24,0) -> 0 | H179: =IF(OR(H6=11,H6=12,H6=1,H6=2),'Other Inputs'!H$20*14*'Other Inputs'!$F$21,0)+IF(OR(H6=11,H6=12,H6=1,H6=2),'Other Inputs'!$D$23*14*'Other Inputs'!$F$24,0) -> 0 | I179: =IF(OR(I6=11,I6=12,I6=1,I6=2),'Other Inputs'!I$20*16*'Other Inputs'!$F$21,0)+IF(OR(I6=11,I6=12,I6=1,I6=2),'Other Inputs'!$D$23*16*'Other Inputs'!$F$24,0) -> 244396.1739 | J179: =IF(OR(J6=11,J6=12,J6=1,J6=2),'Other Inputs'!J$20*16*'Other Inputs'!$F$21,0)+IF(OR(J6=11,J6=12,J6=1,J6=2),'Other Inputs'!$D$23*16*'Other Inputs'!$F$24,0) -> 244396.1739 | K179: =IF(OR(K6=11,K6=12,K6=1,K6=2),'Other Inputs'!K$20*16*'Other Inputs'!$F$21,0)+IF(OR(K6=11,K6=12,K6=1,K6=2),'Other Inputs'!$D$23*16*'Other Inputs'!$F$24,0) -> 244396.1739 | L179: =IF(OR(L6=11,L6=12,L6=1,L6=2),'Other Inputs'!L$20*16*'Other Inputs'!$F$21,0)+IF(OR(L6=11,L6=12,L6=1,L6=2),'Other Inputs'!$D$23*16*'Other Inputs'!$F$24,0) -> 244396.1739 | M179: =IF(OR(M6=11,M6=12,M6=1,M6=2),'Other Inputs'!M$20*16*'Other Inputs'!$F$21,0)+IF(OR(M6=11,M6=12,M6=1,M6=2),'Other Inputs'!$D$23*16*'Other Inputs'!$F$24,0) -> 0 | N179: =IF(OR(N6=11,N6=12,N6=1,N6=2),'Other Inputs'!N$20*16*'Other Inputs'!$F$21,0)+IF(OR(N6=11,N6=12,N6=1,N6=2),'Other Inputs'!$D$23*16*'Other Inputs'!$F$24,0) -> 0 | O179: =IF(OR(O6=11,O6=12,O6=1,O6=2),'Other Inputs'!O$20*16*'Other Inputs'!$F$21,0)+IF(OR(O6=11,O6=12,O6=1,O6=2),'Other Inputs'!$D$23*16*'Other Inputs'!$F$24,0) -> 0 | P179: =SUM(D179:O179) -> 977584.6957 | Q179: 175
Q180: 176
A181: PURCHASES BREAKDOWN | Q181: 177
A182: Spot Market Purchases | D182: ='Monthly Inputs'!G83 -> 1639950 | E182: ='Monthly Inputs'!H83 -> 0 | F182: ='Monthly Inputs'!I83 -> 0 | G182: ='Monthly Inputs'!J83 -> 1186381 | H182: ='Monthly Inputs'!K83 -> 3814641 | I182: ='Monthly Inputs'!L83 -> 5145172 | J182: ='Monthly Inputs'!M83 -> 5115133 | K182: ='Monthly Inputs'!N83 -> 6317941 | L182: ='Monthly Inputs'!O83 -> 5965156 | M182: ='Monthly Inputs'!P83 -> 5298789 | N182: ='Monthly Inputs'!Q83 -> 4125138 | O182: ='Monthly Inputs'!R83 -> 3850420 | P182: =SUM(D182:O182) -> 42458721 | Q182: 178
A183: Spot Market Purchases Cost | D183: ='Monthly Inputs'!G84 -> 2099136 | E183: ='Monthly Inputs'!H84 -> 0 | F183: ='Monthly Inputs'!I84 -> 0 | G183: ='Monthly Inputs'!J84 -> 1720252.45 | H183: ='Monthly Inputs'!K84 -> 5607522.27 | I183: ='Monthly Inputs'!L84 -> 8952599.28 | J183: ='Monthly Inputs'!M84 -> 11150989.94 | K183: ='Monthly Inputs'!N84 -> 15289417.22 | L183: ='Monthly Inputs'!O84 -> 13839161.92 | M183: ='Monthly Inputs'!P84 -> 10915505.34 | N183: ='Monthly Inputs'!Q84 -> 7507751.16 | O183: ='Monthly Inputs'!R84 -> 6622722.4 | P183: =SUM(D183:O183) -> 83705057.98 | Q183: 179
Q184: 180
A185: Contract Purchases (Dth) | D185: ='Monthly Inputs'!G92 -> 0 | E185: ='Monthly Inputs'!H92 -> 0 | F185: ='Monthly Inputs'!I92 -> 0 | G185: ='Monthly Inputs'!J92 -> 0 | H185: ='Monthly Inputs'!K92 -> 930000 | I185: ='Monthly Inputs'!L92 -> 900000 | J185: ='Monthly Inputs'!M92 -> 930000 | K185: ='Monthly Inputs'!N92 -> 930000 | L185: ='Monthly Inputs'!O92 -> 840000 | M185: ='Monthly Inputs'!P92 -> 930000 | N185: ='Monthly Inputs'!Q92 -> 900000 | O185: ='Monthly Inputs'!R92 -> 0 | P185: =SUM(D185:O185) -> 6360000 | Q185: 181
A186: Contract Purchases Cost Including Stabalization Costs | D186: ='Monthly Inputs'!G93+'Monthly Inputs'!G94 -> 0 | E186: ='Monthly Inputs'!H93+'Monthly Inputs'!H94 -> 0 | F186: ='Monthly Inputs'!I93+'Monthly Inputs'!I94 -> 0 | G186: ='Monthly Inputs'!J93+'Monthly Inputs'!J94 -> 0 | H186: ='Monthly Inputs'!K93+'Monthly Inputs'!K94 -> 1557344.148 | I186: ='Monthly Inputs'!L93+'Monthly Inputs'!L94 -> 1749869.794 | J186: ='Monthly Inputs'!M93+'Monthly Inputs'!M94 -> 2216998.941 | K186: ='Monthly Inputs'!N93+'Monthly Inputs'!N94 -> 2439980.842 | L186: ='Monthly Inputs'!O93+'Monthly Inputs'!O94 -> 2119935.744 | M186: ='Monthly Inputs'!P93+'Monthly Inputs'!P94 -> 2105507.99 | N186: ='Monthly Inputs'!Q93+'Monthly Inputs'!Q94 -> 1821799.44 | O186: ='Monthly Inputs'!R93+'Monthly Inputs'!R94 -> 0 | P186: =SUM(D186:O186) -> 14011436.9 | Q186: 182
Q187: 183
A188: Peak Purchases (Dth) | D188: ='Monthly Inputs'!G89 -> 0 | E188: ='Monthly Inputs'!H89 -> 0 | F188: ='Monthly Inputs'!I89 -> 0 | G188: ='Monthly Inputs'!J89 -> 0 | H188: ='Monthly Inputs'!K89 -> 0 | I188: ='Monthly Inputs'!L89 -> 1000000 | J188: ='Monthly Inputs'!M89 -> 4000000 | K188: ='Monthly Inputs'!N89 -> 5000000 | L188: ='Monthly Inputs'!O89 -> 3000000 | M188: ='Monthly Inputs'!P89 -> 0 | N188: ='Monthly Inputs'!Q89 -> 0 | O188: ='Monthly Inputs'!R89 -> 0 | P188: =SUM(D188:O188) -> 13000000 | Q188: 184
A189: Peak Purchases Cost | D189: ='Monthly Inputs'!G90 -> 0 | E189: ='Monthly Inputs'!H90 -> 0 | F189: ='Monthly Inputs'!I90 -> 0 | G189: ='Monthly Inputs'!J90 -> 0 | H189: ='Monthly Inputs'!K90 -> 0 | I189: ='Monthly Inputs'!L90 -> 1800187.774 | J189: ='Monthly Inputs'!M90 -> 9008109.089 | K189: ='Monthly Inputs'!N90 -> 12492425.9 | L189: ='Monthly Inputs'!O90 -> 7187383.156 | M189: ='Monthly Inputs'!P90 -> 0 | N189: ='Monthly Inputs'!Q90 -> 0 | O189: ='Monthly Inputs'!R90 -> 0 | P189: =SUM(D189:O189) -> 30488105.92 | Q189: 185
Q190: 186
A191: Future Purchases | D191: =+D171-D182-D185-D188 -> 144435 | E191: =+E171-E182-E185-E188 -> 141518 | F191: =+F171-F182-F185-F188 -> 51482 | G191: =+G171-G182-G185-G188 -> 0 | H191: =+H171-H182-H185-H188 -> -4.656612873e-10 | I191: =+I171-I182-I185-I188 -> 0 | J191: =+J171-J182-J185-J188 -> 0 | K191: =+K171-K182-K185-K188 -> 0 | L191: 0 | M191: =+M171-M182-M185-M188 -> 0 | N191: -9.313225746e-10 | O191: 6917 | P191: =SUM(D191:O191) -> 344352 | Q191: 187
A192: Future Purchases Cost | D192: =ROUND(D191*D199,0) -> 187766 | E192: =ROUND(E191*E199,0) -> 196710 | F192: =ROUND(F191*F199,0) -> 79282 | G192: =ROUND(G191*G199,0) -> 0 | H192: =ROUND(H191*H199,0) -> 0 | I192: 0 | J192: 0 | K192: 0 | L192: 0 | M192: 0 | N192: 0 | O192: 12036 | P192: =SUM(D192:O192) -> 475794 | Q192: 188
Q193: 189
A194: Total Purchases Cost | D194: =+D183+D186+D189+D192 -> 2286902 | E194: =+E183+E186+E189+E192 -> 196710 | F194: =+F183+F186+F189+F192 -> 79282 | G194: =+G183+G186+G189+G192 -> 1720252.45 | H194: =+H183+H186+H189+H192 -> 7164866.418 | I194: 12502656.85 | J194: =+J183+J186+J189+J192 -> 22376097.97 | K194: 30221823.96 | L194: 23146480.82 | M194: 13021013.33 | N194: 9329550.6 | O194: =+O183+O186+O189+O192 -> 6634758.4 | P194: 128680394.8 | Q194: 190
Q195: 191
A196: Gas Cost | Q196: 192
A197: Gas Cost Purchases | D197: =IF(D171=0,0,ROUND(D194/D171,5)) -> 1.28162 | E197: =IF(E171=0,0,ROUND(E194/E171,5)) -> 1.39 | F197: 1.53999 | G197: 1.45 | H197: 1.5101 | I197: 1.77464 | J197: 2.22756 | K197: 2.4675 | L197: 2.36064 | M197: 2.09046 | N197: 1.85658 | O197: 1.72004 | Q197: 193
A198: Gas Cost Injection Rate | D198: ='Ut Storage'!K27 -> 3.337418808 | E198: =+D198 -> 3.337418808 | F198: 3.337418808 | G198: 3.337418808 | H198: 3.337418808 | I198: 3.337418808 | J198: 3.337418808 | K198: 3.337418808 | L198: 3.337418808 | M198: 3.337418808 | N198: 3.337418808 | O198: 3.337418808 | Q198: 194
A199: =CONCATENATE("'Future Contract Price (spot + $",'Other Inputs'!E181,")") -> 'Future Contract Price (spot + $0.02) | D199: =+D231+'Other Inputs'!$E$181 -> 1.3 | E199: =+E231+'Other Inputs'!$E$181 -> 1.39 | F199: =+F231+'Other Inputs'!$E$181 -> 1.54 | G199: =+G231+'Other Inputs'!$E$181 -> 1.47 | H199: =+H231+'Other Inputs'!$E$181 -> 1.49 | I199: =+I231+'Other Inputs'!$E$181 -> 1.76 | J199: =+J231+'Other Inputs'!$E$181 -> 2.2 | K199: =+K231+'Other Inputs'!$E$181 -> 2.44 | L199: =+L231+'Other Inputs'!$E$181 -> 2.34 | M199: =+M231+'Other Inputs'!$E$181 -> 2.08 | N199: =+N231+'Other Inputs'!$E$181 -> 1.84 | O199: =+O231+'Other Inputs'!$E$181 -> 1.74 | Q199: 195
Q200: 196
A201: System Production | D201: =+D161 -> 4691184 | E201: 4772402 | F201: 4813777 | G201: 4632028 | H201: 4995905 | I201: 4729415 | J201: 4902573 | K201: 4811614 | L201: 4187194 | M201: 4565316 | N201: 4354305 | O201: 4439372 | P201: =SUM(D201:O201) -> 55895085 | Q201: 197
... 52 more rows

Sheet CET & DSM (hidden)
A1: Rate Caclulation for the CET and DSM Amortizations
P3: Solver Cells
A4: CET Amortization % Calculation | P4: % Change | Q4: Difference
B5: Balance | C5: Date | D5: GS Dth | H5: Amortization per Dth | P5: =J20/D20 ->  | Q5: =J20-B11 ->  | S5: -> Difference should be at 0 (Use Goal Seek to Get Difference to Equal 0.
A6: DSM Balance | B6: ='Other Inputs'!#REF! ->  | C6: ='Other Inputs'!#REF! ->  | D6: =B20 ->  | H6: =ROUND(B6/D6,5) -> 
S8: Typical Bill Rates
A9: CET Amortization Calculation
B10: Balance | C10: Date | D10: DNG Rev | H10: New DNG | L10: % Change | S10: Current | T10: Proposed
A11: CET Balance | B11: ='Other Inputs'!#REF! ->  | C11: ='Other Inputs'!#REF! ->  | D11: =D20 ->  | H11: =D11+B11 ->  | L11: =P5 ->  | S11: Effective | V11: SNG & | W11: CET, DSM
S12: ='Other Inputs'!$J$97 -> 2020-03-01 | T12: CET Only | U12: DSM Only | V12: Commodity | W12: Commodity
S13: BSF | T13: BSF | U13: BSF | V13: BSF | W13: BSF
B14: Revenue Calculation | H14: CET Amortization | L14: Total DNG | P14: REVRUN Calculation | S14: ='Other Inputs'!$G$101 -> 6.75 | T14: ='Other Inputs'!$G$101 -> 6.75 | U14: ='Other Inputs'!$G$101 -> 6.75 | V14: ='Other Inputs'!$G$101 -> 6.75 | W14: ='Ut 1.7 Source'!$C$12 -> 6.75
A15: Utah GS | B15: Dth | C15: Base DNG | D15: DNG Revenue | H15: CET Rate | J15: Revenue | L15: DNG Rate | N15: Revenue | P15: CET Rate | Q15: CET Amort
A16: Block 1 Summer | B16: ='Other Inputs'!#REF! ->  | C16: ='Other Inputs'!E252 -> 1.99981 | D16: =B16*C16 ->  | H16: =ROUND((J16/B16),5) ->  | J16: =D16*$P$5 ->  | L16: =C16+H16 ->  | N16: =L16*B16 ->  | P16: =ROUND(H16,5) ->  | Q16: =B16*P16 ->  | S16: ='Other Inputs'!$G$97 -> 6.26226 | T16: =N24 ->  | U16: =N31 ->  | V16: =N38 ->  | W16: =N45 -> 
A17: Block 2 Summer | B17: ='Other Inputs'!#REF! ->  | C17: ='Other Inputs'!E253 -> 0.79741 | D17: =B17*C17 ->  | H17: =ROUND((J17/B17),5) ->  | J17: =D17*$P$5 ->  | L17: =C17+H17 ->  | N17: =L17*B17 ->  | P17: =ROUND(H17,5) ->  | Q17: =B17*P17 -> 
A18: Block 1 Winter | B18: ='Other Inputs'!#REF! ->  | C18: ='Other Inputs'!E254 -> 2.70165 | D18: =B18*C18 ->  | H18: =ROUND((J18/B18),5) ->  | J18: =D18*$P$5 ->  | L18: =C18+H18 ->  | N18: =L18*B18 ->  | P18: =ROUND(H18,5) ->  | Q18: =B18*P18 ->  | S18: ='Other Inputs'!$G$99 -> 7.445 | T18: =N26 ->  | U18: =N33 ->  | V18: =N40 ->  | W18: =N47 -> 
A19: Block 2 Winter | B19: ='Other Inputs'!#REF! ->  | C19: ='Other Inputs'!E255 -> 1.49925 | D19: =B19*C19 ->  | H19: =ROUND((J19/B19),5) ->  | J19: =D19*$P$5 ->  | L19: =C19+H19 ->  | N19: =L19*B19 ->  | P19: =ROUND(H19,5) ->  | Q19: =B19*P19 -> 
A20: GS-1 Block Rev | B20: =SUM(B16:B19) ->  | D20: =SUM(D16:D19) ->  | J20: =B11 ->  | N20: =SUM(N16:N19) ->  | Q20: =SUM(Q16:Q19) -> 
A22: Total Rate Calculation With CET Amortization Only | N22: ='Control Panel'!E8 -> 2020-06-01 | P22: ='Other Inputs'!$J$97 -> 2020-03-01
A23: Utah GS | B23: Base DNG | C23: CET | D23: DSM | E23: Energy Assist | F23: Infrastructure | H23: Total DNG | I23: Base SNG | J23: SNG Amort | L23: Base Gas Cost | M23: 191 Amort | N23: Total Rate | P23: Total Rate
A24: Block 1 Summer | B24: =$C$16 -> 1.99981 | C24: =$H$16 ->  | D24: 0.44104 | E24: 0.01519 | F24: 0.02908 | H24: =SUM(B24:F24) ->  | I24: 0.55715 | J24: 0.01244 | L24: 4.21339 | M24: 0.14067 | N24: =SUM(H24:M24) ->  | P24: ='Other Inputs'!$G$97 -> 6.26226 | Q24: =N24-P24 -> 
A25: Block 2 Summer | B25: =$C$17 -> 0.79741 | C25: =$H$17 ->  | D25: =$D$24 -> 0.44104 | E25: =$E$24 -> 0.01519 | F25: 0.0108 | H25: =SUM(B25:F25) ->  | I25: =I24 -> 0.55715 | J25: =J24 -> 0.01244 | L25: =L24 -> 4.21339 | M25: =$M$24 -> 0.14067 | N25: =SUM(H25:M25) ->  | P25: ='Other Inputs'!$G$98 -> 5.05967 | Q25: =N25-P25 -> 
A26: Block 1 Winter | B26: =$C$18 -> 2.70165 | C26: =$H$18 ->  | D26: =$D$24 -> 0.44104 | E26: =$E$24 -> 0.01519 | F26: 0.03453 | H26: =SUM(B26:F26) ->  | I26: 1.18665 | J26: 0.02651 | L26: =L24 -> 4.21339 | M26: =$M$24 -> 0.14067 | N26: =SUM(H26:M26) ->  | P26: ='Other Inputs'!$G$99 -> 7.445 | Q26: =N26-P26 -> 
A27: Block 2 Winter | B27: =$C$19 -> 1.49925 | C27: =$H$19 ->  | D27: =$D$24 -> 0.44104 | E27: =$E$24 -> 0.01519 | F27: 0.01434 | H27: =SUM(B27:F27) ->  | I27: =I26 -> 1.18665 | J27: =J26 -> 0.02651 | L27: =L24 -> 4.21339 | M27: =$M$24 -> 0.14067 | N27: =SUM(H27:M27) ->  | P27: ='Other Inputs'!$G$100 -> 6.24241 | Q27: =N27-P27 -> 
A29: Total Rate Calculation With DSM Amortization Only | N29: =N22 -> 2020-06-01 | P29: ='Other Inputs'!$J$97 -> 2020-03-01
A30: Utah GS | B30: Base DNG | C30: CET | D30: DSM | E30: Energy Assist | F30: Infrastructure | H30: Total DNG | I30: Base SNG | J30: SNG Amort | L30: Commodity | M30: 191 Amort | N30: Total Rate | P30: Total Rate
A31: Block 1 Summer | B31: =$C$16 -> 1.99981 | C31: -0.0599 | D31: =$H$6 ->  | E31: =$E$24 -> 0.01519 | F31: =F24 -> 0.02908 | H31: =SUM(B31:F31) ->  | I31: =$I$24 -> 0.55715 | J31: =J24 -> 0.01244 | L31: =$L$24 -> 4.21339 | M31: =$M$24 -> 0.14067 | N31: =SUM(H31:M31) ->  | P31: ='Other Inputs'!$G$97 -> 6.26226 | Q31: =N31-P31 -> 
A32: Block 2 Summer | B32: =$C$17 -> 0.79741 | C32: -0.02224 | D32: =$H$6 ->  | E32: =$E$24 -> 0.01519 | F32: =F25 -> 0.0108 | H32: =SUM(B32:F32) ->  | I32: =$I$24 -> 0.55715 | J32: =J25 -> 0.01244 | L32: =$L$24 -> 4.21339 | M32: =$M$24 -> 0.14067 | N32: =SUM(H32:M32) ->  | P32: ='Other Inputs'!$G$98 -> 5.05967 | Q32: =N32-P32 -> 
A33: Block 1 Winter | B33: =$C$18 -> 2.70165 | C33: -0.07112 | D33: =$H$6 ->  | E33: =$E$24 -> 0.01519 | F33: =F26 -> 0.03453 | H33: =SUM(B33:F33) ->  | I33: =$I$26 -> 1.18665 | J33: =J26 -> 0.02651 | L33: =$L$24 -> 4.21339 | M33: =$M$24 -> 0.14067 | N33: =SUM(H33:M33) ->  | P33: ='Other Inputs'!$G$99 -> 7.445 | Q33: =N33-P33 -> 
A34: Block 2 Winter | B34: =$C$19 -> 1.49925 | C34: -0.02953 | D34: =$H$6 ->  | E34: =$E$24 -> 0.01519 | F34: =F27 -> 0.01434 | H34: =SUM(B34:F34) ->  | I34: =$I$26 -> 1.18665 | J34: =J27 -> 0.02651 | L34: =$L$24 -> 4.21339 | M34: =$M$24 -> 0.14067 | N34: =SUM(H34:M34) ->  | P34: ='Other Inputs'!$G$100 -> 6.24241 | Q34: =N34-P34 -> 
A36: Total Rate Calculation With SNG and Commodity Changes Only | N36: =N22 -> 2020-06-01 | P36: ='Other Inputs'!$J$97 -> 2020-03-01
A37: Utah GS | B37: Base DNG | C37: CET | D37: DSM | E37: Energy Assist | F37: Infrastructure | H37: Total DNG | I37: Base SNG | J37: SNG | L37: Commodity | M37: 191 Amort | N37: Total Rate | P37: Total Rate
A38: Block 1 Summer | B38: =$C$16 -> 1.99981 | C38: =C31 -> -0.0599 | D38: =D24 -> 0.44104 | E38: =$E$24 -> 0.01519 | F38: =F24 -> 0.02908 | H38: =SUM(B38:F38) -> 2.42522 | I38: =#REF! ->  | J38: =#REF! ->  | L38: ='Ut 1.5 p1'!$F$29 -> 3.07628 | M38: ='Ut 1.5 p1'!$F$30 -> 0.43865 | N38: =SUM(H38:M38) ->  | P38: ='Other Inputs'!$G$97 -> 6.26226 | Q38: =N38-P38 -> 
A39: Block 2 Summer | B39: =$C$17 -> 0.79741 | C39: =C32 -> -0.02224 | D39: =D25 -> 0.44104 | E39: =$E$24 -> 0.01519 | F39: =F25 -> 0.0108 | H39: =SUM(B39:F39) -> 1.2422 | I39: =#REF! ->  | J39: =#REF! ->  | L39: ='Ut 1.5 p1'!$F$29 -> 3.07628 | M39: ='Ut 1.5 p1'!$F$30 -> 0.43865 | N39: =SUM(H39:M39) ->  | P39: ='Other Inputs'!$G$98 -> 5.05967 | Q39: =N39-P39 -> 
A40: Block 1 Winter | B40: =$C$18 -> 2.70165 | C40: =C33 -> -0.07112 | D40: =D26 -> 0.44104 | E40: =$E$24 -> 0.01519 | F40: =F26 -> 0.03453 | H40: =SUM(B40:F40) -> 3.12129 | I40: =#REF! ->  | J40: =#REF! ->  | L40: ='Ut 1.5 p1'!$F$29 -> 3.07628 | M40: ='Ut 1.5 p1'!$F$30 -> 0.43865 | N40: =SUM(H40:M40) ->  | P40: ='Other Inputs'!$G$99 -> 7.445 | Q40: =N40-P40 -> 
A41: Block 2 Winter | B41: =$C$19 -> 1.49925 | C41: =C34 -> -0.02953 | D41: =D27 -> 0.44104 | E41: =$E$24 -> 0.01519 | F41: =F27 -> 0.01434 | H41: =SUM(B41:F41) -> 1.94029 | I41: =#REF! ->  | J41: =#REF! ->  | L41: ='Ut 1.5 p1'!$F$29 -> 3.07628 | M41: ='Ut 1.5 p1'!$F$30 -> 0.43865 | N41: =SUM(H41:M41) ->  | P41: ='Other Inputs'!$G$100 -> 6.24241 | Q41: =N41-P41 -> 
A43: Total Rate Calculation | N43: =N29 -> 2020-06-01 | P43: ='Other Inputs'!$J$97 -> 2020-03-01
A44: Utah GS | B44: Base DNG | C44: CET | D44: DSM | E44: Energy Assist | F44: Infrastructure | H44: Total DNG | I44: Base SNG | J44: SNG | L44: Commodity | N44: Total Rate | P44: Total Rate
A45: Block 1 Summer | B45: =$C$16 -> 1.99981 | C45: =$H$16 ->  | D45: =$H$6 ->  | E45: =$E$24 -> 0.01519 | F45: =F38 -> 0.02908 | H45: =SUM(B45:F45) ->  | I45: =I38 ->  | J45: =#REF! ->  | L45: ='Ut 1.5 p1'!$F$32 -> 3.505209661 | N45: =SUM(H45:L45) ->  | P45: ='Other Inputs'!$G$97 -> 6.26226 | Q45: =N45-P45 -> 
A46: Block 2 Summer | B46: =$C$17 -> 0.79741 | C46: =$H$17 ->  | D46: =$H$6 ->  | E46: =$E$24 -> 0.01519 | F46: =F39 -> 0.0108 | H46: =SUM(B46:F46) ->  | I46: =I39 ->  | J46: =#REF! ->  | L46: =$L$45 -> 3.505209661 | N46: =SUM(H46:L46) ->  | P46: ='Other Inputs'!$G$98 -> 5.05967 | Q46: =N46-P46 -> 
A47: Block 1 Winter | B47: =$C$18 -> 2.70165 | C47: =$H$18 ->  | D47: =$H$6 ->  | E47: =$E$24 -> 0.01519 | F47: =F40 -> 0.03453 | H47: =SUM(B47:F47) ->  | I47: =I40 ->  | J47: =#REF! ->  | L47: =$L$45 -> 3.505209661 | N47: =SUM(H47:L47) ->  | P47: ='Other Inputs'!$G$99 -> 7.445 | Q47: =N47-P47 -> 
A48: Block 2 Winter | B48: =$C$19 -> 1.49925 | C48: =$H$19 ->  | D48: =$H$6 ->  | E48: =$E$24 -> 0.01519 | F48: =F41 -> 0.01434 | H48: =SUM(B48:F48) ->  | I48: =I41 ->  | J48: =#REF! ->  | L48: =$L$45 -> 3.505209661 | N48: =SUM(H48:L48) ->  | P48: ='Other Inputs'!$G$100 -> 6.24241 | Q48: =N48-P48 -> 
A50: Typical Customer Difference - CET Amortization Only
B51: Typical
A52: GS | B52: Dth | C52: =S12 -> 2020-03-01 | D52: =N43 -> 2020-06-01 | H52: Change | J52: % Change
A53: January | B53: 14.9 | C53: =ROUND($S$14+(B53*$S$18),2) -> 117.68 | D53: =ROUND($T$14+(B53*$T$18),2) ->  | H53: =D53-C53 -> 
A54: February | B54: 12.5 | C54: =ROUND($S$14+(B54*$S$18),2) -> 99.81 | D54: =ROUND($T$14+(B54*$T$18),2) -> 
A55: March | B55: 10.1 | C55: =ROUND($S$14+(B55*$S$18),2) -> 81.94 | D55: =ROUND($T$14+(B55*$T$18),2) -> 
A56: April | B56: 8.3 | C56: =ROUND($S$14+(B56*$S$16),2) -> 58.73 | D56: =ROUND($T$14+(B56*$T$16),2) -> 
A57: May | B57: 4.4 | C57: 34.3 | D57: =ROUND($T$14+(B57*$T$16),2) -> 
A58: June | B58: 3.1 | C58: 26.16
A59: July | B59: 2 | C59: 19.27
A60: August | B60: 1.8 | C60: 18.02
A61: September | B61: 2 | C61: 19.27
A62: October | B62: 3.1 | C62: 26.16
A63: November | B63: 6.3 | C63: =ROUND($S$14+(B63*$S$18),2) -> 53.65 | D63: =ROUND($T$14+(B63*$T$18),2) -> 
A64: December | B64: 11.5 | C64: =ROUND($S$14+(B64*$S$18),2) -> 92.37 | D64: =ROUND($T$14+(B64*$T$18),2) -> 
B65: =SUM(B53:B64) -> 80 | C65: =SUM(C53:C64) -> 647.36 | D65: =SUM(D53:D64) ->  | H65: =SUM(H53:H64) ->  | J65: =H65/C65 -> 
A68: Typical Customer Difference - DSM Amortization Only
B69: Typical
A70: GS | B70: Dth | C70: =C52 -> 2020-03-01 | D70: =D52 -> 2020-06-01 | H70: Change | J70: % Change
A71: January | B71: 14.9 | C71: =ROUND($S$14+(B71*$S$18),2) -> 117.68 | D71: =ROUND($U$14+(B71*$U$18),2) ->  | H71: =D71-C71 -> 
A72: February | B72: 12.5 | C72: =ROUND($S$14+(B72*$S$18),2) -> 99.81 | D72: =ROUND($U$14+(B72*$U$18),2) -> 
A73: March | B73: 10.1 | C73: =ROUND($S$14+(B73*$S$18),2) -> 81.94 | D73: =ROUND($U$14+(B73*$U$18),2) -> 
A74: April | B74: 8.3 | C74: =ROUND($S$14+(B74*$S$16),2) -> 58.73 | D74: =ROUND($U$14+(B74*$U$16),2) -> 
A75: May | B75: 4.4 | C75: 34.3
A76: June | B76: 3.1 | C76: 26.16
A77: July | B77: 2 | C77: 19.27
A78: August | B78: 1.8 | C78: 18.02
A79: September | B79: 2 | C79: 19.27
A80: October | B80: 3.1 | C80: 26.16
A81: November | B81: 6.3 | C81: =ROUND($S$14+(B81*$S$18),2) -> 53.65 | D81: =ROUND($U$14+(B81*$U$18),2) -> 
A82: December | B82: 11.5 | C82: =ROUND($S$14+(B82*$S$18),2) -> 92.37 | D82: =ROUND($U$14+(B82*$U$18),2) -> 
B83: =SUM(B71:B82) -> 80 | C83: =SUM(C71:C82) -> 647.36 | D83: =SUM(D71:D82) ->  | H83: =SUM(H71:H82) ->  | J83: =H83/C83 -> 
A86: Typical Customer Difference - SNG and Commodity Changes Only
B87: Typical
A88: GS-1 | B88: Dth | C88: =C70 -> 2020-03-01 | D88: =D70 -> 2020-06-01 | H88: Change | J88: % Change
A89: January | B89: 14.9 | C89: =ROUND($S$14+(B89*$S$18),2) -> 117.68 | D89: =ROUND($V$14+(B89*$V$18),2) ->  | H89: =D89-C89 -> 
A90: February | B90: 12.5 | C90: =ROUND($S$14+(B90*$S$18),2) -> 99.81 | D90: =ROUND($V$14+(B90*$V$18),2) -> 
A91: March | B91: 10.1 | C91: =ROUND($S$14+(B91*$S$18),2) -> 81.94 | D91: =ROUND($V$14+(B91*$V$18),2) -> 
A92: April | B92: 8.3 | C92: =ROUND($S$14+(B92*$S$16),2) -> 58.73 | D92: =ROUND($V$14+(B92*$V$16),2) -> 
A93: May | B93: 4.4 | C93: 34.3
A94: June | B94: 3.1 | C94: 26.16
A95: July | B95: 2 | C95: 19.27
A96: August | B96: 1.8 | C96: 18.02
A97: September | B97: 2 | C97: 19.27
A98: October | B98: 3.1 | C98: 26.16
A99: November | B99: 6.3 | C99: =ROUND($S$14+(B99*$S$18),2) -> 53.65 | D99: =ROUND($V$14+(B99*$V$18),2) -> 
A100: December | B100: 11.5 | C100: =ROUND($S$14+(B100*$S$18),2) -> 92.37 | D100: =ROUND($V$14+(B100*$V$18),2) -> 
B101: =SUM(B89:B100) -> 80 | C101: =SUM(C89:C100) -> 647.36 | D101: =SUM(D89:D100) ->  | H101: =SUM(H89:H100) ->  | J101: =H101/C101 -> 
A104: Typical Customer Difference - CET & DSM Amort, SNG and Commodity Changes
B105: Typical
A106: GS-1 | B106: Dth | C106: =C52 -> 2020-03-01 | D106: =D52 -> 2020-06-01 | H106: Change | J106: % Change
A107: January | B107: 14.9 | C107: =ROUND($S$14+(B107*$S$18),2) -> 117.68 | D107: =ROUND($W$14+(B107*$W$18),2) ->  | H107: =D107-C107 -> 
A108: February | B108: 12.5 | C108: =ROUND($S$14+(B108*$S$18),2) -> 99.81 | D108: =ROUND($W$14+(B108*$W$18),2) -> 
A109: March | B109: 10.1 | C109: =ROUND($S$14+(B109*$S$18),2) -> 81.94 | D109: =ROUND($W$14+(B109*$W$18),2) -> 
A110: April | B110: 8.3 | C110: =ROUND($S$14+(B110*$S$16),2) -> 58.73 | D110: =ROUND($W$14+(B110*$W$16),2) -> 
A111: May | B111: 4.4 | C111: 34.3
A112: June | B112: 3.1 | C112: 26.16
A113: July | B113: 2 | C113: 19.27
A114: August | B114: 1.8 | C114: 18.02
A115: September | B115: 2 | C115: 19.27
A116: October | B116: 3.1 | C116: 26.16
A117: November | B117: 6.3 | C117: =ROUND($S$14+(B117*$S$18),2) -> 53.65 | D117: =ROUND($W$14+(B117*$W$18),2) -> 
A118: December | B118: 11.5 | C118: =ROUND($S$14+(B118*$S$18),2) -> 92.37 | D118: =ROUND($W$14+(B118*$W$18),2) -> 
B119: =SUM(B107:B118) -> 80 | C119: =SUM(C107:C118) -> 647.36 | D119: =SUM(D107:D118) ->  | H119: =SUM(H107:H118) ->  | J119: =H119/C119 -> 

Sheet UT Tariff Sheets PT (hidden)
B2: 2.02 GS Rate Schedule | J2: 2.03 FS Rate Schedule | AB2: 4.03 ES Rate Schedule | AI2: 2.05 NGV Rate Schedule
C3: Rates Per Dth Used Each Month | M3: Rates Per Dth Used Each Month | T3: 4.02 IS Rate Schedule | AB3: ES Volumetric Rates | AI3: NGV Volumetric Rate
C4: Summer Rates: Apr. 1 - Oct. 31 | E4: Winter Rates: Nov. 1 - Mar. 31 | M4: Dth = decatherm = 10 therms = 1,000,000 BTU | T4: IS Volumetric Rates
C5: First 45 Dth | D5: All Over 45 Dth | E5: First 45 Dth | F5: All Over 45 Dth | K5: Summer Rates: Apr. 1 - Oct. 31 | N5: Winter Rates: Nov. 1 - Mar. 31 | U5: Rates Per Dth Used Each Month | AE5: Rates Per Dth Used Each Month | AM5: Rates Per Dth Used Each Month
B6: Base DNG | C6: ='CET & DSM'!B38 -> 1.99981 | D6: ='CET & DSM'!B39 -> 0.79741 | E6: ='CET & DSM'!B40 -> 2.70165 | F6: ='CET & DSM'!B41 -> 1.49925 | K6: First | L6: Next | M6: All Over | N6: First | O6: Next | P6: All Over | U6: Dth = decatherm = 10 therms = 1,000,000 BTU | AE6: Dth = decatherm = 10 therms = 1,000,000 BTU | AM6: Dth = decatherm = 10 therms = 1,000,000 BTU
B7: CET Amortization | C7: ='CET & DSM'!C38 -> -0.0599 | D7: ='CET & DSM'!C39 -> -0.02224 | E7: ='CET & DSM'!C40 -> -0.07112 | F7: ='CET & DSM'!C41 -> -0.02953 | K7: 200 | L7: 1800 | M7: 2000 | N7: 200 | O7: 1800 | P7: 2000 | U7: First | V7: Next | W7: All Over | AB7: Distribution Non-Gas Rate | AC7: ='Ut 1.7 Source'!#REF! ->  | AI7: Base DNG | AK7: ='Ut 1.7 Source'!C52 -> 7.84533
B8: DSM Amortization | C8: =ROUND('CET & DSM'!D38,5) -> 0.44104 | D8: =ROUND('CET & DSM'!D39,5) -> 0.44104 | E8: =ROUND('CET & DSM'!D40,5) -> 0.44104 | F8: =ROUND('CET & DSM'!D41,5) -> 0.44104 | J8: Base DNG | K8: ='Ut 1.7 Source'!C19 -> 1.08652 | L8: ='Ut 1.7 Source'!D19 -> 0.58907 | M8: ='Ut 1.7 Source'!E19 -> 0.06544 | N8: ='Ut 1.7 Source'!F19 -> 1.60504 | O8: ='Ut 1.7 Source'!G19 -> 1.10759 | P8: ='Ut 1.7 Source'!H19 -> 0.58395 | U8: 2000 | V8: 18000 | W8: 20000 | AI8: Energy Assistance | AK8: ='Other Inputs'!#REF! -> 
B9: Energy Assistance | C9: ='Other Inputs'!#REF! ->  | D9: ='Other Inputs'!#REF! ->  | E9: ='Other Inputs'!#REF! ->  | F9: ='Other Inputs'!#REF! ->  | J9: Energy Assistance | K9: ='Other Inputs'!#REF! ->  | L9: ='Other Inputs'!#REF! ->  | M9: ='Other Inputs'!#REF! ->  | N9: ='Other Inputs'!#REF! ->  | O9: ='Other Inputs'!#REF! ->  | P9: ='Other Inputs'!#REF! ->  | T9: Base DNG | U9: ='Ut 1.7 Source'!C60 -> 0.84091 | V9: ='Ut 1.7 Source'!D60 -> 0.09473 | W9: ='Ut 1.7 Source'!E60 -> 0.09085 | AB9: Base SNG | AC9: =ROUND(#REF!,5) ->  | AI9: Distribution Non-Gas Rate | AK9: =SUM(AK7:AM8) -> 
B10: Distribution Non-Gas Rate | C10: =SUM(C6:C9) ->  | D10: =SUM(D6:D9) ->  | E10: =SUM(E6:E9) ->  | F10: =SUM(F6:F9) ->  | J10: Distribution Non-Gas Rate | K10: =SUM(K8:K9) ->  | T10: Energy Assistance | U10: ='Other Inputs'!#REF! ->  | V10: ='Other Inputs'!#REF! ->  | W10: ='Other Inputs'!#REF! ->  | AB10: SNG Amortization | AC10: =ROUND(#REF!,5) -> 
T11: Distribution Non-Gas Rate | U11: =SUM(U9:U10) ->  | V11: =SUM(V9:V10) ->  | W11: =SUM(W9:W10) ->  | AB11: Supplier Non-Gas Rate | AC11: =SUM(AC9:AF10) ->  | AI11: Base SNG | AK11: =ROUND(#REF!,5) -> 
B12: Base SNG | C12: ='CET & DSM'!I38 ->  | D12: ='CET & DSM'!I39 ->  | E12: ='CET & DSM'!I40 ->  | F12: ='CET & DSM'!I41 ->  | J12: Base SNG | K12: =ROUND(#REF!,5) ->  | L12: =ROUND(#REF!,5) ->  | M12: =ROUND(#REF!,5) ->  | N12: =ROUND(#REF!,5) ->  | O12: =ROUND(#REF!,5) ->  | P12: =ROUND(#REF!,5) ->  | T12: Supplier Non-Gas Rate | U12: =ROUND(#REF!/(1-'Other Inputs'!$E$279),5) ->  | V12: =ROUND(#REF!/(1-'Other Inputs'!$E$279),5) ->  | W12: =ROUND(#REF!/(1-'Other Inputs'!$E$279),5) ->  | AI12: SNG Amortization | AK12: =ROUND(#REF!,5) -> 
B13: SNG Amortization | C13: ='CET & DSM'!J38 ->  | D13: ='CET & DSM'!J39 ->  | E13: ='CET & DSM'!J40 ->  | F13: ='CET & DSM'!J41 ->  | J13: SNG Amortization | K13: =ROUND(#REF!,5) ->  | L13: =ROUND(#REF!,5) ->  | M13: =ROUND(#REF!,5) ->  | N13: =ROUND(#REF!,5) ->  | O13: =ROUND(#REF!,5) ->  | P13: =ROUND(#REF!,5) ->  | AB13: Commodity Rate | AC13: Highest Gas Cost | AI13: Supplier Non-Gas Rate | AK13: =SUM(AK11:AM12) -> 
B14: Supplier Non-Gas Rate | C14: =SUM(C12:C13) ->  | D14: =SUM(D12:D13) ->  | E14: =SUM(E12:E13) ->  | F14: =SUM(F12:F13) ->  | J14: Supplier Non-Gas Rate | K14: =SUM(K12:K13) ->  | AB14: Total Rate | AC14: $
AI15: Base Gas Cost | AK15: =ROUND('Ut 1.5 p1'!$F$29,5) -> 3.07628
B16: Base Gas Cost | C16: ='Ut 1.5 p1'!$F$29 -> 3.07628 | D16: ='Ut 1.5 p1'!$F$29 -> 3.07628 | E16: ='Ut 1.5 p1'!$F$29 -> 3.07628 | F16: ='Ut 1.5 p1'!$F$29 -> 3.07628 | J16: Base Gas Cost | K16: =ROUND('Ut 1.5 p1'!$F$29,5) -> 3.07628 | L16: =ROUND('Ut 1.5 p1'!$F$29,5) -> 3.07628 | M16: =ROUND('Ut 1.5 p1'!$F$29,5) -> 3.07628 | N16: =ROUND('Ut 1.5 p1'!$F$29,5) -> 3.07628 | O16: =ROUND('Ut 1.5 p1'!$F$29,5) -> 3.07628 | P16: =ROUND('Ut 1.5 p1'!$F$29,5) -> 3.07628 | AB16: Penalty for failure to interrupt or limit usage when requested by the Company. See See § 3.02 | AI16: Commodity Amortization | AK16: =ROUND('Ut 1.5 p1'!$F$30,5) -> 0.43865
B17: 191 Amortization | C17: ='Ut 1.5 p1'!$F$30 -> 0.43865 | D17: ='Ut 1.5 p1'!$F$30 -> 0.43865 | E17: ='Ut 1.5 p1'!$F$30 -> 0.43865 | F17: ='Ut 1.5 p1'!$F$30 -> 0.43865 | J17: 191 Amortization | K17: =ROUND('Ut 1.5 p1'!$F$30,5) -> 0.43865 | L17: =ROUND('Ut 1.5 p1'!$F$30,5) -> 0.43865 | M17: =ROUND('Ut 1.5 p1'!$F$30,5) -> 0.43865 | N17: =ROUND('Ut 1.5 p1'!$F$30,5) -> 0.43865 | O17: =ROUND('Ut 1.5 p1'!$F$30,5) -> 0.43865 | P17: =ROUND('Ut 1.5 p1'!$F$30,5) -> 0.43865 | AI17: Commodity Rate | AK17: =SUM(AK15:AM16) -> 3.51493
B18: Commodity Rate | C18: =SUM(C16:C17) -> 3.51493 | D18: =SUM(D16:D17) -> 3.51493 | E18: =SUM(E16:E17) -> 3.51493 | F18: =SUM(F16:F17) -> 3.51493 | J18: Commodity Rate | K18: =SUM(K16:K17) -> 3.51493 | L18: 3.51493 | M18: 3.51493 | N18: 3.51493 | O18: 3.51493 | P18: 3.51493 | T18: Total Rate | U18: $ | V18: $ | W18: $
AI19: Total Rate | AK19: =SUM(AK9,AK13,AK17) -> 
B20: Total Rate | C20: =SUM(C18,C14,C10) ->  | D20: =SUM(D18,D14,D10) ->  | E20: =SUM(E18,E14,E10) ->  | F20: =SUM(F18,F14,F10) ->  | J20: Total Rate | K20: =SUM(K18,K14,K10) ->  | T20: Minimum Monthly Distribution Non-Gas Charge
AI21: Penalty for failure to interrupt or limit usage when requested by the Company. See See § 3.02
E22: BSF Category 1 | F22: ='Ut 1.7 Source'!C12 -> 6.75 | J22: Minimum Monthly Distribution Non-Gas Charge | O22: Summer | P22: =ROUND(K8*175,0) -> 190
E23: BSF Category 2 | F23: ='Ut 1.7 Source'!C13 -> 18.25 | O23: Winter | P23: =ROUND(N8*175,0) -> 281
E24: BSF Category 3 | F24: ='Ut 1.7 Source'!C14 -> 63.5 | V24: BSF Category 1 | W24: 5
E25: BSF Category 4 | F25: ='Ut 1.7 Source'!C15 -> 420.25 | V25: BSF Category 2 | W25: 29
N26: BSF Category 1 | P26: 5 | V26: BSF Category 3 | W26: 67
N27: BSF Category 2 | P27: 21 | V27: BSF Category 4 | W27: 274
N28: BSF Category 3 | P28: 55
N29: BSF Category 4 | P29: 244
AI30: =B44 -> Issued by R. W. Jibson, President | AL30: Advice No | AM30: Section Revision No.
AB39: =B44 -> Issued by R. W. Jibson, President | AE39: Advice No | AF39: Section Revision No.
AB42: New Pass Through Values
B44: Issued by R. W. Jibson, President | D44: Advice No | E44: Section Revision No. | F44: Effective Date
T47: =B44 -> Issued by R. W. Jibson, President | W47: Advice No
B48: Pass Through Changes | J48: =B44 -> Issued by R. W. Jibson, President | M48: Advice No | N48: Section Revision No. | P48: Effective Date
T50: New Pass Through Values
J51: New Pass Through Values

Sheet UT Tariff Sheets (hidden)
B2: 2.02 GS Rate Schedule | I2: 2.02 GS Rate Schedule
C3: Rates Per Dth Used Each Month | J3: Rates Per Dth Used Each Month
C4: Summer Rates: Apr. 1 - Oct. 31 | E4: Winter Rates: Nov. 1 - Mar. 31 | J4: Summer Rates: Apr. 1 - Oct. 31 | L4: Winter Rates: Nov. 1 - Mar. 31
C5: First 45 Dth | D5: All Over 45 Dth | E5: First 45 Dth | F5: All Over 45 Dth | J5: First 45 Dth | K5: All Over 45 Dth | L5: First 45 Dth | M5: All Over 45 Dth
B6: Base DNG | C6: ='CET & DSM'!B24 -> 1.99981 | D6: ='CET & DSM'!B25 -> 0.79741 | E6: ='CET & DSM'!B26 -> 2.70165 | F6: ='CET & DSM'!B27 -> 1.49925 | I6: Base DNG | J6: ='CET & DSM'!B31 -> 1.99981 | K6: ='CET & DSM'!B32 -> 0.79741 | L6: ='CET & DSM'!B33 -> 2.70165 | M6: ='CET & DSM'!B34 -> 1.49925
B7: CET Amortization | C7: ='CET & DSM'!H16 ->  | D7: ='CET & DSM'!H17 ->  | E7: ='CET & DSM'!H18 ->  | F7: ='CET & DSM'!H19 ->  | I7: CET Amortization | J7: ='CET & DSM'!C31 -> -0.0599 | K7: ='CET & DSM'!C32 -> -0.02224 | L7: ='CET & DSM'!C33 -> -0.07112 | M7: ='CET & DSM'!C34 -> -0.02953
B8: DSM Amortization | C8: ='CET & DSM'!D24 -> 0.44104 | D8: ='CET & DSM'!D25 -> 0.44104 | E8: ='CET & DSM'!D26 -> 0.44104 | F8: ='CET & DSM'!D27 -> 0.44104 | I8: DSM Amortization | J8: =ROUND('CET & DSM'!D31,5) ->  | K8: =ROUND('CET & DSM'!D32,5) ->  | L8: =ROUND('CET & DSM'!D33,5) ->  | M8: =ROUND('CET & DSM'!D34,5) -> 
B9: Energy Assistance | C9: ='Other Inputs'!#REF! ->  | D9: ='Other Inputs'!#REF! ->  | E9: ='Other Inputs'!#REF! ->  | F9: ='Other Inputs'!#REF! ->  | I9: Energy Assistance | J9: ='Other Inputs'!#REF! ->  | K9: ='Other Inputs'!#REF! ->  | L9: ='Other Inputs'!#REF! ->  | M9: ='Other Inputs'!#REF! -> 
B10: Distribution Non-Gas Rate | C10: =SUM(C6:C9) ->  | D10: =SUM(D6:D9) ->  | E10: =SUM(E6:E9) ->  | F10: =SUM(F6:F9) ->  | I10: Distribution Non-Gas Rate | J10: =SUM(J6:J9) ->  | K10: =SUM(K6:K9) ->  | L10: =SUM(L6:L9) ->  | M10: =SUM(M6:M9) -> 
B12: Base SNG | C12: ='CET & DSM'!I24 -> 0.55715 | D12: ='CET & DSM'!I25 -> 0.55715 | E12: ='CET & DSM'!I26 -> 1.18665 | F12: ='CET & DSM'!I27 -> 1.18665 | I12: Base SNG | J12: ='CET & DSM'!I31 -> 0.55715 | K12: ='CET & DSM'!I32 -> 0.55715 | L12: ='CET & DSM'!I33 -> 1.18665 | M12: ='CET & DSM'!I34 -> 1.18665
B13: SNG Amortization | C13: ='CET & DSM'!J24 -> 0.01244 | D13: ='CET & DSM'!J25 -> 0.01244 | E13: ='CET & DSM'!J26 -> 0.02651 | F13: ='CET & DSM'!J27 -> 0.02651 | I13: SNG Amortization | J13: ='CET & DSM'!J31 -> 0.01244 | K13: ='CET & DSM'!J32 -> 0.01244 | L13: ='CET & DSM'!J33 -> 0.02651 | M13: ='CET & DSM'!J34 -> 0.02651
B14: Supplier Non-Gas Rate | C14: =SUM(C12:C13) -> 0.56959 | D14: =SUM(D12:D13) -> 0.56959 | E14: =SUM(E12:E13) -> 1.21316 | F14: =SUM(F12:F13) -> 1.21316 | I14: Supplier Non-Gas Rate | J14: =SUM(J12:J13) -> 0.56959 | K14: =SUM(K12:K13) -> 0.56959 | L14: =SUM(L12:L13) -> 1.21316 | M14: =SUM(M12:M13) -> 1.21316
B16: Base Gas Cost | C16: ='CET & DSM'!L24 -> 4.21339 | D16: ='CET & DSM'!L25 -> 4.21339 | E16: ='CET & DSM'!L26 -> 4.21339 | F16: ='CET & DSM'!L27 -> 4.21339 | I16: Base Gas Cost | J16: ='CET & DSM'!L31 -> 4.21339 | K16: ='CET & DSM'!L32 -> 4.21339 | L16: ='CET & DSM'!L33 -> 4.21339 | M16: ='CET & DSM'!L34 -> 4.21339
B17: 191 Amortization | C17: ='CET & DSM'!M24 -> 0.14067 | D17: ='CET & DSM'!M25 -> 0.14067 | E17: ='CET & DSM'!M26 -> 0.14067 | F17: ='CET & DSM'!M27 -> 0.14067 | I17: 191 Amortization | J17: ='CET & DSM'!M31 -> 0.14067 | K17: ='CET & DSM'!M32 -> 0.14067 | L17: ='CET & DSM'!M33 -> 0.14067 | M17: ='CET & DSM'!M34 -> 0.14067
B18: Commodity Rate | C18: =SUM(C16:C17) -> 4.35406 | D18: =SUM(D16:D17) -> 4.35406 | E18: =SUM(E16:E17) -> 4.35406 | F18: =SUM(F16:F17) -> 4.35406 | I18: Commodity Rate | J18: =SUM(J16:J17) -> 4.35406 | K18: =SUM(K16:K17) -> 4.35406 | L18: =SUM(L16:L17) -> 4.35406 | M18: =SUM(M16:M17) -> 4.35406
B20: Total Rate | C20: =SUM(C18,C14,C10) ->  | D20: =SUM(D18,D14,D10) ->  | E20: =SUM(E18,E14,E10) ->  | F20: =SUM(F18,F14,F10) ->  | I20: Total Rate | J20: =SUM(J18,J14,J10) ->  | K20: =SUM(K18,K14,K10) ->  | L20: =SUM(L18,L14,L10) ->  | M20: =SUM(M18,M14,M10) -> 
E23: BSF Category 1 | F23: ='Ut 1.7 Source'!C12 -> 6.75 | L23: BSF Category 1 | M23: ='Ut 1.7 Source'!C12 -> 6.75
E24: BSF Category 2 | F24: ='Ut 1.7 Source'!C13 -> 18.25 | L24: BSF Category 2 | M24: ='Ut 1.7 Source'!C13 -> 18.25
E25: BSF Category 3 | F25: ='Ut 1.7 Source'!C14 -> 63.5 | L25: BSF Category 3 | M25: ='Ut 1.7 Source'!C14 -> 63.5
E26: BSF Category 4 | F26: ='Ut 1.7 Source'!C15 -> 420.25 | L26: BSF Category 4 | M26: ='Ut 1.7 Source'!C15 -> 420.25
B45: Issued by R. W. Jibson, President | D45: Advice No | E45: Section Revision No. | F45: Effective Date | I45: Issued by R. W. Jibson, President | K45: Advice No | L45: Section Revision No. | M45: Effective Date
B49: New CET Only | I49: NEW DSM ONLY

Sheet Utah Summary-by class
A1: UTAH SUMMARY
B2: NOT AN EXHIBIT !!!
Q3: Sub Total
C4: COMMODITY | J4: SNG | Q4: TOTAL
C5: Current | D5: Proposed | E5: Current | F5: Proposed | G5: Revenue | H5: % | J5: Current | K5: Proposed | L5: Current | M5: Proposed | N5: Revenue | O5: % | Q5: Revenue | R5: %
A6: RATE | B6: Dth Sales | C6: Rates | D6: Rates | E6: Revenue | F6: Revenue | G6: Difference | H6: Change | J6: Rates | K6: Rates | L6: Revenue | M6: Revenue | N6: Difference | O6: Change | Q6: Difference | R6: Change
A8: GS (W) | B8: =Calculations!P52 -> 78651859 | C8: ='Ut 1.5 p1'!$H$32 -> 3.5875 | D8: =ROUND('Ut 1.5 p1'!$F$32,5) -> 3.50521 | E8: =ROUND(B8*C8,0) -> 282163544 | F8: =ROUND(B8*D8,0) -> 275691283 | G8: =(F8-E8) -> -6472261 | J8: ='Other Inputs'!G85 -> 0.92726 | K8: ='Ut 1.5 p6'!E26 -> 0.91868 | L8: =ROUND(B8*J8,0) -> 72930723 | M8: =B8*K8 -> 72255889.83 | N8: =(M8-L8) -> -674833.1739 | O8: =IF(N8=0,0,N8/L8) -> -0.009253071218 | Q8: =G8+N8 -> -7147094.174
A9: GS (S) | B9: =Calculations!P53 -> 29870999 | C9: ='Ut 1.5 p1'!$H$32 -> 3.5875 | D9: =D8 -> 3.50521 | E9: =ROUND(B9*C9,0) -> 107162209 | F9: =ROUND(B9*D9,0) -> 104704124 | G9: =(F9-E9) -> -2458085 | J9: ='Other Inputs'!G86 -> 0.43536 | K9: ='Ut 1.5 p6'!E22 -> 0.38583 | L9: =ROUND(B9*J9,0) -> 13004638 | M9: =B9*K9 -> 11525127.54 | N9: =(M9-L9) -> -1479510.456 | O9: =IF(N9=0,0,N9/L9) -> -0.1137679077 | Q9: =G9+N9 -> -3937595.456
A10: Total | B10: =SUM(B8:B9) -> 108522858 | E10: =SUM(E8:E9) -> 389325753 | F10: =SUM(F8:F9) -> 380395407 | G10: =SUM(G8:G9) -> -8930346 | H10: =IF(G10=0,0,G10/E10) -> -0.02293797914 | L10: =SUM(L8:L9) -> 85935361 | M10: =SUM(M8:M9) -> 83781017.37 | N10: =SUM(N8:N9) -> -2154343.63 | O10: =IF(N10=0,0,N10/L10) -> -0.02506934985 | Q10: =SUM(Q8:Q9) -> -11084689.63 | R10: =IF(Q10=0,0,Q10/(E10+L10)) -> -0.02332336752
A13: FS (W) | B13: =Calculations!P58 -> 1255504 | C13: ='Ut 1.5 p1'!$H$32 -> 3.5875 | D13: =D8 -> 3.50521 | E13: =ROUND(B13*C13,0) -> 4504121 | F13: =ROUND(B13*D13,0) -> 4400805 | G13: =(F13-E13) -> -103316 | J13: ='Other Inputs'!G88 -> 0.90312 | K13: ='Ut 1.5 p6'!E34 -> 0.88925 | L13: =ROUND(B13*J13,0) -> 1133871 | M13: =B13*K13 -> 1116456.932 | N13: =(M13-L13) -> -17414.068 | O13: =IF(N13=0,0,N13/L13) -> -0.01535806807 | Q13: =G13+N13 -> -120730.068
A14: FS (S) | B14: =Calculations!P59 -> 1282223 | C14: ='Ut 1.5 p1'!$H$32 -> 3.5875 | D14: =D9 -> 3.50521 | E14: =ROUND(B14*C14,0) -> 4599975 | F14: =ROUND(B14*D14,0) -> 4494461 | G14: =(F14-E14) -> -105514 | J14: ='Other Inputs'!G89 -> 0.43536 | K14: ='Ut 1.5 p6'!E30 -> 0.76616 | L14: =ROUND(B14*J14,0) -> 558229 | M14: =B14*K14 -> 982387.9737 | N14: =(M14-L14) -> 424158.9737 | O14: =IF(N14=0,0,N14/L14) -> 0.7598297001 | Q14: =G14+N14 -> 318644.9737
A15: Total | B15: =SUM(B13:B14) -> 2537727 | E15: =SUM(E13:E14) -> 9104096 | F15: =SUM(F13:F14) -> 8895266 | G15: =SUM(G13:G14) -> -208830 | H15: =IF(G15=0,0,G15/E15) -> -0.02293802702 | L15: =SUM(L13:L14) -> 1692100 | M15: =SUM(M13:M14) -> 2098844.906 | N15: =SUM(N13:N14) -> 406744.9057 | O15: =IF(N15=0,0,N15/L15) -> 0.2403787635 | Q15: =SUM(Q13:Q14) -> 197914.9057 | R15: =IF(Q15=0,0,Q15/(E15+L15)) -> 0.01833191114
A18: NGV | B18: =Calculations!P12 -> 255286 | C18: ='Ut 1.5 p1'!$H$32 -> 3.5875 | D18: =D8 -> 3.50521 | E18: =ROUND(B18*C18,0) -> 915839 | F18: =ROUND(B18*D18,0) -> 894831 | G18: =(F18-E18) -> -21008 | H18: =IF(G18=0,0,G18/E18) -> -0.02293852959 | J18: ='Other Inputs'!G91 -> 0.66913 | K18: ='Ut 1.5 p6'!E50 -> 0.77861 | L18: =ROUND(B18*J18,0) -> 170820 | M18: =ROUND(B18*K18,0) -> 198768 | N18: =(M18-L18) -> 27948 | O18: =IF(N18=0,0,N18/L18) -> 0.1636108184 | Q18: =G18+N18 -> 6940 | R18: =IF(Q18=0,0,Q18/(E18+L18)) -> 0.006386548126
A21: IS | B21: =Calculations!P17 -> 130911 | C21: ='Ut 1.5 p1'!$H$32 -> 3.5875 | D21: =D8 -> 3.50521 | E21: =ROUND(B21*C21,0) -> 469643 | F21: =ROUND(B21*D21,0) -> 458871 | G21: =(F21-E21) -> -10772 | H21: =IF(G21=0,0,G21/E21) -> -0.02293657097 | J21: ='Other Inputs'!G93 -> 0.17907 | K21: ='Ut 1.5 p6'!E36 -> 0.17898 | L21: =ROUND(B21*J21,0) -> 23442 | M21: =ROUND(B21*K21,0) -> 23430 | N21: =(M21-L21) -> -12 | O21: =IF(N21=0,0,N21/L21) -> -0.0005119017149 | Q21: =G21+N21 -> -10784 | R21: =IF(Q21=0,0,Q21/(E21+L21)) -> -0.02187046858
A23: TSF | B23: ='Ut 1.5 p3'!F18 -> 209535 | J23: ='Ut 1.5 p6'!D40 -> 0 | K23: ='Ut 1.5 p6'!E40 -> 1.67911 | L23: =ROUND(B23*J23,0) -> 0 | M23: =ROUND(B23*K23,0) -> 351832 | N23: =(M23-L23) -> 351832 | O23: 0 | Q23: =G23+N23 -> 351832 | R23: =IF(Q23=0,0,Q23/(E23+L23)) -> 
A25: TBF | B25: ='Ut 1.5 p3'!G18 -> 45000 | J25: ='Ut 1.5 p6'!D45 -> 0 | K25: ='Ut 1.5 p6'!E45 -> 1.05573 | L25: =ROUND(B25*J25,0) -> 0 | M25: =ROUND(B25*K25,0) -> 47508 | N25: =(M25-L25) -> 47508 | O25: 0 | Q25: =G25+N25 -> 47508 | R25: =IF(Q25=0,0,Q25/(E25+L25)) -> 
B26: - | E26: - | F26: - | G26: - | L26: ------------------- | M26: ------------------- | N26: ------------------- | Q26: -------------------
B27: =B10+B15+B18+B21 -> 111446782 | E27: =E10+E15+E18+E21 -> 399815331 | F27: =F10+F15+F18+F21 -> 390644375 | G27: =G10+G15+G18+G21 -> -9170956 | H27: =IF(G27=0,0,G27/E27) -> -0.02293797983 | L27: =L10+L15+L18+L21+L23+L25 -> 87821723 | M27: =M10+M15+M18+M21+M23+M25 -> 86501400.28 | N27: =N10+N15+N18+N21+N23+N25 -> -1320322.724 | O27: =IF(N27=0,0,N27/L27) -> -0.01503412458 | Q27: =Q10+Q15+Q18+Q21 -> -10890618.72 | R27: =IF(Q27=0,0,Q27/(E27+L27)) -> -0.02233345197
G28: =IF(G27>0,"Commodity Increase","Commodity Decrease") -> Commodity Decrease | N28: =IF(N27>0,"Increase to SNG","Decrease to SNG") -> Decrease to SNG
B29: NOT AN EXHIBIT !!!
G30: =ROUND(G27,-3) -> -9171000 | N30: =ROUND(N27,-3) -> -1320000 | Q30: =ROUND(Q27,-3) -> -10891000
B31: =B27 -> 111446782 | G31: Rounded | N31: Rounded | Q31: Rounded

Sheet UT Summary - by cost (hidden)

Sheet WY Summary - by cost (hidden)

Sheet Model Checks
B2: Model Checks
B3: If the total of all checks is not zero, or very close to zero, find the checks below that are out of balance and follow the calculations
B4: back through the model and correct any errors.
D6: Total of all Checks
D7: =ABS(SUM(D10:D1993)) -> 1.474989742
B9: Forecasted Demand
C10: Utah | D10: =Calculations!P25-'RevRun Fcst'!T205 -> 0
C11: Wyoming | D11: =Calculations!P44-'RevRun Fcst'!T329 -> 0
C12: Total System | D12: =Calculations!P47-'RevRun Fcst'!T370 -> 0
B13: Forecasted Utah Demand Check by Month
C14: 1 | D14: =Calculations!D25-'RevRun Fcst'!H205 -> 0
C15: 2 | D15: =Calculations!E25-'RevRun Fcst'!I205 -> 0
C16: 3 | D16: =Calculations!F25-'RevRun Fcst'!J205 -> 0
C17: 4 | D17: =Calculations!G25-'RevRun Fcst'!K205 -> 0
C18: 5 | D18: =Calculations!H25-'RevRun Fcst'!L205 -> 0
C19: 6 | D19: =Calculations!I25-'RevRun Fcst'!M205 -> 0
C20: 7 | D20: =Calculations!J25-'RevRun Fcst'!N205 -> 0
C21: 8 | D21: =Calculations!K25-'RevRun Fcst'!O205 -> 0
C22: 9 | D22: =Calculations!L25-'RevRun Fcst'!P205 -> 0
C23: 10 | D23: =Calculations!M25-'RevRun Fcst'!Q205 -> 0
C24: 11 | D24: =Calculations!N25-'RevRun Fcst'!R205 -> 0
C25: 12 | D25: =Calculations!O25-'RevRun Fcst'!S205 -> 0
C26: Wyoming I-2 and I-4 Revenues | D26: =('RevRun Fcst'!T273+'RevRun Fcst'!T282)-Calculations!P65 -> 0
C27: System Sales Volumes | D27: =Calculations!H76-'RevRun Fcst'!T368 -> 0
C28: Utah Sales Volumes | D28: =Calculations!P20-'Utah Summary-by class'!B27 -> 0
B29: Company Production | D29: =Calculations!P120-'Monthly Inputs'!S7-'Monthly Inputs'!S13 -> 0
B30: Injections | D30: ='Monthly Inputs'!S29-SUM('Monthly Inputs'!S23:S28) -> 0
B31: Withdrawls | D31: ='Monthly Inputs'!S37-SUM('Monthly Inputs'!S32:S36) -> 0
B32: Injections & Withdrawls | D32: =SUM('Ut 1.4 p2'!D23:D28)-'Monthly Inputs'!S29-'Monthly Inputs'!S37 -> 0
B33: Injections | D33: =Calculations!P129-'Monthly Inputs'!S29 -> 0
B34: Withdrawls | D34: =Calculations!P137-'Monthly Inputs'!S37 -> 0
B35: Sales for Resale | D35: =Expenses!S445-Calculations!P86 -> 0
B36: Incidental Plant Prod Sales | D36: =Expenses!S446-Calculations!P87 -> 0
B37: Incidental Gas & Oil Sales | D37: =Expenses!S447-Calculations!P89 -> 0
B38: Gasoline and Oil Costs | D38: =Expenses!S450+Calculations!P90 -> 0
B39: Wexpro Revenue Sharing | D39: =Expenses!S449-Calculations!P94 -> 0
B40: Storage Gas | D40: ='Rate Base'!U206-Calculations!P99 -> 0
B41: 101 Production | D41: ='Rate Base'!U148-Calculations!P100 -> 0
B42: 108 Production | D42: ='Rate Base'!U166-Calculations!P101 -> 0
B43: 111 Production | D43: ='Rate Base'!U173-Calculations!P102 -> 0
B44: 255 Production | D44: ='Rate Base'!U241-Calculations!P103 -> 0
B45: 282 Production | D45: ='Rate Base'!U248-Calculations!P104 -> 0
B46: 282.1 Production | D46: ='Rate Base'!U255-Calculations!P105 -> 0
B47: Production Rate Base | D47: =SUM(Calculations!P99:P105)-'Rate Base'!U275 -> 0
B48: Purchased Gas Cost | D48: ='Ut 1.2 p4'!E24-Calculations!P194 -> 0.2015661448
B49: Working Gas Rate Base | D49: =Calculations!P99-'Ut 1.2 p5'!E43 -> 0
B50: Allocations | D50: ='Ut 1.1 p2'!F43-'Ut 1.1 p2'!G43-'Ut 1.1 p2'!H43+'Ut 1.1 p2'!H41 -> 1.490116119e-08
B52: System Sales | D52: ='SDR#1'!C10-'RevRun Fcst'!T368 -> 0
B53: Lost & Unaccounted For | D53: ='SDR#1'!C15-(('SDR#1'!C10+'SDR#1'!C11)/(1-'Other Inputs'!E268)) -> -0.4997488707
B54: Supply / Demand | D54: ='SDR#1'!C36-'SDR#1'!C15 -> -1.411196992
B55: System Sales | D55: ='SDR#3'!H36-'SDR#1'!C10 -> 0
B56: SNG Revenue | D56: ='SDR#4'!G23-'Utah Summary-by class'!L27 -> -0.9673099965
B57: Utah Sales | D57: ='SDR#3'!D36-'SDR#4'!E23 -> 0
B58: Utah Sales | D58: ='SDR#2'!G71-'Ut 1.1 p2'!H43 -> 1.201699957
B59: Seasonal Volumes | D59: =Calculations!P52+Calculations!P53-Calculations!P7-Calculations!P8 -> 0
B60: Seasonal Volumes | D60: =Calculations!P55+Calculations!P56-Calculations!P9 -> 0
B61: Seasonal Volumes | D61: =Calculations!P58+Calculations!P59-Calculations!P10 -> 0

Sheet Royalty Detail
D4: Test-Year Cost of Dominion Energy's Production
D5: June 2020 through May 2021
B7: WEXPRO I
B8: (A) | C8: (B) | D8: (C) | E8: (D) | F8: (E) | G8: (F) | H8: (G) | I8: (H)
F9: Base Year | G9: Market | H9: Royalty | I9: Test-Year
B10: Field Name | C10: Well Name | D10: Formation | E10: Price $ | F10: Dth | G10: Value $ | H10: Rate % | I10: Royalty $
A11: 1 | B11: ACE UNIT (CO) | C11: ACE UNIT 10 FT UN | D11: MESAVERDE | E11: 1.672541815 | F11: 39351.78 | G11: 65817.49755 | H11: 0.1268519763 | I11: 8349.07964
A12: 2 | C12: ACE UNIT 11 FT UN | D12: FORT UNION | E12: 1.672541815 | F12: 22412.007 | G12: 37485.01887 | H12: 0.1268519763 | I12: 4755.048726
A13: 3 | C13: ACE UNIT 12 FT UN | D13: FORT UNION | E13: 1.672541815 | F13: 46379.304 | G13: 77571.3253 | H13: 0.1371675 | I13: 10640.26476
A14: 4 | C14: ACE UNIT 13 FT UN | D14: FORT UNION | E14: 1.672541815 | F14: 35675.936 | G14: 59669.49475 | H14: 0.1268519763 | I14: 7569.193335
A15: 5 | C15: ACE UNIT 2 FT UN | D15: FORT UNION | E15: 1.672541815 | F15: 44959.438 | G15: 75196.54004 | H15: 0.1268519763 | I15: 9538.829716
A16: 6 | B16: BIRCH CR (WY) | C16: BIRCH CREEK UNIT 1 BR | D16: BEAR RIVER | E16: 1.672541815 | F16: 6894.523 | G16: 11531.37801 | H16: 0.1329769324 | I16: 1533.407275
A17: 7 | C17: BIRCH CREEK UNIT 1 BR - D24 | D17: BEAR RIVER | E17: 1.672541815 | F17: 2057.935 | G17: 3441.98234 | H17: 0.1329769324 | I17: 457.704253
A18: 8 | C18: BIRCH CREEK UNIT 1 FR | D18: FRONTIER | E18: 1.672541815 | F18: 6883.063 | G18: 11512.21068 | H18: 0.1329769324 | I18: 1530.858462
A19: 9 | C19: BIRCH CREEK UNIT 1 FR - D24 | D19: FRONTIER | E19: 1.672541815 | F19: 2056.947 | G19: 3440.329869 | H19: 0.1329769324 | I19: 457.4845125
A20: 10 | C20: BIRCH CREEK UNIT 100 FR | D20: FRONTIER | E20: 1.672541815 | F20: 5492.145 | G20: 9185.842167 | H20: 0.1329769324 | I20: 1221.505113
A21: 11 | C21: BIRCH CREEK UNIT 101 BR | D21: BEAR RIVER | E21: 1.672541815 | F21: 581.003 | G21: 971.7518122 | H21: 0.1329769324 | I21: 129.2205751
A22: 12 | C22: BIRCH CREEK UNIT 101 FR | D22: FRONTIER | E22: 1.672541815 | F22: 11015.696 | G22: 18424.21218 | H22: 0.1329769324 | I22: 2449.995218
A23: 13 | C23: BIRCH CREEK UNIT 103 BR | D23: BEAR RIVER | E23: 1.672541815 | F23: 950.975 | G23: 1590.545453 | H23: 0.1329769324 | I23: 211.5058552
A24: 14 | C24: BIRCH CREEK UNIT 103 FR | D24: FRONTIER | E24: 1.672541815 | F24: 8525.415 | G24: 14259.11308 | H24: 0.1329769324 | I24: 1896.133116
A25: 15 | C25: BIRCH CREEK UNIT 104 BR | D25: BEAR RIVER | E25: 1.672541815 | F25: 2387.752 | G25: 3993.615064 | H25: 0.1329769324 | I25: 531.0586805
A26: 16 | C26: BIRCH CREEK UNIT 104 FR | D26: FRONTIER | E26: 1.672541815 | F26: 10199.923 | G26: 17059.79773 | H26: 0.1329769324 | I26: 2268.55957
A27: 17 | C27: BIRCH CREEK UNIT 105 BR | D27: BEAR RIVER | E27: 1.672541815 | F27: 8087.517 | G27: 13526.71036 | H27: 0.1329769324 | I27: 1798.74045
A28: 18 | C28: BIRCH CREEK UNIT 105 FR | D28: FRONTIER | E28: 1.672541815 | F28: 9110.703 | G28: 15238.03173 | H28: 0.1329769324 | I28: 2026.306716
A29: 19 | C29: BIRCH CREEK UNIT 106 BR | D29: BEAR RIVER | E29: 1.672541815 | F29: 5456.739 | G29: 9126.624152 | H29: 0.1329769324 | I29: 1213.630483
A30: 20 | C30: BIRCH CREEK UNIT 106 FR | D30: FRONTIER | E30: 1.672541815 | F30: 19367.636 | G30: 32393.18107 | H30: 0.1329769324 | I30: 4307.54585
A31: 21 | C31: BIRCH CREEK UNIT 107 BR | D31: BEAR RIVER | E31: 1.672541815 | F31: 1876.969 | G31: 3139.309138 | H31: 0.1329769324 | I31: 417.4556991
A32: 22 | C32: BIRCH CREEK UNIT 107 FR | D32: FRONTIER | E32: 1.672541815 | F32: 1801.973 | G32: 3013.875192 | H32: 0.1329769324 | I32: 400.7758778
A33: 23 | C33: BIRCH CREEK UNIT 108 BR | D33: BEAR RIVER | E33: 1.672541815 | F33: 2082.245 | G33: 3482.641832 | H33: 0.1329769324 | I33: 463.1110275
A34: 24 | C34: BIRCH CREEK UNIT 108 FR | D34: FRONTIER | E34: 1.672541815 | F34: 10174.017 | G34: 17016.46886 | H34: 0.1329769324 | I34: 2262.79783
A35: 25 | C35: BIRCH CREEK UNIT 109 BAX | D35: BAXTER | E35: 1.672541815 | F35: 3119.023 | G35: 5216.69639 | H35: 0.13375 | I35: 697.7331421
A36: 26 | C36: BIRCH CREEK UNIT 109 BR | D36: BEAR RIVER | E36: 1.672541815 | F36: 7495.209 | G36: 12536.05047 | H36: 0.1329769324 | I36: 1667.005536
A37: 27 | C37: BIRCH CREEK UNIT 109 FR | D37: FRONTIER | E37: 1.672541815 | F37: 6818.19 | G37: 11403.70788 | H37: 0.1329769324 | I37: 1516.430092
A38: 28 | C38: BIRCH CREEK UNIT 110 BR | D38: BEAR RIVER | E38: 1.672541815 | F38: 9110.35 | G38: 15237.44133 | H38: 0.1329769324 | I38: 2026.228205
A39: 29 | C39: BIRCH CREEK UNIT 110 FR | D39: FRONTIER | E39: 1.672541815 | F39: 8409.093 | G39: 14064.55967 | H39: 0.1329769324 | I39: 1870.262001
A40: 30 | C40: BIRCH CREEK UNIT 111 BR | D40: BEAR RIVER | E40: 1.672541815 | F40: 10363.909 | G40: 17334.07117 | H40: 0.1329769324 | I40: 2305.031611
A41: 31 | C41: BIRCH CREEK UNIT 111 FR | D41: FRONTIER | E41: 1.672541815 | F41: 3832.033 | G41: 6409.23543 | H41: 0.1329769324 | I41: 852.2804665
A42: 32 | C42: BIRCH CREEK UNIT 112 BR | D42: BEAR RIVER | E42: 1.672541815 | F42: 4476.41 | G42: 7486.982907 | H42: 0.1329769324 | I42: 995.59602
A43: 33 | C43: BIRCH CREEK UNIT 112 FR | D43: FRONTIER | E43: 1.672541815 | F43: 12106.927 | G43: 20249.34166 | H43: 0.1329769324 | I43: 2692.695337
A44: 34 | C44: BIRCH CREEK UNIT 113 BR | D44: BEAR RIVER | E44: 1.672541815 | F44: 13068.222 | G44: 21857.14774 | H44: 0.1329769324 | I44: 2906.496458
A45: 35 | C45: BIRCH CREEK UNIT 113 FR | D45: FRONTIER | E45: 1.672541815 | F45: 3904.829 | G45: 6530.989783 | H45: 0.1329769324 | I45: 868.470987
A46: 36 | C46: BIRCH CREEK UNIT 114 BR | D46: BEAR RIVER | E46: 1.672541815 | F46: 15942.565 | G46: 26664.6066 | H46: 0.1329769324 | I46: 3545.77759
A47: 37 | C47: BIRCH CREEK UNIT 114 FR | D47: FRONTIER | E47: 1.672541815 | F47: 3734.845 | G47: 6246.684436 | H47: 0.1329769324 | I47: 830.664934
A48: 38 | C48: BIRCH CREEK UNIT 115 BR | D48: BEAR RIVER | E48: 1.672541815 | F48: 2977.975 | G48: 4980.787712 | H48: 0.1329769324 | I48: 662.329871
A49: 39 | C49: BIRCH CREEK UNIT 115 FR | D49: FRONTIER | E49: 1.672541815 | F49: 9981.963 | G49: 16695.25051 | H49: 0.1329769324 | I49: 2220.083199
A50: 40 | C50: BIRCH CREEK UNIT 116 BR | D50: BEAR RIVER | E50: 1.672541815 | F50: 8795.964 | G50: 14711.61759 | H50: 0.1329769324 | I50: 1956.305779
A51: 41 | C51: BIRCH CREEK UNIT 116 FR | D51: FRONTIER | E51: 1.672541815 | F51: 3095.838 | G51: 5177.918508 | H51: 0.1329769324 | I51: 688.5437195
A52: 42 | C52: BIRCH CREEK UNIT 117 BAX | D52: BAXTER | E52: 1.672541815 | F52: 879.042 | G52: 1470.234502 | H52: 0.13375 | I52: 196.6438647
A53: 43 | C53: BIRCH CREEK UNIT 117 BR | D53: BEAR RIVER | E53: 1.672541815 | F53: 584.985 | G53: 978.4118737 | H53: 0.1329769324 | I53: 130.1062096
A54: 44 | C54: BIRCH CREEK UNIT 117 FR | D54: FRONTIER | E54: 1.672541815 | F54: 5864.192 | G54: 9808.106332 | H54: 0.1329769324 | I54: 1304.251893
A55: 45 | C55: BIRCH CREEK UNIT 118 BR | D55: BEAR RIVER | E55: 1.672541815 | F55: 931.031 | G55: 1557.188279 | H55: 0.1329769324 | I55: 207.0701205
A56: 46 | C56: BIRCH CREEK UNIT 118 FR | D56: FRONTIER | E56: 1.672541815 | F56: 8373.147 | G56: 14004.43848 | H56: 0.1329769324 | I56: 1862.26727
A57: 47 | C57: BIRCH CREEK UNIT 119 BR | D57: BEAR RIVER | E57: 1.672541815 | F57: 3900.351 | G57: 6523.500141 | H57: 0.1329769324 | I57: 867.4750374
A58: 48 | C58: BIRCH CREEK UNIT 119 FR | D58: FRONTIER | E58: 1.672541815 | F58: 15609.71 | G58: 26107.8927 | H58: 0.1329769324 | I58: 3471.747483
A59: 49 | C59: BIRCH CREEK UNIT 121 BR | D59: BEAR RIVER | E59: 1.672541815 | F59: 18006.394 | G59: 30116.4469 | H59: 0.1329769324 | I59: 4004.792725
A60: 50 | C60: BIRCH CREEK UNIT 121 FR | D60: FRONTIER | E60: 1.672541815 | F60: 3689.944 | G60: 6171.585636 | H60: 0.1329769324 | I60: 820.678526
A61: 51 | C61: BIRCH CREEK UNIT 122 BR | D61: BEAR RIVER | E61: 1.672541815 | F61: 3767.527 | G61: 6301.346447 | H61: 0.1329769324 | I61: 837.9337206
A62: 52 | C62: BIRCH CREEK UNIT 122 FR | D62: FRONTIER | E62: 1.672541815 | F62: 12957.586 | G62: 21672.10441 | H62: 0.1329769324 | I62: 2881.889963
A63: 53 | C63: BIRCH CREEK UNIT 123 BR | D63: BEAR RIVER | E63: 1.672541815 | F63: 4273.397 | G63: 7147.435175 | H63: 0.1329769324 | I63: 950.4440042
A64: 54 | C64: BIRCH CREEK UNIT 123 FR | D64: FRONTIER | E64: 1.672541815 | F64: 12813.175 | G64: 21430.57097 | H64: 0.1329769324 | I64: 2849.771588
A65: 55 | C65: BIRCH CREEK UNIT 124 BR | D65: BEAR RIVER | E65: 1.672541815 | F65: 2741.771 | G65: 4585.726645 | H65: 0.1329769324 | I65: 609.7958622
A66: 56 | C66: BIRCH CREEK UNIT 124 FR | D66: FRONTIER | E66: 1.672541815 | F66: 10952.112 | G66: 18317.86528 | H66: 0.1329769324 | I66: 2435.853534
A67: 57 | C67: BIRCH CREEK UNIT 126 BR | D67: BEAR RIVER | E67: 1.672541815 | F67: 7581.821 | G67: 12680.91266 | H67: 0.1329769324 | I67: 1686.268865
A68: 58 | C68: BIRCH CREEK UNIT 126 FR | D68: FRONTIER | E68: 1.672541815 | F68: 11368.776 | G68: 19014.75325 | H68: 0.1329769324 | I68: 2528.523557
A69: 59 | C69: BIRCH CREEK UNIT 127 BR | D69: DAKOTA | E69: 1.672541815 | F69: 6056.859 | G69: 10130.34995 | H69: 0.1329769324 | I69: 1347.10286
A70: 60 | C70: BIRCH CREEK UNIT 127 FR | D70: FRONTIER | E70: 1.672541815 | F70: 1518.97 | G70: 2540.540841 | H70: 0.1329769324 | I70: 337.8333277
A71: 61 | C71: BIRCH CREEK UNIT 128 FR | D71: FRONTIER | E71: 1.672541815 | F71: 24098.965 | G71: 40306.52666 | H71: 0.1329769324 | I71: 5359.838272
A72: 62 | C72: BIRCH CREEK UNIT 129 BR | D72: BEAR RIVER | E72: 1.672541815 | F72: 535.991 | G72: 896.46736 | H72: 0.1329769324 | I72: 119.2094795
A73: 63 | C73: BIRCH CREEK UNIT 129 FR | D73: FRONTIER | E73: 1.672541815 | F73: 10202.692 | G73: 17064.429 | H73: 0.1329769324 | I73: 2269.175421
A74: 64 | C74: BIRCH CREEK UNIT 130 BR | D74: BEAR RIVER | E74: 1.672541815 | F74: 10342.473 | G74: 17298.21856 | H74: 0.1329769324 | I74: 2300.264041
A75: 65 | C75: BIRCH CREEK UNIT 130 FR | D75: FRONTIER | E75: 1.672541815 | F75: 12640.457 | G75: 21141.6929 | H75: 0.1329769324 | I75: 2811.357467
A76: 66 | C76: BIRCH CREEK UNIT 131 FR | D76: FRONTIER | E76: 1.672541815 | F76: 16106.008 | G76: 26937.97186 | H76: 0.1329769324 | I76: 3582.128863
A77: 67 | C77: BIRCH CREEK UNIT 132 BR | D77: BEAR RIVER | E77: 1.672541815 | F77: 2560.19 | G77: 4282.02483 | H77: 0.1329769324 | I77: 569.4105264
A78: 68 | C78: BIRCH CREEK UNIT 132 FR | D78: FRONTIER | E78: 1.672541815 | F78: 14447.018 | G78: 24163.24171 | H78: 0.1329769324 | I78: 3213.15376
A79: 69 | C79: BIRCH CREEK UNIT 133 BR | D79: BEAR RIVER | E79: 1.672541815 | F79: 5425.708 | G79: 9074.723507 | H79: 0.1329769324 | I79: 1206.728894
A80: 70 | C80: BIRCH CREEK UNIT 133 FR | D80: FRONTIER | E80: 1.672541815 | F80: 21713.121 | G80: 36316.10281 | H80: 0.1329769324 | I80: 4829.203949
A81: 71 | C81: BIRCH CREEK UNIT 134 BR | D81: BEAR RIVER | E81: 1.672541815 | F81: 13431.845 | G81: 22465.32242 | H81: 0.1329769324 | I81: 2987.369661
A82: 72 | C82: BIRCH CREEK UNIT 134 FR | D82: FRONTIER | E82: 1.672541815 | F82: 18553.11 | G82: 31030.85228 | H82: 0.1329769324 | I82: 4126.387546
A83: 73 | C83: BIRCH CREEK UNIT 135 BR | D83: BEAR RIVER | E83: 1.672541815 | F83: 1676.385 | G83: 2803.824011 | H83: 0.1329769324 | I83: 372.843916
A84: 74 | C84: BIRCH CREEK UNIT 135 FR | D84: FRONTIER | E84: 1.672541815 | F84: 2514.626 | G84: 4205.817134 | H84: 0.1329769324 | I84: 559.2766608
A85: 75 | C85: BIRCH CREEK UNIT 137 BR | D85: BEAR RIVER | E85: 1.672541815 | F85: 5228.004 | G85: 8744.0553 | H85: 0.1329769324 | I85: 1162.757651
A86: 76 | C86: BIRCH CREEK UNIT 137 FR | D86: FRONTIER | E86: 1.672541815 | F86: 8538.549 | G86: 14281.08024 | H86: 0.1329769324 | I86: 1899.054242
A87: 77 | C87: BIRCH CREEK UNIT 138 BR | D87: BEAR RIVER | E87: 1.672541815 | F87: 559.028 | G87: 934.9977058 | H87: 0.1329769324 | I87: 124.3331267
A88: 78 | C88: BIRCH CREEK UNIT 138 FR | D88: FRONTIER | E88: 1.672541815 | F88: 13453.42 | G88: 22501.40751 | H88: 0.1329769324 | I88: 2992.168145
A89: 79 | C89: BIRCH CREEK UNIT 139 BR | D89: BEAR RIVER | E89: 1.672541815 | F89: 7089.868 | G89: 11858.10069 | H89: 0.1329769324 | I89: 1576.853855
A90: 80 | C90: BIRCH CREEK UNIT 139 FR | D90: FRONTIER | E90: 1.672541815 | F90: 5087.53 | G90: 8509.106661 | H90: 0.1331519628 | I90: 1133.004253
A91: 81 | C91: BIRCH CREEK UNIT 13A BR | D91: BEAR RIVER | E91: 1.672541815 | F91: 7686.986 | G91: 12856.80552 | H91: 0.1329769324 | I91: 1709.658558
A92: 82 | C92: BIRCH CREEK UNIT 13A FR | D92: FRONTIER | E92: 1.672541815 | F92: 7679.493 | G92: 12844.27316 | H92: 0.1329769324 | I92: 1707.992044
A93: 83 | C93: BIRCH CREEK UNIT 140 BR | D93: BEAR RIVER | E93: 1.672541815 | F93: 3302.687 | G93: 5523.88211 | H93: 0.1329769324 | I93: 734.548898
A94: 84 | C94: BIRCH CREEK UNIT 140 FR | D94: FRONTIER | E94: 1.672541815 | F94: 18731.651 | G94: 31329.46956 | H94: 0.1329769324 | I94: 4166.096757
A95: 85 | C95: BIRCH CREEK UNIT 141 BR | D95: BEAR RIVER | E95: 1.672541815 | F95: 13533.391 | G95: 22635.16235 | H95: 0.1329769324 | I95: 3009.954454
A96: 86 | C96: BIRCH CREEK UNIT 141 FR | D96: FRONTIER | E96: 1.672541815 | F96: 4509.802 | G96: 7542.832423 | H96: 0.1329769324 | I96: 1003.022717
A97: 87 | C97: BIRCH CREEK UNIT 142 BR | D97: BEAR RIVER | E97: 1.672541815 | F97: 3009.341 | G97: 5033.248659 | H97: 0.1329769324 | I97: 669.3059667
A98: 88 | C98: BIRCH CREEK UNIT 142 FR | D98: FRONTIER | E98: 1.672541815 | F98: 7020.083 | G98: 11741.38236 | H98: 0.1329769324 | I98: 1561.333009
A99: 89 | C99: BIRCH CREEK UNIT 144 BR | D99: BEAR RIVER | E99: 1.672541815 | F99: 647.957 | G99: 1083.735177 | H99: 0.1329769324 | I99: 144.1117794
A100: 90 | C100: BIRCH CREEK UNIT 144 FR | D100: FRONTIER | E100: 1.672541815 | F100: 10140.531 | G100: 16960.46213 | H100: 0.1329769324 | I100: 2255.350226
A101: 91 | C101: BIRCH CREEK UNIT 145 BR | D101: BEAR RIVER | E101: 1.672541815 | F101: 1283.87 | G101: 2147.32626 | H101: 0.1329769324 | I101: 285.544859
A102: 92 | C102: BIRCH CREEK UNIT 145 FR | D102: FRONTIER | E102: 1.672541815 | F102: 9399.333 | G102: 15720.77748 | H102: 0.1329769324 | I102: 2090.500764
A103: 93 | C103: BIRCH CREEK UNIT 146 BR | D103: BEAR RIVER | E103: 1.672541815 | F103: 12650.063 | G103: 21157.75933 | H103: 0.1329769324 | I103: 2813.493933
A104: 94 | C104: BIRCH CREEK UNIT 146 FR | D104: FRONTIER | E104: 1.672541815 | F104: 4214.018 | G104: 7048.121315 | H104: 0.1329769324 | I104: 937.2375517
A105: 95 | C105: BIRCH CREEK UNIT 148 BR | D105: BEAR RIVER | E105: 1.672541815 | F105: 233.009 | G105: 389.7172958 | H105: 0.1329769324 | I105: 51.82341051
A106: 96 | C106: BIRCH CREEK UNIT 148 FR | D106: FRONTIER | E106: 1.672541815 | F106: 22845.097 | G106: 38209.38 | H106: 0.1329769324 | I106: 5080.966142
A107: 97 | C107: BIRCH CREEK UNIT 149 BR | D107: BEAR RIVER | E107: 1.672541815 | F107: 5190.209 | G107: 8680.841582 | H107: 0.1329769324 | I107: 1154.351684
A108: 98 | C108: BIRCH CREEK UNIT 149 FR | D108: FRONTIER | E108: 1.672541815 | F108: 18406.61 | G108: 30785.8249 | H108: 0.1329769324 | I108: 4093.804557
A109: 99 | C109: BIRCH CREEK UNIT 151 BR | D109: BEAR RIVER | E109: 1.672541815 | F109: 5368.359 | G109: 8978.804906 | H109: 0.1329769324 | I109: 1193.973933
A110: 100 | C110: BIRCH CREEK UNIT 151 FR | D110: FRONTIER | E110: 1.672541815 | F110: 7405.723 | G110: 12386.38139 | H110: 0.1329769324 | I110: 1647.103001
A111: 101 | C111: BIRCH CREEK UNIT 153 ALMY | D111: ALMY | E111: 1.672541815 | F111: 586.995 | G111: 981.7736828 | H111: 0.13375 | I111: 131.3122301
A112: 102 | C112: BIRCH CREEK UNIT 157 MESA | D112: MESAVERDE | E112: 1.672541815 | F112: 980.057 | G112: 1639.186314 | H112: 0.13375 | I112: 219.2411695
A113: 103 | C113: BIRCH CREEK UNIT 159 MESA | D113: MESAVERDE | E113: 1.672541815 | F113: 8786.685 | G113: 14696.09808 | H113: 0.13375 | I113: 1965.603118
A114: 104 | C114: BIRCH CREEK UNIT 164 FR | D114: FRONTIER | E114: 1.672541815 | F114: 18719.136 | G114: 31308.5377 | H114: 0.1329769324 | I114: 4163.313302
A115: 105 | C115: BIRCH CREEK UNIT 166 BR | D115: BEAR RIVER | E115: 1.672541815 | F115: 4801.545 | G115: 8030.78479 | H115: 0.1329769324 | I115: 1067.909126
A116: 106 | C116: BIRCH CREEK UNIT 166 FR | D116: FRONTIER | E116: 1.672541815 | F116: 1199.974 | G116: 2007.006692 | H116: 0.1329769324 | I116: 266.8855933
A117: 107 | C117: BIRCH CREEK UNIT 167 BR | D117: BEAR RIVER | E117: 1.672541815 | F117: 2070.068 | G117: 3462.27529 | H117: 0.1329769324 | I117: 460.4027473
A118: 108 | C118: BIRCH CREEK UNIT 167 FR | D118: FRONTIER | E118: 1.672541815 | F118: 8276.326 | G118: 13842.50131 | H118: 0.1329769324 | I118: 1840.733361
A119: 109 | C119: BIRCH CREEK UNIT 168 BR | D119: BEAR RIVER | E119: 1.672541815 | F119: 840.074 | G119: 1405.058893 | H119: 0.1329769324 | I119: 186.8404214
A120: 110 | C120: BIRCH CREEK UNIT 168 RECOM BAX | D120: BAXTER | E120: 1.672541815 | F120: 1429.274 | G120: 2390.52053 | H120: 0.13375 | I120: 319.7321209
A121: 111 | C121: BIRCH CREEK UNIT 168 RECOM FR | D121: FRONTIER | E121: 1.672541815 | F121: 3441.14 | G121: 5755.450542 | H121: 0.1329769324 | I121: 765.3421577
A122: 112 | C122: BIRCH CREEK UNIT 169 BR | D122: BEAR RIVER | E122: 1.672541815 | F122: 3206.765 | G122: 5363.448554 | H122: 0.1329769324 | I122: 713.2149359
A123: 113 | C123: BIRCH CREEK UNIT 169 FR | D123: FRONTIER | E123: 1.672541815 | F123: 12811.565 | G123: 21427.87818 | H123: 0.1329769324 | I123: 2849.413509
A124: 114 | C124: BIRCH CREEK UNIT 173 BR | D124: BEAR RIVER | E124: 1.672541815 | F124: 6140.498 | G124: 10270.23967 | H124: 0.1329769324 | I124: 1365.704967
A125: 115 | C125: BIRCH CREEK UNIT 173 FR | D125: FRONTIER | E125: 1.672541815 | F125: 17469.994 | G125: 29219.29548 | H125: 0.1329769324 | I125: 3885.49228
A126: 116 | C126: BIRCH CREEK UNIT 174 BR | D126: BEAR RIVER | E126: 1.672541815 | F126: 11510.581 | G126: 19251.92804 | H126: 0.1329769324 | I126: 2560.062334
A127: 117 | C127: BIRCH CREEK UNIT 174 FR | D127: FRONTIER | E127: 1.672541815 | F127: 11384.19 | G127: 19040.53381 | H127: 0.1329769324 | I127: 2531.951777
A128: 118 | C128: BIRCH CREEK UNIT 177 BR | D128: BEAR RIVER | E128: 1.672541815 | F128: 3455.056 | G128: 5778.725634 | H128: 0.1329769324 | I128: 768.437208
A129: 119 | C129: BIRCH CREEK UNIT 177 FR | D129: FRONTIER | E129: 1.672541815 | F129: 13831.907 | G129: 23134.44284 | H129: 0.1329769324 | I129: 3076.347242
A130: 120 | C130: BIRCH CREEK UNIT 178 BR | D130: BEAR RIVER | E130: 1.672541815 | F130: 5281.912 | G130: 8834.218684 | H130: 0.1329769324 | I130: 1174.747301
A131: 121 | C131: BIRCH CREEK UNIT 178 FR | D131: FRONTIER | E131: 1.672541815 | F131: 21135.384 | G131: 35349.81352 | H131: 0.1329769324 | I131: 4700.709763
A132: 122 | C132: BIRCH CREEK UNIT 179 BR | D132: BEAR RIVER | E132: 1.672541815 | F132: 4199.085 | G132: 7023.145248 | H132: 0.1329769324 | I132: 933.916311
A133: 123 | C133: BIRCH CREEK UNIT 179 FR | D133: FRONTIER | E133: 1.672541815 | F133: 2795.101 | G133: 4674.9233 | H133: 0.1329769324 | I133: 621.6569597
A134: 124 | C134: BIRCH CREEK UNIT 180 FR | D134: FRONTIER | E134: 1.672541815 | F134: 13180.422 | G134: 22044.80694 | H134: 0.1329769324 | I134: 2931.450802
A135: 125 | C135: BIRCH CREEK UNIT 181 BR | D135: BEAR RIVER | E135: 1.672541815 | F135: 3005.087 | G135: 5026.133666 | H135: 0.1329769324 | I135: 668.3598368
A136: 126 | C136: BIRCH CREEK UNIT 181 FR | D136: FRONTIER | E136: 1.672541815 | F136: 12001.528 | G136: 20073.05743 | H136: 0.1329769324 | I136: 2669.253601
A137: 127 | C137: BIRCH CREEK UNIT 182 BR | D137: BEAR RIVER | E137: 1.672541815 | F137: 3182.521 | G137: 5322.89945 | H137: 0.1329769324 | I137: 707.8228404
A138: 128 | C138: BIRCH CREEK UNIT 182 FR | D138: FRONTIER | E138: 1.672541815 | F138: 4765.574 | G138: 7970.621788 | H138: 0.1329769324 | I138: 1059.908835
A139: 129 | C139: BIRCH CREEK UNIT 183 BR | D139: BEAR RIVER | E139: 1.672541815 | F139: 8221.163 | G139: 13750.23889 | H139: 0.1329769324 | I139: 1828.464587
A140: 130 | C140: BIRCH CREEK UNIT 183 FR | D140: FRONTIER | E140: 1.672541815 | F140: 12327.831 | G140: 20618.81284 | H140: 0.1329769324 | I140: 2741.826481
A141: 131 | C141: BIRCH CREEK UNIT 184 BR | D141: BEAR RIVER | E141: 1.672541815 | F141: 1876.083 | G141: 3137.827266 | H141: 0.1329769324 | I141: 417.2586443
A142: 132 | C142: BIRCH CREEK UNIT 184 FR | D142: FRONTIER | E142: 1.672541815 | F142: 16911.053 | G142: 28284.44328 | H142: 0.1329769324 | I142: 3761.178503
A143: 133 | C143: BIRCH CREEK UNIT 185 BR | D143: BEAR RIVER | E143: 1.672541815 | F143: 5696.402 | G143: 9527.470541 | H143: 0.1329769324 | I143: 1266.933806
A144: 134 | C144: BIRCH CREEK UNIT 185 FR | D144: FRONTIER | E144: 1.672541815 | F144: 13284.344 | G144: 22218.62083 | H144: 0.1329769324 | I144: 2954.56404
A145: 135 | C145: BIRCH CREEK UNIT 187 BR | D145: BEAR RIVER | E145: 1.672541815 | F145: 7083.592 | G145: 11847.60382 | H145: 0.1329769324 | I145: 1575.458013
A146: 136 | C146: BIRCH CREEK UNIT 187 FR | D146: FRONTIER | E146: 1.672541815 | F146: 12597.601 | G146: 21070.01444 | H146: 0.1329769324 | I146: 2801.825887
A147: 137 | C147: BIRCH CREEK UNIT 188 FR | D147: FRONTIER | E147: 1.672541815 | F147: 19721.068 | G147: 32984.31087 | H147: 0.1329769324 | I147: 4386.152477
A148: 138 | C148: BIRCH CREEK UNIT 189 BR | D148: BEAR RIVER | E148: 1.672541815 | F148: 6990.281 | G148: 11691.53727 | H148: 0.1329769324 | I148: 1554.704762
A149: 139 | C149: BIRCH CREEK UNIT 189 FR | D149: FRONTIER | E149: 1.672541815 | F149: 10064.364 | G149: 16833.06963 | H149: 0.1329769324 | I149: 2238.409963
A150: 140 | C150: BIRCH CREEK UNIT 190 BR | D150: BEAR RIVER | E150: 1.672541815 | F150: 2322.15 | G150: 3883.892976 | H150: 0.1329769324 | I150: 516.4681738
A151: 141 | C151: BIRCH CREEK UNIT 190 FR | D151: FRONTIER | E151: 1.672541815 | F151: 20851.195 | G151: 34874.49553 | H151: 0.1329769324 | I151: 4637.503436
A152: 142 | C152: BIRCH CREEK UNIT 191 BR | D152: BEAR RIVER | E152: 1.672541815 | F152: 3117.896 | G152: 5214.811435 | H152: 0.1329769324 | I152: 693.4496278
A153: 143 | C153: BIRCH CREEK UNIT 191 FR | D153: FRONTIER | E153: 1.672541815 | F153: 13304.612 | G153: 22252.5199 | H153: 0.1329769324 | I153: 2959.071835
A154: 144 | C154: BIRCH CREEK UNIT 192 BR | D154: BEAR RIVER | E154: 1.672541815 | F154: 1562.145 | G154: 2612.752834 | H154: 0.1329769324 | I154: 347.435857
A155: 145 | C155: BIRCH CREEK UNIT 192 FR | D155: FRONTIER | E155: 1.672541815 | F155: 24468.723 | G155: 40924.96238 | H155: 0.1329769324 | I155: 5442.075957
A156: 146 | C156: BIRCH CREEK UNIT 193 BR | D156: BEAR RIVER | E156: 1.672541815 | F156: 876.049 | G156: 1465.228585 | H156: 0.1329769324 | I156: 194.8416025
A157: 147 | C157: BIRCH CREEK UNIT 193 FR | D157: FRONTIER | E157: 1.672541815 | F157: 16589.856 | G157: 27747.22787 | H157: 0.1329769324 | I157: 3689.741245
A158: 148 | C158: BIRCH CREEK UNIT 194 BR | D158: BEAR RIVER | E158: 1.672541815 | F158: 1502.159 | G158: 2512.42374 | H158: 0.1329769324 | I158: 334.0944019
A159: 149 | C159: BIRCH CREEK UNIT 194 FR | D159: FRONTIER | E159: 1.672541815 | F159: 23526.864 | G159: 39349.66382 | H159: 0.1329769324 | I159: 5232.597586
A160: 150 | C160: BIRCH CREEK UNIT 195 BR | D160: BEAR RIVER | E160: 1.672541815 | F160: 3537.362 | G160: 5916.38586 | H160: 0.1329769324 | I160: 786.7428427
A161: 151 | C161: BIRCH CREEK UNIT 195 FR | D161: FRONTIER | E161: 1.672541815 | F161: 25910.971 | G161: 43337.18247 | H161: 0.1329769324 | I161: 5762.845584
A162: 152 | C162: BIRCH CREEK UNIT 196 BR | D162: BEAR RIVER | E162: 1.672541815 | F162: 403.983 | G162: 675.6784601 | H162: 0.1329769324 | I162: 89.84964892
A163: 153 | C163: BIRCH CREEK UNIT 196 FR | D163: FRONTIER | E163: 1.672541815 | F163: 19644.337 | G163: 32855.97506 | H163: 0.1329769324 | I163: 4369.086775
A164: 154 | C164: BIRCH CREEK UNIT 198 BR | D164: BEAR RIVER | E164: 1.672541815 | F164: 3853.783 | G164: 6445.613214 | H164: 0.1329769324 | I164: 857.1178727
A165: 155 | C165: BIRCH CREEK UNIT 198 FR | D165: FRONTIER | E165: 1.672541815 | F165: 2266.937 | G165: 3791.546925 | H165: 0.1329769324 | I165: 504.1882792
A166: 156 | C166: BIRCH CREEK UNIT 199 BR | D166: BEAR RIVER | E166: 1.672541815 | F166: 1050.951 | G166: 1757.759493 | H166: 0.1329769324 | I166: 233.7414653
A167: 157 | C167: BIRCH CREEK UNIT 199 FR | D167: FRONTIER | E167: 1.672541815 | F167: 10629.297 | G167: 17777.9437 | H167: 0.1329769324 | I167: 2364.056418
A168: 158 | C168: BIRCH CREEK UNIT 2 BR | D168: BEAR RIVER | E168: 1.672541815 | F168: 4137.11 | G168: 6919.489469 | H168: 0.1329769324 | I168: 920.1324835
A169: 159 | C169: BIRCH CREEK UNIT 2 FR | D169: FRONTIER | E169: 1.672541815 | F169: 6753.615 | G169: 11295.70349 | H169: 0.1329769324 | I169: 1502.068
A170: 160 | C170: BIRCH CREEK UNIT 200 BR | D170: BEAR RIVER | E170: 1.672541815 | F170: 2609.076 | G170: 4363.788709 | H170: 0.1329769324 | I170: 580.2832362
A171: 161 | C171: BIRCH CREEK UNIT 200 FR | D171: FRONTIER | E171: 1.672541815 | F171: 7837.442 | G171: 13108.44947 | H171: 0.1329769324 | I171: 1743.121399
A172: 162 | C172: BIRCH CREEK UNIT 201-25 BR | D172: BEAR RIVER | E172: 1.672541815 | F172: 2594.438 | G172: 4339.306042 | H172: 0.1329769324 | I172: 577.0276063
A173: 163 | C173: BIRCH CREEK UNIT 201-25 FR | D173: FRONTIER | E173: 1.672541815 | F173: 6057.008 | G173: 10130.59915 | H173: 0.1329769324 | I173: 1347.135999
A174: 164 | C174: BIRCH CREEK UNIT 202-25 BR | D174: BEAR RIVER | E174: 1.672541815 | F174: 5003.778 | G174: 8369.027939 | H174: 0.1329769324 | I174: 1112.887663
A175: 165 | C175: BIRCH CREEK UNIT 202-25 FR | D175: FRONTIER | E175: 1.672541815 | F175: 11680.98 | G175: 19536.92749 | H175: 0.1329769324 | I175: 2597.960687
A176: 166 | C176: BIRCH CREEK UNIT 203-25 BR | D176: BEAR RIVER | E176: 1.672541815 | F176: 6759.356 | G176: 11305.30555 | H176: 0.1329769324 | I176: 1503.344853
A177: 167 | C177: BIRCH CREEK UNIT 203-25 FR | D177: FRONTIER | E177: 1.672541815 | F177: 15775.619 | G177: 26385.38244 | H177: 0.1329769324 | I177: 3508.647217
A178: 168 | C178: BIRCH CREEK UNIT 26 FR | D178: FRONTIER | E178: 1.672541815 | F178: 8100.245 | G178: 13547.99848 | H178: 0.1329769324 | I178: 1801.571278
A179: 169 | C179: BIRCH CREEK UNIT 3 FFR | D179: 1ST FRONTIER | E179: 1.672541815 | F179: 16240.179 | G179: 27162.37846 | H179: 0.1329769324 | I179: 3611.969765
A180: 170 | C180: BIRCH CREEK UNIT 36 ALMY | D180: ALMY | E180: 1.672541815 | F180: 1289.095 | G180: 2156.065291 | H180: 0.13375 | I180: 288.3737327
A181: 171 | C181: BIRCH CREEK UNIT 38 ALMY | D181: ALMY | E181: 1.672541815 | F181: 3985.357 | G181: 6665.676231 | H181: 0.13375 | I181: 891.5341959
A182: 172 | C182: BIRCH CREEK UNIT 43A BR | D182: BEAR RIVER | E182: 1.672541815 | F182: 1106.938 | G182: 1851.400092 | H182: 0.1329769324 | I182: 246.1935049
A183: 173 | C183: BIRCH CREEK UNIT 43A FR | D183: FRONTIER | E183: 1.672541815 | F183: 9952.233 | G183: 16645.52585 | H183: 0.1329769324 | I183: 2213.470966
A184: 174 | C184: BIRCH CREEK UNIT 5 2ND FR | D184: FRONTIER | E184: 1.672541815 | F184: 2224.197 | G184: 3720.062488 | H184: 0.1329769324 | I184: 494.682498
A185: 175 | C185: BIRCH CREEK UNIT 5 FR | D185: FORT UNION | E185: 1.672541815 | F185: 2411.159 | G185: 4032.76425 | H185: 0.1329769324 | I185: 536.2646192
A186: 176 | C186: BIRCH CREEK UNIT 56 2ND FR | D186: FRONTIER | E186: 1.672541815 | F186: 4521.942 | G186: 7563.137081 | H186: 0.1329769324 | I186: 1005.722768
A187: 177 | C187: BIRCH CREEK UNIT 6 FR | D187: FRONTIER | E187: 1.672541815 | F187: 10941.706 | G187: 18300.46081 | H187: 0.1329769324 | I187: 2433.539141
A188: 178 | C188: BIRCH CREEK UNIT 61 BR | D188: BEAR RIVER | E188: 1.672541815 | F188: 1964.95 | G188: 3286.46104 | H188: 0.1329769324 | I188: 437.0235076
A189: 179 | C189: BIRCH CREEK UNIT 61 FR | D189: FRONTIER | E189: 1.672541815 | F189: 7835.897 | G189: 13105.86539 | H189: 0.1329769324 | I189: 1742.777776
A190: 180 | C190: BIRCH CREEK UNIT 69 MESA | D190: MESAVERDE | E190: 1.672541815 | F190: 97.992 | G190: 163.8957175 | H190: 0.1337500665 | I190: 21.92106312
A191: 181 | C191: BIRCH CREEK UNIT 7 FR | D191: FRONTIER | E191: 1.672541815 | F191: 5389.097 | G191: 9013.490078 | H191: 0.1329769324 | I191: 1198.586261
A192: 182 | C192: BIRCH CREEK UNIT 8 FR | D192: FRONTIER | E192: 1.672541815 | F192: 17119.434 | G192: 28632.96922 | H192: 0.1329769324 | I192: 3807.524412
A193: 183 | C193: BIRCH CREEK UNIT 87 2ND FR | D193: FRONTIER | E193: 1.672541815 | F193: 9447.151 | G193: 15800.75508 | H193: 0.1329769324 | I193: 2101.135941
A194: 184 | C194: BIRCH CREEK UNIT 87 BR | D194: BEAR RIVER | E194: 1.672541815 | F194: 1038.088 | G194: 1736.245588 | H194: 0.1329769324 | I194: 230.8806122
A195: 185 | C195: BIRCH CREEK UNIT 87 BR RECOMP | D195: BEAR RIVER | E195: 1.672541815 | F195: 2421.319 | G195: 4049.757275 | H195: 0.1329769324 | I195: 538.5242995
A196: 186 | C196: BIRCH CREEK UNIT 87 FR | D196: FRONTIER | E196: 1.672541815 | F196: 4047.083 | G196: 6768.915547 | H196: 0.1329769324 | I196: 900.1096252
A197: 187 | C197: BIRCH CREEK UNIT 91 BR | D197: BEAR RIVER | E197: 1.672541815 | F197: 1514.944 | G197: 2533.807188 | H197: 0.1329769324 | I197: 336.9379071
A198: 188 | C198: BIRCH CREEK UNIT 91 FR | D198: FRONTIER | E198: 1.672541815 | F198: 13631.502 | G198: 22799.2571 | H198: 0.1329769324 | I198: 3031.77527
A199: 189 | C199: BIRCH CREEK UNIT 92 BR | D199: BEAR RIVER | E199: 1.672541815 | F199: 3253.847 | G199: 5442.195168 | H199: 0.1329769324 | I199: 723.686419
A200: 190 | C200: BIRCH CREEK UNIT 92 FR | D200: FRONTIER | E200: 1.672541815 | F200: 9997.015 | G200: 16720.42561 | H200: 0.1329769324 | I200: 2223.430907
A201: 191 | C201: BIRCH CREEK UNIT 931 BR | D201: BEAR RIVER | E201: 1.672541815 | F201: 2180.996 | G201: 3647.807009 | H201: 0.1329769324 | I201: 485.0741861
A202: 192 | C202: BIRCH CREEK UNIT 931 FR | D202: FRONTIER | E202: 1.672541815 | F202: 16777.513 | G202: 28061.09205 | H202: 0.1329769324 | I202: 3731.477941
A203: 193 | C203: BIRCH CREEK UNIT 94 BR | D203: BEAR RIVER | E203: 1.672541815 | F203: 107.001 | G203: 178.9636468 | H203: 0.1329769324 | I203: 23.79803676
A204: 194 | C204: BIRCH CREEK UNIT 94 FR | D204: FRONTIER | E204: 1.672541815 | F204: 15069.296 | G204: 25204.02768 | H204: 0.1329769324 | I204: 3351.554286
... 1479 more rows

Sheet SDR#1
E1: ='Control Panel'!E32 -> Dominion Energy Utah
E2: ='Control Panel'!E33 -> Docket No. 20-057-07
B4: Standard Data Request #1
B5: Summary of Sources of Supply and Demand
A8: 1 | B8: DEMAND | C8: Total | D8: Utah | E8: Wyoming
A10: =A8+1 -> 2 | B10: SALES IN DTHS | C10: =D10+E10 -> 115377012 | D10: =Calculations!P20 -> 111446782 | E10: =Calculations!P39 -> 3930230
A11: =A10+1 -> 3 | B11: DIST. CO. USE & | C11: 0
A12: =A11+1 -> 4 | B12: DIST. LOST & UNACCT. (0.49%) | C12: =Calculations!P148 -> 521543
A15: =A12+1 -> 5 | B15: TOTAL | C15: =SUM(C10:C12) -> 115898555
A19: =A15+1 -> 6 | B19: SUPPLY | C19: Total | D19: Utah | E19: Wyoming
A21: =A19+1 -> 7 | B21: COMPANY PRODUCTION | C21: ='Royalty Detail'!F1437+'Royalty Detail'!F1693 -> 58049957 | D21: =$D$10/$C$10*C21 -> 56072529.45 | E21: =$E$10/$C$10*C21 -> 1977427.553
A22: =A21+1 -> 8 | B22: GAS REIMBURSEMENT | C22: =C21*-'Other Inputs'!$E$272 -> -2154872.454 | D22: =D21*-'Other Inputs'!$E$272 -> -2081468.366 | E22: =E21*-'Other Inputs'!$E$272 -> -73404.08819
A25: =A22+1 -> 9 | B25: CONTRACT GAS | C25: ='Ut 1.2 p4'!F24 -> 62163073 | D25: =$D$10/$C$10*C25 -> 60045535.28 | E25: =$E$10/$C$10*C25 -> 2117537.715
A26: =A25+1 -> 10 | B26: GAS REIMBURSEMENT | C26: =C25*-'Other Inputs'!$E$271 -> -975960.2461 | D26: =D25*-'Other Inputs'!$E$271 -> -942714.904 | E26: =E25*-'Other Inputs'!$E$271 -> -33245.34213
A28: =A26+1 -> 11 | B28: STORAGE
A29: =A28+1 -> 12 | B29: INJECTIONS | C29: ='Ut 1.2 p5'!G18 -> -16167064 | D29: =$D$10/$C$10*C29 -> -15616345.28 | E29: =$E$10/$C$10*C29 -> -550718.7163
A30: =A29+1 -> 13 | B30: WITHDRAWALS | C30: ='Ut 1.2 p5'!G17 -> 15843240 | D30: =$D$10/$C$10*C30 -> 15303552.1 | E30: =$E$10/$C$10*C30 -> 539687.8985
A31: =A30+1 -> 14 | B31: NET (INJECTIONS) WITHDRAWALS | C31: =C29+C30 -> -323824 | D31: =D29+D30 -> -312793.1822 | E31: =E29+E30 -> -11030.81782
A33: =A31+1 -> 15 | B33: Storage Fuel | C33: =Calculations!P165+Calculations!P166-1 -> -859819.7113 | D33: =D10/C10*C33 -> -830530.608 | E33: =E10/C10*C33 -> -29289.10331
A36: =A33+1 -> 16 | B36: TOTAL SUPPLY | C36: =C21+C22+C25+C26+C29+C30+C33 -> 115898553.6 | D36: =SUM(D21:D30)+D33 -> 111950557.7 | E36: =SUM(E21:E30)+E33 -> 3947995.917
A38: =A36+1 -> 17 | B38: Company Use & Loss % | C38: =(+C36-C10)/C36 -> 0.004499983586 | D38: =(+D36-D10)/D36 -> 0.004499983586 | E38: =(+E36-E10)/E36 -> 0.004499983586
B41: Difference | C41: =C15-C36 -> 1.411196992

Sheet SDR#2
H1: ='Control Panel'!E32 -> Dominion Energy Utah
H2: ='Control Panel'!E33 -> Docket No. 20-057-07
A5: Standard Data Request #2
A6: Supplier Non-Gas Costs
B8: (A) | C8: (B) | D8: (C) | E8: (D) | F8: (E) | G8: (F) | T8: withdraw
A9: I. Transportation (QPC T-1) | C9: Volume (Dth) | G9: Utah Total | J9: Utah gas | K9: Utah Co. | L9: Utah gas | M9: Wyo gas | N9: Wyo Co. | O9: Wyo gas | Q9: @city gate | R9: @city gate | T9: loss | U9: Kern River
B10: Month | C10: Utah | D10: Wyoming | E10: $/dth | F10: Demand | G10: b*d+e*(Ut %) | J10: purchased | K10: production | L10: withdrawn | M10: purchased | N10: production | O10: withdrawn | P10: Total | Q10: purchased | R10: co production | S10: withdrawls | T10: =-Calculations!P165/Calculations!P137 -> 0.02924434085 | U10: Transportation
B12: Jun20 | C12: =J12+K12+L12-(T12+$B$49*U12)*$J$39 -> 5551700.934 | D12: =M12+N12+O12-(T12+$B$49*U12)*$K$39 -> 195783.6841 | E12: ='Other Inputs'!$F$40 -> 0.00267 | F12: =('Other Inputs'!$D$28)*('Other Inputs'!$F$28)-('Other Inputs'!$E$276/12)+('Other Inputs'!$D$35*'Other Inputs'!$F$35) -> 4003719.898 | G12: =(+C12)*E12+F12*$J$33/$L$33 -> 3896476.439 | J12: =Q12*$J$39 -> 1696540.836 | K12: =R12*$J$39 -> 4531382.392 | L12: =S12*$J$39 -> 0 | M12: =Q12-J12 -> 59829.41427 | N12: =R12-K12 -> 159801.6084 | O12: =S12-L12 -> 0 | P12: =SUM(J12:O12)-U12 -> 5401004.25 | Q12: =Calculations!D169 -> 1756370.25 | R12: =Calculations!D161 -> 4691184 | S12: =Calculations!D163+Calculations!D164 -> 0 | T12: =S12*$T$10 -> 0 | U12: =V12*W12 -> 1046550 | V12: 34885 | W12: 30 | X12: =B12 -> Jun20 | Y12: 6
B13: Jul20 | C13: 4045622.197 | D13: 142671.017 | E13: ='Other Inputs'!$F$40 -> 0.00267 | F13: =('Other Inputs'!$D$28)*('Other Inputs'!$F$28)-('Other Inputs'!$E$276/12)+('Other Inputs'!$D$35*'Other Inputs'!$F$35) -> 4003719.898 | G13: =(+C13)*E13+F13*$J$33/$L$33 -> 3892455.209 | J13: =Q13*$J$39 -> 134551.4709 | K13: =R13*$J$39 -> 4609833.762 | L13: 0 | M13: 4745.029133 | N13: 162568.2377 | O13: 0 | P13: =SUM(J13:O13)-U13 -> 3830263.5 | Q13: =Calculations!E169 -> 139296.5 | R13: =Calculations!E161 -> 4772402 | S13: =Calculations!E163+Calculations!E164 -> 0 | T13: =S13*$T$10 -> 0 | U13: =V13*W13 -> 1081435 | V13: 34885 | W13: 31 | X13: =B13 -> Jul20 | Y13: 7
B14: Aug20 | C14: 3999983.905 | D14: 141061.5584 | E14: ='Other Inputs'!$F$40 -> 0.00267 | F14: =('Other Inputs'!$D$28)*('Other Inputs'!$F$28)-('Other Inputs'!$E$276/12)+('Other Inputs'!$D$35*'Other Inputs'!$F$35) -> 4003719.898 | G14: =(+C14)*E14+F14*$J$33/$L$33 -> 3892333.354 | J14: =Q14*$J$39 -> 48947.58732 | K14: 4649799.354 | L14: 0 | M14: 1726.162682 | N14: 163977.6456 | O14: 0 | P14: 3783015.75 | Q14: =Calculations!F169 -> 50673.75 | R14: =Calculations!F161 -> 4813777 | S14: =Calculations!F163+Calculations!F164 -> 0 | T14: =S14*$T$10 -> 0 | U14: 1081435 | V14: 34885 | W14: 31 | X14: Aug20 | Y14: 8
B15: Sep20 | C15: 4925994.974 | D15: 173717.8309 | E15: ='Other Inputs'!$F$40 -> 0.00267 | F15: =('Other Inputs'!$D$28)*('Other Inputs'!$F$28)-('Other Inputs'!$E$276/12)+('Other Inputs'!$D$35*'Other Inputs'!$F$35) -> 4003719.898 | G15: 3894805.804 | J15: =Q15*$J$39 -> 1127975.772 | K15: 4474241.496 | L15: 0 | M15: 39778.6651 | N15: 157786.5044 | O15: 0 | P15: 4753232.437 | Q15: =Calculations!G169 -> 1167754.437 | R15: =Calculations!G161 -> 4632028 | S15: =Calculations!G163+Calculations!G164 -> 0 | T15: 0 | U15: 1046550 | V15: 34885 | W15: 30 | X15: Sep20 | Y15: 9
B16: Oct20 | C16: 8638025.478 | D16: 304624.5595 | E16: ='Other Inputs'!$F$40 -> 0.00267 | F16: =('Other Inputs'!$D$28)*('Other Inputs'!$F$28)-('Other Inputs'!$E$276/12)+('Other Inputs'!$D$35*'Other Inputs'!$F$35) -> 4003719.898 | G16: 3904716.925 | J16: 4511065.211 | K16: 4825723.303 | L16: 0 | M16: 159085.1123 | N16: 170181.6971 | O16: 0 | P16: 8584620.323 | Q16: =Calculations!H169 -> 4670150.323 | R16: =Calculations!H161 -> 4995905 | S16: =Calculations!H163+Calculations!H164 -> 0 | T16: 0 | U16: 1081435 | V16: 34885 | W16: 31 | X16: Oct20 | Y16: 10
B17: Nov20 | C17: 9442310.967 | D17: 332988.1147 | E17: ='Other Inputs'!$F$40 -> 0.00267 | F17: =('Other Inputs'!$D$28)*('Other Inputs'!$F$28)-('Other Inputs'!$E$276/12)+('Other Inputs'!$D$35*'Other Inputs'!$F$35) -> 4003719.898 | G17: 3906864.368 | J17: 6698341.738 | K17: 4568311.082 | L17: 474660.8334 | M17: 236220.5815 | N17: 161103.9183 | O17: 16739.16657 | P17: 8618827.32 | Q17: =Calculations!I169 -> 6934562.32 | R17: =Calculations!I161 -> 4729415 | S17: =Calculations!I163+Calculations!I164 -> 491400 | T17: =S17*$T$10 -> 14370.6691 | U17: 3536550 | V17: 117885 | W17: 30 | X17: Nov20 | Y17: 11
B18: Dec20 | C18: 15286282.85 | D18: 539078.8892 | E18: ='Other Inputs'!$F$40 -> 0.00267 | F18: =('Other Inputs'!$D$28)*('Other Inputs'!$F$28)-('Other Inputs'!$E$276/12)+('Other Inputs'!$D$35*'Other Inputs'!$F$35) -> 4003719.898 | G18: =(+C18)*E18+F18*$J$33/$L$33 -> 3922467.773 | J18: 9550617.227 | K18: 4735570.586 | L18: 4513431.441 | M18: 336807.5926 | N18: 167002.4136 | O18: 159168.5586 | P18: 14229487.82 | Q18: =Calculations!J169 -> 9887424.82 | R18: =Calculations!J161 -> 4902573 | S18: =Calculations!J163+Calculations!J164 -> 4672600 | T18: 136647.1071 | U18: 5233110 | V18: 168810 | W18: 31 | X18: Dec20 | Y18: 12
B19: Jan21 | C19: 16809004.13 | D19: 592778.4646 | E19: ='Other Inputs'!$F$40 -> 0.00267 | F19: =('Other Inputs'!$D$28)*('Other Inputs'!$F$28)-('Other Inputs'!$E$276/12)+('Other Inputs'!$D$35*'Other Inputs'!$F$35) -> 4003719.898 | G19: 3926533.438 | J19: 11644982.11 | K19: 4647710.035 | L19: 4015074.272 | M19: 410666.4831 | N19: 163903.9646 | O19: 141593.7282 | P19: 15790820.59 | Q19: =Calculations!K169 -> 12055648.59 | R19: =Calculations!K161 -> 4811614 | S19: =Calculations!K163+Calculations!K164 -> 4156668 | T19: 121559.0158 | U19: 5233110 | V19: 168810 | W19: 31 | X19: Jan21 | Y19: 1
B20: Feb21 | C20: 13636853.91 | D20: 480910.9009 | E20: ='Other Inputs'!$F$40 -> 0.00267 | F20: =('Other Inputs'!$D$28)*('Other Inputs'!$F$28)-('Other Inputs'!$E$276/12)+('Other Inputs'!$D$35*'Other Inputs'!$F$35) -> 4003719.898 | G20: =(+C20)*E20+F20*$J$33/$L$33 -> 3918063.797 | J20: 9322453.487 | K20: 4044560.427 | L20: 3424092.556 | M20: 328761.277 | N20: 142633.5731 | O20: 120752.4439 | P20: 12656573.76 | Q20: =Calculations!L169 -> 9651214.764 | R20: =Calculations!L161 -> 4187194 | S20: =Calculations!L163+Calculations!L164 -> 3544845 | T20: 103666.6555 | U20: 4726680 | V20: 168810 | W20: 28 | X20: Feb21 | Y20: 2
B21: Mar21 | C21: 10762836.65 | D21: 379557.1548 | E21: ='Other Inputs'!$F$40 -> 0.00267 | F21: =('Other Inputs'!$D$28)*('Other Inputs'!$F$28)-('Other Inputs'!$E$276/12)+('Other Inputs'!$D$35*'Other Inputs'!$F$35) -> 4003719.898 | G21: =(+C21)*E21+F21*$J$33/$L$33 -> 3910390.171 | J21: 5922149.218 | K21: 4409801.989 | L21: 2876292.999 | M21: 208847.7397 | N21: 155514.0109 | O21: 101434.0013 | P21: 10019604.96 | Q21: =Calculations!M169 -> 6130996.958 | R21: =Calculations!M161 -> 4565316 | S21: =Calculations!M163+Calculations!M164 -> 2977727 | T21: 87081.66336 | U21: 3654435 | V21: 117885 | W21: 31 | X21: Mar21 | Y21: 3
B22: Apr21 | C22: 8307509.626 | D22: 292968.7423 | E22: ='Other Inputs'!$F$40 -> 0.00267 | F22: =('Other Inputs'!$D$28)*('Other Inputs'!$F$28)-('Other Inputs'!$E$276/12)+('Other Inputs'!$D$35*'Other Inputs'!$F$35) -> 4003719.898 | G22: =(+C22)*E22+F22*$J$33/$L$33 -> 3903834.448 | J22: 4777753.001 | K22: 4205978.918 | L22: 0 | M22: 168489.9989 | N22: 148326.082 | O22: 0 | P22: 8253998 | Q22: =Calculations!N169 -> 4946243 | R22: =Calculations!N161 -> 4354305 | S22: =Calculations!N163+Calculations!N164 -> 0 | T22: 0 | U22: 1046550 | V22: 34885 | W22: 30 | X22: Apr21 | Y22: 4
B23: May21 | C23: 7256827.824 | D23: 255915.8901 | E23: ='Other Inputs'!$F$40 -> 0.00267 | F23: =('Other Inputs'!$D$28)*('Other Inputs'!$F$28)-('Other Inputs'!$E$276/12)+('Other Inputs'!$D$35*'Other Inputs'!$F$35) -> 4003719.898 | G23: =(+C23)*E23+F23*$J$33/$L$33 -> 3901029.128 | J23: 3667442.685 | K23: 4288148.175 | L23: 0 | M23: 129334.3155 | N23: 151223.8245 | O23: 0 | P23: 7154714 | Q23: =Calculations!O169 -> 3796777 | R23: =Calculations!O161 -> 4439372 | S23: =Calculations!O163+Calculations!O164 -> 0 | T23: 0 | U23: 1081435 | V23: 34885 | W23: 31 | X23: May21 | Y23: 5
C26: =SUM(C12:C23) -> 108662953.4 | D26: =SUM(D12:D23) -> 3832056.807 | G26: =SUM(G12:G23) -> 46869970.85 | J26: =SUM(J12:J25) -> 59102820.34 | K26: 53991061.52 | L26: 15303552.1 | M26: 2084292.372 | N26: 1904023.48 | O26: 539687.8985 | P26: =SUM(P12:P23) -> 103076162.7 | Q26: 61187112.71 | R26: 55895085 | S26: 15843240 | T26: 463325.1108 | U26: 29849275
C29: Months | F29: System | G29: Utah | J29: Allocation Factors
C30: or Days | D30: Dth | E30: Rate | F30: Total | G30: Total
J31: Peak Demand Allocation Base
A32: II. Transportation (ML 104 demand) | C32: ='Other Inputs'!E29 -> 12 | D32: ='Other Inputs'!D29 -> 30000 | E32: ='Other Inputs'!F29 -> 5.28804 | F32: =C32*D32*E32 -> 1903694.4 | G32: =F32*J34 -> 1845654.047 | J32: Utah | K32: Wyo | L32: Total
J33: ='Other Inputs'!E142 -> 1189810 | K33: ='Other Inputs'!E143 -> 37416 | L33: =J33+K33 -> 1227226
A34: III. Transportation (TL 112 demand) | C34: ='Other Inputs'!E30 -> 12 | D34: ='Other Inputs'!D30 -> 12000 | E34: ='Other Inputs'!F30 -> 5.28804 | F34: =C34*D34*E34 -> 761477.76 | G34: =F34*J34 -> 738261.619 | J34: =J33/L33 -> 0.9695117281 | K34: =K33/L33 -> 0.03048827192
C35: ='Other Inputs'!E31 -> 5 | D35: ='Other Inputs'!D31 -> 75000 | E35: ='Other Inputs'!F31 -> 6.80887 | F35: =C35*D35*E35 -> 2553326.25 | G35: =F35*J34 -> 2475479.745
J36: Dth Sales Allocation Base
A37: III. Transportation (Hyrum) | C37: =+'Other Inputs'!E32 -> 12 | D37: ='Other Inputs'!D32 -> 100000 | E37: ='Other Inputs'!F32 -> 5.28804 | F37: =C37*D37*E37 -> 6345648 | G37: =F37*J34 -> 6152180.158 | J37: Utah | K37: Wyo | L37: Total
J38: =Calculations!P20 -> 111446782 | K38: =Calculations!P39 -> 3930230 | L38: =J38+K38 -> 115377012
A39: IV. Transportation (KR 2003 Expansion) | C39: ='Other Inputs'!E55 -> 12 | D39: ='Other Inputs'!D55 -> 33000 | E39: ='Other Inputs'!F55 -> 3.172933333 | F39: =C39*D39*E39 -> 1256481.6 | J39: =J38/L38 -> 0.965935762 | K39: =K38/L38 -> 0.03406423803
C40: ='Other Inputs'!E56 -> 5 | D40: ='Other Inputs'!D56 -> 50000 | E40: ='Other Inputs'!F56 -> 3.172933333 | F40: =C40*D40*E40 -> 793233.3333 | G40: =(F39+F40+F41+F42)*J34 -> 2182852.219
C41: ='Other Inputs'!E57 -> 4 | D41: ='Other Inputs'!D57 -> 1885 | E41: ='Other Inputs'!F57 -> 15.83255 | F41: =C41*D41*E41 -> 119377.427
C42: ='Other Inputs'!E59 -> 8 | D42: ='Other Inputs'!D59 -> 1885 | E42: ='Other Inputs'!F59 -> 5.4644625 | F42: =C42*D42*E42 -> 82404.0945
A44: V. Transportation (KR #20024) | C44: =+'Other Inputs'!E66 -> 5 | D44: =+'Other Inputs'!D66 -> 27000 | E44: =+'Other Inputs'!F66 -> 8.758 | F44: =C44*D44*E44 -> 1182330 | G44: =F44*J34 -> 1146282.801
A46: VI. Transportation (KR #20017) | C46: =+'Other Inputs'!E62 -> 3 | D46: =+'Other Inputs'!D62 -> 56925 | E46: =+'Other Inputs'!F62 -> 8.7 | F46: =C46*D46*E46 -> 1485742.5 | G46: =F46*J34 -> 1440444.779
C47: =+'Other Inputs'!E64 -> 2 | D47: =+'Other Inputs'!D64 -> 6000 | E47: =+'Other Inputs'!F64 -> 8.845 | F47: =C47*D47*E47 -> 106140 | G47: =F47*J34 -> 102903.9748
A49: VIII. Trans (KR 2003 Expansion) | B49: ='Other Inputs'!C71 -> 0.6689308985 | C49: ='Other Inputs'!E70 -> 365 | D49: ='Other Inputs'!D70 -> 34885 | E49: ='Other Inputs'!F70 -> 0.0044 | F49: =B49*C49*D49*E49 -> 37477.06096
B50: ='Other Inputs'!C70 -> 0.6689308985 | C50: ='Other Inputs'!E71 -> 151 | D50: ='Other Inputs'!D71 -> 50000 | E50: ='Other Inputs'!F71 -> 0.0044 | F50: =B50*C50*D50*E50 -> 22221.88445 | G50: =(F49+F50)*J39 -> 57665.34632
A52: IX. Transportation (KR #20024) | B52: =+'Other Inputs'!C77 -> 0.6689308985 | C52: =+'Other Inputs'!E77 -> 151 | D52: =+'Other Inputs'!D77 -> 27000 | E52: =+'Other Inputs'!F77 -> 0.0044 | F52: =B52*C52*D52*E52 -> 11999.8176 | G52: =+F52*J39 -> 11591.05296
A54: X. Trans (KR #20017) | B54: =+'Other Inputs'!C74 -> 0.6689308985 | C54: =+'Other Inputs'!E74 -> 90 | D54: =+'Other Inputs'!D74 -> 56925 | E54: =+'Other Inputs'!F74 -> 0.0044 | F54: =B54*C54*D54*E54 -> 15079.24099
B55: =+'Other Inputs'!C75 -> 0.6689308985 | C55: =+'Other Inputs'!E75 -> 61 | D55: =+'Other Inputs'!D75 -> 6000 | E55: =+'Other Inputs'!F75 -> 0.0044 | F55: =B55*C55*D55*E55 -> 1077.246319 | G55: =(F54+F55)*J39 -> 15606.12888
A57: XII. Other Trans | F57: ='Other Inputs'!$D$179 -> 3873365.433 | G57: =F57*$J$39 -> 3741422.191
A59: Storage Commodity | F59: =+'Ut 1.4 p2'!J29 -> 494160 | G59: =+F59*J39 -> 477326.8161
A60: Total ACA | D60: =+'Ut 1.4 p1'!F39 -> 132462112.6 | E60: =+'Ut 1.4 p1'!J39 -> 0.0013 | F60: =+D60*E60 -> 172200.7464 | G60: =+F60*J39 -> 166334.8592
A62: XIV. Storage Demand | C62: 12 | D62: ='Other Inputs'!E164 -> 184625 | E62: ='Other Inputs'!E14 -> 2.87375 | F62: =C62*D62*E62 -> 6366793.125
C63: 10 | D63: =+'Other Inputs'!E165 -> 2500000 | E63: =+'Other Inputs'!E15 -> 0.09 | F63: =C63*D63*E63 -> 2250000
C64: 12 | D64: ='Other Inputs'!E166 -> 111827 | E64: ='Other Inputs'!E16 -> 2.85338 | F64: =C64*D64*E64 -> 3829019.103
C65: 12 | D65: ='Other Inputs'!E167 -> 13419000 | E65: ='Other Inputs'!E17 -> 0.02378 | F65: =C65*D65*E65 -> 3829245.84 | G65: =SUM(F62:F65)*J34 -> 15778859.67
A67: XV. Peak Hour Service | C67: =+'Other Inputs'!E20 -> 3 | D67: =+'Other Inputs'!D20 -> 28752 | E67: =+'Other Inputs'!F20 -> 11.65333333 | F67: =C67*D67*E67 -> 1005169.92 | G67: =F67*J34 -> 974524.0261
C68: =+'Other Inputs'!E23 -> 3 | D68: =+'Other Inputs'!D23 -> 63666.66667 | E68: =+'Other Inputs'!F23 -> 7.35747644 | F68: =C68*D68*E68 -> 1405278 | G68: =F68*J34 -> 1362433.502
A71: Total Supplier Non-Gas Costs | G71: =G26+G32+G34+G35+G40+G50+G57+G65++G44+G46+G47+G52+G55+G67+G68+G59+G60+G37 -> 85539793.79

Sheet SDR#3
I1: ='Control Panel'!E32 -> Dominion Energy Utah
I2: ='Control Panel'!E33 -> Docket No. 20-057-07
C5: Standard Data Request #3
C6: Monthly Forecasted Sales
D8: Utah Sales | F8: Wyoming Sales | H8: System Total
C9: Month | D9: Dth | F9: Dth | H9: Dth
B11: 1 | C11: =Calculations!D141 -> Jun20 | D11: =Calculations!D20 -> 3189223 | F11: =Calculations!D39 -> 125574 | H11: =SUM(D11:F11) -> 3314797
B13: =B11+1 -> 2 | C13: =Calculations!E141 -> Jul20 | D13: =Calculations!E20 -> 2503591 | F13: =Calculations!E39 -> 76358 | H13: =SUM(D13:F13) -> 2579949
B15: =B13+1 -> 3 | C15: =Calculations!F141 -> Aug20 | D15: =Calculations!F20 -> 2425135 | F15: =Calculations!F39 -> 71483 | H15: 2496618
B17: =B15+1 -> 4 | C17: =Calculations!G141 -> Sep20 | D17: =Calculations!G20 -> 2723164 | F17: =Calculations!G39 -> 108237 | H17: 2831401
B19: =B17+1 -> 5 | C19: =Calculations!H141 -> Oct20 | D19: =Calculations!H20 -> 6188409 | F19: =Calculations!H39 -> 254314 | H19: 6442723
B21: =B19+1 -> 6 | C21: =Calculations!I141 -> Nov20 | D21: =Calculations!I20 -> 11586140 | F21: =Calculations!I39 -> 429848 | H21: 12015988
B23: =B21+1 -> 7 | C23: =Calculations!J141 -> Dec20 | D23: =Calculations!J20 -> 18641370 | F23: =Calculations!J39 -> 596457 | H23: 19237827
B25: =B23+1 -> 8 | C25: =Calculations!K141 -> Jan21 | D25: =Calculations!K20 -> 20174020 | F25: =Calculations!K39 -> 632815 | H25: 20806835
B27: =B25+1 -> 9 | C27: =Calculations!L141 -> Feb21 | D27: =Calculations!L20 -> 16638871 | F27: =Calculations!L39 -> 563229 | H27: 17202100
B29: =B27+1 -> 10 | C29: =Calculations!M141 -> Mar21 | D29: =Calculations!M20 -> 13041169 | F29: =Calculations!M39 -> 480384 | H29: 13521553
B31: =B29+1 -> 11 | C31: =Calculations!N141 -> Apr21 | D31: =Calculations!N20 -> 8903179 | F31: =Calculations!N39 -> 355517 | H31: 9258696
B33: =B31+1 -> 12 | C33: =Calculations!O141 -> May21 | D33: =Calculations!O20 -> 5432511 | F33: =Calculations!O39 -> 236014 | H33: 5668525
B36: =B33+1 -> 13 | C36: Total Sales (Dth) | D36: =SUM(D11:D33) -> 111446782 | F36: =SUM(F11:F33) -> 3930230 | H36: =SUM(H11:H33) -> 115377012

Sheet Wy SDR#1 (hidden)
A1: Wyoming Standard Data Request #1
A2: Global Insights Forecast

Sheet SDR#4
H1: ='Control Panel'!E32 -> Dominion Energy Utah
H2: ='Control Panel'!E33 -> Docket No. 20-057-07
C5: Standard Data Request #4
C6: Supplier Non-Gas Costs Recovered at Current Rates
C9: (A) | D9: (B) | E9: (C) | F9: (D) | G9: (E)
B10: 1 | C10: Rate Schedule | D10: Season | E10: Sales Dth | F10: SNG Rate | G10: SNG Revenue
B12: =B10+1 -> 2 | C12: GS | D12: winter | E12: ='Utah Summary-by class'!B8 -> 78651859 | F12: ='Utah Summary-by class'!J8 -> 0.92726 | G12: =E12*F12 -> 72930722.78
B13: =B12+1 -> 3 | D13: summer | E13: ='Utah Summary-by class'!B9 -> 29870999 | F13: ='Utah Summary-by class'!J9 -> 0.43536 | G13: =E13*F13 -> 13004638.12
B15: =B13+1 -> 4 | C15: FS | D15: winter | E15: ='Utah Summary-by class'!B13 -> 1255504 | F15: ='Utah Summary-by class'!J13 -> 0.90312 | G15: =E15*F15 -> 1133870.772
B16: =B15+1 -> 5 | D16: summer | E16: ='Utah Summary-by class'!B14 -> 1282223 | F16: ='Utah Summary-by class'!J14 -> 0.43536 | G16: =E16*F16 -> 558228.6053
B18: =B16+1 -> 6 | C18: NGV | D18: annual | E18: ='Utah Summary-by class'!B18 -> 255286 | F18: ='Utah Summary-by class'!J18 -> 0.66913 | G18: =E18*F18 -> 170819.5212
B20: =B18+1 -> 7 | C20: IS | D20: annual | E20: ='Utah Summary-by class'!B21 -> 130911 | F20: ='Utah Summary-by class'!J21 -> 0.17907 | G20: =E20*F20 -> 23442.23277
B23: =B20+1 -> 8 | C23: Total Supplier Non-Gas Costs | E23: =SUM(E12:E20) -> 111446782 | G23: =SUM(G12:G20) -> 87821722.03

Sheet Current Exh Updated Exh
B8: Current Exhibits to Proposed Exhibits
B12: Current Exhibit | C12: Description of Exhibit | D12: Proposed Exhibit | E12: Comments
B13: 1.1 | C13: Company Production with detailed well information | D13: 1.2 p1 | E13: Detail of well info in electronic model
B14: 1.2 | C14: Purchased Gas Costs | D14: 1.2 p4
B15: 1.3 p1 | C15: Transportation | D15: 1.4 p1
C16: Gathering | D16: 1.2 p3
B17: 1.3 p2 | C17: Storage | D17: 1.4 p3
C18: Working Gas Charges | D18: 1.2 p5
B19: 1.4 p1 | C19: Gas Related Costs and Revenue Credits | D19: 1.2 p3
B20: 1.4 p2 | C20: Cost of Storage Gas | D20: 1.2 p5
B21: 1.4 p3 | C21: Other Revenues | D21: 1.2 p2
B22: 1.5 | C22: Gas Cost Allocation | D22: 1.1 p2
B23: 1.6 p1 | C23: Commodity Change and New Rates | D23: 1.5 p1
B24: 1.6 p2 | C24: Supplier Non-Gas Change | D24: 1.5 p2
B25: 1.6 p3 | C25: Supplier Non-Gas New Rates | D25: 1.5 p3 | E25: Detail of calculation updated
B26: 1.7 | C26: Effect on GS Typical Customer | D26: 1.6
B27: 1.8 | C27: Legislative/Proposed Rate Schedules | D27: 1.7
B28: 1.9 | C28: Dominion Energy Questar Pipeline, LLC Tariff Rates | D28: - | E28: Removed as an exhibit
B29: 1.10 | C29: Confidential Comparison of Natural Gas Price Forecast | D29: 1.3
B30: 1.11 | C30: Legislative/Proposed Combined Rate Schedules | D30: 1.8

Sheet Ut 1.1 p1
F1: ='Control Panel'!$E$32 -> Dominion Energy Utah
F2: ='Control Panel'!$E$33 -> Docket No. 20-057-07
F3: DEU Exhibit 1.1
F4: Page 1 of 2
B9: TABLE OF CONTENTS
B14: DEU Exhibit | D14: Description | E14: Type
B16: 1.1 | C16: Page 2 | D16: Test-Year Gas Cost Allocation | E16: Summary
B18: 1.2 | C18: Page 1 | D18: Test-Year Royalties & Company Production | E18: Commodity
C19: Page 2 | D19: Test-Year Other Revenues | E19: Commodity
C20: Page 3 | D20: Summary of Wexpro Test-Year Gas Costs and Revenue Credits | E20: Commodity
C21: Page 4 | D21: Test-Year Purchased Gas Costs | E21: Commodity
C22: Page 5 | D22: Test-Year Storage Gas & Working Gas Charges | E22: Commodity
B24: 1.3 | D24: Confidential Comparison of Natural Gas Price Forecasts | E24: Commodity
B26: 1.4 | C26: Page 1 | D26: Test-Year Transportation Charges | E26: SNG
C27: Page 2 | D27: Test-Year Storage Charges | E27: SNG
C28: Page 3 | D28: Supplier Non-Gas Cost Class Allocation | E28: SNG
C29: Page 4 | D29: Supplier Non-Gas Cost Summary | E29: SNG
B31: 1.5 | C31: Page 1 | D31: Test-Year Gas Cost Change | E31: Commodity
C32: Page 2 | D32: Test-Year Supplier Non-Gas Cost Change | E32: SNG
C33: Page 3 | D33: Supplier Non-Gas Rate Calculation | E33: SNG
C34: Page 4 | D34: General Service Summer / Winter Differential | E34: SNG
C35: Page 5 | D35: Firm Service Summer / Winter Differential | E35: SNG
C36: Page 6 | D36: Summary of Rates | E36: Summary
B38: 1.6 | D38: Effect on GS Typical Customer | E38: Summary
B40: 1.7 | C40: Page1-8 | D40: Legislative Rate Schedules | E40: Summary
C41: Page 9-17 | D41: Proposed Rate Schedules | E41: Summary
B43: 1.8 | C43: Page1-8 | D43: Legislative Combined Rate Schedules | E43: Summary
C44: Page 9-17 | D44: Proposed Combined Rate Schedules | E44: Summary

Sheet Ut 1.1 p2
I1: ='Control Panel'!$E$32 -> Dominion Energy Utah
I2: ='Control Panel'!$E$33 -> Docket No. 20-057-07
I3: DEU Exhibit 1.1
I4: Page 2 of 2
C8: TEST-YEAR GAS COST ALLOCATION
C11: (A) | E11: (B) | F11: (C) | G11: (D) | H11: (E)
E12: Allocation
E13: Factor 1/ | F13: System | G13: Wyoming | H13: Utah
B15: COMMODITY
A16: 1 | C16: Dominion Energy Production (DEU Exhibit 1.2, p 1) | E16: 2 | F16: ='Ut 1.2 p3'!E15+'Ut 1.2 p3'!E28 -> 227712471.3 | G16: =CHOOSE($E16,G$53,G$56)*$F16 -> 7756851.825 | H16: 219955619.5
A17: =A16+1 -> 2 | C17: Other Revenue's Credit (DEU Exhibit 1.2, p 2) | E17: 2 | F17: ='Ut 1.2 p3'!E16+'Ut 1.2 p3'!E29+'Ut 1.2 p3'!E47 -> -15343704.2 | G17: -522671.5922 | H17: -14821032.61
A18: =A17+1 -> 3 | C18: Gathering (DEU Exhibit 1.2, p 3, ln 4) | D18: - Demand | E18: 1 | F18: ='Ut 1.2 p3'!E19 -> 5013550.423 | G18: 152854.4886 | H18: 4860695.935
A19: =A18+1 -> 4 | C19: Gathering (DEU Exhibit 1.2, p 3, lns 5, 6, 12) | D19: - Commodity | E19: 2 | F19: ='Ut 1.2 p3'!E21+'Ut 1.2 p3'!E20+'Ut 1.2 p3'!E32 -> 7810023.005 | G19: 266042.4827 | H19: 7543980.522
A20: =A19+1 -> 5 | C20: Net Cost of Dominion Energy Production | F20: =SUM(F16:F19) -> 225192340.5 | G20: =SUM(G16:G19) -> 7653077.204 | H20: =SUM(H16:H19) -> 217539263.3
A22: =A20+1 -> 6 | C22: Dominion Energy Contract Gas (DEU Exhibit 1.2, p 4) | E22: 2 | F22: ='Ut 1.2 p4'!E24 -> 128680395 | G22: =CHOOSE($E22,G$53,G$56)*$F22 -> 4383399.605 | H22: =CHOOSE($E22,H$53,H$56)*$F22 -> 124296995.4
A24: =A22+1 -> 7 | C24: Injection / Withdrawal Adjustment (DEU Exhibit 1.2, p 5, ln 3) | E24: 2 | F24: ='Ut 1.2 p5'!E21 -> -1756016.027 | G24: =CHOOSE($E24,G$53,G$56)*$F24 -> -59817.34793 | H24: =CHOOSE($E24,H$53,H$56)*$F24 -> -1696198.679
A26: =A24+1 -> 8 | C26: Working Gas Costs (DEU Exhibit 1.2, p 5, ln 17) | E26: 2 | F26: ='Ut 1.2 p5'!I43 -> 2797029.519 | G26: =CHOOSE($E26,G$53,G$56)*$F26 -> 95278.67932 | H26: =CHOOSE($E26,H$53,H$56)*$F26 -> 2701750.84
A29: =A26+1 -> 9 | C29: TOTAL COMMODITY | F29: =SUM(F20:F27) -> 354913749 | G29: =SUM(G20:G27) -> 12071938.14 | H29: =SUM(H20:H27) -> 342841810.9
B31: SNG
A32: =A29+1 -> 10 | C32: Transportation (DEU Exhibit 1.4, p 1, ln 15) | D32: - Demand | E32: 1 | F32: ='Ut 1.4 p1'!M34 -> 64634493 | G32: =CHOOSE($E32,G$53,G$56)*$F32 -> 1970593.998 | H32: =CHOOSE($E32,H$53,H$56)*$F32 -> 62663899
A33: =A32+1 -> 11 | C33: Transportation (DEU Exhibit 1.4, p 1, ln 24) | D33: - Commodity | E33: 2 | F33: ='Ut 1.4 p1'!M51 -> 560418 | G33: =CHOOSE($E33,G$53,G$56)*$F33 -> 19090.21215 | H33: =CHOOSE($E33,H$53,H$56)*$F33 -> 541327.7879
A35: =A33+1 -> 12 | C35: Other Transportation (DEU Exhibit 1.4, p 1, ln 25) | E35: 2 | F35: ='Ut 1.4 p1'!M55 -> 3873365 | G35: =CHOOSE($E35,G$53,G$56)*$F35 -> 131943.2273 | H35: =CHOOSE($E35,H$53,H$56)*$F35 -> 3741421.773
A37: =A35+1 -> 13 | C37: Peak Hour Service (DEU Exhibit 1.4, p 1, ln 28) | E37: 1 | F37: ='Ut 1.4 p1'!L61+'Ut 1.4 p1'!L62 -> 2410448 | G37: =CHOOSE($E37,G$53,G$56)*$F37 -> 73490.39408 | H37: =CHOOSE($E37,H$53,H$56)*$F37 -> 2336957.606
A39: =A37+1 -> 14 | C39: Storage (DEU Exhibit 1.4, p 2, ln 5) | D39: - Demand | E39: 1 | F39: ='Ut 1.4 p2'!J20 -> 16275058 | G39: =CHOOSE($E39,G$53,G$56)*$F39 -> 496198.3939 | H39: =CHOOSE($E39,H$53,H$56)*$F39 -> 15778859.61
A40: =A39+1 -> 15 | C40: Storage (DEU Exhibit 1.4, p 2, ln 12) | D40: - Commodity | E40: 2 | F40: ='Ut 1.4 p2'!J29 -> 494160 | G40: =CHOOSE($E40,G$53,G$56)*$F40 -> 16833.18387 | H40: =CHOOSE($E40,H$53,H$56)*$F40 -> 477326.8161
A43: =A40+1 -> 16 | C43: TOTAL SNG | F43: =SUM(F32:F40) -> 88247942 | G43: =SUM(G32:G40) -> 2708149.41 | H43: =SUM(H32:H40) -> 85539792.59
A46: =A43+1 -> 17 | C46: TOTAL GAS COST | F46: =F29+F43 -> 443161691 | G46: =G29+G43 -> 14780087.55 | H46: =H29+H43 -> 428381603.5
A50: 1/ | C50: Allocation Factors | F50: Total | G50: Wyoming | H50: Utah
C52: #1 Peak Day Demand | E52: Dth- | F52: =SUM(G52:H52) -> 1227226 | G52: ='Other Inputs'!$E$143 -> 37416 | H52: ='Other Inputs'!$E$142 -> 1189810
E53: Percent- | F53: =G53+H53 -> 1 | G53: =G52/F52 -> 0.03048827192 | H53: =H52/F52 -> 0.9695117281
C55: #2 Commodity Sales - All | E55: Dth- | F55: =G55+H55 -> 115377012 | G55: ='Ut 1.5 p1'!H21 -> 3930230 | H55: ='Ut 1.5 p1'!H20 -> 111446782
E56: Percent- | F56: =G56+H56 -> 1 | G56: =G55/F55 -> 0.03406423803 | H56: =H55/F55 -> 0.965935762

Sheet Ut 1.2 p1
H1: Dominion Energy Utah
H2: ='Control Panel'!$E$33 -> Docket No. 20-057-07
H3: DEU Exhibit 1.2
H4: Page 1 of 5
C8: TEST-YEAR ROYALTIES & COMPANY PRODUCTION
B10: COMMODITY
C11: (A) | E11: (B) | G11: (C)
E12: Base Year | G12: Test-Year
E13: Dth | G13: Royalty $
B15: WEXPRO I
A16: =A15+1 -> 1 | C16: Royalties Based on Historical Production | E16: =+'Royalty Detail'!F1427 -> 55740444.96 | G16: =+'Royalty Detail'!I1427 -> 15999808.04
A18: =A16+1 -> 2 | C18: Test-Year Adjustment for IRP Production Forecast | E18: =+'Royalty Detail'!F1429 -> -8954701.963 | G18: =G16/E16*E18 -> -2570369.013
A21: =A18+1 -> 3 | C21: Total Wexpro I Test-Year Royalties | G21: =G16+G18 -> 13429439.03
A23: =A21+1 -> 4 | C23: Wexpro I Operator Service Fee | G23: ='Monthly Inputs'!S107 -> 178982583.2
A26: =A23+1 -> 5 | C26: Total Wexpro I Company Production (IRP Forecast) | E26: =+'Monthly Inputs'!S7 -> 46785743 | G26: =G21+G23 -> 192412022.3
B30: WEXPRO II
A31: =A26+1 -> 6 | C31: Royalties Based on Historical Production | E31: =+'Royalty Detail'!F1683 -> 15899499.33 | G31: =+'Royalty Detail'!I1683 -> 4643293.026
A33: =A31+1 -> 7 | C33: Test-Year Adjustment for IRP Production Forecast | E33: =+'Royalty Detail'!F1685 -> -4635285.333 | G33: =G31/E31*E33 -> -1353689.674
A36: =A33+1 -> 8 | C36: Total Wexpro II Test-Year Royalties | G36: =G31+G33 -> 3289603.353
A38: =A36+1 -> 9 | C38: Wexpro II Operator Service Fee | G38: ='Monthly Inputs'!S109 -> 32010845.7
A41: =A38+1 -> 10 | C41: Total Wexpro II Company Production (IRP Forecast) | E41: ='Monthly Inputs'!S13 -> 11264214 | G41: =G36+G38 -> 35300449.05
B45: TOTAL WEXPRO
A46: =A41+1 -> 11 | C46: Total Wexpro Test-Year Royalties | G46: =G36+G21 -> 16719042.38
A48: =A46+1 -> 12 | C48: Total Wexpro Operator Service Fee | G48: =G38+G23 -> 210993428.9
A51: =A48+1 -> 13 | C51: Total Wexpro Company Production | E51: =E41+E26 -> 58049957 | G51: =G46+G48 -> 227712471.3

Sheet Ut 1.2 p2
K1: ='Control Panel'!$E$32 -> Dominion Energy Utah
K2: ='Control Panel'!$E$33 -> Docket No. 20-057-07
K3: DEU Exhibit 1.2
K4: Page 2 of 5
D8: TEST-YEAR OTHER REVENUES 1/
B10: COMMODITY
C11: (A) | E11: (B) | F11: (C) | G11: (D)
C12: Account | G12: =Expenses!S8 -> 12 Months Ending
C13: Number | E13: Account Name | G13: ='Control Panel'!E7 -> 2021-05-31
C14: WEXPRO I
B15: 1 | D15: 483 | E15: Sales for Resale | H15: ='Other Inputs'!F203 -> 2228745.6
B17: =B15+1 -> 2 | D17: 490 | E17: Plant By-Product | H17: ='Other Inputs'!F204 -> 3053673
B19: =B17+1 -> 3 | D19: 492 | E19: Gasoline and Oil Sales | F19: ='Other Inputs'!F205 -> 280043.0048
B20: =B19+1 -> 4 | D20: 758-1 | E20: Gasoline and Oil Cost | F20: ='Other Inputs'!F209 -> -46179.09149
B21: =B20+1 -> 5 | E21: Net Gasoline and Oil Sales | H21: =F19+F20 -> 233863.9133
B23: =B21+1 -> 6 | D23: 495-1 | E23: Overriding Royalty Revenue | H23: ='Other Inputs'!F206 -> 7335186.455
B25: =B23+1 -> 7 | D25: 495-2 | E25: Oil Revenue Received from Wexpro | H25: ='Other Inputs'!F207 -> 0
B27: =B25+1 -> 8 | E27: 3rd Party & Liquids Credits from MLPX Acquisition | H27: ='Other Inputs'!F208 -> 1307712
B30: =1+B27 -> 9 | E30: Total Wexpro I | H30: =SUM(H15:H27) -> 14159180.97
C32: WEXPRO II
B33: =B30+1 -> 10 | D33: 483 | E33: Sales for Resale | H33: ='Other Inputs'!E225 -> 0
B35: =B33+1 -> 11 | D35: 490 | E35: Plant By-Product | H35: ='Other Inputs'!E226 -> 216000
B37: =B35+1 -> 12 | D37: 492 | E37: Gasoline and Oil Sales | F37: ='Other Inputs'!E227 -> 990256.2894
B38: =B37+1 -> 13 | D38: 758-1 | E38: Gasoline and Oil Cost | F38: ='Other Inputs'!E230 -> -161312.7495
B39: =B38+1 -> 14 | E39: Net Gasoline and Oil Sales | H39: =F37+F38 -> 828943.5398
B41: =B39+1 -> 15 | D41: 495-1 | E41: Overriding Royalty Revenue | H41: ='Other Inputs'!E228 -> 0
B43: =B41+1 -> 16 | D43: 495-2 | E43: Oil Revenue Received from Wexpro | H43: ='Other Inputs'!E229 -> 139579.6941
B46: =B43+1 -> 17 | E46: Total Wexpro II | H46: =SUM(H33:H43) -> 1184523.234
B48: =1+B46 -> 18 | E48: Sales of Cost-of-Service Gas | H48: ='Other Inputs'!E236 -> 0
B51: =B48+1 -> 19 | E51: Grand Total (Line 9 + Line 17 + Line 18) | H51: =H30+H46+H48 -> 15343704.2
B55: 1/ | D55: Forecasted 12-month test year.

Sheet Ut 1.2 p3
G1: ='Control Panel'!$E$32 -> Dominion Energy Utah
G2: ='Control Panel'!$E$33 -> Docket No. 20-057-07
G3: DEU Exhibit 1.2
G4: Page 3 of 5
B8: SUMMARY OF WEXPRO TEST-YEAR GAS COSTS AND REVENUES CREDITS
B10: COMMODITY
B11: (A) | E11: (B) | F11: (C) | G11: (D)
B12: Component | E12: Costs | F12: Dth 1/ | G12: $ per Dth
B14: WEXPRO I
A15: 1 | C15: Dominion Energy Production 2/ | E15: ='Other Inputs'!D196 -> 192412022.3
A16: =A15+1 -> 2 | C16: Wexpro I Revenue Sharing Credits 3/ | E16: =-'Ut 1.2 p2'!H30 -> -14159180.97
A17: =A16+1 -> 3 | D17: Net Dominion Energy Production Costs | E17: =E15+E16 -> 178252841.3 | F17: =F25 -> 45783545.6 | G17: =E17/F25 -> 3.893382196
A19: =A17+1 -> 4 | C19: Gathering Demand | E19: ='Other Inputs'!E185 -> 5013550.423
A20: =A19+1 -> 5 | C20: Gathering Commodity | E20: ='Other Inputs'!D185 -> 3342366.949
A21: =A20+1 -> 6 | C21: Gathering Other Charges | E21: =ROUND('Other Inputs'!D177,0) -> 1926347
A22: =A21+1 -> 7 | D22: Gathering | E22: =SUM(E19:E21) -> 10282264.37
A25: =A22+1 -> 8 | B25: Total Wexpro I Cost of Production | E25: =E17+E22 -> 188535105.7 | F25: ='Monthly Inputs'!S7*(1-'Other Inputs'!E270) -> 45783545.6 | G25: =E25/F25 -> 4.11796647
B27: WEXPRO II
A28: =A25+1 -> 9 | C28: Wexpro II Production 4/ | E28: ='Other Inputs'!D218 -> 35300449.05
A29: =A28+1 -> 10 | C29: Wexpro II Revenue Sharing Credits 5/ | E29: =-'Ut 1.2 p2'!H46 -> -1184523.234
A30: =A29+1 -> 11 | D30: Net Cost of Wexpro II Production | E30: =E28+E29 -> 34115925.81 | F30: =F35 -> 11022923.27 | G30: =E30/F35 -> 3.09499803
A32: =A30+1 -> 12 | D32: Gathering | E32: ='Other Inputs'!D188 -> 2541309.056
A35: =A32+1 -> 13 | B35: Total Wexpro II Cost of Production | E35: =SUM(E30:E32) -> 36657234.87 | F35: ='Monthly Inputs'!S13*(1-'Other Inputs'!E270) -> 11022923.27 | G35: =E35/F35 -> 3.32554568
B37: TOTAL WEXPRO
A38: =A35+1 -> 14 | C38: Total Wexpro Production | E38: =E15+E28 -> 227712471.3
A39: =A38+1 -> 15 | C39: Total Wexpro Revenue Sharing Credits | E39: =E16+E29 -> -15343704.2
A40: =A39+1 -> 16 | D40: Net Cost of Total Wexpro Production | E40: =E38+E39 -> 212368767.1 | F40: =F25+F35 -> 56806468.87 | G40: =E40/F45 -> 3.738460977
A42: =A40+1 -> 17 | D42: Total Wexpro Gathering | E42: =E22+E32 -> 12823573.43
A45: =A42+1 -> 18 | B45: Total Wexpro Cost of Production | E45: =SUM(E40:E42) -> 225192340.5 | F45: =F25+F35 -> 56806468.87 | G45: =E45/F45 -> 3.964202405
A47: =A45+1 -> 19 | B47: Sales of Cost-of-Service Gas 6/ | E47: =-'Other Inputs'!E236 -> 0 | F47: ='Other Inputs'!F236 -> 0 | G47: ='Other Inputs'!G236 -> 0
A50: =A47+1 -> 20 | B50: Total Cost-of-Service Production | E50: =E25+E35+E47 -> 225192340.5 | F50: =F25+F35 -> 56806468.87 | G50: =E50/F50 -> 3.964202405
A54: 1/ | B54: Estimated into-pipe volumes used for Wexpro dths.
A55: 2/ | B55: DEU Exhibit 1.2, Page 1, Line 5.
A56: 3/ | B56: DEU Exhibit 1.2, Page 2, Line 9.
A57: 4/ | B57: DEU Exhibit 1.2, Page 1, Line 10.
A58: 5/ | B58: DEU Exhibit 1.2, Page 2, Line 17.
A59: 6/ | B59: DEU Exhibit 1.2, Page 2, Line 18.

Sheet Ut 1.2 p4
H1: ='Control Panel'!$E$32 -> Dominion Energy Utah
H2: ='Control Panel'!$E$33 -> Docket No. 20-057-07
H3: DEU Exhibit 1.2
H4: Page 4 of 5
A8: TEST-YEAR PURCHASED GAS COSTS
B10: COMMODITY
D11: (A) | E11: (B) | F11: (C) | G11: (D)
G12: Cost
C13: Component | E13: Total Cost | F13: Dth | G13: per Dth
B15: 1 | C15: Current Contracts | E15: =ROUND(Calculations!$P$186+Calculations!$P$189-E16,0) -> 44499543
B16: =B15+1 -> 2 | C16: Stabilization Costs | E16: ='Monthly Inputs'!S94 -> 0
B17: =B16+1 -> 3 | D17: Total Current Contracts | E17: =E15+E16 -> 44499543 | F17: =Calculations!$P$185+Calculations!$P$188 -> 19360000 | G17: =E17/F17 -> 2.298530114
B19: =B17+1 -> 4 | C19: Forecast Spot | E19: =ROUND(Calculations!P183,0) -> 83705058 | F19: =Calculations!$P$182 -> 42458721 | G19: =E19/F19 -> 1.971445584
B21: =B19+1 -> 5 | C21: Future Contracts | E21: =ROUND(Calculations!P192,0) -> 475794 | F21: =Calculations!P191 -> 344352 | G21: =E21/F21 -> 1.381708252
B24: =B21+1 -> 6 | C24: Total Gas Purchased | E24: =E17+E19+E21 -> 128680395 | F24: =F17+F19+F21 -> 62163073 | G24: =E24/F24 -> 2.070045588

Sheet Ut 1.2 p5
K1: ='Control Panel'!$E$32 -> Dominion Energy Utah
K2: ='Control Panel'!$E$33 -> Docket No. 20-057-07
K3: DEU Exhibit 1.2
K4: Page 5 of 5
B8: TEST-YEAR STORAGE GAS & WORKING GAS CHARGES
B10: COMMODITY
C11: (A) | E11: (B) | G11: (C) | I11: (D)
I12: Average
E13: Total Costs | G13: Dth | I13: Rate
B15: STORAGE GAS 1/
B17: 1 | C17: Withdrawals | E17: =G17*I17 -> 52200247.44 | G17: ='Monthly Inputs'!S37 -> 15843240 | I17: ='Ut Storage'!L27 -> 3.294796231
B18: 2 | C18: Injections | E18: =G18*I18 -> -53956263.47 | G18: =-'Monthly Inputs'!S29 -> -16167064 | I18: ='Ut Storage'!K27 -> 3.337418808
B21: =B18+1 -> 3 | C21: Storage Adjustment | E21: =E17+E18 -> -1756016.027
B24: WORKING GAS CHARGES
D26: Month | E26: Amount | G26: Pre-Tax Return % | I26: Total
B28: =B21+1 -> 4 | D28: =+'Rate Base'!H8 -> 2019-03-01 | E28: =+'Rate Base'!H206 -> 8155444.24
B29: =B28+1 -> 5 | D29: =+'Rate Base'!I8 -> 2019-04-01 | E29: =+'Rate Base'!I206 -> 6352626.43
B30: 6 | D30: =+'Rate Base'!J8 -> 2019-05-01 | E30: =+'Rate Base'!J206 -> 8741282.39
B31: 7 | D31: =+'Rate Base'!K8 -> 2019-06-01 | E31: =+'Rate Base'!K206 -> 19062047.87
B32: 8 | D32: =+'Rate Base'!L8 -> 2019-07-01 | E32: =+'Rate Base'!L206 -> 33521823.38
B33: 9 | D33: =+'Rate Base'!M8 -> 2019-08-01 | E33: =+'Rate Base'!M206 -> 44111455.51
B34: 10 | D34: =+'Rate Base'!N8 -> 2019-09-01 | E34: =+'Rate Base'!N206 -> 53650234.79
B35: 11 | D35: =+'Rate Base'!O8 -> 2019-10-01 | E35: =+'Rate Base'!O206 -> 55516771.69
B36: 12 | D36: =+'Rate Base'!P8 -> 2019-11-01 | E36: =+'Rate Base'!P206 -> 55528751.16
B37: 13 | D37: =+'Rate Base'!Q8 -> 2019-12-01 | E37: =+'Rate Base'!Q206 -> 45965722.86
B38: 14 | D38: =+'Rate Base'!R8 -> 2020-01-01 | E38: =+'Rate Base'!R206 -> 30071846.23
B39: 15 | D39: =+'Rate Base'!S8 -> 2020-02-01 | E39: =+'Rate Base'!S206 -> 17550004.17
B40: 16 | D40: =+'Rate Base'!T8 -> 2020-03-01 | E40: =+'Rate Base'!T206 -> 5954574.05
B43: =B40+1 -> 17 | C43: 12-Month Average 2/ | E43: =(SUM(E29:E39)+E28/2+E40/2)/12 -> 31427297.97 | F43: x | G43: ='Other Inputs'!E265 -> 0.089 | H43: = | I43: =E43*G43 -> 2797029.519
B48: 1/ | C48: Dominion Energy planned volumes.
B49: 2/ | C49: (1/2 of Line 4 + sum of Lines 5-15 + 1/2 of Line 16) / 12

Sheet Ut 1.3 Redacted
I1: REDACTED
P29: DEU Exhibit 1.3 | Q29: =CONCATENATE("Docket No. ",'Control Panel'!E5) -> Docket No. 20-057-07 | R29: Dominion Energy Utah

Sheet Ut 1.4 p1
N1: ='Control Panel'!$E$32 -> Dominion Energy Utah
N2: ='Control Panel'!$E$33 -> Docket No. 20-057-07
N3: DEU Exhibit 1.4
N4: Page 1 of 4
B8: TEST-YEAR TRANSPORTATION CHARGES
B10: SNG
B11: (A) | D11: (B) | F11: (C) | H11: (D) | J11: (E) | L11: (F) | M11: (G)
D12: Fctr | F12: Dth | H12: Months/Days | J12: Rate | M12: Total Costs
B14: TRANSPORTATION DEMAND
B16: QPC Demand
A17: 1 | B17: T-1 Transportation - Yearly | F17: ='Other Inputs'!D28+'Other Inputs'!D29+'Other Inputs'!D30 -> 840902 | G17: x | H17: ='Other Inputs'!E28 -> 12 | I17: x | J17: ='Other Inputs'!F28 -> 5.28804 | K17: = | L17: =ROUND(F17*H17*J17,0) -> 53360681
A18: =A17+1 -> 2 | B18: T-1 Transportation - Yearly | F18: ='Other Inputs'!D32 -> 100000 | G18: x | H18: ='Other Inputs'!E32 -> 12 | I18: x | J18: ='Other Inputs'!F32 -> 5.28804 | K18: = | L18: =ROUND(F18*H18*J18,0) -> 6345648
A19: =A18+1 -> 3 | B19: T-1 Transportation Nov-Mar | F19: ='Other Inputs'!D31 -> 75000 | G19: x | H19: ='Other Inputs'!E31 -> 5 | I19: x | J19: ='Other Inputs'!F31 -> 6.80887 | K19: = | L19: =ROUND(F19*H19*J19,0) -> 2553326
A20: =A19+1 -> 4 | B20: No-Notice Transportation | F20: ='Other Inputs'!D35 -> 203542 | G20: x | H20: ='Other Inputs'!E35 -> 12 | I20: x | J20: ='Other Inputs'!F35 -> 0.86753 | K20: = | L20: =ROUND(F20*H20*J20,0) -> 2118945
A21: =A20+1 -> 5 | B21: Capacity Release Credits | L21: =-ROUND('Other Inputs'!E276,0) -> -4769816
A22: =A21+1 -> 6 | C22: Total | L22: =SUM(L17:L21) -> 59608784
B24: Kern River Demand
A25: =A22+1 -> 7 | B25: June - September | F25: ='Other Inputs'!D57 -> 1885 | G25: x | H25: ='Other Inputs'!E57 -> 4 | I25: x | J25: ='Other Inputs'!F57 -> 15.83255 | K25: = | L25: =ROUND(F25*H25*J25,0) -> 119377
A26: =A25+1 -> 8 | B26: October - May | F26: ='Other Inputs'!D59 -> 1885 | G26: x | H26: ='Other Inputs'!E59 -> 8 | I26: x | J26: ='Other Inputs'!F59 -> 5.4644625 | K26: = | L26: 82404
A27: 9 | B27: January - December | F27: ='Other Inputs'!D55 -> 33000 | G27: x | H27: ='Other Inputs'!E55 -> 12 | I27: x | J27: ='Other Inputs'!F55 -> 3.172933333 | K27: = | L27: 1256482
A28: 10 | B28: November - March | F28: ='Other Inputs'!D56 -> 50000 | G28: x | H28: ='Other Inputs'!E56 -> 5 | I28: x | J28: =J27 -> 3.172933333 | K28: = | L28: 793233
A29: 11 | B29: December - February | F29: ='Other Inputs'!D62 -> 56925 | G29: x | H29: ='Other Inputs'!E62 -> 3 | I29: x | J29: ='Other Inputs'!F62 -> 8.7 | K29: = | L29: 1485743
A30: 12 | B30: November & March | F30: ='Other Inputs'!D64 -> 6000 | G30: x | H30: ='Other Inputs'!E64 -> 2 | I30: x | J30: ='Other Inputs'!F64 -> 8.845 | K30: = | L30: 106140
A31: 13 | B31: November - March | F31: ='Other Inputs'!D66 -> 27000 | G31: x | H31: ='Other Inputs'!E66 -> 5 | I31: x | J31: ='Other Inputs'!F66 -> 8.758 | K31: = | L31: 1182330
A32: 14 | C32: Total | L32: =SUM(L25:L31) -> 5025709
A34: =A32+1 -> 15 | B34: Total Transportation Demand (SNG) | M34: =L22+L32 -> 64634493
B37: TRANSPORTATION COMMODITY
A39: =A34+1 -> 16 | B39: Total ACA | F39: =Calculations!$P$173 -> 132462112.6 | I39: x | J39: ='Other Inputs'!F41 -> 0.0013 | K39: = | L39: =ROUND(F39*J39,0) -> 172201
A41: =A39+1 -> 17 | B41: QPC Commodity (SNG) | F41: ='Ut 1.4 p1'!F39-(D44*F44*H44)-(D45*F45*H45)-(D46*F46*H46)-(D47*F47*H47)-(D48*F48*H48) -> 112495010.3 | I41: x | J41: ='Other Inputs'!F40 -> 0.00267 | K41: = | L41: =ROUND(F41*J41,0) -> 300362
B43: Kern River Commodity
A44: =A41+1 -> 18 | B44: January - December | D44: ='Other Inputs'!C70 -> 0.6689308985 | E44: x | F44: ='Other Inputs'!D70 -> 34885 | G44: x | H44: ='Other Inputs'!E70 -> 365 | I44: x | J44: ='Other Inputs'!F70 -> 0.0044 | K44: = | L44: =ROUND(D44*F44*H44*J44,0) -> 37477
A45: =A44+1 -> 19 | B45: November - March | D45: ='Other Inputs'!C71 -> 0.6689308985 | E45: x | F45: ='Other Inputs'!D71 -> 50000 | G45: x | H45: ='Other Inputs'!E71 -> 151 | I45: x | J45: ='Other Inputs'!F71 -> 0.0044 | K45: = | L45: =ROUND(D45*F45*H45*J45,0) -> 22222
A46: =A45+1 -> 20 | B46: November & March | D46: ='Other Inputs'!C75 -> 0.6689308985 | E46: x | F46: ='Other Inputs'!D75 -> 6000 | G46: x | H46: ='Other Inputs'!E75 -> 61 | I46: x | J46: ='Other Inputs'!F75 -> 0.0044 | K46: = | L46: =ROUND(D46*F46*H46*J46,0) -> 1077
A47: =A46+1 -> 21 | B47: December - February | D47: ='Other Inputs'!C74 -> 0.6689308985 | E47: x | F47: ='Other Inputs'!D74 -> 56925 | G47: x | H47: ='Other Inputs'!E74 -> 90 | I47: x | J47: ='Other Inputs'!F74 -> 0.0044 | K47: = | L47: =ROUND(D47*F47*H47*J47,0) -> 15079
A48: =A47+1 -> 22 | B48: November - March | D48: ='Other Inputs'!C75 -> 0.6689308985 | E48: x | F48: ='Other Inputs'!D77 -> 27000 | G48: x | H48: ='Other Inputs'!E77 -> 151 | I48: x | J48: ='Other Inputs'!F77 -> 0.0044 | K48: = | L48: =ROUND(D48*F48*H48*J48,0) -> 12000
A49: =A48+1 -> 23 | C49: Total (SNG) | L49: =SUM(L44:L48) -> 87855
A51: =A49+1 -> 24 | B51: Total Transportation Commodity | M51: =L49+L41+L39 -> 560418
B54: OTHER CHARGES
A55: =A51+1 -> 25 | B55: Other Transportation Charges | M55: =ROUND('Other Inputs'!$D$179,0) -> 3873365
B60: PEAK HOUR SERVICE
A61: =A55+1 -> 26 | B61: Mid November - Mid February | F61: ='Other Inputs'!D20 -> 28752 | G61: x | H61: ='Other Inputs'!E20 -> 3 | I61: x | J61: ='Other Inputs'!F20 -> 11.65333333 | K61: = | L61: =ROUND(F61*H61*J61,0) -> 1005170
A62: =A61+1 -> 27 | B62: Mid November - Mid February | F62: ='Other Inputs'!D23 -> 63666.66667 | G62: x | H62: ='Other Inputs'!E23 -> 3 | I62: x | J62: ='Other Inputs'!F23 -> 7.35747644 | K62: = | L62: =ROUND(F62*H62*J62,0) -> 1405278
A63: =A62+1 -> 28 | C63: Total Peak Hour Service | M63: =SUM(L61:L62) -> 2410448
A66: =A63+1 -> 29 | B66: TOTAL TRANSPORTATION AND OTHER CHARGES | M66: =SUM(M13:M64) -> 71478724

Sheet Ut 1.4 p2
L1: ='Control Panel'!$E$32 -> Dominion Energy Utah
L2: ='Control Panel'!$E$33 -> Docket No. 20-057-07
L3: DEU Exhibit 1.4
L4: Page 2 of 4
B7: TEST-YEAR STORAGE CHARGES
B9: SNG
B10: (A) | D10: (B) | F10: (C) | H10: (D) | J10: (E) | K10: (F)
B12: STORAGE CHARGES
B14: Component | D14: Dth | F14: Months | H14: Rate | K14: Total Costs
B15: Storage Demand
A16: 1 | B16: Aquifer Peaking Demand | D16: ='Other Inputs'!E164 -> 184625 | E16: x | F16: 12 | G16: x | H16: ='Other Inputs'!E14 -> 2.87375 | I16: = | J16: =ROUND(D16*F16*H16,0) -> 6366793
A17: =A16+1 -> 2 | B17: Spire Demand | D17: ='Other Inputs'!E165 -> 2500000 | E17: x | F17: 10 | G17: x | H17: ='Other Inputs'!E15 -> 0.09 | I17: = | J17: =ROUND(D17*F17*H17,0) -> 2250000
A18: =A17+1 -> 3 | B18: Clay Basin Demand | D18: ='Other Inputs'!E166 -> 111827 | E18: x | F18: 12 | G18: x | H18: ='Other Inputs'!E16 -> 2.85338 | I18: = | J18: =ROUND(D18*F18*H18,0) -> 3829019
A19: =A18+1 -> 4 | B19: Clay Basin Capacity | D19: ='Other Inputs'!E167 -> 13419000 | E19: x | F19: 12 | G19: x | H19: ='Other Inputs'!E17 -> 0.02378 | I19: = | J19: =ROUND(D19*F19*H19,0) -> 3829246
A20: =A19+1 -> 5 | C20: Total Demand Charges (SNG) | J20: =SUM(J16:J19) -> 16275058
B22: Storage Commodity 1/
A23: =A20+1 -> 6 | B23: Aquifer Peaking Injections | D23: =(+'Monthly Inputs'!S24+'Monthly Inputs'!S26+'Monthly Inputs'!S27) -> 1105923 | F23: x | H23: ='Other Inputs'!E6 -> 0.03872 | I23: = | J23: =ROUND(D23*H23,0) -> 42821
A24: =A23+1 -> 7 | B24: Aquifer Peaking Withdrawals | D24: =(+'Monthly Inputs'!S32+'Monthly Inputs'!S34+'Monthly Inputs'!S35) -> 1092569 | F24: x | H24: ='Other Inputs'!E7 -> 0.03872 | I24: = | J24: 42304
A25: 8 | B25: Spire Injections | D25: ='Monthly Inputs'!S28 -> 1742819 | F25: x | H25: ='Other Inputs'!E8 -> 0.015 | I25: = | J25: 26142
A26: 9 | B26: Spire Withdrawals | D26: ='Monthly Inputs'!S36 -> 2500000 | F26: x | H26: ='Other Inputs'!E9 -> 0.01 | I26: = | J26: 25000
A27: 10 | B27: Clay Basin Injections | D27: ='Monthly Inputs'!S25 -> 13318322 | F27: x | H27: ='Other Inputs'!E10 -> 0.01049 | I27: = | J27: 139709
A28: 11 | B28: Clay Basin Withdrawals | D28: ='Monthly Inputs'!S33 -> 12250671 | F28: x | H28: ='Other Inputs'!E11 -> 0.01781 | I28: = | J28: 218184
A29: 12 | C29: Total Commodity Charges | J29: =SUM(J23:J28) -> 494160
A31: =A29+1 -> 13 | B31: Total Storage Charges | K31: =J20+J29 -> 16769218
A39: 1/ | B39: Dominion Energy planned volumes.

Sheet Ut 1.4 p3
N1: ='Control Panel'!$E$32 -> Dominion Energy Utah
N2: ='Control Panel'!$E$33 -> Docket No. 20-057-07
N3: DEU Exhibit 1.4
N4: Page 3 of 4
B9: SUPPLIER NON-GAS COST CLASS ALLOCATION
A12: SNG | C12: (A) | D12: (B) | E12: (C) | F12: (D) | G12: (E) | H12: (F) | I12: (G) | J12: (H) | K12: (I) | L12: (J) | M12: (K) | N12: (L)
C13: Description | D13: Total UT & WY SNG | E13: Allocation Factor 1/ | F13: UT SNG | G13: COS Factor 2/ | H13: GS | I13: FS | J13: IS | K13: TSF | L13: TBF | M13: NGV | N13: UT SNG Total | O13: Check
B14: Transportation | O14: =N14-F14 -> 0
A15: 1 | C15: DEQPC T-1 Transportation: Yearly | D15: =+'Ut 1.4 p1'!$L$17+'Ut 1.4 p1'!$L$18 -> 59706329 | E15: 1 | F15: ='Ut 1.1 p2'!$H$53*$D15 -> 57885986.21 | G15: Firm Sales | H15: =$D$57*$F15 -> 56324649.92 | I15: =$E$57*$F15 -> 1425388.004 | J15: =$F$57*$F15 -> 0 | K15: =$G$57*$F15 -> 0 | L15: =$H$57*$F15 -> 0 | M15: =$I$57*$F15 -> 135948.2811 | N15: =SUM(H15:M15) -> 57885986.21 | O15: =N15-F15 -> 0
A16: 2 | C16: DEQPC T-1 Transportation: November - March | D16: =+'Ut 1.4 p1'!$L$19 -> 2553326 | E16: 1 | F16: ='Ut 1.1 p2'!$H$53*$D16 -> 2475479.503 | G16: Firm Sales | H16: =$D$57*$F16 -> 2408709.353 | I16: =$E$57*$F16 -> 60956.35609 | J16: 0 | K16: 0 | L16: 0 | M16: 5813.793723 | N16: 2475479.503 | O16: 0
A17: 3 | C17: DEQPC No-Notice Transportation | D17: =+'Ut 1.4 p1'!$L$20 -> 2118945 | E17: 1 | F17: ='Ut 1.1 p2'!$H$53*$D17 -> 2054342.029 | G17: Firm Sales | H17: 1998931.057 | I17: 50586.24161 | J17: 0 | K17: 0 | L17: 0 | M17: 4824.73023 | N17: 2054342.029 | O17: 0
A18: 4 | C18: Capacity Release Credits | D18: =+'Ut 1.4 p1'!$L$21 -> -4769816 | E18: 1 | F18: ='Ut 1.1 p2'!$H$53*$D18 -> -4624392.553 | G18: Firm Sales | H18: -4499660.604 | I18: -113871.3202 | J18: 0 | K18: 0 | L18: 0 | M18: -10860.62897 | N18: -4624392.553 | O18: 0
A19: 5 | C19: Kern River Transportation: Yearly | D19: =+'Ut 1.4 p1'!$L$25+'Ut 1.4 p1'!$L$26+'Ut 1.4 p1'!L27 -> 1458263 | E19: 1 | F19: ='Ut 1.1 p2'!$H$53*$D19 -> 1413803.081 | G19: Firm Sales | H19: 1375669.118 | I19: 34813.57206 | J19: 0 | K19: 0 | L19: 0 | M19: 3320.390846 | N19: 1413803.081 | O19: 0
A20: 6 | C20: Kern River Transportation: November - March | D20: =+'Ut 1.4 p1'!$L$28+'Ut 1.4 p1'!$L$31 -> 1975563 | E20: 1 | F20: ='Ut 1.1 p2'!$H$53*$D20 -> 1915331.498 | G20: Firm Sales | H20: 1863670.003 | I20: 47163.23795 | J20: 0 | K20: 0 | L20: 0 | M20: 4498.256693 | N20: 1915331.498 | O20: 0
A21: 7 | C21: Kern River Transportation: December - February | D21: =+'Ut 1.4 p1'!$L$29 -> 1485743 | E21: 1 | F21: ='Ut 1.1 p2'!$H$53*$D21 -> 1440445.263 | G21: Firm Sales | H21: 1401592.691 | I21: 35469.61076 | J21: 0 | K21: 0 | L21: 0 | M21: 3382.961411 | N21: 1440445.263 | O21: 0
A22: 8 | C22: Kern River Transportation: November & March | D22: =+'Ut 1.4 p1'!$L$30 -> 106140 | E22: 1 | F22: ='Ut 1.1 p2'!$H$53*$D22 -> 102903.9748 | G22: Firm Sales | H22: 100128.3858 | I22: 2533.913662 | J22: 0 | K22: 0 | L22: 0 | M22: 241.6753935 | N22: 102903.9748 | O22: 0
A23: 9 | C23: ACA (FERC) | D23: =+'Ut 1.4 p1'!$L$39 -> 172201 | E23: 2 | F23: ='Ut 1.1 p2'!$H$56*$D23 -> 166335.1041 | G23: Firm Sales | H23: 161848.6118 | I23: 4095.845604 | J23: 0 | K23: 0 | L23: 0 | M23: 390.6467347 | N23: 166335.1041 | O23: 0
A24: 10 | C24: QPC Commodity | D24: =+'Ut 1.4 p1'!$L$41 -> 300362 | E24: 2 | F24: ='Ut 1.1 p2'!$H$56*$D24 -> 290130.3973 | G24: Firm Sales | H24: 282304.8225 | I24: 7144.188346 | J24: 0 | K24: 0 | L24: 0 | M24: 681.3864874 | N24: 290130.3973 | O24: 0
A25: 11 | C25: Kern River Commodity | D25: =+'Ut 1.4 p1'!$L$49 -> 87855 | E25: 2 | F25: ='Ut 1.1 p2'!$H$56*$D25 -> 84862.28637 | G25: Firm Sales | H25: 82573.32879 | I25: 2089.654041 | J25: 0 | K25: 0 | L25: 0 | M25: 199.3035399 | N25: 84862.28637 | O25: 0
A26: 12 | C26: Other Transportation Charges | D26: =+'Ut 1.4 p1'!$M$55 -> 3873365 | E26: 2 | F26: ='Ut 1.1 p2'!$H$56*$D26 -> 3741421.773 | G26: Firm Sales | H26: 3640505.852 | I26: 92128.99465 | J26: 0 | K26: 0 | L26: 0 | M26: 8786.925682 | N26: 3741421.773 | O26: 0
C27: Total Transportation | D27: =SUM(D15:D26) -> 69068276 | F27: =SUM(F15:F26) -> 66946648.56 | H27: =SUM(H15:H26) -> 65140922.54 | I27: 1648498.299 | J27: 0 | K27: 0 | L27: 0 | M27: 157227.7229 | N27: =SUM(N15:N26) -> 66946648.56 | O27: 0
B29: Peak Hour
A30: 13 | C30: DEQPC Peak Hour Service | D30: =+'Ut 1.4 p1'!L62 -> 1405278 | E30: 1 | F30: ='Ut 1.1 p2'!$H$53*$D30 -> 1362433.502 | G30: Design Day | H30: =$D$56*$F30 -> 1092645.436 | I30: =$E$56*$F30 -> 15580.67524 | J30: =$F$56*$F30 -> 0 | K30: =$G$56*$F30 -> 198726.3201 | L30: =$H$56*$F30 -> 54792.38718 | M30: =$I$56*$F30 -> 688.6836251 | N30: =SUM(H30:M30) -> 1362433.502 | O30: =N30-F30 -> 0
A31: 14 | C31: Kern River Peak Hour Service | D31: =+'Ut 1.4 p1'!L61 -> 1005170 | E31: 1 | F31: ='Ut 1.1 p2'!$H$53*$D31 -> 974524.1037 | G31: Design Day | H31: =$D$56*$F31 -> 781549.5674 | I31: =$E$56*$F31 -> 11144.5759 | J31: =$F$56*$F31 -> 0 | K31: =$G$56*$F31 -> 142145.3515 | L31: =$H$56*$F31 -> 39192.00601 | M31: =$I$56*$F31 -> 492.6029721 | N31: =SUM(H31:M31) -> 974524.1037 | O31: =N31-F31 -> 0
C32: Total Peak Hour | D32: =SUM(D30:D31) -> 2410448 | F32: =SUM(F30:F31) -> 2336957.606 | H32: =SUM(H30:H31) -> 1874195.003 | I32: 26725.25114 | J32: 0 | K32: 340871.6716 | L32: 93984.39319 | M32: 1181.286597 | N32: 2336957.606
B34: Storage
A35: 15 | C35: Aquifer Peaking Storage Demand | D35: =+'Ut 1.4 p2'!$J$16 -> 6366793 | E35: 1 | F35: ='Ut 1.1 p2'!$H$53*$D35 -> 6172680.484 | G35: Firm Sales | H35: =$D$57*$F35 -> 6006187.164 | I35: =$E$57*$F35 -> 151996.4553 | J35: =$F$57*$F35 -> 0 | K35: =$G$57*$F35 -> 0 | L35: =$H$57*$F35 -> 0 | M35: =$I$57*$F35 -> 14496.86455 | N35: =SUM(H35:M35) -> 6172680.484 | O35: =N35-F35 -> 0
A36: 16 | C36: Spire Storage Demand | D36: =+'Ut 1.4 p2'!$J$17 -> 2250000 | E36: 1 | F36: ='Ut 1.1 p2'!$H$53*$D36 -> 2181401.388 | G36: Firm Sales | H36: 2122563.293 | I36: 53714.95892 | J36: 0 | K36: 0 | L36: 0 | M36: 5123.135815 | N36: 2181401.388 | O36: 0
A37: 17 | C37: Clay Basin Storage Demand | D37: =+'Ut 1.4 p2'!$J$18 -> 3829019 | E37: 1 | F37: ='Ut 1.1 p2'!$H$53*$D37 -> 3712278.828 | G37: Firm Sales | H37: 3612148.969 | I37: 91411.37702 | J37: 0 | K37: 0 | L37: 0 | M37: 8718.481944 | N37: 3712278.828 | O37: 0
A38: 18 | C38: Clay Basin Storage Capacity | D38: =+'Ut 1.4 p2'!$J$19 -> 3829246 | E38: 1 | F38: ='Ut 1.1 p2'!$H$53*$D38 -> 3712498.907 | G38: Firm Sales | H38: 3612363.112 | I38: 91416.79626 | J38: 0 | K38: 0 | L38: 0 | M38: 8718.998811 | N38: 3712498.907 | O38: 0
A39: 19 | C39: Aquifer Peaking Injections Storage Commodity | D39: =+'Ut 1.4 p2'!$J$23 -> 42821 | E39: 2 | F39: ='Ut 1.1 p2'!$H$56*$D39 -> 41362.33526 | G39: Firm Sales | H39: 40246.68501 | I39: 1018.50863 | J39: 0 | K39: 0 | L39: 0 | M39: 97.14161837 | N39: 41362.33526 | O39: 0
A40: 20 | C40: Aquifer Peaking Withdrawals Storage Commodity | D40: =+'Ut 1.4 p2'!$J$24 -> 42304 | E40: 2 | F40: ='Ut 1.1 p2'!$H$56*$D40 -> 40862.94647 | G40: Firm Sales | H40: 39760.76605 | I40: 1006.211651 | J40: 0 | K40: 0 | L40: 0 | M40: 95.96877755 | N40: 40862.94647 | O40: 0
A41: 21 | C41: Spire Injections Storage Commodity | D41: =+'Ut 1.4 p2'!$J$25 -> 26142 | E41: 2 | F41: ='Ut 1.1 p2'!$H$56*$D41 -> 25251.49269 | G41: Firm Sales | H41: 24570.39396 | I41: 621.794274 | J41: 0 | K41: 0 | L41: 0 | M41: 59.3044578 | N41: 25251.49269 | O41: 0
A42: 22 | C42: Spire Withdrawals Storage Commodity | D42: =+'Ut 1.4 p2'!$J$26 -> 25000 | E42: 2 | F42: ='Ut 1.1 p2'!$H$56*$D42 -> 24148.39405 | G42: Firm Sales | H42: 23497.04877 | I42: 594.6315068 | J42: 0 | K42: 0 | L42: 0 | M42: 56.71377266 | N42: 24148.39405 | O42: 0
A43: 23 | C43: Clay Basin Injections Storage Commodity | D43: =+'Ut 1.4 p2'!$J$27 -> 139709 | E43: 2 | F43: ='Ut 1.1 p2'!$H$56*$D43 -> 134949.9194 | G43: Firm Sales | H43: 131309.9675 | I43: 3323.014927 | J43: 0 | K43: 0 | L43: 0 | M43: 316.9369786 | N43: 134949.9194 | O43: 0
A44: 24 | C44: Clay Basin Withdrawals Storage Commodity | D44: =+'Ut 1.4 p2'!$J$28 -> 218184 | E44: 2 | F44: ='Ut 1.1 p2'!$H$56*$D44 -> 210751.7283 | G44: Firm Sales | H44: 205067.2036 | I44: 5189.563227 | J44: 0 | K44: 0 | L44: 0 | M44: 494.961511 | N44: 210751.7283 | O44: 0
C45: Total Storage | D45: =SUM(D35:D44) -> 16769218 | F45: =SUM(F35:F44) -> 16256186.42 | H45: =SUM(H35:H44) -> 15817714.6 | I45: 400293.3117 | J45: 0 | K45: 0 | L45: 0 | M45: 38178.50824 | N45: 16256186.42
A47: 25 | C47: Supplier Non-Gas Costs | D47: =+D27+D32+D45 -> 88247942 | F47: =+F27+F32+F45 -> 85539792.59 | H47: =+H27+H32+H45 -> 82832832.15 | I47: 2075516.862 | J47: 0 | K47: 340871.6716 | L47: 93984.39319 | M47: 196587.5177 | N47: 85539792.59 | O47: =N47-F47 -> 0
B53: 1/ | C53: Allocations Factors, DEU Exhibit 1.1 page 2, footnote
B55: 2/ | C55: Cost-of-Service Allocation Factor Docket No. 19-057-02 | D55: GS | E55: FS | F55: IS | G55: TS | H55: TBF | I55: NGV | J55: Total
C56: 210 Design Day | D56: =+'Other Inputs'!C305 -> 0.8019807457 | E56: =+'Other Inputs'!D305 -> 0.01143591611 | F56: =+'Other Inputs'!E305 -> 0 | G56: =+'Other Inputs'!F305 -> 0.1458612988 | H56: =+'Other Inputs'!G305 -> 0.04021655889 | I56: =+'Other Inputs'!H305 -> 0.000505480542 | J56: =SUM(D56:I56) -> 1
C57: 240 Firm Sales | D57: =+'Other Inputs'!C306 -> 0.9730273873 | E57: =+'Other Inputs'!D306 -> 0.02462406012 | F57: =+'Other Inputs'!E306 -> 0 | G57: =+'Other Inputs'!F306 -> 0 | H57: =+'Other Inputs'!G306 -> 0 | I57: =+'Other Inputs'!H306 -> 0.00234855256 | J57: =SUM(D57:I57) -> 1

Sheet Ut 1.4 p4
I1: ='Control Panel'!$E$32 -> Dominion Energy Utah
I2: ='Control Panel'!$E$33 -> Docket No. 20-057-07
I3: DEU Exhibit 1.4
I4: Page 4 of 4
C6: SUPPLIER NON-GAS COST SUMMARY
A9: SNG | C9: (A) | D9: (B) | E9: (C) | F9: (D) | G9: (E) | H9: (F) | I9: (G)
B10: Description | C10: GS | D10: FS | E10: IS | F10: TS | G10: TBF | H10: NGV | I10: Total
A13: 1 | B13: Transportation - Demand | C13: =SUM('Ut 1.4 p3'!H15:H22) -> 60973689.93 | D13: =SUM('Ut 1.4 p3'!I15:I22) -> 1543039.616 | E13: =SUM('Ut 1.4 p3'!J15:J22) -> 0 | F13: =SUM('Ut 1.4 p3'!K15:K22) -> 0 | G13: =SUM('Ut 1.4 p3'!L15:L22) -> 0 | H13: =SUM('Ut 1.4 p3'!M15:M22) -> 147169.4604 | I13: =SUM(C13:H13) -> 62663899
A14: =+A13+1 -> 2 | B14: Transportation - Commodity | C14: =SUM('Ut 1.4 p3'!H23:H25) -> 526726.7631 | D14: =SUM('Ut 1.4 p3'!I23:I25) -> 13329.68799 | E14: =SUM('Ut 1.4 p3'!J23:J25) -> 0 | F14: =SUM('Ut 1.4 p3'!K23:K25) -> 0 | G14: =SUM('Ut 1.4 p3'!L23:L25) -> 0 | H14: =SUM('Ut 1.4 p3'!M23:M25) -> 1271.336762 | I14: =SUM(C14:H14) -> 541327.7879
A16: =+A14+1 -> 3 | B16: Other Transportation | C16: =+'Ut 1.4 p3'!H26 -> 3640505.852 | D16: =+'Ut 1.4 p3'!I26 -> 92128.99465 | E16: =+'Ut 1.4 p3'!J26 -> 0 | F16: =+'Ut 1.4 p3'!K26 -> 0 | G16: =+'Ut 1.4 p3'!L26 -> 0 | H16: =+'Ut 1.4 p3'!M26 -> 8786.925682 | I16: =SUM(C16:H16) -> 3741421.773
A18: =+A16+1 -> 4 | B18: Peak Hour Service | C18: =SUM('Ut 1.4 p3'!H30:H31) -> 1874195.003 | D18: =SUM('Ut 1.4 p3'!I30:I31) -> 26725.25114 | E18: =SUM('Ut 1.4 p3'!J30:J31) -> 0 | F18: =SUM('Ut 1.4 p3'!K30:K31) -> 340871.6716 | G18: =SUM('Ut 1.4 p3'!L30:L31) -> 93984.39319 | H18: =SUM('Ut 1.4 p3'!M30:M31) -> 1181.286597 | I18: =SUM(C18:H19) -> 2336957.606
A19: 5 | B19: TBF Adjustment 1/ | C19: =+C18/($C$18+$D$18+$F$18+$H$18)*-$G$19 -> 39265.97944 | D19: =+D18/($C$18+$D$18+$F$18+$H$18)*-$G$19 -> 559.9167429 | E19: =+E18/($C$18+$D$18+$F$18+$H$18)*$G$18 -> 0 | F19: =+F18/($C$18+$D$18+$F$18+$H$18)*-$G$19 -> 7141.551452 | G19: =+-G18*0.5 -> -46992.1966 | H19: =+H18/($C$18+$D$18+$F$18+$H$18)*-$G$19 -> 24.74895897 | I19: =SUM(C19:H19) -> 4.970246437e-12
A20: 6 | B20: Total Peak Hour Service | C20: =SUM(C18:C19) -> 1913460.983 | D20: 27285.16788 | E20: 0 | F20: 348013.223 | G20: 46992.1966 | H20: 1206.035556 | I20: 2336957.606
A22: 7 | B22: Storage - Demand | C22: =SUM('Ut 1.4 p3'!H35:H38) -> 15353262.54 | D22: =SUM('Ut 1.4 p3'!I35:I38) -> 388539.5875 | E22: =SUM('Ut 1.4 p3'!J35:J38) -> 0 | F22: =SUM('Ut 1.4 p3'!K35:K38) -> 0 | G22: =SUM('Ut 1.4 p3'!L35:L38) -> 0 | H22: =SUM('Ut 1.4 p3'!M35:M38) -> 37057.48112 | I22: =SUM(C22:H22) -> 15778859.61
A23: 8 | B23: Storage - Commodity | C23: =SUM('Ut 1.4 p3'!H39:H44) -> 464452.0648 | D23: =SUM('Ut 1.4 p3'!I39:I44) -> 11753.72422 | E23: =SUM('Ut 1.4 p3'!J39:J44) -> 0 | F23: =SUM('Ut 1.4 p3'!K39:K44) -> 0 | G23: =SUM('Ut 1.4 p3'!L39:L44) -> 0 | H23: =SUM('Ut 1.4 p3'!M39:M44) -> 1121.027116 | I23: =SUM(C23:H23) -> 477326.8161
A26: =+A23+1 -> 9 | B26: Total SNG | C26: =SUM(C13:C14,C16,C20,C22:C23) -> 82872098.13 | D26: 2076076.778 | E26: 0 | F26: 348013.223 | G26: 46992.1966 | H26: 196612.2667 | I26: =SUM(C26:H26) -> 85539792.59
A29: =+A26+1 -> 10 | B29: Percent Allocated to Rate Classes | C29: =C26/$I$26 -> 0.9688134097 | D29: 0.0242703041 | E29: 0 | F29: 0.004068436601 | G29: 0.0005493606563 | H29: 0.002298488934 | I29: =SUM(C29:H29) -> 1
A34: 1/ | B34: Represents a 50% subsidy of costs to the TBF class, which is allocated to all other classes using the design day factor.

Sheet Ut 1.5 p1
J1: ='Control Panel'!$E$32 -> Dominion Energy Utah
J2: ='Control Panel'!$E$33 -> Docket No. 20-057-07
J3: DEU Exhibit 1.5
J4: Page 1 of 6
B8: TEST-YEAR GAS COST CHANGE
B10: COMMODITY
B11: (A) | C11: (B) | D11: (C) | F11: (D) | H11: (E) | J11: (F)
F12: Average Rate | H12: x Dth | I12: = | J12: Total
A13: 1 | B13: Commodity Portion of Test-Year Gas Cost 1/ | J13: ='Ut 1.1 p2'!H29 -> 342841810.9
A14: =A13+1 -> 2 | B14: 191 Account Balance for Commodity Costs 2/ | J14: =D45 -> 19711480.36
A15: =A14+1 -> 3 | B15: Total | J15: =J13+J14 -> 362553291.2
H17: Total
B18: Test-Year Sales: | D18: Firm | F18: + Interruptible | H18: = Sales Dth
A20: =A15+1 -> 4 | B20: Utah | D20: =Calculations!P13 -> 111315871 | F20: =Calculations!P17 -> 130911 | H20: =D20+F20 -> 111446782
A21: =A20+1 -> 5 | B21: Wyoming | D21: =Calculations!P32 -> 3795632 | F21: =Calculations!P36 -> 134598 | H21: =D21+F21 -> 3930230
A22: =A21+1 -> 6 | B22: Total Dth | H22: =SUM(H20:H21) -> 115377012
F26: Current Case | H26: Prior Case
B27: COMMODITY RATES | F27: ='Control Panel'!E5 -> 20-057-07 | H27: ='Control Panel'!E9 -> 19-057-18 | J27: Difference
A29: =A22+1 -> 7 | B29: Gas Cost (line 1/Total Sales Dth, line 4) | F29: =ROUND((J13)/H20,5) -> 3.07628 | H29: ='Other Inputs'!F116 -> 3.14885 | J29: =F29-H29 -> -0.07257
A30: =A29+1 -> 8 | B30: 191 Account Amortization (Commodity Portion) | F30: =H30 -> 0.43865 | H30: ='Other Inputs'!F117 -> 0.43865 | J30: =F30-H30 -> 0
A31: 9 | B31: Tax Reform Surcredit 4 3/ | F31: =H48 -> -0.009720338639 | H31: 0 | J31: =F31-H31 -> -0.009720338639
A32: 10 | B32: Total Sales Unit Commodity Cost (Lines 7 + 8 + 9) | F32: =F29+F30+F31 -> 3.505209661 | H32: =H29+H30+H31 -> 3.5875 | J32: =J29+J30+J31 -> -0.08229033864
A39: 1/ | B39: DEU Exhibit 1.1, page 2, line 9, column E.
A41: 2/ | B41: Amortization from Docket No. 19-057-18
B42: Commodity amortization will be adjusted in the 2020 fall pass-through.
B43: 191 Account (March 2020) actual | D43: ='Other Inputs'!E134 -> 6673595.36
B44: Less: Supplier Non-Gas balance actual | D44: ='Other Inputs'!E135 -> -13037885
B45: 191 Account Commodity Portion | D45: =(D43-D44) -> 19711480.36 | F45: =H20 -> 111446782 | H45: =D45/F45 -> 0.1768689953
B46: See Application, paragraph 15.
A48: 3/ | B48: Purchase Gas Agreement EDIT | D48: -1083300.461 | F48: =H20 -> 111446782 | H48: =D48/F48 -> -0.009720338639
B49: 12 months beginning June 2020

Sheet Ut 1.5 p2
G1: ='Control Panel'!$E$32 -> Dominion Energy Utah
G2: ='Control Panel'!$E$33 -> Docket No. 20-057-07
G3: DEU Exhibit 1.5
G4: Page 2 of 6
C8: TEST-YEAR SUPPLIER NON-GAS COST CHANGE
B10: SNG
C11: (A) | D11: (B) | E11: (C) | F11: (D)
D12: Dth | E12: Average Rate | F12: Total
B15: 1 | C15: Supplier Non-Gas (SNG) Costs 1/ | F15: ='Ut 1.1 p2'!H43 -> 85539792.59
B16: =B15+1 -> 2 | C16: 191 Account Balance for SNG Costs 2/ | F16: =E47 -> 962115
B17: =1+B16 -> 3 | C17: SNG Total Costs Recovered for Test-Year 3/ | F17: =SUM(F15:F16) -> 86501907.59
B20: 4 | C20: Supplier Non-Gas Base Cost at Current Rates | F20: =F22-F21 -> 85381646.16
B21: 5 | C21: Amortization | F21: ='Other Inputs'!F139 -> 2440017
B22: 6 | C22: SNG Total Costs Recovered at Current Rates 3/ | F22: ='Other Inputs'!E242-(D30*('Other Inputs'!G93-'Other Inputs'!F243)) -> 87821663.16
B25: =1+B22 -> 7 | C25: SNG Costs Adjustment to Current Rates (Line 3 - Line 6) | F25: =F17-F22 -> -1319755.57
C29: Adjustment for SNG contributions from:
B30: 8 | C30: IS SNG current rate | D30: ='RevRun Fcst'!T102+'RevRun Fcst'!T93 -> 130911 | E30: ='Other Inputs'!E44 -> 0.17652 | F30: =D30*E30 -> 23108.40972
B31: 9 | C31: IS SNG new rate | D31: ='RevRun Fcst'!T102+'RevRun Fcst'!T93 -> 130911 | E31: ='Other Inputs'!F44 -> 0.17652 | F31: =D31*E31 -> 23108.40972
B35: 10 | C35: Percent Change to Current Base Rates | F35: =(((+F17-F31)-(F22-F30))/(F22-F30))*100 -> -1.503163205 | G35: %
C36: ((ln 1-ln 9)-(ln 4-ln 8))/(ln 4-8)
B38: =B35+1 -> 11 | C38: Percent Change to Amortization | F38: =((F16-F21)/F21)*100 -> -60.5693321 | G38: %
C39: (ln 2-ln 5)/ln 5
B43: 1/ | C43: DEU Exhibit 1.1, page 2, line 16, column E.
B45: 2/ | C45: Actual March 2020 SNG Balance | E45: ='Other Inputs'!D138 -> -13037885
C46: Expected March 2020 SNG Balance | E46: ='Other Inputs'!E138 -> -14000000
E47: ='Other Inputs'!F138 -> 962115 | H47: =E45-E46-E47 -> 0
B49: 3/ | C49: ="Output of Revrun.Exe computer program dated "&'RevRun Fcst'!D4 -> Output of Revrun.Exe computer program dated 04/14/20

Sheet Ut 1.5 p3
I1: ='Control Panel'!$E$32 -> Dominion Energy Utah
I2: ='Control Panel'!$E$33 -> Docket No. 20-057-07
I3: DEU Exhibit 1.5
I4: Page 3 of 6
B7: SUPPLIER NON-GAS RATE CALCULATION
B9: SNG | C9: (A) | D9: (B) | E9: (C) | F9: (D) | G9: (E) | H9: (F) | I9: (G)
C10: GS | D10: FS | E10: IS 1/ | F10: TSF | G10: TBF | H10: NGV | I10: Total
A11: 1 | B11: Allocated SNG Costs | C11: =+'Ut 1.4 p4'!C26 -> 82872098.13 | D11: =+'Ut 1.4 p4'!D26 -> 2076076.778 | E11: =+'Ut 1.4 p4'!E26 -> 0 | F11: =+'Ut 1.4 p4'!F26 -> 348013.223 | G11: =+'Ut 1.4 p4'!G26 -> 46992.1966 | H11: =+'Ut 1.4 p4'!H26 -> 196612.2667 | I11: =SUM(C11:H11) -> 85539792.59
A12: =+A11+1 -> 2 | B12: IS SNG Revenue | C12: =-$E$12*'Ut 1.4 p4'!C29 -> -22699.95948 | D12: =-$E$12*'Ut 1.4 p4'!D29 -> -568.6697914 | E12: =$E$17*E23 -> 23430.68258 | F12: =-$E$12*'Ut 1.4 p4'!F29 -> -95.3262466 | G12: =-$E$12*'Ut 1.4 p4'!G29 -> -12.87189516 | H12: =-$E$12*'Ut 1.4 p4'!H29 -> -53.85516462 | I12: =SUM(C12:H12) -> -9.876544027e-13
A13: 3 | B13: SNG Costs to Recover | C13: =+C11+C12 -> 82849398.17 | D13: 2075508.109 | E13: 23430.68258 | F13: 347917.8968 | G13: 46979.3247 | H13: 196558.4115 | I13: =SUM(C13:H13) -> 85539792.59
A14: 4 | B14: Summer/Winter Differential | C14: ='Ut 1.5 p4'!C38 -> 0.5269249975 | D14: ='Ut 1.5 p5'!C39 -> 0.1217166322 | F14: 0 | G14: 0 | H14: 0
A15: 5 | B15: Summer Forecast Throughput 2020-21 | C15: =SUM('RevRun Fcst'!$H$21:$L$21,'RevRun Fcst'!$R$21:$S$21) -> 29870999 | D15: =SUM('RevRun Fcst'!$H$48:$L$48,'RevRun Fcst'!$R$48:$S$48) -> 1282223 | E15: =SUM('RevRun Fcst'!$H$102:$L$102,'RevRun Fcst'!$R$102:$S$102) -> 57643 | F15: =SUM('RevRun Fcst'!$H$165:$L$165,'RevRun Fcst'!$R$165:$S$165) -> 28659170 | G15: =SUM('RevRun Fcst'!$H$129:$L$129,'RevRun Fcst'!$R$129:$S$129) -> 1551284 | H15: =SUM('RevRun Fcst'!$H$66:$L$66,'RevRun Fcst'!$R$66:$S$66) -> 154347
A16: 6 | B16: Winter Forecast Throughput 2020-21 | C16: =SUM('RevRun Fcst'!$M$21:$Q$21) -> 78651859 | D16: =SUM('RevRun Fcst'!$M$48:$Q$48) -> 1255504 | E16: =SUM('RevRun Fcst'!$M$102:$Q$102) -> 73268 | F16: =SUM('RevRun Fcst'!$M$165:$Q$165) -> 27253618 | G16: =SUM('RevRun Fcst'!$M$129:$Q$129) -> 654571 | H16: =SUM('RevRun Fcst'!$M$66:$Q$66) -> 100939
A17: 7 | B17: Total Forecast Throughput 2020-21 | C17: =SUM(C15:C16) -> 108522858 | D17: 2537727 | E17: 130911 | F17: 55912788 | G17: 2205855 | H17: 255286
A18: 8 | B18: Forecast Demand Dth | C18: 0 | D18: 0 | F18: =+'Other Inputs'!D308 -> 209535 | G18: =+'Other Inputs'!D309 -> 45000 | H18: 0
A20: =A18+1 -> 9 | B20: Summer Base Rate | C20: =C21-C14 -> 0.3815395975 | D20: =D21-D14 -> 0.7576435094 | F20: 0 | G20: 0 | H20: 0
A21: =A20+1 -> 10 | B21: Winter Base Rate | C21: =(C13+C14*C15)/C17 -> 0.908464595 | D21: =(D13+D14*D15)/D17 -> 0.8793601415 | F21: 0 | G21: 0 | H21: 0
A23: =A21+1 -> 11 | B23: Year Round Base Rates | C23: 0 | D23: 0 | E23: =+C54 -> 0.1789817707 | F23: 0 | G23: 0 | H23: =H13/H17 -> 0.769953744
A25: =A23+1 -> 12 | B25: Annual Demand Rate | C25: 0 | D25: 0 | F25: =F13/F18 -> 1.660428553 | G25: =G13/G18 -> 1.043984993 | H25: 0
A26: =A25+1 -> 13 | B26: Monthly Demand Rate | C26: 0 | D26: 0 | F26: =F25/12 -> 0.1383690461 | G26: =G25/12 -> 0.08699874945 | H26: 0
A28: =A26+1 -> 14 | B28: Revenue Collected With Rate | C28: =C20*C15+C16*C21 -> 82849398.17 | D28: =D20*D15+D16*D21 -> 2075508.109 | E28: =+E17*E23 -> 23430.68258 | F28: =F25*F18 -> 347917.8968 | G28: =G25*G18 -> 46979.3247 | H28: =H23*H17 -> 196558.4115 | I28: =SUM(C28:H28) -> 85539792.59
A30: =+A28+1 -> 15 | B30: Amortization of Balance | C30: =+'Ut 1.5 p2'!$F$16*'Ut 1.4 p4'!C29 -> 932109.9137 | D30: =+'Ut 1.5 p2'!$F$16*'Ut 1.4 p4'!D29 -> 23350.82362 | E30: =+'Ut 1.5 p2'!$F$16*'Ut 1.4 p4'!E29 -> 0 | F30: =+'Ut 1.5 p2'!$F$16*'Ut 1.4 p4'!F29 -> 3914.303881 | G30: =+'Ut 1.5 p2'!$F$16*'Ut 1.4 p4'!G29 -> 528.5481278 | H30: =+'Ut 1.5 p2'!$F$16*'Ut 1.4 p4'!H29 -> 2211.41068
A31: =+A30+1 -> 16 | B31: Summer/Winter Differential | C31: =+'Ut 1.5 p4'!C44 -> 0.005929436447 | D31: =+'Ut 1.5 p5'!C45 -> 0.001369385941
A33: =+A31+1 -> 17 | B33: Summer Amortization Rate | C33: =C34-C31 -> 0.004291710732 | D33: =D34-D31 -> 0.008523987844
A34: =+A33+1 -> 18 | B34: Winter Amortization Rate | C34: =(C30+C31*C15)/C17 -> 0.01022114718 | D34: =(D30+D31*D15)/D17 -> 0.009893373784
A35: =+A34+1 -> 19 | B35: Annual Amortization Rate | F35: =+F30/F18 -> 0.01868090715 | G35: =+G30/G18 -> 0.01174551395 | H35: =+H30/H17 -> 0.008662483177
A37: =+A35+1 -> 20 | B37: Amortization Collected With Rate | C37: =+C15*C33+C16*C34 -> 932109.9137 | D37: =+D15*D33+D16*D34 -> 23350.82362 | E37: 0 | F37: =+F35*F18 -> 3914.303881 | G37: =+G35*G18 -> 528.5481278 | H37: =+H35*H17 -> 2211.41068 | I37: =SUM(C37:H37) -> 962115
A39: =+A37+1 -> 21 | B39: Summer Total Rate | C39: =+C20+C33 -> 0.3858313082 | D39: =+D20+D33 -> 0.7661674972
A40: =+A39+1 -> 22 | B40: Winter Total Rate | C40: =+C21+C34 -> 0.9186857422 | D40: =+D21+D34 -> 0.8892535153
A41: =+A40+1 -> 23 | B41: Annual Total Rate | E41: =+E23 -> 0.1789817707 | F41: =+F25+F35 -> 1.67910946 | G41: =+G25+G35 -> 1.055730507 | H41: =+H23+H35 -> 0.7786162272
A42: =+A41+1 -> 24 | B42: Monthly Total Rate | F42: =+F41/12 -> 0.1399257883 | G42: =+G41/12 -> 0.08797754228
A44: =+A42+1 -> 25 | B44: Summer Total Collected | C44: =+C15*C39 -> 11525166.62 | D44: =+D15*D39 -> 982397.5868
A45: =+A44+1 -> 26 | B45: Winter Total Collected | C45: =+C16*C40 -> 72256341.46 | D45: =+D16*D40 -> 1116461.345
A46: =+A45+1 -> 27 | B46: Annual Total Collected | E46: =+E41*E17 -> 23430.68258 | F46: =+F41*F18 -> 351832.2007 | G46: =+G41*G18 -> 47507.87283 | H46: =+H41*H17 -> 198769.8222
C47: =SUM(C44:C46) -> 83781508.08 | D47: 2098858.932 | E47: 23430.68258 | F47: 351832.2007 | G47: 47507.87283 | H47: 198769.8222 | I47: =SUM(C47:H47) -> 86501907.59
A51: 1/ | B51: ="Calculated by adding QPC T-2 and ACA rates, then adjusting for distr. loss of "&TEXT('Other Inputs'!E268,"0.000%") -> Calculated by adding QPC T-2 and ACA rates, then adjusting for distr. loss of 0.450%
B52: ="= ("&TEXT('Other Inputs'!$F$44,"$0.00000")&" + "&TEXT('Other Inputs'!$F$45,"$0.00000")&") / ( 1 - "&TEXT('Other Inputs'!$E$268,"0.00000")&" ) = "&TEXT(('Other Inputs'!F44+'Other Inputs'!F45)/(1-('Other Inputs'!$E$268)),("$0.00000")) -> = ($0.17652 + $0.00130) / ( 1 - 0.00450 ) = $0.17862
B53: ="IS Tariff rate has an adjustment for bad debt of "&TEXT('Other Inputs'!$E$279,"0.00%") -> IS Tariff rate has an adjustment for bad debt of 0.20%
B54: =" = "&TEXT((('Other Inputs'!$F$44+'Other Inputs'!$F$45)/(1-'Other Inputs'!$E$268)),"$0.00000")&" / ( 1 - "&TEXT('Other Inputs'!$E$279,"0.00000")&" ) = " -> = $0.17862 / ( 1 - 0.00200 ) = | C54: =+(('Other Inputs'!$F$44+'Other Inputs'!$F$45)/(1-'Other Inputs'!$E$268))/(1-('Other Inputs'!$E$279)) -> 0.1789817707

Sheet Ut 1.5 p4
E1: ='Control Panel'!$E$32 -> Dominion Energy Utah
E2: ='Control Panel'!$E$33 -> Docket No. 20-057-07
E3: DEU Exhibit 1.5
E4: Page 4 of 6
A6: GENERAL SERVICE SUMMER / WINTER DIFFERENTIAL
A8: SNG | B8: (A) | C8: (B) | D8: (C) | E8: (D)
B9: Contract | C9: Allocated GS Costs | D9: Winter Allocation | E9: Summer Allocation
A10: 1 | B10: DEQPC T-1 Transportation: Yearly | C10: =+'Ut 1.4 p3'!H15 -> 56324649.92 | D10: =C10*D47 -> 40821247.3 | E10: =C10*$D$46 -> 15503402.62
A11: =A10+1 -> 2 | B11: DEQPC T-1 Transportation: November - March | C11: =+'Ut 1.4 p3'!H16 -> 2408709.353 | D11: =C11 -> 2408709.353
A12: =A11+1 -> 3 | B12: DEQPC No-Notice Transportation | C12: =+'Ut 1.4 p3'!H17 -> 1998931.057 | D12: =C12*D47 -> 1448723.767 | E12: =C12*$D$46 -> 550207.29
A13: 4 | B13: Capacity Release Credits | C13: =+'Ut 1.4 p3'!H18 -> -4499660.604 | D13: =C13*$D$47 -> -3261125.609 | E13: =C13*$D$46 -> -1238534.995
A14: 5 | B14: Kern River Transportation: Yearly | C14: =+'Ut 1.4 p3'!H19 -> 1375669.118 | D14: =C14*$D$47 -> 997015.1497 | E14: =C14*$D$46 -> 378653.9685
A15: 6 | B15: Kern River Transportation: November - March | C15: =+'Ut 1.4 p3'!H20 -> 1863670.003 | D15: =C15 -> 1863670.003
A16: 7 | B16: Kern River Transportation: December - February | C16: =+'Ut 1.4 p3'!H21 -> 1401592.691 | D16: =C16 -> 1401592.691
A17: 8 | B17: Kern River Transportation: November & March | C17: =+'Ut 1.4 p3'!H22 -> 100128.3858 | D17: =C17 -> 100128.3858
A18: 9 | B18: ACA (FERC) | C18: =+'Ut 1.4 p3'!H23 -> 161848.6118 | D18: =C18*$D$47 -> 117299.6586 | E18: =C18*$D$46 -> 44548.95319
A19: 10 | B19: QPC Commodity | C19: =+'Ut 1.4 p3'!H24 -> 282304.8225 | D19: =C19*$D$47 -> 204600.2059 | E19: 77704.61658
A20: 11 | B20: Kern River Commodity | C20: =+'Ut 1.4 p3'!H25 -> 82573.32879 | D20: =C20*$D$47 -> 59844.95739 | E20: 22728.3714
A21: 12 | B21: Other Transportation Charges | C21: =+'Ut 1.4 p3'!H26 -> 3640505.852 | D21: =C21*$D$47 -> 2638453.854 | E21: 1002051.998
A22: 13 | B22: DEQPC Peak Hour Service | C22: =+'Ut 1.4 p3'!H30 -> 1092645.436 | D22: =C22 -> 1092645.436
A23: 14 | B23: Kern River Peak Hour Service | C23: =+'Ut 1.4 p3'!H31 -> 781549.5674 | D23: =C23 -> 781549.5674
A24: 15 | B24: Aquifer Peaking Storage Demand | C24: =+'Ut 1.4 p3'!H35 -> 6006187.164 | D24: =C24*$D$47 -> 4352979.59 | E24: 1653207.574
A25: 16 | B25: Spire Storage Demand | C25: =+'Ut 1.4 p3'!H36 -> 2122563.293 | D25: 1538326.137 | E25: 584237.1569
A26: 17 | B26: Clay Basin Storage Demand | C26: =+'Ut 1.4 p3'!H37 -> 3612148.969 | D26: 2617902.224 | E26: 994246.7441
A27: 18 | B27: Clay Basin Storage Capacity | C27: =+'Ut 1.4 p3'!H38 -> 3612363.112 | D27: 2618057.424 | E27: 994305.6871
A28: 19 | B28: Aquifer Peaking Injections Storage Commodity | C28: =+'Ut 1.4 p3'!H39 -> 40246.68501 | D28: 29168.75443 | E28: 11077.93059
A29: 20 | B29: Aquifer Peaking Withdrawals Storage Commodity | C29: =+'Ut 1.4 p3'!H40 -> 39760.76605 | D29: 28816.58503 | E29: 10944.18102
A30: 21 | B30: Spire Injections Storage Commodity | C30: =+'Ut 1.4 p3'!H41 -> 24570.39396 | D30: 17807.37438 | E30: 6763.019578
A31: 22 | B31: Spire Withdrawals Storage Commodity | C31: =+'Ut 1.4 p3'!H42 -> 23497.04877 | D31: 17029.46827 | E31: 6467.580501
A32: 23 | B32: Clay Basin Injections Storage Commodity | C32: =+'Ut 1.4 p3'!H43 -> 131309.9675 | D32: 95166.7993 | E32: 36143.16817
A33: 24 | B33: Clay Basin Withdrawals Storage Commodity | C33: =+'Ut 1.4 p3'!H44 -> 205067.2036 | D33: 148622.3002 | E33: 56444.90336
A34: 25 | B34: Utah SNG Costs | C34: =SUM(C10:C33) -> 82832832.15 | D34: =SUM(D10:D33) -> 62138231.37 | E34: =SUM(E10:E33) -> 20694600.77
A36: =A34+1 -> 26 | B36: Winter SNG - Summer SNG | C36: =D34-E34 -> 41443630.6
A37: =A36+1 -> 27 | B37: Winter Dth | C37: =C47 -> 78651859
A38: =A37+1 -> 28 | B38: Seasonal Cost Differential | C38: =C36/C37 -> 0.5269249975
A40: 29 | B40: SNG Amortization | C40: =+'Ut 1.5 p3'!C30 -> 932109.9137 | D40: =+C40*D34/C34 -> 699235.5565 | E40: =+C40*E34/C34 -> 232874.3572
A42: 30 | B42: Winter SNG - Summer SNG Amortization | C42: =+D40-E40 -> 466361.1993
A43: 31 | B43: Winter Dth | C43: =+C47 -> 78651859
A44: =+A43+1 -> 32 | B44: Seasonal Cost Differential | C44: =+C42/C43 -> 0.005929436447
A46: =+A44+1 -> 33 | B46: 2020-21 Forecast GS Summer Usage | C46: =+'Ut 1.5 p3'!C15 -> 29870999 | D46: =C46/(C46+C47) -> 0.2752507587
A47: =A46+1 -> 34 | B47: 2020-21 Forecast GS Winter Usage | C47: =+'Ut 1.5 p3'!C16 -> 78651859 | D47: =C47/(C47+C46) -> 0.7247492413

Sheet Ut 1.5 p5
E1: ='Control Panel'!$E$32 -> Dominion Energy Utah
E2: ='Control Panel'!$E$33 -> Docket No. 20-057-07
E3: DEU Exhibit 1.5
E4: Page 5 of 6
A7: FIRM SALES SUMMER / WINTER DIFFERENTIAL
A9: SNG | B9: (A) | C9: (B) | D9: (C) | E9: (D)
B10: Contract | C10: Allocated FS Costs | D10: Winter Allocation | E10: Summer Allocation
A11: 1 | B11: DEQPC T-1 Transportation: Yearly | C11: =+'Ut 1.4 p3'!I15 -> 1425388.004 | D11: =C11*D49 -> 705190.2513 | E11: =C11*$D$48 -> 720197.7529
A12: =A11+1 -> 2 | B12: DEQPC T-1 Transportation: November - March | C12: =+'Ut 1.4 p3'!I16 -> 60956.35609 | D12: =C12 -> 60956.35609
A13: =A12+1 -> 3 | B13: DEQPC No-Notice Transportation | C13: =+'Ut 1.4 p3'!I17 -> 50586.24161 | D13: =C13*D49 -> 25026.81679 | E13: =C13*$D$48 -> 25559.42482
A14: 4 | B14: Capacity Release Credits | C14: =+'Ut 1.4 p3'!I18 -> -113871.3202 | D14: =C14*$D$49 -> -56336.20087 | E14: =C14*$D$48 -> -57535.11935
A15: 5 | B15: Kern River Transportation: Yearly | C15: =+'Ut 1.4 p3'!I19 -> 34813.57206 | D15: =C15*$D$49 -> 17223.51497 | E15: =C15*$D$48 -> 17590.05709
A16: 6 | B16: Kern River Transportation: November - March | C16: =+'Ut 1.4 p3'!I20 -> 47163.23795 | D16: =C16 -> 47163.23795
A17: 7 | B17: Kern River Transportation: December - February | C17: =+'Ut 1.4 p3'!I21 -> 35469.61076 | D17: =C17 -> 35469.61076
A18: 8 | B18: Kern River Transportation: November & March | C18: =+'Ut 1.4 p3'!I22 -> 2533.913662 | D18: =C18 -> 2533.913662
A19: 9 | B19: ACA (FERC) | C19: =+'Ut 1.4 p3'!I23 -> 4095.845604 | D19: =C19*$D$49 -> 2026.36081 | E19: =C19*$D$48 -> 2069.484794
A20: 10 | B20: QPC Commodity | C20: =+'Ut 1.4 p3'!I24 -> 7144.188346 | D20: 3534.484617 | E20: 3609.703728
A21: 11 | B21: Kern River Commodity | C21: =+'Ut 1.4 p3'!I25 -> 2089.654041 | D21: 1033.826336 | E21: 1055.827705
A22: 12 | B22: Other Transportation Charges | C22: =+'Ut 1.4 p3'!I26 -> 92128.99465 | D22: 45579.49744 | E22: 46549.49721
A23: 13 | B23: DEQPC Peak Hour Service | C23: =+'Ut 1.4 p3'!I30 -> 15580.67524 | D23: =C23 -> 15580.67524
A24: 14 | B24: Kern River Peak Hour Service | C24: =+'Ut 1.4 p3'!I31 -> 11144.5759 | D24: =C24 -> 11144.5759
A25: 15 | B25: Aquifer Peaking Storage Demand | C25: =+'Ut 1.4 p3'!I35 -> 151996.4553 | D25: 75198.06411 | E25: 76798.39121
A26: 16 | B26: Spire Storage Demand | C26: =+'Ut 1.4 p3'!I36 -> 53714.95892 | D26: 26574.70476 | E26: 27140.25416
A27: 17 | B27: Clay Basin Storage Demand | C27: =+'Ut 1.4 p3'!I37 -> 91411.37702 | D27: 45224.46642 | E27: 46186.9106
A28: 18 | B28: Clay Basin Storage Capacity | C28: =+'Ut 1.4 p3'!I38 -> 91416.79626 | D28: 45227.14751 | E28: 46189.64875
A29: 19 | B29: Aquifer Peaking Injections Storage Commodity | C29: =+'Ut 1.4 p3'!I39 -> 1018.50863 | D29: 503.8925224 | E29: 514.6161077
A30: 20 | B30: Aquifer Peaking Withdrawals Storage Commodity | C30: =+'Ut 1.4 p3'!I40 -> 1006.211651 | D30: 497.8087683 | E30: 508.4028823
A31: 21 | B31: Spire Injections Storage Commodity | C31: =+'Ut 1.4 p3'!I41 -> 621.794274 | D31: 307.6237902 | E31: 314.1704838
A32: 22 | B32: Spire Withdrawals Storage Commodity | C32: =+'Ut 1.4 p3'!I42 -> 594.6315068 | D32: 294.1854011 | E32: 300.4461057
A33: 23 | B33: Clay Basin Injections Storage Commodity | C33: =+'Ut 1.4 p3'!I43 -> 3323.014927 | D33: 1644.013928 | E33: 1679.000999
A34: 24 | B34: Clay Basin Withdrawals Storage Commodity | C34: =+'Ut 1.4 p3'!I44 -> 5189.563227 | D34: 2567.461902 | E34: 2622.101325
A35: 25 | B35: Utah SNG Costs | C35: =SUM(C11:C34) -> 2075516.862 | D35: =SUM(D11:D34) -> 1114166.29 | E35: =SUM(E11:E34) -> 961350.5716
A37: =A35+1 -> 26 | B37: Winter SNG - Summer SNG | C37: =D35-E35 -> 152815.7186
A38: =A37+1 -> 27 | B38: Winter Dth | C38: =C49 -> 1255504
A39: =A38+1 -> 28 | B39: Seasonal Cost Differential | C39: =C37/C38 -> 0.1217166322
A41: 29 | B41: SNG Amortization | C41: =+'Ut 1.5 p3'!D30 -> 23350.82362 | D41: =+C41*D35/C35 -> 12535.04658 | E41: =+C41*E35/C35 -> 10815.77705
A43: 30 | B43: Winter SNG - Summer SNG Amortization | C43: =+D41-E41 -> 1719.269526
A44: =+A43+1 -> 31 | B44: Winter Dth | C44: =+C49 -> 1255504
A45: =+A44+1 -> 32 | B45: Seasonal Cost Differential | C45: =+C43/C44 -> 0.001369385941
A48: =+A45+1 -> 33 | B48: 2020 Forecast FS Summer Usage | C48: =+'Ut 1.5 p3'!D15 -> 1282223 | D48: =C48/(C48+C49) -> 0.5052643566
A49: =+A48+1 -> 34 | B49: 2020 Forecast FS Winter Usage | C49: =+'Ut 1.5 p3'!D16 -> 1255504 | D49: =C49/(C49+C48) -> 0.4947356434

Sheet Ut 1.5 p6
H1: ='Control Panel'!$E$32 -> Dominion Energy Utah
H2: ='Control Panel'!$E$33 -> Docket No. 20-057-07
H3: DEU Exhibit 1.5
H4: Page 6 of 6
C7: SUMMARY OF RATES
B9: COMMODITY | D9: (A) | E9: (B)
B10: Class | C10: Description | D10: Current | E10: Proposed
B11: GS, FS, NGV, IS
A12: 1 | C12: Base Gas Cost | D12: =+'Other Inputs'!F116 -> 3.14885 | E12: =+'Ut 1.5 p1'!F29 -> 3.07628
A13: 2 | C13: 191 Amortization | D13: =+'Other Inputs'!F117 -> 0.43865 | E13: =+'Ut 1.5 p1'!F30 -> 0.43865
A14: 3 | C14: Tax Reform Surcredit 4 | D14: =+'Ut 1.5 p1'!H31 -> 0 | E14: =+'Ut 1.5 p1'!F31 -> -0.009720338639
A15: 4 | C15: Commodity Rate | D15: =+D12+D13+D14 -> 3.5875 | E15: =+E12+E13+E14 -> 3.505209661
B18: SNG
B19: Class | C19: Description | D19: Current | E19: Proposed
A20: =+A15+1 -> 5 | B20: GS | C20: Base SNG Summer | D20: =+'Other Inputs'!E86 -> 0.4232 | E20: =ROUND('Ut 1.5 p3'!C20,5) -> 0.38154
A21: =+A20+1 -> 6 | C21: SNG Amortization | D21: =+'Other Inputs'!F86 -> 0.01216 | E21: =ROUND('Ut 1.5 p3'!C33,5) -> 0.00429
A22: =+A21+1 -> 7 | C22: SNG Summer Rate | D22: =+D20+D21 -> 0.43536 | E22: =+E20+E21 -> 0.38583
A24: =+A22+1 -> 8 | C24: Base SNG Winter | D24: =+'Other Inputs'!E85 -> 0.90136 | E24: =ROUND('Ut 1.5 p3'!C21,5) -> 0.90846
A25: =+A24+1 -> 9 | C25: SNG Amortization | D25: =+'Other Inputs'!F85 -> 0.0259 | E25: =ROUND('Ut 1.5 p3'!C34,5) -> 0.01022
A26: =+A25+1 -> 10 | C26: SNG Winter Rate | D26: =+D24+D25 -> 0.92726 | E26: =+E24+E25 -> 0.91868
A28: =+A26+1 -> 11 | B28: FS | C28: Base SNG Summer | D28: =+'Other Inputs'!E89 -> 0.4232 | E28: =ROUND('Ut 1.5 p3'!D20,5) -> 0.75764
A29: =+A28+1 -> 12 | C29: SNG Amortization | D29: =+'Other Inputs'!F89 -> 0.01216 | E29: =ROUND('Ut 1.5 p3'!D33,5) -> 0.00852
A30: =+A29+1 -> 13 | C30: SNG Summer Rate | D30: =+D28+D29 -> 0.43536 | E30: =+E28+E29 -> 0.76616
A32: =+A30+1 -> 14 | C32: Base SNG Winter | D32: =+'Other Inputs'!E88 -> 0.87789 | E32: =ROUND('Ut 1.5 p3'!D21,5) -> 0.87936
A33: =+A32+1 -> 15 | C33: SNG Amortization | D33: =+'Other Inputs'!F88 -> 0.02523 | E33: =ROUND('Ut 1.5 p3'!D34,5) -> 0.00989
A34: =+A33+1 -> 16 | C34: SNG Winter Rate | D34: =+D32+D33 -> 0.90312 | E34: =+E32+E33 -> 0.88925
A36: =+A34+1 -> 17 | B36: IS | C36: SNG Rate | D36: =+'Other Inputs'!E93 -> 0.17907 | E36: =ROUND('Ut 1.5 p3'!E23,5) -> 0.17898
A38: =+A36+1 -> 18 | B38: TSF | C38: Base SNG Annual Demand | D38: 0 | E38: =ROUND('Ut 1.5 p3'!F25,5) -> 1.66043
A39: =+A38+1 -> 19 | C39: SNG Amortization | D39: 0 | E39: =ROUND('Ut 1.5 p3'!F35,5) -> 0.01868
A40: =+A39+1 -> 20 | C40: SNG Adder Annual | D40: =+D38+D39 -> 0 | E40: =+E38+E39 -> 1.67911
A41: =+A40+1 -> 21 | C41: SNG Adder Monthly | D41: 0 | E41: =+ROUND(E40/12,5) -> 0.13993
A43: =+A41+1 -> 22 | B43: TBF | C43: Base SNG Annual Demand | D43: 0 | E43: =ROUND('Ut 1.5 p3'!G25,5) -> 1.04398
A44: =+A43+1 -> 23 | C44: SNG Amortization | D44: 0 | E44: =ROUND('Ut 1.5 p3'!G35,5) -> 0.01175
A45: =+A44+1 -> 24 | C45: SNG Adder Annual | D45: =+D43+D44 -> 0 | E45: =+E43+E44 -> 1.05573
A46: =+A45+1 -> 25 | C46: SNG Adder Monthly | D46: 0 | E46: =+ROUND(E45/12,5) -> 0.08798
A48: =+A46+1 -> 26 | B48: NGV | C48: Base SNG | D48: =+'Other Inputs'!E91 -> 0.65043 | E48: =ROUND('Ut 1.5 p3'!H23,5) -> 0.76995
A49: =+A48+1 -> 27 | C49: SNG Amortization | D49: =+'Other Inputs'!F91 -> 0.0187 | E49: =ROUND('Ut 1.5 p3'!H35,5) -> 0.00866
A50: =+A49+1 -> 28 | C50: SNG Rate | D50: =+D48+D49 -> 0.66913 | E50: =+E48+E49 -> 0.77861

Sheet Ut 1.5 p3 previous (hidden)
M1: ='Control Panel'!$E$32 -> Dominion Energy Utah
M2: ='Control Panel'!$E$33 -> Docket No. 20-057-07
M3: Exhibit 1.5
M4: Page 3 of 3
A7: TEST-YEAR CHANGE IN SUPPLIER NON-GAS COSTS
A8: BY RATE CLASS
B10: SNG
C11: (A) | D11: (B) | E11: (C) | I11: (D) | L11: (E)
B13: Calculation of Rate Change
C14: Rate Class | D14: Season | E14: Current Total 1/ | I14: Percent Change 2/ | L14: Proposed Total
B16: 1 | C16: GS | D16: Winter | E16: ='Other Inputs'!G85 -> 0.92726 | F16: x | G16: (1 | H16: + | I16: ='Ut 1.5 p2'!$F$35/100 -> -0.01503163205 | J16: ) | K16: = | L16: =ROUND(E16*(1+I16),5) -> 0.91332
B17: 2 | D17: Summer | E17: ='Other Inputs'!G86 -> 0.43536 | F17: x | G17: (1 | H17: + | I17: ='Ut 1.5 p2'!$F$35/100 -> -0.01503163205 | J17: ) | K17: = | L17: =ROUND(E17*(1+I17),5) -> 0.42882
B19: =B17+1 -> 3 | C19: FS | D19: Winter | E19: ='Other Inputs'!G88 -> 0.90312 | F19: x | G19: (1 | H19: + | I19: ='Ut 1.5 p2'!$F$35/100 -> -0.01503163205 | J19: ) | K19: = | L19: =ROUND(E19*(1+I19),5) -> 0.88954
B20: =B19+1 -> 4 | D20: Summer | E20: ='Other Inputs'!G89 -> 0.43536 | F20: x | G20: (1 | H20: + | I20: ='Ut 1.5 p2'!$F$35/100 -> -0.01503163205 | J20: ) | K20: = | L20: =ROUND(E20*(1+I20),5) -> 0.42882
B22: =B20+1 -> 5 | C22: NGV | E22: ='Other Inputs'!G91 -> 0.66913 | F22: x | G22: (1 | H22: + | I22: ='Ut 1.5 p2'!$F$35/100 -> -0.01503163205 | J22: ) | K22: = | L22: =ROUND(E22*(1+I22),5) -> 0.65907
B25: Calculation of Amortization
C26: Rate Class | D26: Season | E26: Current Amortization 1/ | I26: Percent Change 3/ | L26: Proposed Amortization
B28: =B22+1 -> 6 | C28: GS | D28: Winter | E28: ='Other Inputs'!F85 -> 0.0259 | F28: x | G28: (1 | H28: + | I28: ='Ut 1.5 p2'!$F$38/100 -> -0.605693321 | J28: ) | K28: = | L28: =ROUND(E28*ROUND(1+I28,7),5) -> 0.01021
B29: =B28+1 -> 7 | D29: Summer | E29: ='Other Inputs'!F86 -> 0.01216 | F29: x | G29: (1 | H29: + | I29: ='Ut 1.5 p2'!$F$38/100 -> -0.605693321 | J29: ) | K29: = | L29: =ROUND(E29*ROUND(1+I29,7),5) -> 0.00479
B31: =B29+1 -> 8 | C31: FS | D31: Winter | E31: ='Other Inputs'!F88 -> 0.02523 | F31: x | G31: (1 | H31: + | I31: ='Ut 1.5 p2'!$F$38/100 -> -0.605693321 | J31: ) | K31: = | L31: =ROUND(E31*ROUND(1+I31,7),5) -> 0.00995
B32: =B31+1 -> 9 | D32: Summer | E32: ='Other Inputs'!F89 -> 0.01216 | F32: x | G32: (1 | H32: + | I32: ='Ut 1.5 p2'!$F$38/100 -> -0.605693321 | J32: ) | K32: = | L32: =ROUND(E32*ROUND(1+I32,7),5) -> 0.00479
B34: =B32+1 -> 10 | C34: NGV | E34: ='Other Inputs'!F91 -> 0.0187 | F34: x | G34: (1 | H34: + | I34: ='Ut 1.5 p2'!$F$38/100 -> -0.605693321 | J34: ) | K34: = | L34: =ROUND(E34*ROUND(1+I34,7),5) -> 0.00737
B37: Calculation of Proposed Base
C38: Rate Class | D38: Season | E38: Proposed Total | I38: =L26 -> Proposed Amortization | L38: Proposed Base
B40: =B34+1 -> 11 | C40: GS | D40: Winter | E40: =L16 -> 0.91332 | G40: - | I40: =L28 -> 0.01021 | K40: = | L40: =E40-I40 -> 0.90311
B41: =B40+1 -> 12 | D41: Summer | E41: =L17 -> 0.42882 | G41: - | I41: =L29 -> 0.00479 | K41: = | L41: =E41-I41 -> 0.42403
B43: =B41+1 -> 13 | C43: FS | D43: Winter | E43: =L19 -> 0.88954 | G43: - | I43: =L31 -> 0.00995 | K43: = | L43: =E43-I43 -> 0.87959
B44: =B43+1 -> 14 | D44: Summer | E44: =L20 -> 0.42882 | G44: - | I44: =L32 -> 0.00479 | K44: = | L44: =E44-I44 -> 0.42403
B46: =B44+1 -> 15 | C46: NGV | E46: =L22 -> 0.65907 | G46: - | I46: =L34 -> 0.00737 | K46: = | L46: =E46-I46 -> 0.6517
B48: =B46+1 -> 16 | C48: IS 4/ | E48: =(('Other Inputs'!$F$44+'Other Inputs'!$F$45)/(1-'Other Inputs'!$E$268))/(1-'Other Inputs'!$E$279) -> 0.1789817707
B51: 1/ | C51: Current Dominon Energy Utah Tariff (excluding bad debt surcharge).
B53: 2/ | C53: Exhibit 1.5, page 2, line 10
B55: 3/ | C55: Exhibit 1.5, page 2, line 11
B57: 4/ | C57: ="Calculated by adding QPC T-2 and ACA rates, then adjusting for distr. loss of "&TEXT('Other Inputs'!E268,"0.000%") -> Calculated by adding QPC T-2 and ACA rates, then adjusting for distr. loss of 0.450%
C58: ="= ("&TEXT('Other Inputs'!$F$44,"$0.00000")&" + "&TEXT('Other Inputs'!$F$45,"$0.00000")&") / ( 1 - "&TEXT('Other Inputs'!$E$268,"0.00000")&" ) = "&TEXT(('Other Inputs'!F44+'Other Inputs'!F45)/(1-('Other Inputs'!$E$268)),("$0.00000")) -> = ($0.17652 + $0.00130) / ( 1 - 0.00450 ) = $0.17862
C59: ="IS Tariff rate has an adjustment for bad debt of "&TEXT('Other Inputs'!$E$279,"0.00%") -> IS Tariff rate has an adjustment for bad debt of 0.20%
C60: =" = "&TEXT((('Other Inputs'!$F$44+'Other Inputs'!$F$45)/(1-'Other Inputs'!$E$268)),"$0.00000")&" / ( 1 - "&TEXT('Other Inputs'!$E$279,"0.00000")&" ) = "&TEXT((('Other Inputs'!$F$44+'Other Inputs'!$F$45)/(1-'Other Inputs'!$E$268))/(1-('Other Inputs'!$E$279)),("$0.00000")) -> = $0.17862 / ( 1 - 0.00200 ) = $0.17898
L61: =(#REF!/(1-('Other Inputs'!$E$279))) -> 

Sheet Ut 1.6
L1: ='Control Panel'!$E$32 -> Dominion Energy Utah
L2: ='Control Panel'!$E$33 -> Docket No. 20-057-07
L3: DEU Exhibit 1.6
C7: EFFECT ON GS TYPICAL CUSTOMER
C8: 80 DTHS - ANNUAL CONSUMPTION
C11: (A) | D11: (B) | E11: (C) | F11: (D) | H11: (E) | J11: (F)
F12: Billed at Current | H12: Billed at
C13: Rate | E13: Usage | F13: Rates Effective | H13: Proposed Rates
C14: Schedule | D14: Month | E14: In Dth | F14: ='Other Inputs'!J97 -> 2020-03-01 | H14: ='Control Panel'!E5 -> 20-057-07 | J14: Change
B16: 1 | C16: GS | D16: Jan | E16: ='Monthly Inputs'!G116 -> 14.9 | F16: =ROUND((+E16*'Other Inputs'!$G$99)+'Other Inputs'!$G$101,2) -> 117.68 | H16: =ROUND((+E16*'Ut 1.7 Source'!$F$10)+'Ut 1.7 Source'!$C$12,2) -> 116.33 | J16: =H16-F16 -> -1.35
B17: =B16+1 -> 2 | D17: Feb | E17: ='Monthly Inputs'!G117 -> 12.5 | F17: =ROUND((+E17*'Other Inputs'!$G$99)+'Other Inputs'!$G$101,2) -> 99.81 | H17: =ROUND((+E17*'Ut 1.7 Source'!$F$10)+'Ut 1.7 Source'!$C$12,2) -> 98.68 | J17: -1.13
B18: =B17+1 -> 3 | D18: Mar | E18: ='Monthly Inputs'!G118 -> 10.1 | F18: =ROUND((+E18*'Other Inputs'!$G$99)+'Other Inputs'!$G$101,2) -> 81.94 | H18: =ROUND((+E18*'Ut 1.7 Source'!$F$10)+'Ut 1.7 Source'!$C$12,2) -> 81.03 | J18: -0.91
B19: 4 | D19: Apr | E19: ='Monthly Inputs'!G119 -> 8.3 | F19: =ROUND((+E19*'Other Inputs'!$G$97)+'Other Inputs'!$G$101,2) -> 58.73 | H19: =ROUND((+E19*'Ut 1.7 Source'!$C$10)+'Ut 1.7 Source'!$C$12,2) -> 57.63 | J19: -1.1
B20: 5 | D20: May | E20: ='Monthly Inputs'!G120 -> 4.4 | F20: =ROUND((+E20*'Other Inputs'!$G$97)+'Other Inputs'!$G$101,2) -> 34.3 | H20: =ROUND((+E20*'Ut 1.7 Source'!$C$10)+'Ut 1.7 Source'!$C$12,2) -> 33.72 | J20: -0.58
B21: 6 | D21: Jun | E21: ='Monthly Inputs'!G121 -> 3.1 | F21: =ROUND((+E21*'Other Inputs'!$G$97)+'Other Inputs'!$G$101,2) -> 26.16 | H21: =ROUND((+E21*'Ut 1.7 Source'!$C$10)+'Ut 1.7 Source'!$C$12,2) -> 25.75 | J21: -0.41
B22: 7 | D22: Jul | E22: ='Monthly Inputs'!G122 -> 2 | F22: =ROUND((+E22*'Other Inputs'!$G$97)+'Other Inputs'!$G$101,2) -> 19.27 | H22: =ROUND((+E22*'Ut 1.7 Source'!$C$10)+'Ut 1.7 Source'!$C$12,2) -> 19.01 | J22: -0.26
B23: 8 | D23: Aug | E23: ='Monthly Inputs'!G123 -> 1.8 | F23: =ROUND((+E23*'Other Inputs'!$G$97)+'Other Inputs'!$G$101,2) -> 18.02 | H23: =ROUND((+E23*'Ut 1.7 Source'!$C$10)+'Ut 1.7 Source'!$C$12,2) -> 17.78 | J23: -0.24
B24: 9 | D24: Sep | E24: ='Monthly Inputs'!G124 -> 2 | F24: =ROUND((+E24*'Other Inputs'!$G$97)+'Other Inputs'!$G$101,2) -> 19.27 | H24: =ROUND((+E24*'Ut 1.7 Source'!$C$10)+'Ut 1.7 Source'!$C$12,2) -> 19.01 | J24: -0.26
B25: 10 | D25: Oct | E25: ='Monthly Inputs'!G125 -> 3.1 | F25: =ROUND((+E25*'Other Inputs'!$G$97)+'Other Inputs'!$G$101,2) -> 26.16 | H25: =ROUND((+E25*'Ut 1.7 Source'!$C$10)+'Ut 1.7 Source'!$C$12,2) -> 25.75 | J25: -0.41
B26: 11 | D26: Nov | E26: ='Monthly Inputs'!G126 -> 6.3 | F26: =ROUND((+E26*'Other Inputs'!$G$99)+'Other Inputs'!$G$101,2) -> 53.65 | H26: =ROUND((+E26*'Ut 1.7 Source'!$F$10)+'Ut 1.7 Source'!$C$12,2) -> 53.08 | J26: -0.57
B27: 12 | D27: Dec | E27: ='Monthly Inputs'!G127 -> 11.5 | F27: =ROUND((+E27*'Other Inputs'!$G$99)+'Other Inputs'!$G$101,2) -> 92.37 | H27: =ROUND((+E27*'Ut 1.7 Source'!$F$10)+'Ut 1.7 Source'!$C$12,2) -> 91.32 | J27: -1.05
B30: =B27+1 -> 13 | D30: Total | E30: =SUM(E16:E27) -> 80 | F30: =SUM(F16:F27) -> 647.36 | H30: =SUM(H16:H27) -> 639.09 | J30: =H30-F30 -> -8.27
B32: =B30+1 -> 14 | H32: Percent Change: | J32: =ROUND(J30/F30,4)*100 -> -1.28 | K32: %

Sheet Ut 1.7 Tot (hidden)
L1: ='Control Panel'!$E$32 -> Dominion Energy Utah
L2: Docket Nos. 08-057-15, 08-057-16 & 08-057-17
L3: Hearing Exhibit 2
A5: NOT USED
C7: EFFECT ON GS-1 TYPICAL CUSTOMER
B8: OF PROPOSED COMMODITY AND SNG RATES AND CET AND DSM AMORTIZATIONS
C9: 80 DTHS - ANNUAL CONSUMPTION
C12: (A) | D12: (B) | E12: (C) | F12: (D) | H12: (E) | J12: (F)
F13: Billed at Current | H13: Billed at
C14: Rate | E14: Usage | F14: Rates Effective | H14: Proposed
C15: Schedule | D15: Month | E15: In Dth | F15: ='Other Inputs'!J97 -> 2020-03-01 | H15: Rates | J15: Change
B17: 1 | C17: GS | D17: Jan | E17: ='Monthly Inputs'!G116 -> 14.9 | F17: =ROUND((+E17*'Other Inputs'!$G$99)+'Other Inputs'!$G$101,2) -> 117.68 | H17: ='CET & DSM'!D107 ->  | J17: =H17-F17 -> 
B18: =B17+1 -> 2 | D18: Feb | E18: ='Monthly Inputs'!G117 -> 12.5 | F18: =ROUND((+E18*'Other Inputs'!$G$99)+'Other Inputs'!$G$101,2) -> 99.81 | H18: ='CET & DSM'!D108 -> 
B19: 3 | D19: Mar | E19: ='Monthly Inputs'!G118 -> 10.1 | F19: =ROUND((+E19*'Other Inputs'!$G$99)+'Other Inputs'!$G$101,2) -> 81.94 | H19: ='CET & DSM'!D109 -> 
B20: 4 | D20: Apr | E20: ='Monthly Inputs'!G119 -> 8.3 | F20: =ROUND((+E20*'Other Inputs'!$G$97)+'Other Inputs'!$G$101,2) -> 58.73 | H20: ='CET & DSM'!D110 -> 
B21: 5 | D21: May | E21: ='Monthly Inputs'!G120 -> 4.4 | F21: =ROUND((+E21*'Other Inputs'!$G$97)+'Other Inputs'!$G$101,2) -> 34.3 | H21: ='CET & DSM'!D111 -> 
B22: 6 | D22: Jun | E22: ='Monthly Inputs'!G121 -> 3.1 | F22: =ROUND((+E22*'Other Inputs'!$G$97)+'Other Inputs'!$G$101,2) -> 26.16 | H22: ='CET & DSM'!D112 -> 
B23: 7 | D23: Jul | E23: ='Monthly Inputs'!G122 -> 2 | F23: =ROUND((+E23*'Other Inputs'!$G$97)+'Other Inputs'!$G$101,2) -> 19.27 | H23: ='CET & DSM'!D113 -> 
B24: 8 | D24: Aug | E24: ='Monthly Inputs'!G123 -> 1.8 | F24: =ROUND((+E24*'Other Inputs'!$G$97)+'Other Inputs'!$G$101,2) -> 18.02 | H24: ='CET & DSM'!D114 -> 
B25: 9 | D25: Sep | E25: ='Monthly Inputs'!G124 -> 2 | F25: =ROUND((+E25*'Other Inputs'!$G$97)+'Other Inputs'!$G$101,2) -> 19.27 | H25: ='CET & DSM'!D115 -> 
B26: 10 | D26: Oct | E26: ='Monthly Inputs'!G125 -> 3.1 | F26: =ROUND((+E26*'Other Inputs'!$G$97)+'Other Inputs'!$G$101,2) -> 26.16 | H26: ='CET & DSM'!D116 -> 
B27: 11 | D27: Nov | E27: ='Monthly Inputs'!G126 -> 6.3 | F27: =ROUND((+E27*'Other Inputs'!$G$99)+'Other Inputs'!$G$101,2) -> 53.65 | H27: ='CET & DSM'!D117 -> 
B28: 12 | D28: Dec | E28: ='Monthly Inputs'!G127 -> 11.5 | F28: =ROUND((+E28*'Other Inputs'!$G$99)+'Other Inputs'!$G$101,2) -> 92.37 | H28: ='CET & DSM'!D118 -> 
B31: =B28+1 -> 13 | D31: Total | E31: =SUM(E17:E28) -> 80 | F31: =SUM(F17:F28) -> 647.36 | H31: =SUM(H17:H28) ->  | J31: =H31-F31 -> 
H33: Percent Change: | J33: =ROUND(J31/F31,4)*100 ->  | K33: %

Sheet Ut 1.7 p1
F1: ='Control Panel'!E32 -> Dominion Energy Utah
F2: ='Control Panel'!E33 -> Docket No. 20-057-07
F3: DEU Exhibit 1.7
F4: Page 1 of 17
A15: DOMINION ENERGY UTAH
A16: 333 South State Street
A17: P.O. Box 45433
A18: Salt Lake City, Utah 84145-0433
A29: LEGISLATIVE/PROPOSED RATE SCHEDULES
A31: P.S.C. Utah No. 500
A32: Affecting GS, FS, NGV, IS, TBF, and TSF Rate Schedules
A33: and Classes of Service In
A34: Dominion Energy
A35: Utah Service Area
A37: Tariff Section 2.02, 2.03, 2.04, 4.02, 5,02, and 5.04
A39: Date Issued: May 1, 2020
A40: To Become Effective June 1, 2020

Sheet LEG - PR
A2: LEGISLATIVE TARIFF
A3: SHEETS
A6: PROPOSED TARIFF
A7: SHEETS

Sheet Ut 1.7 Source
A1: SUMMARY OF PROPOSED RATES
A3: UTAH RATE CLASSES | C3: Rates per Dth Used Each Month
C4: All Season Rates or Summer Rates: Apr. 1 - Oct. 31 | F4: Winter Rates: Nov. 1 - Mar. 31
A5: UT GS | C5: First 45 Dth | D5: All Over 45 Dth | F5: First 45 Dth | G5: All Over 45 Dth
B6: Distribution Non-Gas Cost | C6: 2.2394 | D6: 1.03681 | F6: 2.93024 | G6: 1.72765
B7: Supplier Non-Gas Cost | C7: =+'Ut 1.5 p6'!E22 -> 0.38583 | D7: =C7 -> 0.38583 | F7: =+'Ut 1.5 p6'!E26 -> 0.91868 | G7: =F7 -> 0.91868
B8: Commodity Cost | C8: =('Ut 1.5 p1'!$F$32) -> 3.505209661 | D8: =C8 -> 3.505209661 | F8: =D8 -> 3.505209661 | G8: =F8 -> 3.505209661
B10: Total Rate | C10: =SUM(C6:C9) -> 6.130439661 | D10: =SUM(D6:D9) -> 4.927849661 | F10: =SUM(F6:F9) -> 7.354129661 | G10: =SUM(G6:G9) -> 6.151539661
B12: BSF Category 1 | C12: 6.75
B13: BSF Category 2 | C13: 18.25
B14: BSF Category 3 | C14: 63.5
B15: BSF Category 4 | C15: 420.25
A18: UT FS | C18: First 200 Dth | D18: Next 1,800 Dth | E18: All Over 2,000 Dth | F18: First 200 Dth | G18: Next 1,800 Dth | H18: All Over 2,000 Dth
B19: Distribution Non-Gas Cost | C19: 1.08652 | D19: 0.58907 | E19: 0.06544 | F19: 1.60504 | G19: 1.10759 | H19: 0.58395
B20: Supplier Non-Gas Cost | C20: =+'Ut 1.5 p6'!E30 -> 0.76616 | D20: =C20 -> 0.76616 | E20: =D20 -> 0.76616 | F20: =+'Ut 1.5 p6'!E34 -> 0.88925 | G20: =F20 -> 0.88925 | H20: =G20 -> 0.88925
B21: Commodity Cost | C21: =('Ut 1.5 p1'!$F$32) -> 3.505209661 | D21: =C21 -> 3.505209661 | E21: =D21 -> 3.505209661 | F21: =E21 -> 3.505209661 | G21: =F21 -> 3.505209661 | H21: =G21 -> 3.505209661
B23: Total Rate | C23: =SUM(C19:C22) -> 5.357889661 | D23: =SUM(D19:D22) -> 4.860439661 | E23: 4.336809661 | F23: 5.999499661 | G23: 5.502049661 | H23: 4.978409661
B25: Minimum Monthly DNG Charge: | C25: 191 | F25: 284
B27: BSF Category 1 | C27: =C12 -> 6.75
B28: BSF Category 2 | C28: =C13 -> 18.25
B29: BSF Category 3 | C29: =C14 -> 63.5
B30: BSF Category 4 | C30: =C15 -> 420.25
A33: UT Future Rate Class
C34: First 10,000 Dth | D34: All Over 10,000 Dth
B35: Distribution Non-Gas Cost
B36: Supplier Non-Gas Cost
B37: Commodity Cost
B39: Total Rate | C39: =SUM(C35:C38) -> 0 | D39: =SUM(D35:D38) -> 0
B41: Minimum Yearly Distribution Non-Gas Charge | D41: =ROUND(((10000*C35))*12,-2) -> 0
B44: BSF Category 1 | C44: =C12 -> 6.75
B45: BSF Category 2 | C45: =C13 -> 18.25
B46: BSF Category 3 | C46: =C14 -> 63.5
B47: BSF Category 4 | C47: =C15 -> 420.25
A51: UT NGV
B52: Distribution Non-Gas Cost | C52: 7.84533
B53: Supplier Non-Gas Cost | C53: =+'Ut 1.5 p6'!E50 -> 0.77861
B54: Commodity Cost | C54: ='Ut 1.5 p1'!F32 -> 3.505209661
B56: Total Rate | C56: =SUM(C52:C55) -> 12.12914966
A59: UT IS | C59: First 2,000 Dth | D59: Next 18,000 Dth | E59: All Over 20,000
B60: Distribution Non-Gas Cost | C60: 0.84091 | D60: 0.09473 | E60: 0.09085
B61: Supplier Non-Gas Cost | C61: =+'Ut 1.5 p6'!E36 -> 0.17898 | D61: =C61 -> 0.17898 | E61: =D61 -> 0.17898
B62: Commodity Cost | C62: =('Ut 1.5 p1'!$F$32) -> 3.505209661 | D62: =('Ut 1.5 p1'!$F$32) -> 3.505209661 | E62: =('Ut 1.5 p1'!$F$32) -> 3.505209661
B64: Total Rate | C64: =SUM(C60:C62) -> 4.525099661 | D64: =SUM(D60:D62) -> 3.778919661 | E64: =SUM(E60:E62) -> 3.775039661
B66: BSF Category 1 | C66: =C12 -> 6.75
B67: BSF Category 2 | C67: =C13 -> 18.25
B68: BSF Category 3 | C68: =C14 -> 63.5
B69: BSF Category 4 | C69: =C15 -> 420.25

Sheet Ut 1.11 (hidden)
F1: ='Control Panel'!#REF! -> 
F2: ='Control Panel'!E33 -> Docket No. 20-057-07
F3: Exhibit 1.11
F4: Page 1 of 7
A17: DOMINION ENERGY UTAH
A18: 333 South State Street
A19: P.O. Box 45433
A20: Salt Lake City, Utah 84145-0433
A31: LEGISLATIVE/PROPOSED RATE SCHEDULES
A32: P.S.C. Utah Tariff

Sheet Ut 1.8 p1
F1: ='Control Panel'!E32 -> Dominion Energy Utah
F2: ='Control Panel'!E33 -> Docket No. 20-057-07
F3: DEU Exhibit 1.8
F4: Page 1 of 17
A15: DOMINION ENERGY UTAH
A16: 333 South State Street
A17: P.O. Box 45433
A18: Salt Lake City, Utah 84145-0433
A29: LEGISLATIVE/PROPOSED COMBINED RATE SCHEDULES
A31: P.S.C. Utah No. 500
A32: Affecting GS, FS, NGV, IS, TBF, and TSF Rate Schedules
A33: and Classes of Service In
A34: Dominion Energy
A35: Utah Service Area
A37: Tariff Section 2.02, 2.03, 2.04, 4.02, 5,02, and 5.04
A39: Date Issued: May 1,2020
A40: To Become Effective June 1, 2020

Sheet Ut Storage
A1: Storage Injection / Withdrawal adjustment
C3: (A) | D3: (B) | E3: (C) | F3: (D) | G3: (E) | H3: (F) | I3: (G) | K3: (H) | L3: (I) | M3: (J)
G4: Injections | I4: (J) / (C)
E5: Storage | G5: ------------------------------------------------------------- | I5: Storage | M5: Storage
C6: Injection Dth | D6: Withdrawal Dth | E6: Inventory Dth | F6: % that is | G6: Co. Prod. | H6: Purchased | I6: Inventory | M6: Inventory
A7: Line | B7: Month | C7: Per IRPs | D7: Per IRPs | E7: Balance | F7: Co. Prod. (1) | G7: $/Dth (2) | H7: $/Dth (3) | I7: Average $/Dth | K7: Injection (4) | L7: Withdrawal (5) | M7: Balance
B8: =+Expenses!S9 -> 2020-03-31 | E8: =-1*'Other Inputs'!D247 -> 1732499 | I8: =M8/E8 -> 3.436985562 | M8: ='Other Inputs'!E247 -> 5954574.05
B9: ='Monthly Inputs'!E3 -> Apr20 | C9: ='Monthly Inputs'!E29 -> 335461 | D9: =-'Monthly Inputs'!E37 -> 0 | E9: =E8+C9+D9 -> 2067960 | F9: =F21 -> 0.4736593372 | G9: ='Other Inputs'!F113 -> 3.58762 | H9: ='Monthly Inputs'!E79 -> 1.27 | I9: =M9/E9 -> 3.263537968 | K9: =(+F9*C9*G9)+((1-F9)*C9*H9) -> 794291.9267 | L9: =D9*I8 -> 0 | M9: =M8+L9+K9 -> 6748865.977
B10: ='Monthly Inputs'!F3 -> May20 | C10: ='Monthly Inputs'!F29 -> 1765471 | D10: =-'Monthly Inputs'!F37 -> 0 | E10: =E9+C10+D10 -> 3833431 | F10: =F22 -> 0.5444730047 | G10: =G9 -> 3.58762 | H10: ='Monthly Inputs'!F79 -> 1.08 | I10: 2.886716271 | K10: =(+F10*C10*G10)+((1-F10)*C10*H10) -> 4317161.665 | L10: =D10*I9 -> 0 | M10: =M9+L10+K10 -> 11066027.64
A11: 1. | B11: ='Monthly Inputs'!G3 -> Jun20 | C11: ='Monthly Inputs'!G29 -> 3041730 | D11: =-'Monthly Inputs'!G37 -> 0 | E11: =E10+C11+D11 -> 6875161 | F11: =Calculations!D177 -> 0.7319303878 | G11: ='Ut 1.2 p3'!$G$50 -> 3.964202405 | H11: =Calculations!D197 -> 1.28162 | I11: 3.045266245 | K11: 9870668.079 | L11: =D11*I10 -> 0 | M11: =M10+L11+K11 -> 20936695.72
A12: 2. | B12: ='Monthly Inputs'!H3 -> Jul20 | C12: ='Monthly Inputs'!H29 -> 2263500 | D12: =-'Monthly Inputs'!H37 -> 0 | E12: =E11+C12+D12 -> 9138661 | F12: =Calculations!E177 -> 0.9722399746 | G12: ='Ut 1.2 p3'!$G$50 -> 3.964202405 | H12: =Calculations!E197 -> 1.39 | I12: 3.255172539 | K12: 8811222.606 | L12: =D12*I11 -> 0 | M12: =M11+L12+K12 -> 29747918.33
A13: 3. | B13: ='Monthly Inputs'!I3 -> Aug20 | C13: ='Monthly Inputs'!I29 -> 2299070 | D13: =-'Monthly Inputs'!I37 -> 0 | E13: =E12+C13+D13 -> 11437731 | F13: =Calculations!F177 -> 0.98980724 | G13: ='Ut 1.2 p3'!$G$50 -> 3.964202405 | H13: =Calculations!F197 -> 1.53999 | I13: 3.392726099 | K13: 9057170.148 | L13: =D13*I12 -> 0 | M13: 38805088.48
A14: 4. | B14: ='Monthly Inputs'!J3 -> Sep20 | C14: ='Monthly Inputs'!J29 -> 2885570 | D14: =-'Monthly Inputs'!J37 -> 0 | E14: 14323301 | F14: =Calculations!G177 -> 0.802170358 | G14: ='Ut 1.2 p3'!$G$50 -> 3.964202405 | H14: =Calculations!G197 -> 1.45 | I14: =M14/E14 -> 3.407652771 | K14: 10003747.87 | L14: =D14*I13 -> 0 | M14: 48808836.35
A15: 5. | B15: ='Monthly Inputs'!K3 -> Oct20 | C15: ='Monthly Inputs'!K29 -> 3120594 | D15: =-'Monthly Inputs'!K37 -> 0 | E15: 17443895 | F15: =Calculations!H177 -> 0.5223427133 | G15: ='Ut 1.2 p3'!$G$50 -> 3.964202405 | H15: =Calculations!H197 -> 1.5101 | I15: 3.297513555 | K15: 8712643.866 | L15: 0 | M15: 57521480.21
A16: 6. | B16: ='Monthly Inputs'!L3 -> Nov20 | C16: ='Monthly Inputs'!L29 -> 76600 | D16: =-'Monthly Inputs'!L37 -> -491400 | E16: =E15+C16+D16 -> 17029095 | F16: =Calculations!I177 -> 0.4107868618 | G16: ='Ut 1.2 p3'!$G$50 -> 3.964202405 | H16: =Calculations!I197 -> 1.77464 | I16: =M16/E16 -> 3.294709252 | K16: 204834.7937 | L16: -1620398.161 | M16: 56105916.85
A17: 7. | B17: ='Monthly Inputs'!M3 -> Dec20 | C17: ='Monthly Inputs'!M29 -> 0 | D17: =-'Monthly Inputs'!M37 -> -4672600 | E17: 12356495 | F17: =Calculations!J177 -> 0.3363727653 | G17: ='Ut 1.2 p3'!$G$50 -> 3.964202405 | H17: =Calculations!J197 -> 2.22756 | I17: =M17/E17 -> 3.294709252 | K17: 0 | L17: -15394858.45 | M17: 40711058.4
A18: 8. | B18: ='Monthly Inputs'!N3 -> Jan21 | C18: ='Monthly Inputs'!N29 -> 0 | D18: =-'Monthly Inputs'!N37 -> -4156668 | E18: 8199827 | F18: =Calculations!K177 -> 0.2897707534 | G18: ='Ut 1.2 p3'!$G$50 -> 3.964202405 | H18: =Calculations!K197 -> 2.4675 | I18: 3.294709252 | K18: 0 | L18: =D18*I17 -> -13695012.52 | M18: 27016045.88
A19: 9. | B19: ='Monthly Inputs'!O3 -> Feb21 | C19: ='Monthly Inputs'!O29 -> 0 | D19: =-'Monthly Inputs'!O37 -> -3544845 | E19: 4654982 | F19: =Calculations!L177 -> 0.3072409304 | G19: ='Ut 1.2 p3'!$G$50 -> 3.964202405 | H19: =Calculations!L197 -> 2.36064 | I19: 3.294709252 | K19: 0 | L19: -11679233.62 | M19: =M18+L19+K19 -> 15336812.26
A20: 10. | B20: ='Monthly Inputs'!P3 -> Mar21 | C20: ='Monthly Inputs'!P29 -> 0 | D20: =-'Monthly Inputs'!P37 -> -2977727 | E20: 1677255 | F20: =Calculations!M177 -> 0.4322034416 | G20: ='Ut 1.2 p3'!$G$50 -> 3.964202405 | H20: =Calculations!M197 -> 2.09046 | I20: 3.294709252 | K20: 0 | L20: -9810744.696 | M20: =M19+L20+K20 -> 5526067.566
A21: 11. | B21: ='Monthly Inputs'!Q3 -> Apr21 | C21: ='Monthly Inputs'!Q29 -> 0 | D21: =-'Monthly Inputs'!Q37 -> 0 | E21: 1677255 | F21: =Calculations!N177 -> 0.4736593372 | G21: ='Ut 1.2 p3'!$G$50 -> 3.964202405 | H21: =Calculations!N197 -> 1.85658 | I21: 3.294709252 | K21: 0 | L21: 0 | M21: =M20+L21+K21 -> 5526067.566
A22: 12. | B22: ='Monthly Inputs'!R3 -> May21 | C22: ='Monthly Inputs'!R29 -> 2480000 | D22: =-'Monthly Inputs'!R37 -> 0 | E22: 4157255 | F22: =Calculations!O177 -> 0.5444730047 | G22: ='Ut 1.2 p3'!$G$50 -> 3.964202405 | H22: =Calculations!O197 -> 1.72004 | I22: 3.084257201 | K22: 7295976.103 | L22: 0 | M22: =M21+L22+K22 -> 12822043.67
M25: Inj./With. Adj.
A26: 14. | B26: Total | C26: =SUM(C11:C22) -> 16167064 | D26: =SUM(D11:D22) -> -15843240 | K26: =SUM(K11:K22) -> 53956263.47 | L26: =SUM(L11:L22) -> -52200247.44 | M26: =L26+K26 -> 1756016.027
A27: 15. | B27: Average $ /Dth | K27: =K26/C26 -> 3.337418808 | L27: =L26/D26 -> 3.294796231
A31: ___________________________________________________________________

Sheet Ex 1.1 Data
A1: MLPX Gathered | B1: 10045930.23 | C1: Adjusted test year-> | D1: -0.1606499907 | E1: 8432051.634 | H1: MLPX Gathered | I1: 8637208.634 | J1: Adjusted test year-> | K1: -0.2915365595 | L1: 6119146.545
A2: Birch Creek | B2: 1534811.814 | C2: Adjusted test year-> | D2: -0.1606499907 | E2: 1288244.31 | H2: Birch Creek | I2: 0
A3: Other | B3: 16444696.5 | H3: Other | I3: 6281593.235
A4: Wexpro | B4: 0 | H4: Wexpro | I4: 980697.464
A5: MLPX-Acquired | B5: 27715006.41 | H5: MLPX-Acquired | I5: 0
C7: WEXPRO I | J7: WEXPRO II
A8: Input Operator Service Fee > | C8: =+'Monthly Inputs'!S107 -> 178982583.2 | H8: Input Operator Service Fee > | J8: =+'Monthly Inputs'!S109 -> 32010845.7
A11: \/ | C11: 2020-03-31 | H11: \/ | J11: 2020-03-31
A12: \/ | B12: Company | C12: Average Index | D12: Church Buttes | H12: \/ | I12: Company | J12: Average Index | K12: Church Buttes
A13: \/ | B13: Production | C13: Spot Prices | D13: & Canyon Cr | H13: \/ | I13: Production | J13: Spot Prices | K13: & Canyon Cr
A14: January | B14: 3523419 | C14: 2.32 | D14: =C14+0.1 -> 2.42 | E14: =B14*D14 -> 8526673.98 | H14: January | I14: 1034418 | J14: 2.42 | K14: =J14+0.1 -> 2.52 | L14: =I14*K14 -> 2606733.36
A15: February | B15: 3842235 | C15: 2.06 | D15: =C15+0.1 -> 2.16 | E15: =B15*D15 -> 8299227.6 | H15: February | I15: 825200 | J15: 2.32 | K15: =J15+0.1 -> 2.42 | L15: =I15*K15 -> 1996984
A16: March | B16: 3665199 | C16: 1.82 | D16: =C16+0.1 -> 1.92 | E16: 7037182.08 | H16: March | I16: 899083 | J16: 2.06 | K16: 2.16 | L16: 1942019.28
A17: April | B17: 3737710 | C17: 1.72 | D17: 1.82 | E17: 6802632.2 | H17: April | I17: 856974 | J17: 1.82 | K17: 1.92 | L17: 1645390.08
A18: May | B18: 3931044 | C18: 1.28 | D18: =C18+0.1 -> 1.38 | E18: 5424840.72 | H18: May | I18: 872809 | J18: 1.72 | K18: 1.82 | L18: 1588512.38
A19: June | B19: 4000312 | C19: 1.37 | D19: 1.47 | E19: 5880458.64 | H19: June | I19: 940995 | J19: 1.28 | K19: 1.38 | L19: 1298573.1
A20: July | B20: 4001024 | C20: 1.52 | D20: 1.62 | E20: 6481658.88 | H20: July | I20: 956076 | J20: 1.37 | K20: 1.47 | L20: 1405431.72
A21: August | B21: 3914310 | C21: 1.45 | D21: 1.55 | E21: 6067180.5 | H21: August | I21: 998334 | J21: 1.52 | K21: 1.62 | L21: 1617301.08
A22: September | B22: 4199456 | C22: 1.47 | D22: 1.57 | E22: 6593145.92 | H22: September | I22: 896292 | J22: 1.45 | K22: 1.55 | L22: 1389252.6
A23: October | B23: 3976692 | C23: 1.74 | D23: 1.84 | E23: 7317113.28 | H23: October | I23: 989052 | J23: 1.47 | K23: 1.57 | L23: 1552811.64
A24: November | B24: 4031648 | C24: 2.18 | D24: 2.28 | E24: 9192157.44 | H24: November | I24: 935052 | J24: 1.74 | K24: 1.84 | L24: 1720495.68
A25: December | B25: 3962694 | C25: 2.42 | D25: 2.52 | E25: 9985988.88 | H25: December | I25: 1059929 | J25: 2.18 | K25: 2.28 | L25: 2416638.12
B27: =SUM(B14:B25) -> 46785743 | C27: CANYON CREEK | D27: =E27/B27 -> 1.872541815 | E27: =SUM(E14:E25) -> 87608260.12 | I27: =SUM(I14:I25) -> 11264214 | J27: CANYON CREEK | K27: =L27/I27 -> 1.88030368 | L27: =SUM(L14:L25) -> 21180143.04
C28: CHURCH BUTTES | J28: CHURCH BUTTES
C29: All Others -> | D29: =D27-0.2 -> 1.672541815 | J29: All Others -> | K29: =K27-0.2 -> 1.68030368

Sheet Expenses
A1: %,LACTUALS
S7: Historical
S8: 12 Months Ending
C9: FERC Acct | E9: Description | G9: 2019-04-01 | H9: 2019-05-01 | I9: 2019-06-01 | J9: 2019-07-01 | K9: 2019-08-31 | L9: 2019-09-30 | M9: 2019-10-31 | N9: 2019-11-30 | O9: 2019-12-31 | P9: 2020-01-31 | Q9: 2020-02-29 | R9: 2020-03-31 | S9: =+R9 -> 2020-03-31
B11: 497 | C11: UTILITY OPERATING EXPENSES
B12: 498 | C12: GAS PURCHASE EXPENSES
B13: 499
B14: 500 | D14: Utah % of Sales Dth from 191 Acct ===> | G14: 2 | H14: 3 | I14: 4 | J14: 5 | K14: 10 | L14: 11 | M14: 0 | N14: 1 | O14: 2 | P14: 3 | Q14: 4 | R14: 5 | S14: 12
B15: 501
A16: %,FACCOUNT,TQGCACCTS,V758000 | B16: 502 | C16: 758 | D16: Gas Well Royalties
B17: 503 | E17: Utah | G17: 0 | H17: 0 | I17: 0 | J17: 0 | K17: 0 | L17: 0 | M17: 0 | N17: 0 | O17: 0 | P17: 0 | Q17: 0 | R17: 0 | S17: 0
B18: 504 | E18: Wyoming | G18: 0 | H18: 0 | I18: 0 | J18: 0 | K18: 0 | L18: 0 | M18: 0 | N18: 0 | O18: 0 | P18: 0 | Q18: 0 | R18: 0 | S18: 0
B19: 505 | E19: Total | G19: 0 | H19: 0 | I19: 0 | J19: 0 | K19: 0 | L19: 0 | M19: 0 | N19: 0 | O19: 0 | P19: 0 | Q19: 0 | R19: 0 | S19: 0
B20: 506
A21: %,FACCOUNT,TQGCACCTS,V758001,V758002,V758003,V758004 | B21: 507 | C21: 758.1 | D21: Gas Well Royalties - Other
B22: 508 | E22: Utah | G22: 0 | H22: 0 | I22: 0 | J22: 0 | K22: 0 | L22: 0 | M22: 0 | N22: 0 | O22: 0 | P22: 0 | Q22: 0 | R22: 0 | S22: 0
B23: 509 | E23: Wyoming | G23: 0 | H23: 0 | I23: 0 | J23: 0 | K23: 0 | L23: 0 | M23: 0 | N23: 0 | O23: 0 | P23: 0 | Q23: 0 | R23: 0 | S23: 0
B24: 510 | E24: Total | G24: 0 | H24: 0 | I24: 0 | J24: 0 | K24: 0 | L24: 0 | M24: 0 | N24: 0 | O24: 0 | P24: 0 | Q24: 0 | R24: 0 | S24: 0
B25: 511
A26: %,FACCOUNT,TQGCACCTS,V759000,V759001,V759002,V759003,V759004 | B26: 512 | C26: 759 | D26: Gathering by Others, GRI & ACA - Gas Cost
B27: 513 | E27: Utah | G27: 0 | H27: 0 | I27: 0 | J27: 0 | K27: 0 | L27: 0 | M27: 0 | N27: 0 | O27: 0 | P27: 0 | Q27: 0 | R27: 0 | S27: 0
B28: 514 | E28: Wyoming | G28: 0 | H28: 0 | I28: 0 | J28: 0 | K28: 0 | L28: 0 | M28: 0 | N28: 0 | O28: 0 | P28: 0 | Q28: 0 | R28: 0 | S28: 0
B29: 515 | E29: Total | G29: 0 | H29: 0 | I29: 0 | J29: 0 | K29: 0 | L29: 0 | M29: 0 | N29: 0 | O29: 0 | P29: 0 | Q29: 0 | R29: 0 | S29: 0
B30: 516
A31: %,FACCOUNT,TQGCACCTS,V759005 | B31: 517 | C31: 759 | D31: Gathering by Others - SNG Cost
B32: 518 | E32: Utah | G32: 0 | H32: 0 | I32: 0 | J32: 0 | K32: 0 | L32: 0 | M32: 0 | N32: 0 | O32: 0 | P32: 0 | Q32: 0 | R32: 0 | S32: 0
B33: 519 | E33: Wyoming | G33: 0 | H33: 0 | I33: 0 | J33: 0 | K33: 0 | L33: 0 | M33: 0 | N33: 0 | O33: 0 | P33: 0 | Q33: 0 | R33: 0 | S33: 0
B34: 520 | E34: Total | G34: 0 | H34: 0 | I34: 0 | J34: 0 | K34: 0 | L34: 0 | M34: 0 | N34: 0 | O34: 0 | P34: 0 | Q34: 0 | R34: 0 | S34: 0
B35: 521
A36: %,FACCOUNT,TQGCACCTS,V800000,V800005,V800002 | B36: 522 | C36: 800 | D36: Natural Gas Well Head Purchases
B37: 523 | E37: Utah | G37: 0 | H37: 0 | I37: 0 | J37: 0 | K37: 0 | L37: 0 | M37: 0 | N37: 0 | O37: 0 | P37: 0 | Q37: 0 | R37: 0 | S37: 0
B38: 524 | E38: Wyoming | G38: 0 | H38: 0 | I38: 0 | J38: 0 | K38: 0 | L38: 0 | M38: 0 | N38: 0 | O38: 0 | P38: 0 | Q38: 0 | R38: 0 | S38: 0
B39: 525 | E39: Total | G39: 0 | H39: 0 | I39: 0 | J39: 0 | K39: 0 | L39: 0 | M39: 0 | N39: 0 | O39: 0 | P39: 0 | Q39: 0 | R39: 0 | S39: 0
B40: 526
A41: %,FACCOUNT,TQGCACCTS,V801000 | B41: 527 | C41: 801 | D41: Natural Gas Field Line Purchases
B42: 528 | E42: Utah | G42: 0 | H42: 0 | I42: 0 | J42: 0 | K42: 0 | L42: 0 | M42: 0 | N42: 0 | O42: 0 | P42: 0 | Q42: 0 | R42: 0 | S42: 0
B43: 529 | E43: Wyoming | G43: 0 | H43: 0 | I43: 0 | J43: 0 | K43: 0 | L43: 0 | M43: 0 | N43: 0 | O43: 0 | P43: 0 | Q43: 0 | R43: 0 | S43: 0
B44: 530 | E44: Total | G44: 0 | H44: 0 | I44: 0 | J44: 0 | K44: 0 | L44: 0 | M44: 0 | N44: 0 | O44: 0 | P44: 0 | Q44: 0 | R44: 0 | S44: 0
B45: 531
A46: %,FACCOUNT,TQGCACCTS,V802000 | B46: 532 | C46: 802 | D46: Natural Gas Gasoline Plant Outlet Purchase
B47: 533 | E47: Utah | G47: 0 | H47: 0 | I47: 0 | J47: 0 | K47: 0 | L47: 0 | M47: 0 | N47: 0 | O47: 0 | P47: 0 | Q47: 0 | R47: 0 | S47: 0
B48: 534 | E48: Wyoming | G48: 0 | H48: 0 | I48: 0 | J48: 0 | K48: 0 | L48: 0 | M48: 0 | N48: 0 | O48: 0 | P48: 0 | Q48: 0 | R48: 0 | S48: 0
B49: 535 | E49: Total | G49: 0 | H49: 0 | I49: 0 | J49: 0 | K49: 0 | L49: 0 | M49: 0 | N49: 0 | O49: 0 | P49: 0 | Q49: 0 | R49: 0 | S49: 0
B50: 536
A51: %,FACCOUNT,TQGCACCTS,V803000,V803002 | B51: 537 | C51: 803 | D51: Natural Gas Transmission Line - Purchases
B52: 538 | E52: Utah | G52: 0 | H52: 0 | I52: 0 | J52: 0 | K52: 0 | L52: 0 | M52: 0 | N52: 0 | O52: 0 | P52: 0 | Q52: 0 | R52: 0 | S52: 0
B53: 539 | E53: Wyoming | G53: 0 | H53: 0 | I53: 0 | J53: 0 | K53: 0 | L53: 0 | M53: 0 | N53: 0 | O53: 0 | P53: 0 | Q53: 0 | R53: 0 | S53: 0
B54: 540 | E54: Total | G54: 0 | H54: 0 | I54: 0 | J54: 0 | K54: 0 | L54: 0 | M54: 0 | N54: 0 | O54: 0 | P54: 0 | Q54: 0 | R54: 0 | S54: 0
B55: 541
A56: %,FACCOUNT,V804000,FAFFILIATE,V09 | B56: 542 | C56: 804 | D56: Natural Gas City Gate Purchases - Resources
B57: 543 | E57: Utah | G57: 0 | H57: 0 | I57: 0 | J57: 0 | K57: 0 | L57: 0 | M57: 0 | N57: 0 | O57: 0 | P57: 0 | Q57: 0 | R57: 0 | S57: 0
B58: 544 | E58: Wyoming | G58: 0 | H58: 0 | I58: 0 | J58: 0 | K58: 0 | L58: 0 | M58: 0 | N58: 0 | O58: 0 | P58: 0 | Q58: 0 | R58: 0 | S58: 0
B59: 545 | E59: Total | G59: 0 | H59: 0 | I59: 0 | J59: 0 | K59: 0 | L59: 0 | M59: 0 | N59: 0 | O59: 0 | P59: 0 | Q59: 0 | R59: 0 | S59: 0
B60: 546
A61: %,FACCOUNT,V804000,FAFFILIATE,V | B61: 547 | C61: 804.1 | D61: Natural Gas City Gate Purchases - Other
B62: 548 | E62: Utah | G62: 0 | H62: 0 | I62: 0 | J62: 0 | K62: 0 | L62: 0 | M62: 0 | N62: 0 | O62: 0 | P62: 0 | Q62: 0 | R62: 0 | S62: 0
B63: 549 | E63: Wyoming | G63: 0 | H63: 0 | I63: 0 | J63: 0 | K63: 0 | L63: 0 | M63: 0 | N63: 0 | O63: 0 | P63: 0 | Q63: 0 | R63: 0 | S63: 0
B64: 550 | E64: Total | G64: 0 | H64: 0 | I64: 0 | J64: 0 | K64: 0 | L64: 0 | M64: 0 | N64: 0 | O64: 0 | P64: 0 | Q64: 0 | R64: 0 | S64: 0
B65: 551
B66: 552 | C66: 805 | D66: Purchased Gas Cost Adjustments - Other
B67: 553 | E67: Utah | G67: 0 | H67: 0 | I67: 0 | J67: 0 | K67: 0 | L67: 0 | M67: 0 | N67: 0 | O67: 0 | P67: 0 | Q67: 0 | R67: 0 | S67: 0
B68: 554 | E68: Wyoming | G68: 0 | H68: 0 | I68: 0 | J68: 0 | K68: 0 | L68: 0 | M68: 0 | N68: 0 | O68: 0 | P68: 0 | Q68: 0 | R68: 0 | S68: 0
B69: 555 | E69: Total | G69: 0 | H69: 0 | I69: 0 | J69: 0 | K69: 0 | L69: 0 | M69: 0 | N69: 0 | O69: 0 | P69: 0 | Q69: 0 | R69: 0 | S69: 0
B70: 556
A71: %,FACCOUNT,TQGCACCTS,V805100 | B71: 557 | C71: 805.1 | D71: Purchased Gas Cost Adjustments - Utah
B72: 558 | E72: Utah | G72: 0 | H72: 0 | I72: 0 | J72: 0 | K72: 0 | L72: 0 | M72: 0 | N72: 0 | O72: 0 | P72: 0 | Q72: 0 | R72: 0 | S72: 0
B73: 559 | E73: Wyoming | G73: 0 | H73: 0 | I73: 0 | J73: 0 | K73: 0 | L73: 0 | M73: 0 | N73: 0 | O73: 0 | P73: 0 | Q73: 0 | R73: 0 | S73: 0
B74: 560 | E74: Total | G74: 0 | H74: 0 | I74: 0 | J74: 0 | K74: 0 | L74: 0 | M74: 0 | N74: 0 | O74: 0 | P74: 0 | Q74: 0 | R74: 0 | S74: 0
B75: 561
A76: %,FACCOUNT,TQGCACCTS,V806000 | B76: 562 | C76: 806 | D76: Exchange Gas
B77: 563 | E77: Utah | G77: 0 | H77: 0 | I77: 0 | J77: 0 | K77: 0 | L77: 0 | M77: 0 | N77: 0 | O77: 0 | P77: 0 | Q77: 0 | R77: 0 | S77: 0
B78: 564 | E78: Wyoming | G78: 0 | H78: 0 | I78: 0 | J78: 0 | K78: 0 | L78: 0 | M78: 0 | N78: 0 | O78: 0 | P78: 0 | Q78: 0 | R78: 0 | S78: 0
B79: 565 | E79: Total | G79: 0 | H79: 0 | I79: 0 | J79: 0 | K79: 0 | L79: 0 | M79: 0 | N79: 0 | O79: 0 | P79: 0 | Q79: 0 | R79: 0 | S79: 0
B80: 566
A81: %,FACCOUNT,TQGCACCTS,V808100 | B81: 567 | C81: 808.1 | D81: Gas Withdrawn from Underground Storage
B82: 568 | E82: Utah | G82: 0 | H82: 0 | I82: 0 | J82: 0 | K82: 0 | L82: 0 | M82: 0 | N82: 0 | O82: 0 | P82: 0 | Q82: 0 | R82: 0 | S82: 0
B83: 569 | E83: Wyoming | G83: 0 | H83: 0 | I83: 0 | J83: 0 | K83: 0 | L83: 0 | M83: 0 | N83: 0 | O83: 0 | P83: 0 | Q83: 0 | R83: 0 | S83: 0
B84: 570 | E84: Total | G84: 0 | H84: 0 | I84: 0 | J84: 0 | K84: 0 | L84: 0 | M84: 0 | N84: 0 | O84: 0 | P84: 0 | Q84: 0 | R84: 0 | S84: 0
B85: 571
A86: %,FACCOUNT,TQGCACCTS,V808200 | B86: 572 | C86: 808.2 | D86: Gas Delivered to Underground Storage
B87: 573 | E87: Utah | G87: 0 | H87: 0 | I87: 0 | J87: 0 | K87: 0 | L87: 0 | M87: 0 | N87: 0 | O87: 0 | P87: 0 | Q87: 0 | R87: 0 | S87: 0
B88: 574 | E88: Wyoming | G88: 0 | H88: 0 | I88: 0 | J88: 0 | K88: 0 | L88: 0 | M88: 0 | N88: 0 | O88: 0 | P88: 0 | Q88: 0 | R88: 0 | S88: 0
B89: 575 | E89: Total | G89: 0 | H89: 0 | I89: 0 | J89: 0 | K89: 0 | L89: 0 | M89: 0 | N89: 0 | O89: 0 | P89: 0 | Q89: 0 | R89: 0 | S89: 0
B90: 576
A91: %,FACCOUNT,TQGCACCTS,V808300 | B91: 577 | C91: 808.3 | D91: Exchange Gas
B92: 578 | E92: Utah | G92: 0 | H92: 0 | I92: 0 | J92: 0 | K92: 0 | L92: 0 | M92: 0 | N92: 0 | O92: 0 | P92: 0 | Q92: 0 | R92: 0 | S92: 0
B93: 579 | E93: Wyoming | G93: 0 | H93: 0 | I93: 0 | J93: 0 | K93: 0 | L93: 0 | M93: 0 | N93: 0 | O93: 0 | P93: 0 | Q93: 0 | R93: 0 | S93: 0
B94: 580 | E94: Total | G94: 0 | H94: 0 | I94: 0 | J94: 0 | K94: 0 | L94: 0 | M94: 0 | N94: 0 | O94: 0 | P94: 0 | Q94: 0 | R94: 0 | S94: 0
B95: 581
A96: %,FACCOUNT,TQGCACCTS,V813000,V813001,V813002,V813003,V813004 | B96: 582 | C96: 813 | D96: Other Gas Supply Expenses - Gas Cost
B97: 583 | E97: Utah | G97: 0 | H97: 0 | I97: 0 | J97: 0 | K97: 0 | L97: 0 | M97: 0 | N97: 0 | O97: 0 | P97: 0 | Q97: 0 | R97: 0 | S97: 0
B98: 584 | E98: Wyoming | G98: 0 | H98: 0 | I98: 0 | J98: 0 | K98: 0 | L98: 0 | M98: 0 | N98: 0 | O98: 0 | P98: 0 | Q98: 0 | R98: 0 | S98: 0
B99: 585 | E99: Total | G99: 0 | H99: 0 | I99: 0 | J99: 0 | K99: 0 | L99: 0 | M99: 0 | N99: 0 | O99: 0 | P99: 0 | Q99: 0 | R99: 0 | S99: 0
B100: 586
B101: 587 | C101: 813 | D101: Other Gas Supply Expenses - SNG Cost
B102: 588 | E102: Utah
B103: 589 | E103: Wyoming
B104: 590 | E104: Total | G104: 0 | H104: 0 | I104: 0 | J104: 0 | K104: 0 | L104: 0 | M104: 0 | N104: 0 | O104: 0 | P104: 0 | Q104: 0 | R104: 0 | S104: 0
B105: 591
B106: 592 | C106: 813.5 | D106: CO2 Processing Expenses
A107: %,FACCOUNT,TQGCACCTS,V813005,V813007,V813008 | B107: 593 | E107: Utah | G107: 0 | H107: 0 | I107: 0 | J107: 0 | K107: 0 | L107: 0 | M107: 0 | N107: 0 | O107: 0 | P107: 0 | Q107: 0 | R107: 0 | S107: 0
A108: %,FACCOUNT,TQGCACCTS,V813006 | B108: 594 | E108: Wyoming | G108: 0 | H108: 0 | I108: 0 | J108: 0 | K108: 0 | L108: 0 | M108: 0 | N108: 0 | O108: 0 | P108: 0 | Q108: 0 | R108: 0 | S108: 0
B109: 595 | E109: Total | G109: 0 | H109: 0 | I109: 0 | J109: 0 | K109: 0 | L109: 0 | M109: 0 | N109: 0 | O109: 0 | P109: 0 | Q109: 0 | R109: 0 | S109: 0
B110: 596
A111: %,FACCOUNT,TQGCACCTS,V858000 | B111: 597 | C111: 858 | D111: Transportation GRI & ACA - Gas Cost
B112: 598 | E112: Utah | G112: 0 | H112: 0 | I112: 0 | J112: 0 | K112: 0 | L112: 0 | M112: 0 | N112: 0 | O112: 0 | P112: 0 | Q112: 0 | R112: 0 | S112: 0
B113: 599 | E113: Wyoming | G113: 0 | H113: 0 | I113: 0 | J113: 0 | K113: 0 | L113: 0 | M113: 0 | N113: 0 | O113: 0 | P113: 0 | Q113: 0 | R113: 0 | S113: 0
B114: 600 | E114: Total | G114: 0 | H114: 0 | I114: 0 | J114: 0 | K114: 0 | L114: 0 | M114: 0 | N114: 0 | O114: 0 | P114: 0 | Q114: 0 | R114: 0 | S114: 0
B115: 601
A116: %,FACCOUNT,TQGCACCTS,V858001 | B116: 602 | C116: 858 | D116: Trans & Comp of Gas by Others - SNG Cost
B117: 603 | E117: Utah | G117: 0 | H117: 0 | I117: 0 | J117: 0 | K117: 0 | L117: 0 | M117: 0 | N117: 0 | O117: 0 | P117: 0 | Q117: 0 | R117: 0 | S117: 0
B118: 604 | E118: Wyoming | G118: 0 | H118: 0 | I118: 0 | J118: 0 | K118: 0 | L118: 0 | M118: 0 | N118: 0 | O118: 0 | P118: 0 | Q118: 0 | R118: 0 | S118: 0
B119: 605 | E119: Total | G119: 0 | H119: 0 | I119: 0 | J119: 0 | K119: 0 | L119: 0 | M119: 0 | N119: 0 | O119: 0 | P119: 0 | Q119: 0 | R119: 0 | S119: 0
B120: 606
B121: 607 | C121: System Total Gas Purchase Expenses
B122: 608 | D122: Utah Gas Purchase Expenses | G122: 0 | H122: 0 | I122: 0 | J122: 0 | K122: 0 | L122: 0 | M122: 0 | N122: 0 | O122: 0 | P122: 0 | Q122: 0 | R122: 0 | S122: 0
B123: 609 | D123: Wyoming Gas Purchase Expenses | G123: 0 | H123: 0 | I123: 0 | J123: 0 | K123: 0 | L123: 0 | M123: 0 | N123: 0 | O123: 0 | P123: 0 | Q123: 0 | R123: 0 | S123: 0
B124: 610
B125: 611
B126: 612 | D126: System Total Gas Purchase Expenses | G126: 0 | H126: 0 | I126: 0 | J126: 0 | K126: 0 | L126: 0 | M126: 0 | N126: 0 | O126: 0 | P126: 0 | Q126: 0 | R126: 0 | S126: 0
B127: 613
B128: 614
B129: 615 | C129: OPERATION AND MAINTENANCE EXPENSES
B130: 616
B131: 617 | C131: Production Expenses
B132: 618
A133: %,FACCOUNT,TQGCACCTS,V810000,V810001 | B133: 619 | C133: 810 | D133: Gas Used for Compressor Station Fuel | G133: 0 | H133: 0 | I133: 0 | J133: 0 | K133: 0 | L133: 0 | M133: 0 | N133: 0 | O133: 0 | P133: 0 | Q133: 0 | R133: 0 | S133: 0
A134: %,FACCOUNT,TQGCACCTS,V812000,V812001 | B134: 620 | C134: 812 | D134: Gas Used for Other Utility Operations | G134: 0 | H134: 0 | I134: 0 | J134: 0 | K134: 0 | L134: 0 | M134: 0 | N134: 0 | O134: 0 | P134: 0 | Q134: 0 | R134: 0 | S134: 0
B135: 621
B136: 622 | D136: Total Production Expenses | G136: 0 | H136: 0 | I136: 0 | J136: 0 | K136: 0 | L136: 0 | M136: 0 | N136: 0 | O136: 0 | P136: 0 | Q136: 0 | R136: 0 | S136: 0
B137: 623 | G137: 0 | H137: 0 | I137: 0 | J137: 0 | K137: 0 | L137: 0 | M137: 0 | N137: 0 | O137: 0 | P137: 0 | Q137: 0 | R137: 0 | S137: 0
B138: 624 | C138: Distribution Operations & Maintenance Expenses
B139: 625
B140: 626 | C140: 870 | D140: Operation Supervision & Engineering
B141: 627 | E141: Utah | G141: 0 | H141: 0 | I141: 0 | J141: 0 | K141: 0 | L141: 0 | M141: 0 | N141: 0 | O141: 0 | P141: 0 | Q141: 0 | R141: 0 | S141: 0
B142: 628 | E142: Wyoming | G142: 0 | H142: 0 | I142: 0 | J142: 0 | K142: 0 | L142: 0 | M142: 0 | N142: 0 | O142: 0 | P142: 0 | Q142: 0 | R142: 0 | S142: 0
A143: %,FACCOUNT,TQGCACCTS,N870 | B143: 629 | E143: Total | G143: 0 | H143: 0 | I143: 0 | J143: 0 | K143: 0 | L143: 0 | M143: 0 | N143: 0 | O143: 0 | P143: 0 | Q143: 0 | R143: 0 | S143: 0
B144: 630
B145: 631 | C145: 871 | D145: Distribution Load Dispatching
B146: 632 | E146: Utah | G146: 0 | H146: 0 | I146: 0 | J146: 0 | K146: 0 | L146: 0 | M146: 0 | N146: 0 | O146: 0 | P146: 0 | Q146: 0 | R146: 0 | S146: 0
B147: 633 | E147: Wyoming | G147: 0 | H147: 0 | I147: 0 | J147: 0 | K147: 0 | L147: 0 | M147: 0 | N147: 0 | O147: 0 | P147: 0 | Q147: 0 | R147: 0 | S147: 0
A148: %,FACCOUNT,TQGCACCTS,N871 | B148: 634 | E148: Total | G148: 0 | H148: 0 | I148: 0 | J148: 0 | K148: 0 | L148: 0 | M148: 0 | N148: 0 | O148: 0 | P148: 0 | Q148: 0 | R148: 0 | S148: 0
B149: 635
B150: 636 | C150: 872 | D150: Compressor Station Labor & Expenses
B151: 637 | E151: Utah | G151: 0 | H151: 0 | I151: 0 | J151: 0 | K151: 0 | L151: 0 | M151: 0 | N151: 0 | O151: 0 | P151: 0 | Q151: 0 | R151: 0 | S151: 0
B152: 638 | E152: Wyoming | G152: 0 | H152: 0 | I152: 0 | J152: 0 | K152: 0 | L152: 0 | M152: 0 | N152: 0 | O152: 0 | P152: 0 | Q152: 0 | R152: 0 | S152: 0
A153: %,FACCOUNT,TQGCACCTS,N872 | B153: 639 | E153: Total | G153: 0 | H153: 0 | I153: 0 | J153: 0 | K153: 0 | L153: 0 | M153: 0 | N153: 0 | O153: 0 | P153: 0 | Q153: 0 | R153: 0 | S153: 0
B154: 640
B155: 641 | C155: 873 | D155: Compressor Station Fuel & Power
B156: 642 | E156: Utah | G156: 0 | H156: 0 | I156: 0 | J156: 0 | K156: 0 | L156: 0 | M156: 0 | N156: 0 | O156: 0 | P156: 0 | Q156: 0 | R156: 0 | S156: 0
B157: 643 | E157: Wyoming | G157: 0 | H157: 0 | I157: 0 | J157: 0 | K157: 0 | L157: 0 | M157: 0 | N157: 0 | O157: 0 | P157: 0 | Q157: 0 | R157: 0 | S157: 0
A158: %,FACCOUNT,TQGCACCTS,N873 | B158: 644 | E158: Total | G158: 0 | H158: 0 | I158: 0 | J158: 0 | K158: 0 | L158: 0 | M158: 0 | N158: 0 | O158: 0 | P158: 0 | Q158: 0 | R158: 0 | S158: 0
B159: 645
B160: 646 | C160: 874 | D160: Mains & Service Expenses
B161: 647 | E161: Utah | G161: 0 | H161: 0 | I161: 0 | J161: 0 | K161: 0 | L161: 0 | M161: 0 | N161: 0 | O161: 0 | P161: 0 | Q161: 0 | R161: 0 | S161: 0
B162: 648 | E162: Wyoming | G162: 0 | H162: 0 | I162: 0 | J162: 0 | K162: 0 | L162: 0 | M162: 0 | N162: 0 | O162: 0 | P162: 0 | Q162: 0 | R162: 0 | S162: 0
A163: %,FACCOUNT,TQGCACCTS,N874 | B163: 649 | E163: Total | G163: 0 | H163: 0 | I163: 0 | J163: 0 | K163: 0 | L163: 0 | M163: 0 | N163: 0 | O163: 0 | P163: 0 | Q163: 0 | R163: 0 | S163: 0
B164: 650
B165: 651 | C165: 875 | D165: Measuring & Regulating Station Expenses
B166: 652 | E166: Utah | G166: 0 | H166: 0 | I166: 0 | J166: 0 | K166: 0 | L166: 0 | M166: 0 | N166: 0 | O166: 0 | P166: 0 | Q166: 0 | R166: 0 | S166: 0
B167: 653 | E167: Wyoming | G167: 0 | H167: 0 | I167: 0 | J167: 0 | K167: 0 | L167: 0 | M167: 0 | N167: 0 | O167: 0 | P167: 0 | Q167: 0 | R167: 0 | S167: 0
A168: %,FACCOUNT,TQGCACCTS,N875 | B168: 654 | E168: Total | G168: 0 | H168: 0 | I168: 0 | J168: 0 | K168: 0 | L168: 0 | M168: 0 | N168: 0 | O168: 0 | P168: 0 | Q168: 0 | R168: 0 | S168: 0
B169: 655
B170: 656 | C170: 878 | D170: Meter & House Regulator Expenses
B171: 657 | E171: Utah | G171: 0 | H171: 0 | I171: 0 | J171: 0 | K171: 0 | L171: 0 | M171: 0 | N171: 0 | O171: 0 | P171: 0 | Q171: 0 | R171: 0 | S171: 0
B172: 658 | E172: Wyoming | G172: 0 | H172: 0 | I172: 0 | J172: 0 | K172: 0 | L172: 0 | M172: 0 | N172: 0 | O172: 0 | P172: 0 | Q172: 0 | R172: 0 | S172: 0
A173: %,FACCOUNT,TQGCACCTS,N878 | B173: 659 | E173: Total | G173: 0 | H173: 0 | I173: 0 | J173: 0 | K173: 0 | L173: 0 | M173: 0 | N173: 0 | O173: 0 | P173: 0 | Q173: 0 | R173: 0 | S173: 0
B174: 660
B175: 661 | C175: 879 | D175: Customer Installations Expenses
B176: 662 | E176: Utah | G176: 0 | H176: 0 | I176: 0 | J176: 0 | K176: 0 | L176: 0 | M176: 0 | N176: 0 | O176: 0 | P176: 0 | Q176: 0 | R176: 0 | S176: 0
B177: 663 | E177: Wyoming | G177: 0 | H177: 0 | I177: 0 | J177: 0 | K177: 0 | L177: 0 | M177: 0 | N177: 0 | O177: 0 | P177: 0 | Q177: 0 | R177: 0 | S177: 0
A178: %,FACCOUNT,TQGCACCTS,N879 | B178: 664 | E178: Total | G178: 0 | H178: 0 | I178: 0 | J178: 0 | K178: 0 | L178: 0 | M178: 0 | N178: 0 | O178: 0 | P178: 0 | Q178: 0 | R178: 0 | S178: 0
B179: 665
B180: 666 | C180: 880 | D180: Other Expenses
B181: 667 | E181: Utah | G181: 0 | H181: 0 | I181: 0 | J181: 0 | K181: 0 | L181: 0 | M181: 0 | N181: 0 | O181: 0 | P181: 0 | Q181: 0 | R181: 0 | S181: 0
B182: 668 | E182: Wyoming | G182: 0 | H182: 0 | I182: 0 | J182: 0 | K182: 0 | L182: 0 | M182: 0 | N182: 0 | O182: 0 | P182: 0 | Q182: 0 | R182: 0 | S182: 0
A183: %,FACCOUNT,TQGCACCTS,N880 | B183: 669 | E183: Total | G183: 0 | H183: 0 | I183: 0 | J183: 0 | K183: 0 | L183: 0 | M183: 0 | N183: 0 | O183: 0 | P183: 0 | Q183: 0 | R183: 0 | S183: 0
B184: 670
B185: 671 | C185: 881 | D185: Rents
B186: 672 | E186: Utah | G186: 0 | H186: 0 | I186: 0 | J186: 0 | K186: 0 | L186: 0 | M186: 0 | N186: 0 | O186: 0 | P186: 0 | Q186: 0 | R186: 0 | S186: 0
B187: 673 | E187: Wyoming | G187: 0 | H187: 0 | I187: 0 | J187: 0 | K187: 0 | L187: 0 | M187: 0 | N187: 0 | O187: 0 | P187: 0 | Q187: 0 | R187: 0 | S187: 0
A188: %,FACCOUNT,TQGCACCTS,N881 | B188: 674 | E188: Total | G188: 0 | H188: 0 | I188: 0 | J188: 0 | K188: 0 | L188: 0 | M188: 0 | N188: 0 | O188: 0 | P188: 0 | Q188: 0 | R188: 0 | S188: 0
B189: 675
B190: 676 | C190: 885 | D190: Maintenance Supervision & Engineering
B191: 677 | E191: Utah | G191: 0 | H191: 0 | I191: 0 | J191: 0 | K191: 0 | L191: 0 | M191: 0 | N191: 0 | O191: 0 | P191: 0 | Q191: 0 | R191: 0 | S191: 0
B192: 678 | E192: Wyoming | G192: 0 | H192: 0 | I192: 0 | J192: 0 | K192: 0 | L192: 0 | M192: 0 | N192: 0 | O192: 0 | P192: 0 | Q192: 0 | R192: 0 | S192: 0
A193: %,FACCOUNT,TQGCACCTS,N885 | B193: 679 | E193: Total | G193: 0 | H193: 0 | I193: 0 | J193: 0 | K193: 0 | L193: 0 | M193: 0 | N193: 0 | O193: 0 | P193: 0 | Q193: 0 | R193: 0 | S193: 0
B194: 680
B195: 681 | C195: 886 | D195: Maintenance of Structures & Improvements
B196: 682 | E196: Utah | G196: 0 | H196: 0 | I196: 0 | J196: 0 | K196: 0 | L196: 0 | M196: 0 | N196: 0 | O196: 0 | P196: 0 | Q196: 0 | R196: 0 | S196: 0
B197: 683 | E197: Wyoming | G197: 0 | H197: 0 | I197: 0 | J197: 0 | K197: 0 | L197: 0 | M197: 0 | N197: 0 | O197: 0 | P197: 0 | Q197: 0 | R197: 0 | S197: 0
A198: %,FACCOUNT,TQGCACCTS,N886 | B198: 684 | E198: Total | G198: 0 | H198: 0 | I198: 0 | J198: 0 | K198: 0 | L198: 0 | M198: 0 | N198: 0 | O198: 0 | P198: 0 | Q198: 0 | R198: 0 | S198: 0
B199: 685
B200: 686 | C200: 887 | D200: Maintenance of Mains
B201: 687 | E201: Utah | G201: 0 | H201: 0 | I201: 0 | J201: 0 | K201: 0 | L201: 0 | M201: 0 | N201: 0 | O201: 0 | P201: 0 | Q201: 0 | R201: 0 | S201: 0
B202: 688 | E202: Wyoming | G202: 0 | H202: 0 | I202: 0 | J202: 0 | K202: 0 | L202: 0 | M202: 0 | N202: 0 | O202: 0 | P202: 0 | Q202: 0 | R202: 0 | S202: 0
A203: %,FACCOUNT,TQGCACCTS,N887 | B203: 689 | E203: Total | G203: 0 | H203: 0 | I203: 0 | J203: 0 | K203: 0 | L203: 0 | M203: 0 | N203: 0 | O203: 0 | P203: 0 | Q203: 0 | R203: 0 | S203: 0
B204: 690
B205: 691 | C205: 888 | D205: Maint of Compressor Station Equipment
B206: 692 | E206: Utah | G206: 0 | H206: 0 | I206: 0 | J206: 0 | K206: 0 | L206: 0 | M206: 0 | N206: 0 | O206: 0 | P206: 0 | Q206: 0 | R206: 0 | S206: 0
... 813 more rows

Sheet Rate Base
A1: %,LACTUALS
C2: Company: | F2: Company:
C3: Period Ended: | F3: Period Ended:
C4: Date,Time, Stamp: | F4: Date,Time, Stamp:
U5: Historical
U6: 13-Month Avg
U7: Period Ended
G8: =+H8-30 -> 2019-01-30 | H8: 2019-03-01 | I8: 2019-04-01 | J8: 2019-05-01 | K8: 2019-06-01 | L8: 2019-07-01 | M8: 2019-08-01 | N8: 2019-09-01 | O8: 2019-10-01 | P8: 2019-11-01 | Q8: 2019-12-01 | R8: 2020-01-01 | S8: 2020-02-01 | T8: 2020-03-01 | U8: 2020-03-31
C10: UTILITY RATE BASE
D11: NET UTILITY PLANT
D13: Intangible Plant
C14: 101 | D14: Gas Plant In Service
E15: Intangible Plant
B16: 1 | D16: 302 | E16: Franchises & Consents
B17: =+B16+1 -> 2 | E17: Distribution - Wyoming | H17: 0 | I17: 0 | J17: 0 | K17: 0 | L17: 0 | M17: 0 | N17: 0 | O17: 0 | P17: 0 | Q17: 0 | R17: 0 | S17: 0 | T17: 0 | U17: 0
B18: 3 | E18: Distribution - Utah | H18: 0 | I18: 0 | J18: 0 | K18: 0 | L18: 0 | M18: 0 | N18: 0 | O18: 0 | P18: 0 | Q18: 0 | R18: 0 | S18: 0 | T18: 0 | U18: 0
B19: 4
A20: ="%,FACCOUNT,TQGCACCTS,N"&(D16) -> %,FACCOUNT,TQGCACCTS,N302 | B20: 5 | E20: Total Intangible Plant | H20: 0 | I20: 0 | J20: 0 | K20: 0 | L20: 0 | M20: 0 | N20: 0 | O20: 0 | P20: 0 | Q20: 0 | R20: 0 | S20: 0 | T20: 0 | U20: 0
B21: 6
B22: 7 | E22: Production & Gathering Plant
A23: ="%,FACCOUNT,TQGCACCTS,N"&(D23) -> %,FACCOUNT,TQGCACCTS,N325 | B23: 8 | D23: 325 | E23: Land & Land Rights | H23: 0 | I23: 0 | J23: 0 | K23: 0 | L23: 0 | M23: 0 | N23: 0 | O23: 0 | P23: 0 | Q23: 0 | R23: 0 | S23: 0 | T23: 0 | U23: 0
A24: %,FACCOUNT,TQGCACCTS,N326,N327,N328,N329 | B24: 9 | D24: 326...9 | E24: Structures | H24: 0 | I24: 0 | J24: 0 | K24: 0 | L24: 0 | M24: 0 | N24: 0 | O24: 0 | P24: 0 | Q24: 0 | R24: 0 | S24: 0 | T24: 0 | U24: 0
A25: ="%,FACCOUNT,TQGCACCTS,N"&(D25) -> %,FACCOUNT,TQGCACCTS,N330 | B25: 10 | D25: 330 | E25: Gas Wells - Construction | H25: 0 | I25: 0 | J25: 0 | K25: 0 | L25: 0 | M25: 0 | N25: 0 | O25: 0 | P25: 0 | Q25: 0 | R25: 0 | S25: 0 | T25: 0 | U25: 0
A26: ="%,FACCOUNT,TQGCACCTS,N"&(D26) -> %,FACCOUNT,TQGCACCTS,N331 | B26: 11 | D26: 331 | E26: Gas Wells - Equipment | H26: 0 | I26: 0 | J26: 0 | K26: 0 | L26: 0 | M26: 0 | N26: 0 | O26: 0 | P26: 0 | Q26: 0 | R26: 0 | S26: 0 | T26: 0 | U26: 0
A27: %,FACCOUNT,TQGCACCTS,N332,N333,N334 | B27: 12 | D27: 332...4 | E27: Field Lines & Comp, Meas & Reg St Eqpt | H27: 0 | I27: 0 | J27: 0 | K27: 0 | L27: 0 | M27: 0 | N27: 0 | O27: 0 | P27: 0 | Q27: 0 | R27: 0 | S27: 0 | T27: 0 | U27: 0
A28: ="%,FACCOUNT,TQGCACCTS,N"&(D28) -> %,FACCOUNT,TQGCACCTS,N336 | B28: 13 | D28: 336 | E28: Purification Equipment | H28: 0 | I28: 0 | J28: 0 | K28: 0 | L28: 0 | M28: 0 | N28: 0 | O28: 0 | P28: 0 | Q28: 0 | R28: 0 | S28: 0 | T28: 0 | U28: 0
A29: ="%,FACCOUNT,TQGCACCTS,N"&(D29) -> %,FACCOUNT,TQGCACCTS,N337 | B29: 14 | D29: 337 | E29: Other Equipment | H29: 0 | I29: 0 | J29: 0 | K29: 0 | L29: 0 | M29: 0 | N29: 0 | O29: 0 | P29: 0 | Q29: 0 | R29: 0 | S29: 0 | T29: 0 | U29: 0
B30: 15
B31: 16 | E31: Total Production & Gathering Plant | H31: 0 | I31: 0 | J31: 0 | K31: 0 | L31: 0 | M31: 0 | N31: 0 | O31: 0 | P31: 0 | Q31: 0 | R31: 0 | S31: 0 | T31: 0 | U31: 0
B32: 17
B33: 18 | E33: Distribution Plant
B34: 19 | D34: 374 | E34: Land & Land Rights
B35: 20 | F35: Wyoming | H35: 0 | I35: 0 | J35: 0 | K35: 0 | L35: 0 | M35: 0 | N35: 0 | O35: 0 | P35: 0 | Q35: 0 | R35: 0 | S35: 0 | T35: 0 | U35: 0
A36: ="%,FACCOUNT,TQGCACCTS,N"&(D34) -> %,FACCOUNT,TQGCACCTS,N374 | B36: 21 | F36: Utah | H36: 0 | I36: 0 | J36: 0 | K36: 0 | L36: 0 | M36: 0 | N36: 0 | O36: 0 | P36: 0 | Q36: 0 | R36: 0 | S36: 0 | T36: 0 | U36: 0
B37: 22 | F37: Total | H37: 0 | I37: 0 | J37: 0 | K37: 0 | L37: 0 | M37: 0 | N37: 0 | O37: 0 | P37: 0 | Q37: 0 | R37: 0 | S37: 0 | T37: 0 | U37: 0
B38: 23
B39: 24 | D39: 375 | E39: Structures & Improvements
B40: 25 | F40: Wyoming | H40: 0 | I40: 0 | J40: 0 | K40: 0 | L40: 0 | M40: 0 | N40: 0 | O40: 0 | P40: 0 | Q40: 0 | R40: 0 | S40: 0 | T40: 0 | U40: 0
A41: ="%,FACCOUNT,TQGCACCTS,N"&(D39) -> %,FACCOUNT,TQGCACCTS,N375 | B41: 26 | F41: Utah | H41: 0 | I41: 0 | J41: 0 | K41: 0 | L41: 0 | M41: 0 | N41: 0 | O41: 0 | P41: 0 | Q41: 0 | R41: 0 | S41: 0 | T41: 0 | U41: 0
B42: 27 | F42: Total | H42: 0 | I42: 0 | J42: 0 | K42: 0 | L42: 0 | M42: 0 | N42: 0 | O42: 0 | P42: 0 | Q42: 0 | R42: 0 | S42: 0 | T42: 0 | U42: 0
B43: 28
B44: 29 | D44: 376 | E44: Mains
B45: 30 | F45: Dist - Wy - Mains - SD
B46: 31 | F46: Dist - Wy - Mains - LD
B47: 32 | F47: Dist - Wy - Mains - Feeders
B48: 33 | F48: Wyoming | H48: 0 | I48: 0 | J48: 0 | K48: 0 | L48: 0 | M48: 0 | N48: 0 | O48: 0 | P48: 0 | Q48: 0 | R48: 0 | S48: 0 | T48: 0 | U48: 0
B49: 34 | F49: Dist - Ut - Mains - SD
B50: 35 | F50: Dist - Ut - Mains - LD
B51: 36 | F51: Dist - Ut - Mains - Feeders
A52: ="%,FACCOUNT,TQGCACCTS,N"&(D44) -> %,FACCOUNT,TQGCACCTS,N376 | B52: 37 | F52: Utah | H52: 0 | I52: 0 | J52: 0 | K52: 0 | L52: 0 | M52: 0 | N52: 0 | O52: 0 | P52: 0 | Q52: 0 | R52: 0 | S52: 0 | T52: 0 | U52: 0
B53: 38 | F53: Total | H53: 0 | I53: 0 | J53: 0 | K53: 0 | L53: 0 | M53: 0 | N53: 0 | O53: 0 | P53: 0 | Q53: 0 | R53: 0 | S53: 0 | T53: 0 | U53: 0
B54: 39 | H54: 0 | I54: 0 | J54: 0 | K54: 0 | L54: 0 | M54: 0 | N54: 0 | O54: 0 | P54: 0 | Q54: 0 | R54: 0 | S54: 0 | T54: 0 | U54: 0
B55: 40 | D55: 377 | E55: Compressor Station Equipment
B56: 41 | F56: Wyoming | H56: 0 | I56: 0 | J56: 0 | K56: 0 | L56: 0 | M56: 0 | N56: 0 | O56: 0 | P56: 0 | Q56: 0 | R56: 0 | S56: 0 | T56: 0 | U56: 0
A57: ="%,FACCOUNT,TQGCACCTS,N"&(D55) -> %,FACCOUNT,TQGCACCTS,N377 | B57: 42 | F57: Utah | H57: 0 | I57: 0 | J57: 0 | K57: 0 | L57: 0 | M57: 0 | N57: 0 | O57: 0 | P57: 0 | Q57: 0 | R57: 0 | S57: 0 | T57: 0 | U57: 0
B58: 43 | F58: Total | H58: 0 | I58: 0 | J58: 0 | K58: 0 | L58: 0 | M58: 0 | N58: 0 | O58: 0 | P58: 0 | Q58: 0 | R58: 0 | S58: 0 | T58: 0 | U58: 0
B59: 44
B60: 45 | D60: 378 | E60: Measuring & Regulation Station Equip
B61: 46 | F61: Wyoming | H61: 0 | I61: 0 | J61: 0 | K61: 0 | L61: 0 | M61: 0 | N61: 0 | O61: 0 | P61: 0 | Q61: 0 | R61: 0 | S61: 0 | T61: 0 | U61: 0
A62: ="%,FACCOUNT,TQGCACCTS,N"&(D60) -> %,FACCOUNT,TQGCACCTS,N378 | B62: 47 | F62: Utah | H62: 0 | I62: 0 | J62: 0 | K62: 0 | L62: 0 | M62: 0 | N62: 0 | O62: 0 | P62: 0 | Q62: 0 | R62: 0 | S62: 0 | T62: 0 | U62: 0
B63: 48 | F63: Total | H63: 0 | I63: 0 | J63: 0 | K63: 0 | L63: 0 | M63: 0 | N63: 0 | O63: 0 | P63: 0 | Q63: 0 | R63: 0 | S63: 0 | T63: 0 | U63: 0
B64: 49
B65: 50 | D65: 380 | E65: Services
B66: 51 | F66: Wyoming | H66: 0 | I66: 0 | J66: 0 | K66: 0 | L66: 0 | M66: 0 | N66: 0 | O66: 0 | P66: 0 | Q66: 0 | R66: 0 | S66: 0 | T66: 0 | U66: 0
